Workbook

Sheet Landing Page
A1: Society of Actuaries
A2: Underwriting Margin Model (v.2024)
A3: For Medicaid Managed Care Rate Development
A5: Disclosures and Limitations
A6: This Excel model accompanies the report titled Medicaid Managed Care Underwriting Margin Model. They are intended to be used in their entirety by qualified actuaries setting rates or evaluating rates for Medicaid managed care programs to develop the underwriting margin component of the capitation rates. It should not be relied on for any other purpose. The calculations in the Excel model as well as the methodologies and assumptions discussed in the report are not intended to account for all possible scenarios. Users should use actuarial judgment to determine if the model results are appropriate for the specific circumstances of the program being evaluated. Actual underwriting margin results will vary from the model estimates.
A7: The model relies upon historical Medicaid managed care organization statutory financial filings with the National Association of Insurance Commissioners (NAIC). The authors reviewed the data for reasonableness but did not perform an audit of the data.
A8: The opinions expressed and conclusions reached by the authors are their own and do not represent any official position or opinion of the Society of Actuaries or its members. The Society of Actuaries makes no representation or warranty to the accuracy of the information.
A9: Please refer to the following link for the full report and backup data:
A10: https://www.soa.org/resources/research-reports/2024/medicaid-underwriting-margin-model/
A12: Authors: | C12: Sponsors:
A13: Mardo Atoyan, MBA | C13: Society of Actuaries
A14: Principal | C14: SOA Research Institute
A15: HealthCare Analytics
A17: Tom Donlon, FSA, MAAA, FCA
A18: Managing Director
A19: Legacy 3 Consulting
A21: Grant Porter, PhD
A22: Senior Consultant
A23: Faulkner Consulting Group
B25: Society of Actuaries Research Institute
B26: 8770 W Bryn Mawr Ave, Suite 1000
B27: Chicago, IL 60631
B28: www.SOA.org
A30: This model and the accompanying report is the sole property of the SOA. The SOA owns all rights, title and interest in, including, but not limited to, any patent, copyright, trade secret and other proprietary rights therein. The SOA shall have a perpetual, non-exclusive, irrevocable and fully paid-up license to use, modify and copy such materials for its internal business purposes.

Sheet Instructions
A1: Instructions for the UW Margin Model
A3: The purpose of the model is to help the actuary decide what Underwriting Margin should be used in the premium rate development by enabling the actuary to test the sensitivity of assumptions.
A5: I. Set assumptions for:
A6: * General Parameters
A7: * Cost of Capital Parameters
A8: * Underwriting Margin Curve Activation
A9: * Risk-Sharing Parameters
A10: * Managed Care Discounts for RBC Calculation
A11: * Income Matrix–Interest Income/Interest Expense
A12: * User-Defined Values
A14: II. Press Calculate Button
A16: III. Lock/Unlock Button
A17: Pressing the Lock/Unlock button will initiate a macro that will activate the protection or cancel the protection of the locked cells in the worksheets. When "Locked," only unlocked cells will be available for modifications, i.e., parameter selections and user inputs. This feature is being provided as a convenience utility to prevent the user from unintentionally altering formulas, cell references or preexisting cell contents. At this time there is no password to lock or unlock, but the SOA may at its sole discretion include a password in the future
A19: Note: All input fields in the User Parameters tab are initially shaded in light orange/salmon color, aka "Orange, Accent 6, Lighter 80%" in Excel-speak. Selecting "User-Defined" in a field where that option is available will change the shading to a light green for that parameter and the corresponding parameter under "User-Defined Parameter Inputs" section of the User Parameters tab.
A20: For ease of use and reference, the following instructions are laid out and displayed in the same layout as the structure in the User Parameters tab.
A21: User Parameters
A23: General Parameters | C23: MLR Provisions
A24: 1. Calculation Target: Select the type of target, i.e., Net Income, Risk Margin or Probability of Ruin, and the target level for the UW Margin Model to solve. For the net income and risk margin options, enter a value as a percentage of premium. For the ruin option, enter the probability of ruin | C24: 38. Include Minimum MLR, Maximum MLR Provisions on Rates: Select "Yes" to turn on this option and provide those values in no. 38a and no. 38b.
A25: 2. Average Monthly Enrollment: Enter the estimated average monthly enrollment in the benefit plan for the rate period under consideration | C25: 38a. Minimum MLR: Enter minimum applicable MLR parameter, e.g., 85%. If both the Risk-Sharing Parameters and the MLR are entered, the Risk-Sharing parameters will be applied first and the Minimum MLR will be applied next.
A26: 3. Months in Rate Period: Enter the number of months in the rate period for the rate period under consideration | C26: 38b. Maximum MLR: Enter maximum applicable MLR parameter
A27: 4. Member Months: This field is automatically calculated with the preceding two parameters and represents the member months for the rate period
A28: 5a. UW Margin Curve: Include Pandemic Period [CY 2020–CY 2022] in Curve Development?: Select whether the Pandemic Period data should be included in the UW Margin curve development in 5.b. below
A29: 5b. UW Margin Curve: Standard Deviation: Select the desired UW Margin Curve to be used from the available options | C29: Risk Share (RS) Parameters
A30: i. If selecting "User-Defined Curve," input the Standard Deviation of your curve in the related field under the User-Defined Parameter Inputs section | C30: 39. Baseline for Risk Share: Select "No Risk Share," "MLR" or "Medical Baseline" to indicate the type of risk-sharing arrangement between the state and the MCO
A31: ii. Note: The model also provides the user with the option to calculate the risk margin, probability of ruin and the likelihood of loss for all the curves, the results of which are summarized in a table in the Results Dashboard. However, the detailed analysis provided in the Results Dashboard applies only to the primary curve selected in no. 5b. | C31: 40. MLR Target: Visible only when "MLR" is selected for Baseline for Risk Share in no. 39. Enter the Target MLR specified in the Risk Share provisions of the contract.
A32: 6. Claims Expense PMPM: Enter the estimated Claims Expense PMPM for the rate period under consideration | C32: 41. Intervals: Enter the intervals of the corridors for the risk-sharing arrangement
A33: a. The model will provide a warning to verify your input when you enter a value that is either below $100 PMPM or above $1,000 PMPM. You may override the warning after verification of your input. | C33: 42. MCO Responsibility: Enter the MCO responsibility % for gains and losses at each of the intervals
A34: 7. Administrative Expenses PMPM: Enter estimated Administrative Expense PMPM for the rate period under consideration. Note that this amount should include the QI Allowance noted separately below.
A35: 8. QI Allowance PMPM: Enter the amount of Quality Improvement (QI) to be included in rates as PMPM. This is used to calculate the MLR. The Administrative Expense PMPM provided above should also include this QI PMPM.
A36: 9. Withhold %: Enter the withhold amount, stated as a percent of premium
A37: a. The model will provide a warning to verify your input when you enter a value that is greater than 25%. You may override this warning.
A38: 10. Withhold Earned %: Enter the percent (%) of the withhold that is reasonably expected to be earned by the MCO
A39: a. Suggested default value is 100%
A40: 11. State Premium Tax %: Enter the state premium tax, if any, as a percent of premium for the rate period under consideration
A42: Cost of Capital (COC) Parameters
A43: Parameters for Risk-Based Capital (RBC) Calculation | C43: 17. Managed Care Discounts for RBC Calculation
A44: Per the NAIC, "The RBC requirement is a statutory minimum level of capital ... the company must hold [capital] in proportion to its risk. RBC is intended to be a regulatory standard and not necessarily the full amount of capital that an insurer would need to hold to meet its objectives." The Cost of Capital component of the UW Margin is a way to recognize the opportunity cost of the capital requirements maintained by the insurer. | C44: This section develops the Managed Care discount factor used in the NAIC's RBC calculation formula when "NAIC Filings + User Parameters" is selected in no. 15. Enter the estimated percent (%) of claims that fall under the referenced payment arrangement.
A45: 12. Minimum RBC Target Threshold: Enter the Minimum Risk-Based Capital (RBC) target for the Cost of Capital calculation | C45: 17a. Category 0: Arrangements not Included in Other Categories: Worksheet-calculated field, based on the inputs for no. 17b through 17e
A46: a. Note: | C46: 17b. Category 1: Payments made according to contractual arrangements: Enter the percent of claims paid according to contractual arrangements
A47: i. Authorized Control Level (ACL) = 100% RBC | C47: 17c. Category 2a/b: Payments subject to withhold/bonus: Enter the percent of claims paid that are subject to withholds or bonuses
A48: ii. For states that have adopted the NAIC RBC model act, the minimum RBC ratio requirement is 200%, below which, depending on the RBC level, regulatory interventions by state regulators are automatically triggered; e.g., levels between 200% and 150% RBC, "Company Action Level" is triggered wherein the insurer is required to submit a plan of corrective actions to the regulator. Lower levels may trigger increasingly greater interventions by the regulators. Many states, through regulations, effectively require a minimum "acceptable" RBC ratio that is higher than 200% RBC. Actuaries should verify with applicable state regulators the specifics of their requirements in that state. | C48: 17d. Category 3a/b: Capitated payments to providers/intermediaries: Enter the percent of claims covered by capitation payments
A49: 13. Maximum RBC Target Threshold: Select from the percentile options provided, which is reflective of the NAIC filings examined for this study, or enter the desired Maximum RBC target for the Cost of Capital calculation. The Maximum RBC Target must be higher than the Minimum RBC Target for the model to develop the probability of ruin. If there is no specific maximum RBC target required, consider using the 50th percentile, with a discount of 0%. If a specific target RBC is desired, enter 100% for the discount in no. 14 to set the minimum and the maximum RBC targets to the same value. | C49: 17e. Category 4: Expenses paid as salary to providers: Enter the percent of claims covered through provider salaries
A50: 14. Discount to apply to RBC between Thresholds: Enter the desired discount to apply to the Cost of Capital calculation for the RBC level between the minimum and maximum target RBCs. The discount provides for the level to which the model will fund above the minimum RBC in calculating the Cost of Capital. To target the model's calculation towards a specific RBC level, set the discount to 100%, which will effectively set the target at the Minimum RBC Target Threshold. | C50: 17f. Composite Managed Care Discount Factor: This is calculated automatically as a weighted average based on the values in no. 17a through 17e.
A51: 15. Calculation of Authorized Control Level (ACL) as % of Premium: Select the method with which the ACL is to be determined. "NAIC Filings + User Parameters" will incorporate state/MCO-specific information provided by the user, including Claims, Admin and the information in 17a. through 17e., along with NAIC data on risk classes, i.e., H0 through H41 to determine the ACL RBC as a percent of Premium. "NAIC Filings (Medicaid-Dominant)" uses the average aggregate data for health insurers with 50% or more of premiums composed of Medicaid Title XIX for CY 2019 and 2020. "NAIC Filings (All)" uses the average aggregate data for all health insurers for CY 2016 through CY 2020.1 For the "User-Defined" options, enter the ACL as a % of premium to be used in the COC calculations in the related field under User-Defined Parameter Inputs section.
A52: 16. Selection of NAIC Health Insurer Filings for RBC Risk Factors Weights: Select whether to use Medicaid-dominant (as defined above) health insurers or all health insurers as the source for RBC risk factor weights. Medicaid-dominant health insurers tend to exhibit lower H0 Risk–Affiliate (with RBC) Asset Risk than all health insurers, and higher H2-Underwriting Risk than all health insurers. The user/actuary may consider the participating MCO(s) lines of business when selecting this option.
A53: 17. Managed Care Discount Factor (applied to Underwriting Risk): Worksheet-calculated field for the Managed Care Discount factor for H2–Underwriting Risk, as calculated in "Managed Care Discount for RBC Calculation" section adjusts for the level of risk borne by the MCO(s), in consideration of MCOs' financial and contractual arrangements with providers and intermediaries. This option is available only when the user selects "NAIC Filings + User Parameters" in no. 15 above.
A55: Parameters for Weighted Average Cost of Capital (WACC) Calculation
A56: Per Investopedia, "The weighted average cost of capital (WACC) represents a firm's average cost of capital from all sources, including common stock, preferred stock, bonds, and other forms of debt. The weighted average cost of capital is a common way to determine required rate of return because it expresses, in a single number, the return that both bondholders and shareholders demand in order to provide the company with capital."
A57: 18. State Corporate Tax Rate: Select the state corporate tax rate from the drop-down list, or select "User-Defined" to enter the state corporate tax rate in the User-Defined Parameter Inputs section. Note that the prepopulated rates available in the drop-down list are an estimate and may not be reflective of your case-use needs.
A58: 19. Federal Corporate Tax Rate: Enter the corporate tax rate
A59: 20a. Historical Period for Risk-Free Rate of Return: Select 5-year, 3-year, 1-year or 6-month period for the benchmark reference for the Risk-Free rate to be used in the WACC calculation
A60: 20b. Risk-Free Rate of Return: Select the risk-free rate from the drop-down list or select "User-Defined" to enter the risk-free rate in the User-Defined Parameter Inputs section
A61: 21. Historical Period for Benchmark Rates of Returns and Betas: Select 10-year, 5-year or 3-year periods for the Beta2 of the benchmark references to be used in the cost of equity calculation. Suggested default is "10-Year" time period.
A62: 22. Equity Risk Premium: Select the method by which the Equity Risk Premium will be determined. The "CAPM Calculated" [Capital Asset Pricing Model] option will use the S&P 500 returns for the time period selected in no. 21, less the Risk-Free rate selected in no. 20b, the result of which will be multiplied by the Beta selected in no. 23. The "Implied Eq.[uity] Risk Prem.[ium] (Damodaran)" option will use the equity risk premium developed by Aswath Damodaran, Professor of Finance at the Stern School of Business at New York University.3 A User-Defined option is also available, the value for which must be provided in the User-Defined Parameter Inputs section.
A63: 23. Beta of Benchmark Expected Rate of Return: Select the benchmark from which the beta2 value will be used to calculate the Equity Risk Premium and the Cost of Equity for "CAPM Calculated" option in no. 22. Choices include S&P 500, select health insurers (top six in market capitalization), utilities and an option for a user-defined beta, the value for which can be entered in the User-Defined Parameter Inputs section.
A64: 24. Calculate Cost of Equity on an After-Tax or Pre-Tax Basis: Select After-Tax to calculate the Cost of Equity using the face value of the selected benchmark market risk premium using CAPM, the Implied Risk Premium (Damodaran) or the User-Defined Equity Risk Premium. Select Pre-Tax to further gross-up the calculated Cost of Equity for the Federal corporate tax rate provided in no. 19. Suggested default is "After-Tax."
A65: 25. Cost of Equity: This is a calculated field based on the inputs for no. 19 through no. 24 | C65: User-Defined Parameter Inputs
A66: 26. Recognize Debt in Calculation of COC: Select Yes/No on whether to recognize debt in the COC calculation. Select "No" If cost of debt is recognized in administrative expenses, i.e., interest payments. Suggested default value is "Yes." | C66: In this section, provide the values for the "User-Defined" selections in the General Parameters, Cost of Capital and Income Matrix sections. Note that cells in this section that are highlighted in light green indicate that "User-Defined" was selected in the corresponding parameter.
A67: 27. Interest Rate for Debt: Select the proxy for interest rate on debt from the drop-down list, or select "User-Defined" to provide a specific value to use for interest rate for debt in the User-Defined Parameter Inputs section. Suggested default is "Low-Cost (Proxy: Aaa/AAA Yield)." | C67: 5. General Parameter: User-Defined Curve (Standard Deviation %): Enter the standard deviation of the underwriting margin curve to be used in the development of the Underwriting Margin, as an alternative to the options offered in the drop-down list
A68: 28. Percent (%) Debt for MCO Debt/Equity Ratio: Input the percent of Surplus (Reserve) financed by Debt for inclusion in the WACC calculation | C68: 15. COC Parameter: Authorized Control Level (ACL) as a % of Premium: Enter the specific ACL ratio as a percent of Premium to be used as an alternative to the options offered in the drop-down list
A69: 29. Weighted Average Cost of Capital % (WACC%): This is a calculated field based on the values in no. 25 through no. 28 | C69: 18. COC Parameter: State Corporate Tax Rate: Enter a state corporate tax rate to be used in the COC calculation, as an alternative to the options offered in the drop-down list
A70: 30. Discount to Cost of Capital (Investment Earnings on Reserves): Select the form of discount, if any, to be applied to the Cost of Capital, to recognize potential investment earnings an MCO receives on its existing capital reserves. The options include a user-defined value, which must be provided in the User-Defined Parameter Inputs section. | C70: 20. COC Parameter: Risk-Free Rate of Return: Enter the risk-free rate to be used in the COC calculation, as an alternative to the options offered in the drop-down list
A71: Parameters for Cash Flow | C71: 22. COC Parameter: Beta of Benchmark Rate of Return: Enter the beta factor to be used in the Cost of Equity calculation, as an alternative to the options offered in the drop-down list
A72: This section recognizes the time value of money as it relates to lag in recoupment of withholds by the MCO, delay in premium payments to the MCO, and the claims payment lag from the MCO to the providers | C72: 23. COC Parameter: Equity Risk Premium: Enter the equity risk premium % to be used in the Cost of Equity calculation, as an alternative to the options offered in the drop-down list
A73: 31. Withhold Lag: Number of Months after the Rate Period before the Withhold is Paid Back: Input average number of month(s), as fraction or whole number, after the end of the rate period, before withhold is paid to MCO. Allowed values are 0 to 24. | C73: 27. COC Paramete:- Interest Rate for Debt (%): Enter the interest rate for debt to be used in the calculation of the WACC, as an alternative to the options offered in the drop-down list
A74: 32. Payment Lag: Number of Months before Monthly Premium Paid: Input average number of month(s), as fraction or whole number, before premium is paid to MCO | C74: 30. COC Parameter: Discount to Cost of Capital: Enter the discount rate to be applied to the COC to account for earning on surplus/reserves, as an alternative to the options offered in the drop-down list
A75: 33. Factor to Apply to MCO Revenue Lag: Select the factor with which the MCO is compensated for the revenue lag related to withholds and premiums, which are in effect the financing cost provided to the state by the MCO for the delay in payments. Suggested default is "Cost of Debt," with a user-defined option available for the user to provide a value in the User Defined Parameter Inputs section. | C75: 33. COC Parameter: Factor to Apply to MCO Revenue Lag: Enter a compensation rate to be used in the COC calculation, as an alternative to the options offered in the drop-down list
A76: 34. Claims Lag: Average Claims Payment Lag (in Months): Input average number of month(s), as fraction or whole number, before claims are paid by MCO. Allowed values are 0 to 24. This will be an offset to the MCO revenue Lag applied above. Enter 0 to exclude this provision from the Cost of Capital calculation. | C76: 36. Income Matrix: Interest Income on Gains: Enter the interest rate to be used to calculate interest income on gains in the income matrix, as an alternative to the options offered in the drop-down list
A77: 35. Percent (%) of Claims Subject to Claims Payment Lag: Enter percent (%) of the medical component (claims) that is subject to the claims payment lag entered in no. 34. Suggested default is the % of Claims that are neither capitated (Categories 3 a/b in no. 17d) nor paid as salaries (Category 4 in no. 17e) as indicated in the "17. Managed Care Discount for RBC Calculation" section. | C77: 37. Income Matrix: Interest Expense on Losses: Enter the interest rate to be used to calculate interest expense on losses in the income matrix, as an alternative to the options offered in the drop-down list
A79: Income Matrix–Interest Income / Interest Expense
A80: 36. Interest Income on Gains: Select the rate of return for the interest income calculation on the probability of gain scenarios in the bin calculation inside the Income Matrix. A user-defined option is available for the user to provide a specific value in the User Defined Parameter Inputs section.
A81: 37. Interest Expense on Losses: Select the rate of return on for the interest expense calculation on the probability of loss scenarios in the bin calculation inside the Income Matrix. A user-defined option is available for the user to provide a specific value in the User Defined Parameter Inputs section.
A84: 1 Source: NAIC. "Aggregated Health Risk-Based Capital Data (2016–2020)," https://content.naic.org/sites/default/files/inline-files/2020%20Health%20RBC%20Statistics_as%20of%202020-06-30.pdf
A85: 2 The beta (β) of an investment security (i.e., a stock) is a measurement of its volatility of returns relative to the entire market. It is used as a measure of risk and is an integral part of the Capital Asset Pricing Model (CAPM). A company with a higher beta has greater risk and also greater expected returns. From Corporate Finance Institute online, https://corporatefinanceinstitute.com/resources/knowledge/valuation/what-is-beta-guide/
A86: 3 Refer to the report "Medicaid Managed Care Underwriting Margin Model" for additional discussion on the subject, from Damodaran online, https://pages.stern.nyu.edu/~adamodar/New_Home_Page/home.htm

Sheet Interpretation
A1: Interpretation of Results Dashboard
A3: Selected Target Table
A5: This table shows which of the three types of targets (Net Income, Risk Margin or Probability of Ruin) was selected on the User Parameter tab. The model determines the risk margin necessary to achieve the target outcome. The table compares the target percentage to the result generated by the model and provides the variance.
A6: • In most cases the variance will be zero. This will not typically be true when a Probability of Ruin target is selected. The result will be close to the target, but the actuary may be able to minimize the variance by trying small changes to the risk margin.
A8: Note the Risk Margin target type is provided for convenience. A user would select this type to test a known margin amount as opposed to trying to achieve a Net Income target or a Probability of Ruin target.
A10: Probability of Ruin by RBC Level Table
A12: This table show the probability of ruin: the likelihood of spending all of the RBC Reserve on losses, for various RBC levels. The RBC amount is shown as a dollar amount, PMPM and a percent of premium. The value of excess losses is the expected value of net income losses in excess of the RBC level. This value provides the actuary with a best estimate of the amount to maintain solvency. The last column shows, assuming a loss in excess of the RBC level, the average loss amount ($M) weighted by the relative probability of occurrence.
A14: Additional probability of ruin information is also presented in the form of:
A15: • The probability that the RBC equity will fall below the User-Defined Minimum RBC level, as measured from the Implied Target RBC level.
A16: • The probability that the RBC equity will fall below 200% of ACL RBC level, triggering regulatory the Company Action Level.
A18: Gain and Loss Distribution Table and Graph
A20: This table shows the likelihood of a gain or a loss for various percentage intervals. It also totals how often a gain or a loss will occur for all intervals, what the average gain is given that a gain occurs, and what the average loss is given that a loss occurs. The graph below the table depicts the same information.
A22: Underwriting Margin Table
A24: This table provides the user with the basic components of the Underwriting Margin, the Risk Margin and the Cost of Capital as determined by the model.
A26: Underwriting Margin Accounting Table
A28: This table is an accounting of the components of the Underwriting Margin or how the Underwriting Margin is deployed to meet the flow of gains and costs including the Withhold Not Achieved, Net Transfer Payments for Minimum and Maximum MLR provisions, Risk-Sharing Adjustments and the Net Cost of Capital Infusions. Note that these entries may be positive or negative values depending upon the choice of user parameters. The Net Income is the remainder, or balancing item, after the gains and costs are netted against the Underwriting Margin.
A30: Cost of Capital Funding as a % of Target RBC Reserves
A31: This ratio reflects the net result of funding the Cost of Capital with the WACC, along with any assumptions on financing costs related to delays in premiums and withhold payments to the MCO, combined with any offsets for delays in claims payment to providers from the MCO. It also includes any assumptions related to discounting the Cost of Capital for any returns the MCO is receiving on their RBC reserves.
A33: Distribution of Net Income and Underwriting Margin Graph
A35: This graph shows the Underwriting Margin, Net Income and Probability of Occurrence for each loss ratio interval. The probabilities are set using a normal curve, which is defined by the mean and the standard deviation. The mean is the loss ratio based on the user assumptions. The standard deviation for the normal curve is set by the user’s selection of available curves on the parameter page. The Underwriting Margin is the Cost of Capital and the Risk Margin for each loss ratio interval. The Net income is also shown for each loss ratio interval.
A37: Premium Development and Cost of Capital Summary Table
A39: This table shows the components used to build the premium. The premium includes the user-provided assumptions for claims, administrative expenses and premium taxes and the model-generated numbers for cost of capital and risk margin. The results are shown as $M (millions), PMPM and percent of premium.
A40: This table also shows the Minimum Loss Ratio as per CMS definition.
A42: Income Statement Table
A44: This table shows the revenues, expenses and net income before taxes associated with the user’s capitation product. The Withhold Not Achieved and Net Transfer Payments are considered adjustments to revenue while the Risk-Sharing Adjustments and Cost of Capital Infusions are considered adjustments to expenses.
A46: Analysis of Underwriting Margin Curves
A48: This table shows the standard deviation of the curve option, the risk margin, the probability of ruin based on the target RBC, and likelihood of loss for all of the normal curve options. The target type and target amount are documented in the top line of this table. The curve that is highlighted in pink is the curve of the user-selected goal-seek target in no. 1 on the User Parameters tab. Other curve results are shown only when the user selects "Yes" to the prompt asking whether the calculation should proceed on the other available curves. The High/Low column identifies which of the curves produces the highest risk margin and which of the curves produces the lowest risk margin.
A49: The standard deviations for the underwriting margin curves were determined as follows:
A50: Composite 2013 to 2022 Curve - based on Medicaid MCO NAIC data for CY2013 through CY2022 adjusted to maximize the fit to the data as measured by the R-squared statistic.
A51: Composite 2013 to 2019 Curve - based on Medicaid MCO NAIC data for CY2013 through CY2019 adjusted to maximize the fit to the data as measured by the R-squared statistic.
A52: Composite 2013 to 2015 Curve - based on Medicaid MCO NAIC data for CY2013 through CY2015 adjusted to maximize the fit to the data as measured by the R-squared statistic.
A53: Composite 2016 to 2019 Curve - based on Medicaid MCO NAIC data for CY2016 through CY2019 adjusted to maximize the fit to the data as measured by the R-squared statistic.
A54: Composite 2020 to 2022 Curve - based on Medicaid MCO NAIC data for CY2020 through CY2022 adjusted to maximize the fit to the data as measured by the R-squared statistic.
A56: MCO Size Curve: Calculated using the formula (standard deviation) = 1.8703 × (member months)-0.0287 This formula was derived by fitting a curve to the fit-adjusted deciles based on size calculated using the Medicaid MCO NAIC data for CY 2013 to CY 2022. The size deciles were determined using each MCO member month count.
A57: MCO Size Curve: Calculated using the formula (standard deviation) = 1.786 × (member months) -0.-0284 This formula was derived by fitting a curve to the fit-adjusted deciles based on size calculated using the Medicaid MCO NAIC data for CY 2013 to CY 2019. The size deciles were determined using each MCO member month count.
A58: For-Profit Curves: Based on Medicaid for-profit MCO NAIC data for CY 2013 through CY 2019 and for CY 2013 through CY 2022 adjusted to maximize the fit to the data as measured by the R-squared statistic.
A59: Not-For-Profit Curves: Based on Medicaid not-for-profit MCO NAIC data for CY 2013 through CY 2019 and for CY 2013 through CY 2022 adjusted to maximize the fit to the data as measured by the R-squared statistic.
A60: Expansion Curves: Based on Medicaid MCO NAIC data for MCOs operating in Medicaid Expansion states during CY 2013 through CY 2019 and during CY 2013 through CY 2022 adjusted to maximize the fit to the data as measured by the R-squared statistic.
A61: Non-Expansion Curves: Based on Medicaid MCO NAIC data for MCOs operating in Medicaid Non-Expansion states during CY 2013 through CY 2019 and during CY 2013 through CY 2022 adjusted to maximize the fit to the data as measured by the R-squared statistic.
A62: User-Defined Curve: Based on user provided value from the User Parameters tab.
A64: Premium Development Chart
A66: This pie chart delineates the components of the premium as a percentage of the total base premium.

Sheet User Parameters
A1: SOA Underwriting Margin Model: USER PARAMETERS | B1: Calculation Is Required | G1: Worksheet Locked
A3: General Parameters | E3: MLR Provisions
A4: 1. Calculation Target | B4: Net Income Before Taxes | C4: 0.02 | D4: i | E4: 38. Include Minimum MLR, Maximum MLR Provisions on Rates | J4: No | K4: i
A5: 2. Average Monthly Enrollment | C5: 125000 | D5: i | E5: 38.a. Minimum MLR | J5: 0.9
A6: 3. Months in Rating Period | C6: 12 | D6: i | E6: 38.b. Maximum MLR | J6: 2
A7: 4. Member Months | C7: =C5*C6 -> 1500000 | D7: i
A8: 5a. UW Margin Curve: Include Pandemic Period [CY 2020–CY 2022] in Curve Development? | C8: Yes | D8: i
A9: 5b. UW Margin Curve: Standard Deviation | B9: Composite 2016 to 2019 Curve | C9: =_xlfn.IFNA(IF(UP_Include_Pandemic_YN ="Yes",INDEX('Curve Selection Drop Down'!E6:E16,MATCH(UP_Curve_Name,'Curve Selection Drop Down'!C6:C16,0)),INDEX('Curve Selection Drop Down'!E18:E26,MATCH(UP_Curve_Name,'Curve Selection Drop Down'!C18:C26,0))),"Reselect Curve") -> 0.03529050325 | D9: i
A10: 6. Claims Expense PMPM | C10: 550 | D10: i | E10: Risk-Sharing (RS) Parameters
A11: 7. Administrative Expenses PMPM | C11: 50 | D11: i | E11: 39. Baseline for Risk Share | J11: No Risk Share | K11: i
A12: 8. QI Allowance PMPM | C12: 0 | D12: i | E12: 40. MLR Target, if applicable: | J12: 0.85
A13: 9. Withhold % | C13: 0.015 | D13: i | E13: Gain or Loss | F13: Low Loss Ratio | G13: 41. Intervals | H13: High Loss Ratio | I13: 42. MCO Responsibility | J13: State Responsibility
A14: 10. Withhold Earned % | C14: 1 | D14: i | E14: Gain | F14: 0 | G14: =H14-F14 -> 0.8 | H14: =F15 -> 0.8 | I14: 0.9 | J14: =1-I14 -> 0.1
A15: 11. State Premium Tax % | C15: 0.01 | D15: i | E15: Gain | F15: =+H15-G15 -> 0.8 | G15: 0.03 | H15: =F16 -> 0.83 | I15: 0.75 | J15: 0.25
E16: Gain | F16: =+H16-G16 -> 0.83 | G16: 0.02 | H16: =IF(UP_RSBasis="Medical Baseline",100%,J12) -> 0.85 | I16: 1 | J16: 0
A17: Cost of Capital (COC) Parameters | D17: i | E17: Loss | F17: =H16 -> 0.85 | G17: 0.02 | H17: =G17+F17 -> 0.87 | I17: 1 | J17: 0
A18: Parameters for Risk-Based Capital (RBC) Calculation | E18: Loss | F18: =H17 -> 0.87 | G18: 0.03 | H18: =F18+G18 -> 0.9 | I18: 0.25 | J18: 0.75
A19: 12. Minimum RBC Target Threshold | C19: 2.5 | D19: i | E19: Loss | F19: =H18 -> 0.9 | G19: =H19-F19 -> 1.1 | H19: 2 | I19: 0.1 | J19: 0.9
A20: 13. Maximum RBC Target Threshold | B20: User-Defined | C20: =VLOOKUP(B20,'Drop Downs'!A7:B10,2,FALSE) -> 4.5 | D20: i
A21: 14. Discount to Apply to Equity between RBC Thresholds | C21: 0 | D21: i
A22: 15. Calculation of Authorized Control Level as % of Premium | B22: NAIC Filings (Medicaid-Dominant) | C22: =VLOOKUP(UP_COC_Selection_H0,'Drop Downs'!A91:B94,2,FALSE) -> 0.03219157185 | D22: i
A23: 16. Selection of NAIC Health Insurer Filings for RBC Risk Factors Weights | C23: Medicaid-Dominant | D23: i
A24: 17. Managed Care Discount Factor (applied to Underwriting Risk) | C24: =J31 -> 0.2355 | D24: i | E24: 17. Managed Care Discount for RBC Calculation
A25: Parameters for Weighted Average Cost of Capital (WACC) Calculation | E25: Categories | I25: % of Claims | J25: Discount | K25: i
A26: 18. State Corporate Tax Rate | B26: New Mexico | C26: =VLOOKUP(B26,'Tax Rates'!G8:H59,2,FALSE) -> 0.059 | D26: i | E26: 17a. Category 0: Arrangements not included in other categories | I26: =1-SUM(I27:I30) -> 0.03 | J26: 0
A27: 19. Federal Corporate Tax Rate | C27: 0.21 | D27: i | E27: 17b. Category 1: Payments made according to contractual arrangements | I27: 0.75 | J27: 0.15
A28: 20a. Historical Period for Risk-Free Rate of Return | C28: 1-Year | D28: i | E28: 17c. Category 2a/b: Payments subject to withhold/bonus | I28: 0.02 | J28: 0.15
A29: 20b. Risk-Free Rate of Return | B29: 10-Yr Treasury | C29: =VLOOKUP(B29,'Drop Downs'!A20:B23,2,FALSE) -> 0.0397 | D29: i | E29: 17d. Category 3a/b: Capitated payments to providers/intermediaries | I29: 0.2 | J29: 0.6
A30: 21. Historical Period for Benchmark Rates of Returns and Betas | C30: 3-Year | D30: i | E30: 17e. Category 4: Expenses paid as salary to providers | I30: 0 | J30: 0.75
A31: 22. Equity Risk Premium | B31: Implied Eq. Risk Prem. (Damodaran) | C31: =VLOOKUP(B31,'Drop Downs'!A34:B36,2,FALSE) -> 0.049 | D31: i | E31: 17f. Composite Managed Care Discount Factor | J31: =SUMPRODUCT(J26:J30,I26:I30) -> 0.2355 | K31: i
A32: ---> Expected Market Rate of Return (Informational Only) | C32: =VLOOKUP(UP_COC_Selection_ExpectedRate,'Drop Downs'!A27:B30,2,0) -> 0.1618 | D32: i
A33: 23. Beta of Benchmark Expected Rate of Return | B33: Select Health Insurers | C33: =VLOOKUP(B33,'Drop Downs'!A27:C30,3,FALSE) -> 0.5318 | D33: i
A34: 24. Calculate Cost of Equity on an After-Tax or Pre-Tax Basis | C34: After-Tax | D34: i
A35: 25. Cost of Equity | C35: =CostOfEquity -> 0.0887 | D35: i | E35: User-Defined Parameter Inputs | K35: i
A36: 26. Recognize Debt in Calculation of WACC | C36: Yes | D36: i | E36: 5b. General Parameter: User-Defined Curve (Standard Deviation %) …................................................................ | J36: 0.02875
A37: 27. Interest Rate for Debt | B37: Low-Cost (Proxy: Aaa/AAA Yield) | C37: =VLOOKUP(B37,'Drop Downs'!A14:B16,2,FALSE) -> 0.0481 | D37: i | E37: 13. COC Parameter: Maximum RBC Target Threshold …................................................................................ | J37: 4.5
A38: 28. Percent (%) Debt for MCO Debt/Equity Ratio | C38: 0.2 | D38: i | E38: 15. COC Parameter: Authorized Control Level (ACL) as % of Premium …....................................................... | J38: 0
A39: 29. Weighted Average Cost of Capital % (WACC %) | C39: =(WACC) -> 0.07799222 | D39: i | E39: 18. COC Parameter: State Corporate Tax Rate …................................................................................................ | J39: 0
A40: 30. Discount to Cost of Capital (Investment Earnings on Reserves) | B40: No Discount | C40: =VLOOKUP(B40,'Drop Downs'!A47:B50,2,FALSE) -> 0 | D40: i | E40: 20b. COC Parameter: Risk-Free Rate of Return …................................................................................................. | J40: 0
A41: Parameters for Cash Flow | E41: 23. COC Parameter: Beta of Benchmark Expected Rate of Return...................................................................... | J41: 1
A42: 31. Withhold Lag: Number of Months after Rating Period before Withhold Paid | C42: 6 | D42: i | E42: 22. COC Parameter: Equity Risk Premium …........................................................................................................ | J42: 0
A43: 32. Payment Lag: Number of Months before Monthly Premium Paid | C43: 0 | D43: i | E43: 27. COC Parameter: Interest Rate for Debt (%) …............................................................................................... | J43: 0
A44: 33. Factor to Apply to MCO Revenue Lag | B44: None | C44: =VLOOKUP(B44,'Drop Downs'!A39:B42,2,FALSE) -> 0 | D44: i | E44: 30. COC Parameter: Discount to Cost of Capital (Investment Earnings on Reserves) …........................................... | J44: 0
A45: 34. Claims Lag: Average Claims Payment Lag (in Months) | C45: 1.5 | D45: i | E45: 33. COC Parameter: Factor to Apply to MCO Revenue Lag ….............................................................................. | J45: 0.05
A46: 35. Percent (%) of Claims Subject to Claims Payment Lag | C46: 0.25 | D46: i | E46: 36. Income Matrix: Interest Income/Interest Expense: Interest Income on Gains …......................................... | J46: 0
E47: 37. Income Matrix: Interest Income/Interest Expense: Interest Expense on Losses …...................................... | J47: 0
A48: Income Matrix–Interest Income/Interest Expense
A49: Bin Observation of Gain / Loss | B49: Rate Selection | C49: Rate
A50: 36. Interest Income on Gains | B50: None | C50: =IFERROR(VLOOKUP(B50,'Drop Downs'!$A$74:$B$78,2,FALSE),0) -> 0 | D50: i
A51: 37. Interest Expense on Losses | B51: None | C51: =IFERROR(VLOOKUP(B51,'Drop Downs'!$A$83:$B$87,2,FALSE),0) -> 0 | D51: i

Sheet Results Dashboard
A1: SOA Underwriting Margin Model: RESULTS DASHBOARD | E1: Calculation Is Required | H1: i
A4: ="Results Based on " & 'User Parameters'!B9 -> Results Based on Composite 2016 to 2019 Curve | D4: i
E5: Probability of Ruin by RBC Level | N5: i | O5: Gain and Loss Distribution | T5: i
A6: ="Selected Target: "&UP_Target_Type -> Selected Target: Net Income Before Taxes | D6: i | E6: RBC Thresholds | G6: RBC % | H6: RBC $M | I6: RBC PMPM | J6: RBC as a % of Premium | K6: Probability of Exceeding the RBC Threshold | L6: Value of Excess Losses as % of Premium | M6: Given a loss, the average loss ($M) in excess of the RBC level | O6: Interval | Q6: Starting Point | R6: Gain Likelihood | S6: Loss Likelihood
A7: Results | C7: =IF(UP_Target_Type="Probability of Ruin","Probability"," % of Premium") -> % of Premium | E7: Authorized Control Level (ACL) | G7: 1 | H7: =I7*'User Parameters'!$C$7 -> 30634601.97 | I7: =ACL -> 20.42306798 | J7: =I7/$R$50 -> 0.03219157185 | K7: =SUMIF('Net Income Matrix'!$AA$8:$AA$168,"<= " & -J7,'Net Income Matrix'!$AD$8:$AD$168) -> 0.01678422843 | L7: =-'Net Income Matrix'!AF5 -> 0.0002329378998 | M7: =IF(K7=0,0,L7*UP_Enrollment*12*'Results Dashboard'!$R$50/K7) -> 13207141.56 | N7: i | O7: 0 –2% | Q7: 0 | R7: =SUMIFS('Net Income Matrix'!$AD$8:$AD$168,'Net Income Matrix'!$AA$8:$AA$168,">=" & Q7)-SUMIFS('Net Income Matrix'!$AD$8:$AD$168,'Net Income Matrix'!$AA$8:$AA$168,">" &Q8) -> 0.1569378292 | S7: =SUMIFS('Net Income Matrix'!$AD$8:$AD$168,'Net Income Matrix'!$AA$8:$AA$168,"<=" & -Q7)-SUMIFS('Net Income Matrix'!$AD$8:$AD$168,'Net Income Matrix'!$AA$8:$AA$168,"<" & -Q8) -> 0.08396369769
A8: Target | C8: ='User Parameters'!C4 -> 0.02 | E8: 200% of ACL | G8: 2 | H8: =I8*'User Parameters'!$C$7 -> 61269203.94 | I8: =G8*I7 -> 40.84613596 | J8: =I8/$R$50 -> 0.06438314371 | K8: =SUMIF('Net Income Matrix'!$AA$8:$AA$168,"<= " & -J8,'Net Income Matrix'!$AD$8:$AD$168) -> 0.001463488321 | L8: =-'Net Income Matrix'!AG5 -> 1.332190951e-05 | M8: =IF(K8=0,0,L8*UP_Enrollment*12*'Results Dashboard'!$R$50/K8) -> 8662580.374 | O8: 2–4% | Q8: 0.02 | R8: =SUMIFS('Net Income Matrix'!$AD$8:$AD$168,'Net Income Matrix'!$AA$8:$AA$168,">=" & Q8)-SUMIFS('Net Income Matrix'!$AD$8:$AD$168,'Net Income Matrix'!$AA$8:$AA$168,">" &Q9) -> 0.7145493829 | S8: =SUMIFS('Net Income Matrix'!$AD$8:$AD$168,'Net Income Matrix'!$AA$8:$AA$168,"<=" & -Q8)-SUMIFS('Net Income Matrix'!$AD$8:$AD$168,'Net Income Matrix'!$AA$8:$AA$168,"<" & -Q9) -> 0.03285088636
A9: Calculated | C9: =IF(UP_Target_Type="Risk Margin",'Results Dashboard'!E36,IF(UP_Target_Type="Net Income Before Taxes",'Results Dashboard'!S61,'Results Dashboard'!K11)) -> 0.01433522966 | E9: Minimum RBC Selected | G9: =UP_COC_RBCMinimum -> 2.5 | H9: =I9*'User Parameters'!$C$7 -> 76586504.93 | I9: =G9*I7 -> 51.05766995 | J9: =I9/$R$50 -> 0.08047892963 | K9: =SUMIF('Net Income Matrix'!$AA$8:$AA$168,"<= " & -J9,'Net Income Matrix'!$AD$8:$AD$168) -> 0.0003365004333 | L9: =-'Net Income Matrix'!AH5 -> 2.373632579e-06 | M9: =IF(K9=0,0,L9*UP_Enrollment*12*'Results Dashboard'!$R$50/K9) -> 6712710.621 | O9: 4–6% | Q9: 0.04 | R9: =SUMIFS('Net Income Matrix'!$AD$8:$AD$168,'Net Income Matrix'!$AA$8:$AA$168,">=" & Q9)-SUMIFS('Net Income Matrix'!$AD$8:$AD$168,'Net Income Matrix'!$AA$8:$AA$168,">" &Q10) -> 0 | S9: =SUMIFS('Net Income Matrix'!$AD$8:$AD$168,'Net Income Matrix'!$AA$8:$AA$168,"<=" & -Q9)-SUMIFS('Net Income Matrix'!$AD$8:$AD$168,'Net Income Matrix'!$AA$8:$AA$168,"<" & -Q10) -> 0.009397027936
A10: Variance | C10: =C8-C9 -> 0.005664770337 | E10: Maximum RBC Selected | G10: =UP_COC_RBCMaximum -> 4.5 | H10: =I10*'User Parameters'!$C$7 -> 137855708.9 | I10: =G10*I7 -> 91.90380591 | J10: =I10/$R$50 -> 0.1448620733 | K10: =SUMIF('Net Income Matrix'!$AA$8:$AA$168,"<= " & -J10,'Net Income Matrix'!$AD$8:$AD$168) -> 7.933511309e-08 | L10: =-'Net Income Matrix'!AJ5 -> 3.974531467e-10 | M10: =IF(K10=0,0,L10*UP_Enrollment*12*'Results Dashboard'!$R$50/K10) -> 4767498.374 | O10: 6–8% | Q10: 0.06 | R10: =SUMIFS('Net Income Matrix'!$AD$8:$AD$168,'Net Income Matrix'!$AA$8:$AA$168,">=" & Q10)-SUMIFS('Net Income Matrix'!$AD$8:$AD$168,'Net Income Matrix'!$AA$8:$AA$168,">" &Q11) -> 0 | S10: =SUMIFS('Net Income Matrix'!$AD$8:$AD$168,'Net Income Matrix'!$AA$8:$AA$168,"<=" & -Q10)-SUMIFS('Net Income Matrix'!$AD$8:$AD$168,'Net Income Matrix'!$AA$8:$AA$168,"<" & -Q11) -> 0.001964675453
E11: ="Implied Target RBC (incl. "&(UP_COC_RBCThresholdDiscount*100&"% Disc.)") -> Implied Target RBC (incl. 0% Disc.) | G11: =(UP_COC_RBCMaximum-UP_COC_RBCMinimum)* (1-UP_COC_RBCThresholdDiscount)+UP_COC_RBCMinimum -> 4.5 | H11: =I11*'User Parameters'!$C$7 -> 137855708.9 | I11: =G11*I7 -> 91.90380591 | J11: =I11/$R$50 -> 0.1448620733 | K11: =SUMIF('Net Income Matrix'!$AA$8:$AA$168,"<= " & -J11,'Net Income Matrix'!$AD$8:$AD$168) -> 7.933511309e-08 | L11: =-'Net Income Matrix'!AI5 -> 3.974531467e-10 | M11: =IF(K11=0,0,L11*UP_Enrollment*12*'Results Dashboard'!$R$50/K11) -> 4767498.374 | O11: 8–10% | Q11: 0.08 | R11: =SUMIFS('Net Income Matrix'!$AD$8:$AD$168,'Net Income Matrix'!$AA$8:$AA$168,">=" & Q11)-SUMIFS('Net Income Matrix'!$AD$8:$AD$168,'Net Income Matrix'!$AA$8:$AA$168,">" &Q12) -> 0 | S11: =SUMIFS('Net Income Matrix'!$AD$8:$AD$168,'Net Income Matrix'!$AA$8:$AA$168,"<=" & -Q11)-SUMIFS('Net Income Matrix'!$AD$8:$AD$168,'Net Income Matrix'!$AA$8:$AA$168,"<" & -Q12) -> 0.0003001200662
E12: ="• Given the Implied Target RBC level of "&ROUND((G11*100),0)&"% of ACL, the probability that the RBC equity will be reduced below the selected minimum RBC of "&UP_COC_RBCMinimum*100&"% of ACL is "&ROUND((SUMIF('Net Income Matrix'!$AA$8:$AA$168,"<= " & -(J11-J9),'Net Income Matrix'!$AD$8:$AD$168)*100),3)&"%" -> • Given the Implied Target RBC level of 450% of ACL, the probability that the RBC equity will be reduced below the selected minimum RBC of 250% of ACL is 0.146% | N12: i | O12: 10–12% | Q12: 0.1 | R12: =SUMIFS('Net Income Matrix'!$AD$8:$AD$168,'Net Income Matrix'!$AA$8:$AA$168,">=" & Q12)-SUMIFS('Net Income Matrix'!$AD$8:$AD$168,'Net Income Matrix'!$AA$8:$AA$168,">" &Q13) -> 0 | S12: =SUMIFS('Net Income Matrix'!$AD$8:$AD$168,'Net Income Matrix'!$AA$8:$AA$168,"<=" & -Q12)-SUMIFS('Net Income Matrix'!$AD$8:$AD$168,'Net Income Matrix'!$AA$8:$AA$168,"<" & -Q13) -> 3.348374019e-05
A13: Underwriting Margin | E13: ="• Given the Implied Target RBC level of "&ROUND((G11*100),0)&"% of ACL, the probability that the RBC equity will be reduced below the 200% of ACL level is "&ROUND((SUMIF('Net Income Matrix'!$AA$8:$AA$168,"<= " & -(J11-J8),'Net Income Matrix'!$AD$8:$AD$168)*100),3)&"%" -> • Given the Implied Target RBC level of 450% of ACL, the probability that the RBC equity will be reduced below the 200% of ACL level is 0.034% | O13: 12–14% | Q13: 0.12 | R13: =SUMIFS('Net Income Matrix'!$AD$8:$AD$168,'Net Income Matrix'!$AA$8:$AA$168,">=" & Q13)-SUMIFS('Net Income Matrix'!$AD$8:$AD$168,'Net Income Matrix'!$AA$8:$AA$168,">" &Q14) -> 0 | S13: =SUMIFS('Net Income Matrix'!$AD$8:$AD$168,'Net Income Matrix'!$AA$8:$AA$168,"<=" & -Q13)-SUMIFS('Net Income Matrix'!$AD$8:$AD$168,'Net Income Matrix'!$AA$8:$AA$168,"<" & -Q14) -> 2.727268136e-06
A14: Components | B14: PMPM | C14: % of Premium | O14: 14% or More | Q14: 0.14 | R14: =SUMIFS('Net Income Matrix'!$AD$8:$AD$168,'Net Income Matrix'!$AA$8:$AA$168,">=" & Q14) -> 0 | S14: =SUMIFS('Net Income Matrix'!$AD$8:$AD$168,'Net Income Matrix'!$AA$8:$AA$168,"<=" & -Q14) -> 1.693587046e-07
A15: Risk Margin | B15: =C15*'Results Dashboard'!D43 -> 20.94264376 | C15: =Macro_Risk_Margin -> 0.03301054582 | O15: Total Likelihood | R15: =SUM(R7:R14) -> 0.8714872121 | S15: =SUM(S7:S14) -> 0.1285127879
A16: Cost of Capital | B16: =C16*'Results Dashboard'!D43 -> 7.135953723 | C16: ='Macro Populated Cells'!F11 -> 0.01124794606 | N16: i | O16: Expected Gain/Loss, Given a Gain or a Loss | R16: =IF(R15=0,0,SUMPRODUCT('Net Income Matrix'!$AD$8:$AD$168,'Net Income Matrix'!$AA$8:$AA$168,--('Net Income Matrix'!$AA$8:$AA$168>=0))/R15) -> 0.01880388777 | S16: =IF(S15=0,0,SUMPRODUCT('Net Income Matrix'!$AD$8:$AD$168,'Net Income Matrix'!$AA$8:$AA$168,--('Net Income Matrix'!$AA$8:$AA$168<0))/S15) -> -0.01596820132
A17: UW Margin | B17: =B15+B16 -> 28.07859749 | C17: =Dash_Risk_Margin+C16 -> 0.04425849189 | O17: Net Income before Taxes | S17: =R16*R15+S15*S16 -> 0.01433522966
T19: i
A20: Underwriting Margin Accounting | E20: i
A21: Components | C21: PMPM | D21: % of Premium
A22: UW Margin | C22: =B17 -> 28.07859749 | D22: =C17 -> 0.04425849189
A23: Withhold Not Achieved | C23: =D23*'Results Dashboard'!$D$43 -> 0 | D23: =-'Net Income Matrix'!Z5 -> 0
A24: Net Transfer Payments (Min/Max MLR) | C24: =D24*'Results Dashboard'!$D$43 -> -18.98400057 | D24: =-'Net Income Matrix'!W5 -> -0.02992326222
A25: Risk-Sharing Adjustments | C25: =D25*'Results Dashboard'!$D$43 -> 0 | D25: =-'Net Income Matrix'!S5/'Net Income Matrix'!B5 -> 0
A26: Net Cost of Capital Infusions | C26: =D26*'Results Dashboard'!$D$43 -> 0 | D26: ='Net Income Matrix'!Y5 -> 0
A27: Net Income before Taxes | C27: =D27*'Results Dashboard'!$D$43 -> 9.09459691 | D27: =D22+SUM(D23:D26) -> 0.01433522966
A29: Cost of Capital Funding as a % of Target RBC Reserves | D29: =B16/I11 -> 0.0776459 | E29: i
A31: Premium Development and Cost of Capital Detail | F31: i
A32: Premium Component | C32: $ millions [M] | D32: PMPM | E32: % of Premium
A33: Claims Expense | C33: =D33*'User Parameters'!$C$7 -> 825000000 | D33: ='User Parameters'!C10 -> 550 | E33: =D33/D43 -> 0.8669297158
A34: Admin Expense | C34: =D34*'User Parameters'!$C$7 -> 75000000 | D34: ='User Parameters'!C11 -> 50 | E34: =D34/D43 -> 0.07881179234
A35: Premium Tax | C35: =D35*'User Parameters'!$C$7 -> 9516342.386 | D35: =E35*D43 -> 6.344228257 | E35: ='User Parameters'!C15 -> 0.01
A36: Risk Margin | C36: =D36*'User Parameters'!$C$7 -> 31413965.64 | D36: =E36*D43 -> 20.94264376 | E36: ='Macro Populated Cells'!F12 -> 0.03301054582
A37: Cost of Capital
A38: Cost of RBC Target | C38: =D38*'User Parameters'!$C$7 -> 10751672.77 | D38: =E38*$D$43 -> 7.16778185 | E38: ='COC Calculation'!C86 -> 0.01129811469
A39: Withholds Payment Delay | C39: =D39*'User Parameters'!$C$7 -> 0 | D39: =E39*$D$43 -> 0 | E39: ='COC Calculation'!C99 -> 0
A40: Premium Payment Delay | C40: =D40*'User Parameters'!$C$7 -> 0 | D40: =E40*$D$43 -> 0 | E40: ='COC Calculation'!C105 -> 0
A41: Claims Lag | C41: =D41*'User Parameters'!$C$7 -> 0 | D41: =E41*$D$43 -> 0 | E41: =COC_Cost_Claim_Delay -> 0
A42: Subtotal Cost of Capital | C42: =D42*'User Parameters'!$C$7 -> 10751672.77 | D42: =SUM(D38:D41) -> 7.16778185 | E42: =C42/'Results Dashboard'!$Q$50 -> 0.01129811469
A43: Base Premium | C43: 0 | D43: =SUM(D33:D34)/(1-'Macro Populated Cells'!F13-'User Parameters'!C15) -> 634.4228257 | E43: =D43/D43 -> 1
A44: Minimum Loss Ratio: CMS Definition | E44: ='Net Income Matrix'!I5 -> 0.8756865816
O47: Income Statement | U47: i
A48: ="Analysis of Underwriting Margin Curves "&" "&A6&" = "&Dash_Target*100&"% of Premium" -> Analysis of Underwriting Margin Curves Selected Target: Net Income Before Taxes = 2% of Premium | J48: i | O48: Statement Entries | Q48: $M | R48: PMPM | S48: % of Premium
A49: UW Margin Curve Name | C49: Std. Deviation | D49: Risk Margin | F49: Probability of Ruin | H49: Likelihood of Loss | O49: Revenue
A50: Composite 2013 to 2022 Curve | C50: 0.03615781769 | D50: 0.009999389648 | E50: Low | F50: 2.517447025e-06 | H50: 0.2900869487 | O50: Premium (Incl. UW Margin) | Q50: =R50*'User Parameters'!$C$7 -> 951634238.6 | R50: ='Results Dashboard'!D43 -> 634.4228257 | S50: =R50/'Results Dashboard'!$D$43 -> 1
A51: Composite 2013 to 2019 Curve | C51: 0.03714488925 | D51: 0.009999389648 | E51: Low | F51: 4.454988634e-06 | H51: 0.2951393918 | O51: Withhold Unachieved | Q51: =R51*'User Parameters'!$C$7 -> 0 | R51: =S51*$R$50 -> 0 | S51: =D23 -> 0
A52: Composite 2013 to 2015 Curve | C52: 0.03892009621 | D52: 0.009999389648 | E52: Low | F52: 1.120315061e-05 | H52: 0.3036702725 | O52: Net Transfer Payments | Q52: =R52*'User Parameters'!$C$7 -> -28476000.86 | R52: =S52*$R$50 -> -18.98400057 | S52: =D24 -> -0.02992326222
A53: Composite 2016 to 2019 Curve | C53: 0.03529050325 | D53: 0.009999389648 | E53: Low | F53: 1.466342828e-06 | H53: 0.2854506171 | O53: Total Revenue | Q53: =R53*'User Parameters'!$C$7 -> 923158237.8 | R53: =SUM(R50:R52) -> 615.4388252 | S53: =SUM(S50:S52) -> 0.9700767378
A54: Composite 2020 to 2022 Curve | C54: 0.0322745079 | D54: 0.009999389648 | E54: Low | F54: 1.59050759e-07 | H54: 0.2677328866 | O54: Expenses
A55: MCO Size Curve | C55: 0.03157716108 | D55: 0.009999389648 | E55: Low | F55: 2.903032438e-16 | G55: Low | H55: 0.1602302353 | I55: Low | O55: Claims | Q55: =R55*'User Parameters'!$C$7 -> 825000000 | R55: ='User Parameters'!C10 -> 550 | S55: =R55/'Results Dashboard'!$D$43 -> 0.8669297158
A56: For-Profit Curve | C56: 0.03748918715 | D56: 0.009999389648 | E56: Low | F56: 5.380978305e-06 | H56: 0.2968481983 | O56: Administration | Q56: =R56*'User Parameters'!$C$7 -> 75000000 | R56: ='User Parameters'!C11 -> 50 | S56: =R56/'Results Dashboard'!$D$43 -> 0.07881179234
A57: Not-For-Profit Curve | C57: 0.03253574482 | D57: 0.009999389648 | E57: Low | F57: 1.975065402e-07 | H57: 0.2693736115 | O57: Premium Tax | Q57: =R57*'User Parameters'!$C$7 -> 9516342.386 | R57: ='Results Dashboard'!D43*'User Parameters'!C15 -> 6.344228257 | S57: =R57/'Results Dashboard'!$D$43 -> 0.01
A58: Expansion Curve | C58: 0.03460630119 | D58: 0.009999389648 | E58: Low | F58: 9.306984059e-07 | H58: 0.2816558817 | O58: Risk-Sharing Adjustments | Q58: =R58*'User Parameters'!$C$7 -> 0 | R58: =S58*$R$50 -> 0 | S58: =-D25 -> 0
A59: Non-Expansion Curve | C59: 0.04019943147 | D59: 0.009999389648 | E59: Low | F59: 2.025638892e-05 | G59: High | H59: 0.3094113868 | I59: High | O59: Net Cost of Capital Infusions | Q59: =R59*'User Parameters'!$C$7 -> 0 | R59: =S59*$R$50 -> 0 | S59: =-D26 -> 0
A60: User-Defined Curve | C60: 0.02875 | D60: 0.009999389648 | E60: Low | F60: 4.758195782e-09 | H60: 0.2433233418 | O60: Total Expenses | Q60: =R60*'User Parameters'!$C$7 -> 909516342.4 | R60: =SUM(R55:R59) -> 606.3442283 | S60: =R60/'Results Dashboard'!$D$43 -> 0.9557415081
A61: Include Pandemic Years in Curve? | C61: ='User Parameters'!C8 -> Yes | O61: Net Income before Taxes | Q61: =R61*'User Parameters'!$C$7 -> 13641895.37 | R61: =R53-R60 -> 9.09459691 | S61: =R61/'Results Dashboard'!$D$43 -> 0.01433522966

Sheet Graphs
B5: Probability of Ruin by Risk-Based Capital (RBC) Level
B6: RBC Thresholds | C6: RBC % | D6: RBC as a % of Premium | E6: Probability > RBC
B7: ='Results Dashboard'!E7 -> Authorized Control Level (ACL) | C7: ='Results Dashboard'!G7 -> 1 | D7: ='Results Dashboard'!J7 -> 0.03219157185 | E7: ='Results Dashboard'!K7 -> 0.01678422843
B8: ='Results Dashboard'!E8 -> 200% of ACL | C8: ='Results Dashboard'!G8 -> 2 | D8: ='Results Dashboard'!J8 -> 0.06438314371 | E8: ='Results Dashboard'!K8 -> 0.001463488321
B9: ='Results Dashboard'!E9 -> Minimum RBC Selected | C9: ='Results Dashboard'!G9 -> 2.5 | D9: ='Results Dashboard'!J9 -> 0.08047892963 | E9: ='Results Dashboard'!K9 -> 0.0003365004333
B10: ='Results Dashboard'!E11 -> Implied Target RBC (incl. 0% Disc.) | C10: ='Results Dashboard'!G11 -> 4.5 | D10: ='Results Dashboard'!J11 -> 0.1448620733 | E10: ='Results Dashboard'!K11 -> 7.933511309e-08
B11: ='Results Dashboard'!E10 -> Maximum RBC Selected | C11: ='Results Dashboard'!G10 -> 4.5 | D11: ='Results Dashboard'!J10 -> 0.1448620733 | E11: ='Results Dashboard'!K10 -> 7.933511309e-08
B20: Income Statement | H20: =B23 -> Premium | I20: =D23 -> 951634238.6
B21: Statement Entries | D21: $ millions (M) | E21: % of Premium | H21: =B24 -> Withhold Unachieved | I21: =D24 -> 0
B22: Revenue | H22: =B25 -> Net Transfer Payments | I22: =D25 -> -28476000.86
B23: Premium | D23: ='Results Dashboard'!Q50 -> 951634238.6 | E23: =D23/$D$23 -> 1
B24: Withhold Unachieved | D24: ='Results Dashboard'!Q51 -> 0 | E24: =D24/$D$23 -> 0
B25: Net Transfer Payments | D25: ='Results Dashboard'!Q52 -> -28476000.86 | E25: =D25/$D$23 -> -0.02992326222 | H25: =B28 -> Claims | I25: =D28*-1 -> -825000000
B26: Total Revenue | D26: =SUM(D23:D25) -> 923158237.8 | E26: =D26/$D$23 -> 0.9700767378 | H26: =B29 -> Administration | I26: =D29*-1 -> -75000000
B27: Expenses | H27: =B30 -> Premium Tax | I27: =D30*-1 -> -9516342.386
B28: Claims | D28: ='Results Dashboard'!Q55 -> 825000000 | E28: =D28/$D$23 -> 0.8669297158 | H28: =B31 -> Risk-Sharing Adjustments | I28: =D31*-1 -> 0
B29: Administration | D29: ='Results Dashboard'!Q56 -> 75000000 | E29: 0.07881179234 | H29: =B32 -> Cost of Capital Infusions | I29: =D32*-1 -> 0
B30: Premium Tax | D30: ='Results Dashboard'!Q57 -> 9516342.386 | E30: 0.01
B31: Risk-Sharing Adjustments | D31: ='Results Dashboard'!Q58 -> 0 | E31: 0 | H31: =B34 -> Net Income before Taxes | I31: =D34 -> 13641895.37
B32: Cost of Capital Infusions | D32: ='Results Dashboard'!Q59 -> 0 | E32: 0
B33: Total Expenses | D33: ='Results Dashboard'!Q60 -> 909516342.4 | E33: 0.9557415081
B34: Net Income before Taxes | D34: ='Results Dashboard'!Q61 -> 13641895.37 | E34: 0.01433522966
B45: Premium Development
B46: Premium Component | D46: PMPM | E46: % of Premium
B47: Claims Expense | D47: ='Results Dashboard'!D33 -> 550 | E47: =D47/$D$52 -> 0.8668862253
B48: Admin Expense | D48: ='Results Dashboard'!D34 -> 50 | E48: =D48/$D$52 -> 0.07880783866
B49: Premium Tax | D49: ='Results Dashboard'!D35 -> 6.344228257 | E49: =D49/$D$52 -> 0.009999498339
B50: Risk Margin | D50: ='Results Dashboard'!D36 -> 20.94264376 | E50: =D50/$D$52 -> 0.03300888981
B51: Cost of Capital | D51: ='Results Dashboard'!D42 -> 7.16778185 | E51: =D51/$D$52 -> 0.01129754791
B52: Base Premium | D52: =SUM(D47:D51) -> 634.4546539 | E52: =SUM(E47:E51) -> 1
B53: Underwriting Margin (before taxes) | D53: =D52-D47-D48-D49 -> 28.11042561 | E53: =D53/$D$52 -> 0.04430643773
B54: Required Capital (200% ACL RBC) | D54: ='Results Dashboard'!I8 -> 40.84613596 | E54: =D54/$D$52 -> 0.06437991386

Sheet COC Calculation
A1: Cost of Capital Calculation
A2: Shared Inputs:
A3: Member Months | C3: =UP_Enrollment*UP_MonthsInRatingPeriod -> 1500000 | E3: =_xlfn.FORMULATEXT(C3) -> =UP_Enrollment*UP_MonthsInRatingPeriod | F3: user parameter: Average Monthly Enrollment × Months in Rating Period
A4: Base Medical PMPM | C4: =UP_Medical_PMPM -> 550 | E4: =UP_Medical_PMPM | F4: user parameter: Medical Component PMPM
A5: Base Administrative PMPM | C5: =UP_Administrative_PMPM -> 50 | E5: =UP_Administrative_PMPM | F5: user parameter: Administrative Component PMPM (excl. UW margin or taxes)
A6: Base Premium PMPM (before taxes) | C6: =Results_Premium -> 634.4228257 | E6: =Results_Premium | F6: calculated: Base PMPM
A7: Gross Claims | C7: =C3*C4 -> 825000000 | E7: =_xlfn.FORMULATEXT(C7) -> =C3*C4
A8: Gross Premium | C8: =C3*C6 -> 951634238.6 | E8: =_xlfn.FORMULATEXT(C8) -> =C3*C6
A9: Step 1. Determine Authorized Control Level
A10: ACL Determination Methodology | C10: =UP_COC_Selection_H0 -> NAIC Filings (Medicaid-Dominant) | F10: user input
A11: Selection Criteria for Weights Risk Factors | C11: =UP_COC_Selection_H4 -> Medicaid-Dominant | F11: user input
A12: Step 1.a. - If ACL Determination Methodology = "NAIC Filings + User Parameters"
A13: Step 1.a.1. Calculate H2–Underwriting Risk
A14: Calculate Underwriting Risk Factor:
A15: Claims under $25,000,000 | C15: 0.1493 | F15: Source: NAIC Capital Adequacy Task Force, Adopted 6/30/2021
A16: Claims over $25,000,000 | C16: 0.0893 | F16: Source: NAIC Capital Adequacy Task Force, Adopted 6/30/2021
A17: Composite UW RBC Factor | C17: =(MIN(25000000,C$8)*C15+MAX(0,C$8-25000000)*C16)/C$8 -> 0.09087623585 | E17: =_xlfn.FORMULATEXT(C17) -> =(MIN(25000000,C$8)*C15+MAX(0,C$8-25000000)*C16)/C$8 | F17: Line 10.3 from RBC Model
A18: Managed Care Discount Factor | C18: =1-UP_COC_ManagedCareDiscount -> 0.7645 | E18: =_xlfn.FORMULATEXT(C18) -> =1-UP_COC_ManagedCareDiscount | F18: user input: calculated "Managed Care Discount Factor"
A19: Base Underwriting RBC Factor after Managed Care Discount | C19: =C17*C18 -> 0.0694748823 | E19: =_xlfn.FORMULATEXT(C19) -> =C17*C18
A20: H2–Underwriting Risk | C20: =C4*C19 -> 38.21118527 | E20: =_xlfn.FORMULATEXT(C20) -> =C4*C19
A21: Step 1.a.2. Calculate H4–Business Risk
A22: Calculate Business Risk Factor:
A23: Premiums under $25,000,000 | C23: 0.07
A24: Premiums over $25,000,000 | C24: 0.04
A25: Composite Business Risk Factor | C25: =(MIN(25000000,C$8)*C23+MAX(0,C$8-25000000)*C24)/C$8 -> 0.04078811792 | E25: =_xlfn.FORMULATEXT(C25) -> =(MIN(25000000,C$8)*C23+MAX(0,C$8-25000000)*C24)/C$8
A26: "Calculated" H4–Business Risk | C26: =C5*C25 -> 2.039405896 | E26: =_xlfn.FORMULATEXT(C26) -> =C5*C25 | F26: calculated using user-provided administrative PMPM
A27: "Imputed" H4–Business Risk | C27: =_H2*'RBC Weights'!B10 -> 2.832273036 | E27: =_xlfn.FORMULATEXT(C27) -> =_H2*'RBC Weights'!B10 | F27: average weight of H4 relative to H2
A28: Average H4–Business Risk | C28: =AVERAGE(C26:C27) -> 2.435839466
A29: Step 1.a.3. Calculate Authorized Control Level
A30: Authorized Control Level for Risk-Based Capital Before Basic Operational Risk =
A31: H0: Asset Risk–Affiliates with RBC | C31: =_H2*'RBC Weights'!B6 -> 0.9681553581 | E31: =_xlfn.FORMULATEXT(C31) -> =_H2*'RBC Weights'!B6 | F31: average weight of H0 relative to H2
A32: H1: Asset Risk–Other | C32: =_H2*'RBC Weights'!B7 -> 3.24535035 | E32: =_H2*'RBC Weights'!B7 | F32: average weight of H1 relative to H2
A33: H2: Underwriting Risk | C33: =_H2 -> 38.21118527 | E33: =_H2
A34: H3: Credit Risk | C34: =_H2*'RBC Weights'!B9 -> 2.064152206 | E34: =_H2*'RBC Weights'!B9 | F34: average weight of H3 relative to H2
A35: H4: Business Risk | C35: =_H4_Average -> 2.435839466 | E35: =_H4_Average | F35: average H4
A36: RBC after Covariance before Basic Operational Risk | C36: =(_H0+SUM(_H1^2+_H2^2+_H3^2+_H4^2)^(1/2)) -> 39.44959266 | E36: =(_H0+SUM(_H1^2+_H2^2+_H3^2+_H4^2)^(1/2))
A37: Basic Operational Risk | C37: 0.03
A38: Calculated Authorized Control Level RBC | C38: =(1/2)*(1+RBC_Operational_Risk)*RBC_After_Covariance -> 20.31654022 | E38: =_xlfn.FORMULATEXT(C38) -> =(1/2)*(1+RBC_Operational_Risk)*RBC_After_Covariance
A39: Calculated ACL as % of Premium | C39: =C38/COC_Premium -> 0.03202365898 | E39: =C38/COC_Premium
A40: Step 1.b. - Alternate ACL (If ACL Determination Methodology <> "NAIC Filings + User Parameters")
A41: Alternate ACL as % of Premium | C41: =IF(C10<>"NAIC Filings + User Parameters",'User Parameters'!C22,0) -> 0.03219157185 | E41: =_xlfn.FORMULATEXT(C41) -> =IF(C10<>"NAIC Filings + User Parameters",'User Parameters'!C22,0)
A42: Alternate Authorized Control Level RBC | C42: =COC_Premium*C41 -> 20.42306798 | E42: =COC_Premium*C41
A43: Step 1.c. Selected ACL
A44: Selected Authorized Control Level RBC | C44: =IF(C10="NAIC Filings + User Parameters",COC_Calc_ACL,COC_Calc_Alt_ACL) -> 20.42306798 | E44: =_xlfn.FORMULATEXT(C44) -> =IF(C10="NAIC Filings + User Parameters",COC_Calc_ACL,COC_Calc_Alt_ACL)
A45: Selected ACL as % of Premium | C45: =ACL/COC_Premium -> 0.03219157185 | E45: =_xlfn.FORMULATEXT(C45) -> =ACL/COC_Premium
A46: Step 2. Calculate Weighted Average Cost of Capital
A47: Federal Corporate Tax Rate | C47: =UP_COC_FederalTaxRate -> 0.21 | E47: =_xlfn.FORMULATEXT(C47) -> =UP_COC_FederalTaxRate | F47: top marginal tax rate (federal)
A48: State Corporate Tax Rate | C48: =UP_COC_StateTaxRate -> 0.059 | E48: =_xlfn.FORMULATEXT(C48) -> =UP_COC_StateTaxRate | F48: top marginal tax rate for user-selected state
A49: Step 2.a. Calculate Cost of Debt
A50: Recognize Debt in Cost of Capital Calculation | C50: =UP_COC_Selection_RecognizeDebt -> Yes | F50: user input
A51: Average Interest Rate for Debt: Source | C51: =UP_COC_Selection_InterestRate -> Low-Cost (Proxy: Aaa/AAA Yield) | F51: user input
A52: Average Interest Rate for Debt % | C52: =UP_COC_InterestRate -> 0.0481 | E52: =_xlfn.FORMULATEXT(C52) -> =UP_COC_InterestRate | F52: from user-selected interest rate
A53: Cost of Debt | C53: =interestRate*(1-federalTax-stateTax) -> 0.0351611 | E53: =_xlfn.FORMULATEXT(C53) -> =interestRate*(1-federalTax-stateTax)
A54: Step 2.b. Calculate Cost of Equity:
A55: Tax Treatment of Cost of Equity | C55: =UP_COC_TaxTreatment -> After-Tax
A56: Risk-Free Rate | C56: =UP_COC_Selection_RiskFreeRate -> 10-Yr Treasury | F56: user input
A57: Benchmark Expected Rate of Return | C57: =VLOOKUP(UP_COC_Selection_ExpectedRate,'Drop Downs'!A27:B30,2,FALSE) -> 0.1618
A58: Risk-Free Rate of Return | C58: =UP_COC_RiskFreeRate -> 0.0397 | F58: from user-selected metric for risk-free rate of return
A59: Calculation of Market Risk Premium | C59: =UP_COC_EquityMethodology -> Implied Eq. Risk Prem. (Damodaran)
A60: Market Rate of Return | C60: ='Drop Downs'!B27 -> 0.1323 | F60: from user-selected metric for expected return
A61: Beta of Benchmark Expected Rate of Return | C61: =UP_COC_Beta -> 0.5318 | F61: from user-selected metric for Beta
A62: Equity Risk Premium | C62: =IF(C59="CAPM Calculated",B*((E_Rm)-(Rf)),'User Parameters'!C31) -> 0.049 | E62: =CONCATENATE("Ke")&_xlfn.FORMULATEXT(C62) -> Ke=IF(C59="CAPM Calculated",B*((E_Rm)-(Rf)),'User Parameters'!C31)
A63: Cost of Equity After-Tax | C63: =C62+Rf -> 0.0887 | E63: =CONCATENATE("Ke")&_xlfn.FORMULATEXT(C63) -> Ke=C62+Rf
A64: After-Tax Yield | C64: =(1-(federalTax+stateTax*(1-federalTax))) -> 0.74339 | E64: =_xlfn.FORMULATEXT(C64) -> =(1-(federalTax+stateTax*(1-federalTax)))
A65: Cost of Equity Pre-Tax | C65: =Ke/afterTaxYield -> 0.1193182582 | E65: =_xlfn.FORMULATEXT(C65) -> =Ke/afterTaxYield
A66: Selected Cost of Equity | C66: =IF(C55="After-Tax",Ke,Ke_PreTax) -> 0.0887
A67: Step 2.c. Weighted Average Cost of Capital
A68: % Debt | C68: =UP_COC_PercentDebt -> 0.2 | F68: user input: % of Debt
A69: % Equity | C69: =1-C68 -> 0.8 | E69: =_xlfn.FORMULATEXT(C69) -> =1-C68
A70: =CONCATENATE("Weighted Average Cost of Capital"&IF(C50="No"," Adjusted for Exclusion of Debt","")) -> Weighted Average Cost of Capital | C70: =IF(C50="yes",C68*C53,0)+C69*C66 -> 0.07799222 | E70: =_xlfn.FORMULATEXT(C70) -> =IF(C50="yes",C68*C53,0)+C69*C66
A71: Step 3. Apply WACC to Target RBC
A72: Authorized Control Level RBC | C72: =ACL -> 20.42306798 | E72: =_xlfn.FORMULATEXT(C72) -> =ACL
A73: Minimum RBC % | C73: =UP_COC_RBCMinimum -> 2.5 | F73: user input: Minimum RBC
A74: Minimum Target RBC | C74: =ACL*C73 -> 51.05766995 | E74: =ACL*C73
A75: Maximum RBC % | C75: =UP_COC_RBCMaximum -> 4.5 | F75: user input: Maximum RBC
A76: Additional RBC | C76: =ACL*(C75-C73) -> 40.84613596 | E76: =ACL*(C75-C73)
A77: Discount to COC on RBC between Min and Max RBC Thresholds | C77: =UP_COC_RBCThresholdDiscount -> 0 | E77: =UP_COC_RBCThresholdDiscount | F77: user input: factor for discounting the cost of capital on RBC between Min and Max Target RBC thresholds
A78: Effective RBC to Finance | C78: =RBC_LowerThreshold+RBC_UpperThreshold*(1-RBC_ThresholdDiscount) -> 91.90380591 | E78: =RBC_LowerThreshold+RBC_UpperThreshold*(1-RBC_ThresholdDiscount)
A79: Cost of Capital PMPM | C79: =C78*WACC -> 7.16778185 | E79: =C78*WACC
A80: Cost of Capital as % | C80: =C79/COC_Premium -> 0.01129811469 | E80: =C79/COC_Premium
A81: Step 4. Apply a Discount to Cost of Capital for Investment Income | C81: TBD | H81: Calculation of Interest Accrued on Withhold
A82: Discounting Methodology | C82: =UP_COC_Selection_COCDiscountRate -> No Discount | E82: =_xlfn.FORMULATEXT(C82) -> =UP_COC_Selection_COCDiscountRate | H82: Month No. | I82: 1 | J82: =IF(I82<UP_MonthsInRatingPeriod,I82+1,"") -> 2 | K82: =IF(J82<UP_MonthsInRatingPeriod,J82+1,"") -> 3 | L82: =IF(K82<UP_MonthsInRatingPeriod,K82+1,"") -> 4 | M82: =IF(L82<UP_MonthsInRatingPeriod,L82+1,"") -> 5 | N82: =IF(M82<UP_MonthsInRatingPeriod,M82+1,"") -> 6 | O82: =IF(N82<UP_MonthsInRatingPeriod,N82+1,"") -> 7 | P82: =IF(O82<UP_MonthsInRatingPeriod,O82+1,"") -> 8 | Q82: =IF(P82<UP_MonthsInRatingPeriod,P82+1,"") -> 9 | R82: =IF(Q82<UP_MonthsInRatingPeriod,Q82+1,"") -> 10 | S82: =IF(R82<UP_MonthsInRatingPeriod,R82+1,"") -> 11 | T82: =IF(S82<UP_MonthsInRatingPeriod,S82+1,"") -> 12 | U82: =IF(T82<UP_MonthsInRatingPeriod,T82+1,"") ->  | V82: =IF(U82<UP_MonthsInRatingPeriod,U82+1,"") ->  | W82: =IF(V82<UP_MonthsInRatingPeriod,V82+1,"") ->  | X82: =IF(W82<UP_MonthsInRatingPeriod,W82+1,"") ->  | Y82: =IF(X82<UP_MonthsInRatingPeriod,X82+1,"") ->  | Z82: =IF(Y82<UP_MonthsInRatingPeriod,Y82+1,"") ->  | AA82: =IF(Z82<UP_MonthsInRatingPeriod,Z82+1,"") ->  | AB82: =IF(AA82<UP_MonthsInRatingPeriod,AA82+1,"") ->  | AC82: =IF(AB82<UP_MonthsInRatingPeriod,AB82+1,"") ->  | AD82: =IF(AC82<UP_MonthsInRatingPeriod,AC82+1,"") ->  | AE82: =IF(AD82<UP_MonthsInRatingPeriod,AD82+1,"") ->  | AF82: =IF(AE82<UP_MonthsInRatingPeriod,AE82+1,"") ->  | AG82: =IF(AF82<UP_MonthsInRatingPeriod,AF82+1,"") ->  | AH82: =IF(AG82<UP_MonthsInRatingPeriod,AG82+1,"") ->  | AI82: =IF(AH82<UP_MonthsInRatingPeriod,AH82+1,"") ->  | AJ82: =IF(AI82<UP_MonthsInRatingPeriod,AI82+1,"") ->  | AK82: =IF(AJ82<UP_MonthsInRatingPeriod,AJ82+1,"") ->  | AL82: =IF(AK82<UP_MonthsInRatingPeriod,AK82+1,"") ->  | AM82: =IF(AL82<UP_MonthsInRatingPeriod,AL82+1,"") ->  | AN82: =IF(AM82<UP_MonthsInRatingPeriod,AM82+1,"") ->  | AO82: =IF(AN82<UP_MonthsInRatingPeriod,AN82+1,"") ->  | AP82: =IF(AO82<UP_MonthsInRatingPeriod,AO82+1,"") ->  | AQ82: =IF(AP82<UP_MonthsInRatingPeriod,AP82+1,"") ->  | AR82: =IF(AQ82<UP_MonthsInRatingPeriod,AQ82+1,"") -> 
A83: Discount % | C83: =VLOOKUP(C82,'Drop Downs'!A47:B50,2,FALSE) -> 0 | H83: Months of Interest Earned | I83: =UP_MonthsInRatingPeriod -> 12 | J83: =IF(ISNUMBER(J82),I83-1,"") -> 11 | K83: =IF(ISNUMBER(K82),J83-1,"") -> 10 | L83: =IF(ISNUMBER(L82),K83-1,"") -> 9 | M83: =IF(ISNUMBER(M82),L83-1,"") -> 8 | N83: =IF(ISNUMBER(N82),M83-1,"") -> 7 | O83: =IF(ISNUMBER(O82),N83-1,"") -> 6 | P83: =IF(ISNUMBER(P82),O83-1,"") -> 5 | Q83: =IF(ISNUMBER(Q82),P83-1,"") -> 4 | R83: =IF(ISNUMBER(R82),Q83-1,"") -> 3 | S83: =IF(ISNUMBER(S82),R83-1,"") -> 2 | T83: =IF(ISNUMBER(T82),S83-1,"") -> 1 | U83: =IF(ISNUMBER(U82),T83-1,"") ->  | V83: =IF(ISNUMBER(V82),U83-1,"") ->  | W83: =IF(ISNUMBER(W82),V83-1,"") ->  | X83: =IF(ISNUMBER(X82),W83-1,"") ->  | Y83: =IF(ISNUMBER(Y82),X83-1,"") ->  | Z83: =IF(ISNUMBER(Z82),Y83-1,"") ->  | AA83: =IF(ISNUMBER(AA82),Z83-1,"") ->  | AB83: =IF(ISNUMBER(AB82),AA83-1,"") ->  | AC83: =IF(ISNUMBER(AC82),AB83-1,"") ->  | AD83: =IF(ISNUMBER(AD82),AC83-1,"") ->  | AE83: =IF(ISNUMBER(AE82),AD83-1,"") ->  | AF83: =IF(ISNUMBER(AF82),AE83-1,"") ->  | AG83: =IF(ISNUMBER(AG82),AF83-1,"") ->  | AH83: =IF(ISNUMBER(AH82),AG83-1,"") ->  | AI83: =IF(ISNUMBER(AI82),AH83-1,"") ->  | AJ83: =IF(ISNUMBER(AJ82),AI83-1,"") ->  | AK83: =IF(ISNUMBER(AK82),AJ83-1,"") ->  | AL83: =IF(ISNUMBER(AL82),AK83-1,"") ->  | AM83: =IF(ISNUMBER(AM82),AL83-1,"") ->  | AN83: =IF(ISNUMBER(AN82),AM83-1,"") ->  | AO83: =IF(ISNUMBER(AO82),AN83-1,"") ->  | AP83: =IF(ISNUMBER(AP82),AO83-1,"") ->  | AQ83: =IF(ISNUMBER(AQ82),AP83-1,"") ->  | AR83: =IF(ISNUMBER(AR82),AQ83-1,"") -> 
A84: Discount PMPM | C84: =-1*(C78*C83)+0*-SUM(I86:AR86)/UP_MonthsInRatingPeriod -> 0 | E84: =_xlfn.FORMULATEXT(C84) -> =-1*(C78*C83)+0*-SUM(I86:AR86)/UP_MonthsInRatingPeriod | H84: Interest Rate | I84: =$C83 -> 0 | J84: =$C83 -> 0 | K84: 0 | L84: 0 | M84: 0 | N84: 0 | O84: 0 | P84: 0 | Q84: 0 | R84: 0 | S84: 0 | T84: 0
A85: Cost of Capital after Discount PMPM | C85: =C79+C84 -> 7.16778185 | E85: =_xlfn.FORMULATEXT(C85) -> =C79+C84 | H85: RBC Funded | I85: =RBC_LowerThreshold+RBC_UpperThreshold*RBC_ThresholdDiscount -> 51.05766995 | J85: =IF(ISNUMBER(J82),$I85,"") -> 51.05766995 | K85: =IF(ISNUMBER(K82),$I85,"") -> 51.05766995 | L85: =IF(ISNUMBER(L82),$I85,"") -> 51.05766995 | M85: =IF(ISNUMBER(M82),$I85,"") -> 51.05766995 | N85: 51.05766995 | O85: 51.05766995 | P85: 51.05766995 | Q85: 51.05766995 | R85: 51.05766995 | S85: 51.05766995 | T85: 51.05766995
A86: Cost of Capital after Discount as % | C86: =C85/COC_Premium -> 0.01129811469 | E86: =_xlfn.FORMULATEXT(C86) -> =C85/COC_Premium | H86: Interest Payment | I86: =I85*(1+I84)^(I83/12)-I85 -> 0 | J86: =IF(ISNUMBER(J82),J85*(1+J84)^(J83/12)-J85,"") -> 0 | K86: 0 | L86: 0 | M86: 0 | N86: 0 | O86: 0 | P86: 0 | Q86: 0 | R86: 0 | S86: 0 | T86: 0
A87: Step 5. Calculate Costs Associated with Cash Flow
A88: Step 5.a. Cost Associated with Withholds
A89: Revised Adjusted PMPM | C89: =(COC_Premium+C85) -> 641.5906076 | E89: =_xlfn.FORMULATEXT(C89) -> =(COC_Premium+C85)
A90: Months in Rating Period | C90: =UP_MonthsInRatingPeriod -> 12
A91: Months Following Rating Period before Payment | C91: =UP_COC_WithholdLag -> 6 | F91: user input: expected delay in resolving withhold with state (in months following rating period)
A92: Withhold % | C92: =UP_WithholdPercent -> 0.015 | F92: user input: Withhold %
A93: Assumed Withhold Achieved | C93: =UP_WithholdEarned -> 1 | F93: user input: % Withhold Achieved | H93: Calculation of Interest Accrued on Withhold
A94: Withhold PMPM | C94: =(C92*C93)*C89 -> 9.623859114 | E94: =_xlfn.FORMULATEXT(C94) -> =(C92*C93)*C89 | H94: Month No. | I94: 1 | J94: =IF(I94<UP_MonthsInRatingPeriod,I94+1,"") -> 2 | K94: 3 | L94: 4 | M94: 5 | N94: 6 | O94: 7 | P94: 8 | Q94: 9 | R94: 10 | S94: 11 | T94: 12
A95: Factor to Apply to Cost of Withhold | C95: =UP_COC_Selection_RevenueLagRate -> None | F95: user input | H95: Months of Interest Owed | I95: =UP_MonthsInRatingPeriod+$C$91 -> 18 | J95: =IF(ISNUMBER(J94),I95-1,"") -> 17 | K95: =IF(ISNUMBER(K94),J95-1,"") -> 16 | L95: 15 | M95: 14 | N95: 13 | O95: 12 | P95: 11 | Q95: 10 | R95: 9 | S95: 8 | T95: 7
A96: =C95 -> None | C96: =UP_COC_RevenueLagRate -> 0 | F96: user input | H96: Interest Rate | I96: =$C$96 -> 0 | J96: =IF(ISNUMBER(J94),$C$96,"") -> 0 | K96: =IF(ISNUMBER(K94),$C$96,"") -> 0 | L96: 0 | M96: 0 | N96: 0 | O96: 0 | P96: 0 | Q96: 0 | R96: 0 | S96: 0 | T96: 0
A97: Cumulative Interest Accrued to MCO | C97: =-FV((1+C96)^(1/12)-1,C90+C91,C94,,0)-(C94*(C90+C91)) -> 0 | E97: =_xlfn.FORMULATEXT(C97) -> =-FV((1+C96)^(1/12)-1,C90+C91,C94,,0)-(C94*(C90+C91)) | F97: Interest owed to MCO for withholds held, including compounding of interest | H97: Withhold PMPM | I97: =$C$94 -> 9.623859114 | J97: =IF(ISNUMBER(J94),$C$94,"") -> 9.623859114 | K97: =IF(ISNUMBER(K94),$C$94,"") -> 9.623859114 | L97: 9.623859114 | M97: 9.623859114 | N97: 9.623859114 | O97: 9.623859114 | P97: 9.623859114 | Q97: 9.623859114 | R97: 9.623859114 | S97: 9.623859114 | T97: 9.623859114
A98: Monthly Interest Owed on Withhold PMPM | C98: =C97/12 -> 0 | E98: =_xlfn.FORMULATEXT(C98) -> =C97/12 | H98: Interest Payment | I98: =I97*(1+I96)^(I95/12)-I97 -> 0 | J98: =IF(ISNUMBER(J94),J97*(1+J96)^(J95/12)-J97,"") -> 0 | K98: =IF(ISNUMBER(K94),K97*(1+K96)^(K95/12)-K97,"") -> 0 | L98: =IF(ISNUMBER(L94),L97*(1+L96)^(L95/12)-L97,"") -> 0 | M98: =IF(ISNUMBER(M94),M97*(1+M96)^(M95/12)-M97,"") -> 0 | N98: =IF(ISNUMBER(N94),N97*(1+N96)^(N95/12)-N97,"") -> 0 | O98: =IF(ISNUMBER(O94),O97*(1+O96)^(O95/12)-O97,"") -> 0 | P98: =IF(ISNUMBER(P94),P97*(1+P96)^(P95/12)-P97,"") -> 0 | Q98: =IF(ISNUMBER(Q94),Q97*(1+Q96)^(Q95/12)-Q97,"") -> 0 | R98: =IF(ISNUMBER(R94),R97*(1+R96)^(R95/12)-R97,"") -> 0 | S98: =IF(ISNUMBER(S94),S97*(1+S96)^(S95/12)-S97,"") -> 0 | T98: =IF(ISNUMBER(T94),T97*(1+T96)^(T95/12)-T97,"") -> 0 | U98: =IF(ISNUMBER(U94),U97*(1+U96)^(U95/12)-U97,"") ->  | V98: =IF(ISNUMBER(V94),V97*(1+V96)^(V95/12)-V97,"") ->  | W98: =IF(ISNUMBER(W94),W97*(1+W96)^(W95/12)-W97,"") ->  | X98: =IF(ISNUMBER(X94),X97*(1+X96)^(X95/12)-X97,"") ->  | Y98: =IF(ISNUMBER(Y94),Y97*(1+Y96)^(Y95/12)-Y97,"") ->  | Z98: =IF(ISNUMBER(Z94),Z97*(1+Z96)^(Z95/12)-Z97,"") ->  | AA98: =IF(ISNUMBER(AA94),AA97*(1+AA96)^(AA95/12)-AA97,"") ->  | AB98: =IF(ISNUMBER(AB94),AB97*(1+AB96)^(AB95/12)-AB97,"") ->  | AC98: =IF(ISNUMBER(AC94),AC97*(1+AC96)^(AC95/12)-AC97,"") ->  | AD98: =IF(ISNUMBER(AD94),AD97*(1+AD96)^(AD95/12)-AD97,"") ->  | AE98: =IF(ISNUMBER(AE94),AE97*(1+AE96)^(AE95/12)-AE97,"") ->  | AF98: =IF(ISNUMBER(AF94),AF97*(1+AF96)^(AF95/12)-AF97,"") ->  | AG98: =IF(ISNUMBER(AG94),AG97*(1+AG96)^(AG95/12)-AG97,"") ->  | AH98: =IF(ISNUMBER(AH94),AH97*(1+AH96)^(AH95/12)-AH97,"") ->  | AI98: =IF(ISNUMBER(AI94),AI97*(1+AI96)^(AI95/12)-AI97,"") ->  | AJ98: =IF(ISNUMBER(AJ94),AJ97*(1+AJ96)^(AJ95/12)-AJ97,"") ->  | AK98: =IF(ISNUMBER(AK94),AK97*(1+AK96)^(AK95/12)-AK97,"") ->  | AL98: =IF(ISNUMBER(AL94),AL97*(1+AL96)^(AL95/12)-AL97,"") ->  | AM98: =IF(ISNUMBER(AM94),AM97*(1+AM96)^(AM95/12)-AM97,"") ->  | AN98: =IF(ISNUMBER(AN94),AN97*(1+AN96)^(AN95/12)-AN97,"") ->  | AO98: =IF(ISNUMBER(AO94),AO97*(1+AO96)^(AO95/12)-AO97,"") ->  | AP98: =IF(ISNUMBER(AP94),AP97*(1+AP96)^(AP95/12)-AP97,"") ->  | AQ98: =IF(ISNUMBER(AQ94),AQ97*(1+AQ96)^(AQ95/12)-AQ97,"") ->  | AR98: =IF(ISNUMBER(AR94),AR97*(1+AR96)^(AR95/12)-AR97,"") -> 
A99: Cost of Interest on Withhold as % of Premium | C99: =C98/COC_Premium -> 0 | E99: =C98/COC_Premium
A100: Step 5.b. Cost Associated with a Delay in Premiums | T100: =SUM(I98:T98) -> 0
A101: Revised Adjusted PMPM with Cost of Capital | C101: =C89+C98 -> 641.5906076 | E101: =_xlfn.FORMULATEXT(C101) -> =C89+C98
A102: Months of Average Delay | C102: =UP_COC_PremiumLag -> 0 | F102: user input: expected delay in receipt of premiums from state (in months)
A103: =C95 -> None | C103: =C96 -> 0 | E103: =_xlfn.FORMULATEXT(C103) -> =C96
A104: Accumulative Interest Owed on Premium Delay PMPM | C104: =(C101*C102)*(1+C103)^(C102/12)-(C102*C101) -> 0 | E104: =_xlfn.FORMULATEXT(C104) -> =(C101*C102)*(1+C103)^(C102/12)-(C102*C101)
A105: Cost of Payment Delay as % | C105: =C104/COC_Premium -> 0 | E105: =_xlfn.FORMULATEXT(C105) -> =C104/COC_Premium
A106: Step 5.c. Offsets Associated with a Delay in Provider Payments
A107: Medical Premium | C107: =C4 -> 550
A108: Average Lag in Months | C108: =UP_COC_ClaimLag -> 1.5
A109: % of Claims Subject to Lag | C109: =UP_COC_ClaimLagPercent -> 0.25
A110: =C95 -> None | C110: =C96 -> 0 | E110: =_xlfn.FORMULATEXT(C110) -> =C96
A111: Interest Earned on Claims Payment Delay | C111: =-((C107*C109)*(1+C110)^(C108/12)-(C107*C109)) -> 0 | E111: =_xlfn.FORMULATEXT(C111) -> =-((C107*C109)*(1+C110)^(C108/12)-(C107*C109))
A112: Earnings from Reimbursement Delay as % | C112: =C111/COC_Premium -> 0
A113: Step 6. Total Cost of Capital
A114: Net Cost of Capital PMPM | C114: =C85+C98+C104+C111 -> 7.16778185 | E114: =_xlfn.FORMULATEXT(C114) -> =C85+C98+C104+C111
A115: Net Cost of Capital as % | C115: =C114/COC_Premium -> 0.01129811469 | E115: =_xlfn.FORMULATEXT(C115) -> =C114/COC_Premium

Sheet Net Income Matrix
A1: Net Income Matrix | K1: Risk Corridors: | L1: I | M1: II | N1: III | O1: IV | P1: V | Q1: VI | AC1: ='User Parameters'!B9 -> Composite 2016 to 2019 Curve
K2: Lower Threshold | L2: =IF(UP_RSBasis="No Risk Share",0,'User Parameters'!F14) -> 0 | M2: =L3 -> 0 | N2: =M3 -> 0 | O2: =N3 -> 0 | P2: =O3 -> 0 | Q2: =P3 -> 0 | AB2: Mean of Underwriting Margin | AD2: =H88 -> 0.04425849189
K3: Upper Threshold | L3: =IF(UP_RSBasis="No Risk Share",0,'User Parameters'!H14) -> 0 | M3: =IF(UP_RSBasis="No Risk Share",0,'User Parameters'!H15) -> 0 | N3: =IF(UP_RSBasis="No Risk Share",0,'User Parameters'!H16) -> 0 | O3: =IF(UP_RSBasis="No Risk Share",0,'User Parameters'!H17) -> 0 | P3: =IF(UP_RSBasis="No Risk Share",0,'User Parameters'!H18) -> 0 | Q3: =IF(UP_RSBasis="No Risk Share",0,'User Parameters'!H19) -> 0 | AB3: Standard Deviation | AD3: ='User Parameters'!C9 -> 0.03529050325
K4: State Share | L4: =IF(UP_RSBasis="No Risk Share",0,1-'User Parameters'!I14) -> 0 | M4: =IF(UP_RSBasis="No Risk Share",0,1-'User Parameters'!I15) -> 0 | N4: =IF(UP_RSBasis="No Risk Share",0,1-'User Parameters'!I16) -> 0 | O4: =IF(UP_RSBasis="No Risk Share",0,1-'User Parameters'!I17) -> 0 | P4: =IF(UP_RSBasis="No Risk Share",0,1-'User Parameters'!I18) -> 0 | Q4: =IF(UP_RSBasis="No Risk Share",0,1-'User Parameters'!I19) -> 0 | AL4: Excluding lag in CoC infusions
A5: Average/Total | B5: =SUMPRODUCT(B$8:B$168,$AD$8:$AD$168) -> 634.4228257 | C5: 550 | D5: 0.8669297158 | E5: 50 | F5: 6.344228257 | G5: 28.07859749 | H5: 0.04425849189 | I5: 0.8756865816 | J5: 0 | K5: 0 | L5: =SUMPRODUCT(L$8:L$168,$AD$8:$AD$168) -> 0 | M5: 0 | N5: 0 | O5: 0 | P5: 0 | Q5: 0 | R5: =SUMPRODUCT(R$8:R$168,$AD$8:$AD$168) -> 0 | S5: 0 | T5: 0.8756865816 | U5: 0.905912099 | V5: 18.98400057 | W5: 0.02992326222 | X5: 0.01433522966 | Y5: 0 | Z5: 0 | AA5: =SUMPRODUCT(AA$8:AA$168,$AD$8:$AD$168) -> 0.01433522966 | AC5: =SUM(AC$8:AC$168) -> 1 | AD5: =SUM(AD$8:AD$168) -> 1 | AF5: =SUMPRODUCT(AF$8:AF$168,$AD$8:$AD$168) -> -0.0002329378998 | AG5: =SUMPRODUCT(AG$8:AG$168,$AD$8:$AD$168) -> -1.332190951e-05 | AH5: =SUMPRODUCT(AH$8:AH$168,$AD$8:$AD$168) -> -2.373632579e-06 | AI5: =SUMPRODUCT(AI$8:AI$168,$AD$8:$AD$168) -> -3.974531467e-10 | AJ5: =SUMPRODUCT(AJ$8:AJ$168,$AD$8:$AD$168) -> -3.974531467e-10 | AL5: =SUMPRODUCT(AL$8:AL$168,$AD$8:$AD$168) -> 0 | AM5: 0 | AN5: =SUMPRODUCT(AN$8:AN$168,$AD$8:$AD$168) -> 0.01433522966
A6: Bin | B6: Claims Calculation | E6: Underwriting Margin Calculation | I6: MLR | J6: Risk Share Target | K6: Risk Corridor Calculations | T6: MLR Limit Calculation | X6: Net Income Calculation | AB6: Normal Curve | AF6: Probability of Ruin Results
A7: Loss Ratio | B7: Premium PMPM | C7: Claims PMPM | D7: Initial MLR | E7: Admin | F7: Premium Tax | G7: Underwriting Margin | H7: Underwriting Margin Ratio | I7: Alternative: For Purposes of Risk Share Use MLR (as Used for MLR Limit) Not Loss Ratio | J7: =IF(UP_RSBasis="MLR","Risk Share Target %",IF(UP_RSBasis="Medical Baseline","Claims PMPM","N/A")) -> N/A | K7: =IF(UP_RSBasis="MLR","MLR Gain/(Loss)",IF(UP_RSBasis="Medical Baseline","Medical Gain/(Loss)","")) ->  | L7: Corridor I | M7: Corridor II | N7: Corridor III | O7: Corridor IV | P7: Corridor V | Q7: Corridor VI | R7: =IF(UP_RSBasis="MLR","MLR Adjustment","") ->  | S7: Claims Adjustment | T7: Adjusted MLR | U7: Capped MLR | V7: Net Transfer Payment | W7: Net Transfer Payment as a % of Premium | X7: Gain/Loss as a % of Premium | Y7: Cost of Capital Infusion on Gains/Losses before Transfer Payments (as a % of Premium) | Z7: Withhold Unachieved as a % of Premium | AA7: Net Income as a % of Premium | AB7: Density Function | AC7: Probability | AD7: Adjusted Probability | AE7: Adjusted Probability Only for the Dashboard Graph | AF7: Authorized Control Level (ACL) | AG7: 200% of ACL | AH7: Minimum Threshold | AI7: ="Target (Discount = "&UP_COC_RBCThresholdDiscount*100&"%)" -> Target (Discount = 0%) | AJ7: Maximum Threshold
A8: =A9-0.005 -> 0.4669297158 | B8: =$B$88 -> 634.4228257 | C8: =B8*A8 -> 296.2308697 | D8: =(C8)/(B8) -> 0.4669297158 | E8: ='User Parameters'!$C$11 -> 50 | F8: =B8*'User Parameters'!$C$15 -> 6.344228257 | G8: =B8-E8-C8-F8 -> 281.8477278 | H8: =G8/B8 -> 0.4442584919 | I8: =($C8+UP_QIPMPM)/($B8-$F8) -> 0.4716461775 | J8: =IF(UP_RSBasis="MLR",UP_RSTarget_MLR,IF(UP_RSBasis="Medical Baseline",UP_RSTarget_Medlcal,0)) -> 0 | K8: =IF(UP_RSBasis="MLR",J8-I8,IF(UP_RSBasis="Medical Baseline",J8-$C8,0)) -> 0 | L8: =IF($K8>0,MIN(J8*L$3-J8*L$2,$K8-M8-N8),0) -> 0 | M8: =IF($K8>0,MIN(J8*M$3-J8*M$2,$K8-N8),0) -> 0 | N8: =IF($K8>0,MIN(J8*N$3-J8*N$2,$K8),0) -> 0 | O8: =IF($K8<0,MAX(J8*O$2-J8*O$3,$K8),0) -> 0 | P8: =IF($K8<0,MAX(J8*P$2-J8*P$3,$K8-O8),0) -> 0 | Q8: =IF($K8<0,MAX(J8*Q$2-J8*Q$3,$K8-P8-O8),0) -> 0 | R8: =IF(UP_RSBasis="MLR",SUMPRODUCT(L$4:Q$4,L8:Q8),"") ->  | S8: =IF(UP_RSBasis="MLR",R8*(B8-F8),SUMPRODUCT($L$4:$Q$4,$L8:$Q8)) -> 0 | T8: =(S8+C8+'User Parameters'!$C$12)/(B8-F8) -> 0.4716461775 | U8: =IF(T8<'User Parameters'!$J$5,'User Parameters'!$J$5,IF(T8>'User Parameters'!$J$6,'User Parameters'!$J$6,T8)) -> 0.9 | V8: =(U8-T8)*(B8-F8) -> 269.039868 | W8: =V8/B8 -> 0.4240702842 | X8: =(B8-C8-F8-E8-S8-V8)/'Results Dashboard'!$D$43 -> 0.02018820766 | Y8: =IF((X8+W8)>0,(X8+W8)*0.5*((1+'User Parameters'!C$50)^((12+UP_COC_WithholdLag)/12)-1),(X8+W8)*0.5*((1+'User Parameters'!$C$51)^((12+UP_COC_WithholdLag)/12)-1)) -> 0 | Z8: =-'User Parameters'!$C$13*('User Parameters'!$C$14-1) -> 0 | AA8: =Y8+X8-Z8 -> 0.02018820766 | AB8: =_xlfn.NORM.DIST(H8,$AD$2,$AD$3,TRUE) -> 1 | AC8: =AB8-AB9 -> 0 | AD8: =AC8+(1-AC5)/2 -> 6.106226635e-16 | AE8: =AD8 -> 6.106226635e-16 | AF8: =IF($AA8<-'Results Dashboard'!$J$7,$AA8+'Results Dashboard'!$J$7,0) -> 0 | AG8: =IF($AA8<-'Results Dashboard'!$J$8,$AA8+'Results Dashboard'!$J$8,0) -> 0 | AH8: =IF($AA8<-'Results Dashboard'!$J$9,$AA8+'Results Dashboard'!$J$9,0) -> 0 | AI8: =IF($AA8<-'Results Dashboard'!$J$11,$AA8+'Results Dashboard'!$J$11,0) -> 0 | AJ8: =IF($AA8<-'Results Dashboard'!$J$10,$AA8+'Results Dashboard'!$J$10,0) -> 0 | AL8: =IF((X8+W8)>0,(X8+W8)*0.5*'User Parameters'!C$50,(X8+W8)*0.5*'User Parameters'!$C$51) -> 0 | AM8: =-'User Parameters'!$C$13*('User Parameters'!$C$14-1) -> 0 | AN8: =-AL8+X8-AM8 -> 0.02018820766
A9: 0.4719297158 | B9: 634.4228257 | C9: =B9*A9 -> 299.4029838 | D9: =(C9)/(B9) -> 0.4719297158 | E9: ='User Parameters'!$C$11 -> 50 | F9: =B9*'User Parameters'!$C$15 -> 6.344228257 | G9: =B9-E9-C9-F9 -> 278.6756137 | H9: =G9/B9 -> 0.4392584919 | I9: =($C9+UP_QIPMPM)/($B9-$F9) -> 0.4766966826 | J9: =IF(UP_RSBasis="MLR",UP_RSTarget_MLR,IF(UP_RSBasis="Medical Baseline",UP_RSTarget_Medlcal,0)) -> 0 | K9: 0 | L9: =IF($K9>0,MIN(J9*L$3-J9*L$2,$K9-M9-N9),0) -> 0 | M9: =IF($K9>0,MIN(J9*M$3-J9*M$2,$K9-N9),0) -> 0 | N9: =IF($K9>0,MIN(J9*N$3-J9*N$2,$K9),0) -> 0 | O9: =IF($K9<0,MAX(J9*O$2-J9*O$3,$K9),0) -> 0 | P9: =IF($K9<0,MAX(J9*P$2-J9*P$3,$K9-O9),0) -> 0 | Q9: =IF($K9<0,MAX(J9*Q$2-J9*Q$3,$K9-P9-O9),0) -> 0 | S9: 0 | T9: =(S9+C9+'User Parameters'!$C$12)/(B9-F9) -> 0.4766966826 | U9: =IF(T9<'User Parameters'!$J$5,'User Parameters'!$J$5,IF(T9>'User Parameters'!$J$6,'User Parameters'!$J$6,T9)) -> 0.9 | V9: 265.8677539 | W9: 0.4190702842 | X9: =(B9-C9-F9-E9-S9-V9)/'Results Dashboard'!$D$43 -> 0.02018820766 | Y9: =IF((X9+W9)>0,(X9+W9)*0.5*((1+'User Parameters'!C$50)^((12+UP_COC_WithholdLag)/12)-1),(X9+W9)*0.5*((1+'User Parameters'!$C$51)^((12+UP_COC_WithholdLag)/12)-1)) -> 0 | Z9: =-'User Parameters'!$C$13*('User Parameters'!$C$14-1) -> 0 | AA9: =Y9+X9-Z9 -> 0.02018820766 | AB9: 1 | AC9: =AB9-AB10 -> 0 | AD9: =AC9 -> 0 | AE9: =AD9 -> 0 | AF9: =IF($AA9<-'Results Dashboard'!$J$7,$AA9+'Results Dashboard'!$J$7,0) -> 0 | AG9: =IF($AA9<-'Results Dashboard'!$J$8,$AA9+'Results Dashboard'!$J$8,0) -> 0 | AH9: =IF($AA9<-'Results Dashboard'!$J$9,$AA9+'Results Dashboard'!$J$9,0) -> 0 | AI9: =IF($AA9<-'Results Dashboard'!$J$11,$AA9+'Results Dashboard'!$J$11,0) -> 0 | AJ9: =IF($AA9<-'Results Dashboard'!$J$10,$AA9+'Results Dashboard'!$J$10,0) -> 0 | AL9: =IF((X9+W9)>0,(X9+W9)*0.5*'User Parameters'!C$50,(X9+W9)*0.5*'User Parameters'!$C$51) -> 0 | AM9: =-'User Parameters'!$C$13*('User Parameters'!$C$14-1) -> 0 | AN9: =-AL9+X9-AM9 -> 0.02018820766
A10: 0.4769297158 | B10: 634.4228257 | C10: 302.575098 | D10: 0.4769297158 | E10: ='User Parameters'!$C$11 -> 50 | F10: =B10*'User Parameters'!$C$15 -> 6.344228257 | G10: 275.5034995 | H10: 0.4342584919 | I10: 0.4817471876 | J10: =IF(UP_RSBasis="MLR",UP_RSTarget_MLR,IF(UP_RSBasis="Medical Baseline",UP_RSTarget_Medlcal,0)) -> 0 | K10: 0 | L10: 0 | M10: 0 | N10: 0 | O10: 0 | P10: 0 | Q10: 0 | S10: 0 | T10: =(S10+C10+'User Parameters'!$C$12)/(B10-F10) -> 0.4817471876 | U10: =IF(T10<'User Parameters'!$J$5,'User Parameters'!$J$5,IF(T10>'User Parameters'!$J$6,'User Parameters'!$J$6,T10)) -> 0.9 | V10: 262.6956398 | W10: 0.4140702842 | X10: =(B10-C10-F10-E10-S10-V10)/'Results Dashboard'!$D$43 -> 0.02018820766 | Y10: =IF((X10+W10)>0,(X10+W10)*0.5*((1+'User Parameters'!C$50)^((12+UP_COC_WithholdLag)/12)-1),(X10+W10)*0.5*((1+'User Parameters'!$C$51)^((12+UP_COC_WithholdLag)/12)-1)) -> 0 | Z10: =-'User Parameters'!$C$13*('User Parameters'!$C$14-1) -> 0 | AA10: 0.02018820766 | AB10: 1 | AC10: 0 | AD10: =AC10 -> 0 | AE10: 0 | AF10: =IF($AA10<-'Results Dashboard'!$J$7,$AA10+'Results Dashboard'!$J$7,0) -> 0 | AG10: =IF($AA10<-'Results Dashboard'!$J$8,$AA10+'Results Dashboard'!$J$8,0) -> 0 | AH10: =IF($AA10<-'Results Dashboard'!$J$9,$AA10+'Results Dashboard'!$J$9,0) -> 0 | AI10: =IF($AA10<-'Results Dashboard'!$J$11,$AA10+'Results Dashboard'!$J$11,0) -> 0 | AJ10: =IF($AA10<-'Results Dashboard'!$J$10,$AA10+'Results Dashboard'!$J$10,0) -> 0 | AL10: =IF((X10+W10)>0,(X10+W10)*0.5*'User Parameters'!C$50,(X10+W10)*0.5*'User Parameters'!$C$51) -> 0 | AM10: =-'User Parameters'!$C$13*('User Parameters'!$C$14-1) -> 0 | AN10: 0.02018820766
A11: 0.4819297158 | B11: 634.4228257 | C11: 305.7472121 | D11: 0.4819297158 | E11: ='User Parameters'!$C$11 -> 50 | F11: =B11*'User Parameters'!$C$15 -> 6.344228257 | G11: 272.3313854 | H11: 0.4292584919 | I11: 0.4867976927 | J11: =IF(UP_RSBasis="MLR",UP_RSTarget_MLR,IF(UP_RSBasis="Medical Baseline",UP_RSTarget_Medlcal,0)) -> 0 | K11: 0 | L11: 0 | M11: 0 | N11: 0 | O11: 0 | P11: 0 | Q11: 0 | S11: 0 | T11: =(S11+C11+'User Parameters'!$C$12)/(B11-F11) -> 0.4867976927 | U11: =IF(T11<'User Parameters'!$J$5,'User Parameters'!$J$5,IF(T11>'User Parameters'!$J$6,'User Parameters'!$J$6,T11)) -> 0.9 | V11: 259.5235256 | W11: 0.4090702842 | X11: =(B11-C11-F11-E11-S11-V11)/'Results Dashboard'!$D$43 -> 0.02018820766 | Y11: =IF((X11+W11)>0,(X11+W11)*0.5*((1+'User Parameters'!C$50)^((12+UP_COC_WithholdLag)/12)-1),(X11+W11)*0.5*((1+'User Parameters'!$C$51)^((12+UP_COC_WithholdLag)/12)-1)) -> 0 | Z11: =-'User Parameters'!$C$13*('User Parameters'!$C$14-1) -> 0 | AA11: 0.02018820766 | AB11: 1 | AC11: 0 | AD11: 0 | AE11: 0 | AF11: =IF($AA11<-'Results Dashboard'!$J$7,$AA11+'Results Dashboard'!$J$7,0) -> 0 | AG11: =IF($AA11<-'Results Dashboard'!$J$8,$AA11+'Results Dashboard'!$J$8,0) -> 0 | AH11: =IF($AA11<-'Results Dashboard'!$J$9,$AA11+'Results Dashboard'!$J$9,0) -> 0 | AI11: =IF($AA11<-'Results Dashboard'!$J$11,$AA11+'Results Dashboard'!$J$11,0) -> 0 | AJ11: =IF($AA11<-'Results Dashboard'!$J$10,$AA11+'Results Dashboard'!$J$10,0) -> 0 | AL11: =IF((X11+W11)>0,(X11+W11)*0.5*'User Parameters'!C$50,(X11+W11)*0.5*'User Parameters'!$C$51) -> 0 | AM11: =-'User Parameters'!$C$13*('User Parameters'!$C$14-1) -> 0 | AN11: 0.02018820766
A12: 0.4869297158 | B12: 634.4228257 | C12: 308.9193262 | D12: 0.4869297158 | E12: ='User Parameters'!$C$11 -> 50 | F12: =B12*'User Parameters'!$C$15 -> 6.344228257 | G12: 269.1592713 | H12: 0.4242584919 | I12: 0.4918481977 | J12: =IF(UP_RSBasis="MLR",UP_RSTarget_MLR,IF(UP_RSBasis="Medical Baseline",UP_RSTarget_Medlcal,0)) -> 0 | K12: 0 | L12: 0 | M12: 0 | N12: 0 | O12: 0 | P12: =IF($K12<0,MAX(J12*P$2-J12*P$3,$K12-O12),0) -> 0 | Q12: 0 | S12: 0 | T12: =(S12+C12+'User Parameters'!$C$12)/(B12-F12) -> 0.4918481977 | U12: =IF(T12<'User Parameters'!$J$5,'User Parameters'!$J$5,IF(T12>'User Parameters'!$J$6,'User Parameters'!$J$6,T12)) -> 0.9 | V12: 256.3514115 | W12: 0.4040702842 | X12: =(B12-C12-F12-E12-S12-V12)/'Results Dashboard'!$D$43 -> 0.02018820766 | Y12: =IF((X12+W12)>0,(X12+W12)*0.5*((1+'User Parameters'!C$50)^((12+UP_COC_WithholdLag)/12)-1),(X12+W12)*0.5*((1+'User Parameters'!$C$51)^((12+UP_COC_WithholdLag)/12)-1)) -> 0 | Z12: =-'User Parameters'!$C$13*('User Parameters'!$C$14-1) -> 0 | AA12: 0.02018820766 | AB12: 1 | AC12: 0 | AD12: 0 | AE12: 0 | AF12: =IF($AA12<-'Results Dashboard'!$J$7,$AA12+'Results Dashboard'!$J$7,0) -> 0 | AG12: =IF($AA12<-'Results Dashboard'!$J$8,$AA12+'Results Dashboard'!$J$8,0) -> 0 | AH12: =IF($AA12<-'Results Dashboard'!$J$9,$AA12+'Results Dashboard'!$J$9,0) -> 0 | AI12: =IF($AA12<-'Results Dashboard'!$J$11,$AA12+'Results Dashboard'!$J$11,0) -> 0 | AJ12: =IF($AA12<-'Results Dashboard'!$J$10,$AA12+'Results Dashboard'!$J$10,0) -> 0 | AL12: =IF((X12+W12)>0,(X12+W12)*0.5*'User Parameters'!C$50,(X12+W12)*0.5*'User Parameters'!$C$51) -> 0 | AM12: =-'User Parameters'!$C$13*('User Parameters'!$C$14-1) -> 0 | AN12: 0.02018820766
A13: 0.4919297158 | B13: 634.4228257 | C13: 312.0914403 | D13: 0.4919297158 | E13: ='User Parameters'!$C$11 -> 50 | F13: =B13*'User Parameters'!$C$15 -> 6.344228257 | G13: 265.9871571 | H13: 0.4192584919 | I13: 0.4968987028 | J13: =IF(UP_RSBasis="MLR",UP_RSTarget_MLR,IF(UP_RSBasis="Medical Baseline",UP_RSTarget_Medlcal,0)) -> 0 | K13: 0 | L13: 0 | M13: 0 | N13: 0 | O13: 0 | P13: 0 | Q13: 0 | S13: 0 | T13: =(S13+C13+'User Parameters'!$C$12)/(B13-F13) -> 0.4968987028 | U13: =IF(T13<'User Parameters'!$J$5,'User Parameters'!$J$5,IF(T13>'User Parameters'!$J$6,'User Parameters'!$J$6,T13)) -> 0.9 | V13: 253.1792974 | W13: 0.3990702842 | X13: =(B13-C13-F13-E13-S13-V13)/'Results Dashboard'!$D$43 -> 0.02018820766 | Y13: =IF((X13+W13)>0,(X13+W13)*0.5*((1+'User Parameters'!C$50)^((12+UP_COC_WithholdLag)/12)-1),(X13+W13)*0.5*((1+'User Parameters'!$C$51)^((12+UP_COC_WithholdLag)/12)-1)) -> 0 | Z13: =-'User Parameters'!$C$13*('User Parameters'!$C$14-1) -> 0 | AA13: 0.02018820766 | AB13: 1 | AC13: 0 | AD13: 0 | AE13: 0 | AF13: =IF($AA13<-'Results Dashboard'!$J$7,$AA13+'Results Dashboard'!$J$7,0) -> 0 | AG13: =IF($AA13<-'Results Dashboard'!$J$8,$AA13+'Results Dashboard'!$J$8,0) -> 0 | AH13: =IF($AA13<-'Results Dashboard'!$J$9,$AA13+'Results Dashboard'!$J$9,0) -> 0 | AI13: =IF($AA13<-'Results Dashboard'!$J$11,$AA13+'Results Dashboard'!$J$11,0) -> 0 | AJ13: =IF($AA13<-'Results Dashboard'!$J$10,$AA13+'Results Dashboard'!$J$10,0) -> 0 | AL13: =IF((X13+W13)>0,(X13+W13)*0.5*'User Parameters'!C$50,(X13+W13)*0.5*'User Parameters'!$C$51) -> 0 | AM13: =-'User Parameters'!$C$13*('User Parameters'!$C$14-1) -> 0 | AN13: 0.02018820766
A14: 0.4969297158 | B14: 634.4228257 | C14: 315.2635545 | D14: 0.4969297158 | E14: ='User Parameters'!$C$11 -> 50 | F14: =B14*'User Parameters'!$C$15 -> 6.344228257 | G14: 262.815043 | H14: 0.4142584919 | I14: 0.5019492079 | J14: =IF(UP_RSBasis="MLR",UP_RSTarget_MLR,IF(UP_RSBasis="Medical Baseline",UP_RSTarget_Medlcal,0)) -> 0 | K14: 0 | L14: 0 | M14: 0 | N14: 0 | O14: 0 | P14: 0 | Q14: 0 | S14: 0 | T14: =(S14+C14+'User Parameters'!$C$12)/(B14-F14) -> 0.5019492079 | U14: =IF(T14<'User Parameters'!$J$5,'User Parameters'!$J$5,IF(T14>'User Parameters'!$J$6,'User Parameters'!$J$6,T14)) -> 0.9 | V14: 250.0071833 | W14: 0.3940702842 | X14: =(B14-C14-F14-E14-S14-V14)/'Results Dashboard'!$D$43 -> 0.02018820766 | Y14: =IF((X14+W14)>0,(X14+W14)*0.5*((1+'User Parameters'!C$50)^((12+UP_COC_WithholdLag)/12)-1),(X14+W14)*0.5*((1+'User Parameters'!$C$51)^((12+UP_COC_WithholdLag)/12)-1)) -> 0 | Z14: =-'User Parameters'!$C$13*('User Parameters'!$C$14-1) -> 0 | AA14: 0.02018820766 | AB14: 1 | AC14: 0 | AD14: 0 | AE14: 0 | AF14: =IF($AA14<-'Results Dashboard'!$J$7,$AA14+'Results Dashboard'!$J$7,0) -> 0 | AG14: =IF($AA14<-'Results Dashboard'!$J$8,$AA14+'Results Dashboard'!$J$8,0) -> 0 | AH14: =IF($AA14<-'Results Dashboard'!$J$9,$AA14+'Results Dashboard'!$J$9,0) -> 0 | AI14: =IF($AA14<-'Results Dashboard'!$J$11,$AA14+'Results Dashboard'!$J$11,0) -> 0 | AJ14: =IF($AA14<-'Results Dashboard'!$J$10,$AA14+'Results Dashboard'!$J$10,0) -> 0 | AL14: =IF((X14+W14)>0,(X14+W14)*0.5*'User Parameters'!C$50,(X14+W14)*0.5*'User Parameters'!$C$51) -> 0 | AM14: =-'User Parameters'!$C$13*('User Parameters'!$C$14-1) -> 0 | AN14: 0.02018820766
A15: 0.5019297158 | B15: 634.4228257 | C15: 318.4356686 | D15: 0.5019297158 | E15: ='User Parameters'!$C$11 -> 50 | F15: =B15*'User Parameters'!$C$15 -> 6.344228257 | G15: 259.6429289 | H15: 0.4092584919 | I15: 0.5069997129 | J15: =IF(UP_RSBasis="MLR",UP_RSTarget_MLR,IF(UP_RSBasis="Medical Baseline",UP_RSTarget_Medlcal,0)) -> 0 | K15: 0 | L15: 0 | M15: 0 | N15: 0 | O15: 0 | P15: 0 | Q15: 0 | S15: 0 | T15: =(S15+C15+'User Parameters'!$C$12)/(B15-F15) -> 0.5069997129 | U15: =IF(T15<'User Parameters'!$J$5,'User Parameters'!$J$5,IF(T15>'User Parameters'!$J$6,'User Parameters'!$J$6,T15)) -> 0.9 | V15: 246.8350691 | W15: 0.3890702842 | X15: =(B15-C15-F15-E15-S15-V15)/'Results Dashboard'!$D$43 -> 0.02018820766 | Y15: =IF((X15+W15)>0,(X15+W15)*0.5*((1+'User Parameters'!C$50)^((12+UP_COC_WithholdLag)/12)-1),(X15+W15)*0.5*((1+'User Parameters'!$C$51)^((12+UP_COC_WithholdLag)/12)-1)) -> 0 | Z15: =-'User Parameters'!$C$13*('User Parameters'!$C$14-1) -> 0 | AA15: 0.02018820766 | AB15: 1 | AC15: 0 | AD15: 0 | AE15: 0 | AF15: =IF($AA15<-'Results Dashboard'!$J$7,$AA15+'Results Dashboard'!$J$7,0) -> 0 | AG15: =IF($AA15<-'Results Dashboard'!$J$8,$AA15+'Results Dashboard'!$J$8,0) -> 0 | AH15: =IF($AA15<-'Results Dashboard'!$J$9,$AA15+'Results Dashboard'!$J$9,0) -> 0 | AI15: =IF($AA15<-'Results Dashboard'!$J$11,$AA15+'Results Dashboard'!$J$11,0) -> 0 | AJ15: =IF($AA15<-'Results Dashboard'!$J$10,$AA15+'Results Dashboard'!$J$10,0) -> 0 | AL15: =IF((X15+W15)>0,(X15+W15)*0.5*'User Parameters'!C$50,(X15+W15)*0.5*'User Parameters'!$C$51) -> 0 | AM15: =-'User Parameters'!$C$13*('User Parameters'!$C$14-1) -> 0 | AN15: 0.02018820766
A16: 0.5069297158 | B16: 634.4228257 | C16: 321.6077827 | D16: 0.5069297158 | E16: ='User Parameters'!$C$11 -> 50 | F16: =B16*'User Parameters'!$C$15 -> 6.344228257 | G16: 256.4708148 | H16: 0.4042584919 | I16: 0.512050218 | J16: =IF(UP_RSBasis="MLR",UP_RSTarget_MLR,IF(UP_RSBasis="Medical Baseline",UP_RSTarget_Medlcal,0)) -> 0 | K16: 0 | L16: 0 | M16: 0 | N16: 0 | O16: 0 | P16: 0 | Q16: 0 | S16: 0 | T16: =(S16+C16+'User Parameters'!$C$12)/(B16-F16) -> 0.512050218 | U16: =IF(T16<'User Parameters'!$J$5,'User Parameters'!$J$5,IF(T16>'User Parameters'!$J$6,'User Parameters'!$J$6,T16)) -> 0.9 | V16: 243.662955 | W16: 0.3840702842 | X16: =(B16-C16-F16-E16-S16-V16)/'Results Dashboard'!$D$43 -> 0.02018820766 | Y16: =IF((X16+W16)>0,(X16+W16)*0.5*((1+'User Parameters'!C$50)^((12+UP_COC_WithholdLag)/12)-1),(X16+W16)*0.5*((1+'User Parameters'!$C$51)^((12+UP_COC_WithholdLag)/12)-1)) -> 0 | Z16: =-'User Parameters'!$C$13*('User Parameters'!$C$14-1) -> 0 | AA16: 0.02018820766 | AB16: 1 | AC16: 0 | AD16: 0 | AE16: 0 | AF16: =IF($AA16<-'Results Dashboard'!$J$7,$AA16+'Results Dashboard'!$J$7,0) -> 0 | AG16: =IF($AA16<-'Results Dashboard'!$J$8,$AA16+'Results Dashboard'!$J$8,0) -> 0 | AH16: =IF($AA16<-'Results Dashboard'!$J$9,$AA16+'Results Dashboard'!$J$9,0) -> 0 | AI16: =IF($AA16<-'Results Dashboard'!$J$11,$AA16+'Results Dashboard'!$J$11,0) -> 0 | AJ16: =IF($AA16<-'Results Dashboard'!$J$10,$AA16+'Results Dashboard'!$J$10,0) -> 0 | AL16: =IF((X16+W16)>0,(X16+W16)*0.5*'User Parameters'!C$50,(X16+W16)*0.5*'User Parameters'!$C$51) -> 0 | AM16: =-'User Parameters'!$C$13*('User Parameters'!$C$14-1) -> 0 | AN16: 0.02018820766
A17: 0.5119297158 | B17: 634.4228257 | C17: 324.7798969 | D17: 0.5119297158 | E17: ='User Parameters'!$C$11 -> 50 | F17: =B17*'User Parameters'!$C$15 -> 6.344228257 | G17: 253.2987006 | H17: 0.3992584919 | I17: 0.517100723 | J17: =IF(UP_RSBasis="MLR",UP_RSTarget_MLR,IF(UP_RSBasis="Medical Baseline",UP_RSTarget_Medlcal,0)) -> 0 | K17: 0 | L17: 0 | M17: 0 | N17: 0 | O17: 0 | P17: 0 | Q17: 0 | S17: 0 | T17: =(S17+C17+'User Parameters'!$C$12)/(B17-F17) -> 0.517100723 | U17: =IF(T17<'User Parameters'!$J$5,'User Parameters'!$J$5,IF(T17>'User Parameters'!$J$6,'User Parameters'!$J$6,T17)) -> 0.9 | V17: 240.4908409 | W17: 0.3790702842 | X17: =(B17-C17-F17-E17-S17-V17)/'Results Dashboard'!$D$43 -> 0.02018820766 | Y17: =IF((X17+W17)>0,(X17+W17)*0.5*((1+'User Parameters'!C$50)^((12+UP_COC_WithholdLag)/12)-1),(X17+W17)*0.5*((1+'User Parameters'!$C$51)^((12+UP_COC_WithholdLag)/12)-1)) -> 0 | Z17: =-'User Parameters'!$C$13*('User Parameters'!$C$14-1) -> 0 | AA17: 0.02018820766 | AB17: 1 | AC17: 0 | AD17: 0 | AE17: 0 | AF17: =IF($AA17<-'Results Dashboard'!$J$7,$AA17+'Results Dashboard'!$J$7,0) -> 0 | AG17: =IF($AA17<-'Results Dashboard'!$J$8,$AA17+'Results Dashboard'!$J$8,0) -> 0 | AH17: =IF($AA17<-'Results Dashboard'!$J$9,$AA17+'Results Dashboard'!$J$9,0) -> 0 | AI17: =IF($AA17<-'Results Dashboard'!$J$11,$AA17+'Results Dashboard'!$J$11,0) -> 0 | AJ17: =IF($AA17<-'Results Dashboard'!$J$10,$AA17+'Results Dashboard'!$J$10,0) -> 0 | AL17: =IF((X17+W17)>0,(X17+W17)*0.5*'User Parameters'!C$50,(X17+W17)*0.5*'User Parameters'!$C$51) -> 0 | AM17: =-'User Parameters'!$C$13*('User Parameters'!$C$14-1) -> 0 | AN17: 0.02018820766
A18: 0.5169297158 | B18: 634.4228257 | C18: 327.952011 | D18: 0.5169297158 | E18: ='User Parameters'!$C$11 -> 50 | F18: =B18*'User Parameters'!$C$15 -> 6.344228257 | G18: 250.1265865 | H18: 0.3942584919 | I18: 0.5221512281 | J18: =IF(UP_RSBasis="MLR",UP_RSTarget_MLR,IF(UP_RSBasis="Medical Baseline",UP_RSTarget_Medlcal,0)) -> 0 | K18: 0 | L18: 0 | M18: 0 | N18: 0 | O18: 0 | P18: 0 | Q18: 0 | S18: 0 | T18: =(S18+C18+'User Parameters'!$C$12)/(B18-F18) -> 0.5221512281 | U18: =IF(T18<'User Parameters'!$J$5,'User Parameters'!$J$5,IF(T18>'User Parameters'!$J$6,'User Parameters'!$J$6,T18)) -> 0.9 | V18: 237.3187267 | W18: 0.3740702842 | X18: =(B18-C18-F18-E18-S18-V18)/'Results Dashboard'!$D$43 -> 0.02018820766 | Y18: =IF((X18+W18)>0,(X18+W18)*0.5*((1+'User Parameters'!C$50)^((12+UP_COC_WithholdLag)/12)-1),(X18+W18)*0.5*((1+'User Parameters'!$C$51)^((12+UP_COC_WithholdLag)/12)-1)) -> 0 | Z18: =-'User Parameters'!$C$13*('User Parameters'!$C$14-1) -> 0 | AA18: 0.02018820766 | AB18: 1 | AC18: 0 | AD18: 0 | AE18: 0 | AF18: =IF($AA18<-'Results Dashboard'!$J$7,$AA18+'Results Dashboard'!$J$7,0) -> 0 | AG18: =IF($AA18<-'Results Dashboard'!$J$8,$AA18+'Results Dashboard'!$J$8,0) -> 0 | AH18: =IF($AA18<-'Results Dashboard'!$J$9,$AA18+'Results Dashboard'!$J$9,0) -> 0 | AI18: =IF($AA18<-'Results Dashboard'!$J$11,$AA18+'Results Dashboard'!$J$11,0) -> 0 | AJ18: =IF($AA18<-'Results Dashboard'!$J$10,$AA18+'Results Dashboard'!$J$10,0) -> 0 | AL18: =IF((X18+W18)>0,(X18+W18)*0.5*'User Parameters'!C$50,(X18+W18)*0.5*'User Parameters'!$C$51) -> 0 | AM18: =-'User Parameters'!$C$13*('User Parameters'!$C$14-1) -> 0 | AN18: 0.02018820766
A19: 0.5219297158 | B19: 634.4228257 | C19: 331.1241251 | D19: 0.5219297158 | E19: ='User Parameters'!$C$11 -> 50 | F19: =B19*'User Parameters'!$C$15 -> 6.344228257 | G19: 246.9544724 | H19: 0.3892584919 | I19: 0.5272017331 | J19: =IF(UP_RSBasis="MLR",UP_RSTarget_MLR,IF(UP_RSBasis="Medical Baseline",UP_RSTarget_Medlcal,0)) -> 0 | K19: 0 | L19: 0 | M19: 0 | N19: 0 | O19: 0 | P19: 0 | Q19: 0 | S19: 0 | T19: =(S19+C19+'User Parameters'!$C$12)/(B19-F19) -> 0.5272017331 | U19: =IF(T19<'User Parameters'!$J$5,'User Parameters'!$J$5,IF(T19>'User Parameters'!$J$6,'User Parameters'!$J$6,T19)) -> 0.9 | V19: 234.1466126 | W19: 0.3690702842 | X19: =(B19-C19-F19-E19-S19-V19)/'Results Dashboard'!$D$43 -> 0.02018820766 | Y19: =IF((X19+W19)>0,(X19+W19)*0.5*((1+'User Parameters'!C$50)^((12+UP_COC_WithholdLag)/12)-1),(X19+W19)*0.5*((1+'User Parameters'!$C$51)^((12+UP_COC_WithholdLag)/12)-1)) -> 0 | Z19: =-'User Parameters'!$C$13*('User Parameters'!$C$14-1) -> 0 | AA19: 0.02018820766 | AB19: 1 | AC19: 0 | AD19: 0 | AE19: 0 | AF19: =IF($AA19<-'Results Dashboard'!$J$7,$AA19+'Results Dashboard'!$J$7,0) -> 0 | AG19: =IF($AA19<-'Results Dashboard'!$J$8,$AA19+'Results Dashboard'!$J$8,0) -> 0 | AH19: =IF($AA19<-'Results Dashboard'!$J$9,$AA19+'Results Dashboard'!$J$9,0) -> 0 | AI19: =IF($AA19<-'Results Dashboard'!$J$11,$AA19+'Results Dashboard'!$J$11,0) -> 0 | AJ19: =IF($AA19<-'Results Dashboard'!$J$10,$AA19+'Results Dashboard'!$J$10,0) -> 0 | AL19: =IF((X19+W19)>0,(X19+W19)*0.5*'User Parameters'!C$50,(X19+W19)*0.5*'User Parameters'!$C$51) -> 0 | AM19: =-'User Parameters'!$C$13*('User Parameters'!$C$14-1) -> 0 | AN19: 0.02018820766
A20: 0.5269297158 | B20: 634.4228257 | C20: 334.2962392 | D20: 0.5269297158 | E20: ='User Parameters'!$C$11 -> 50 | F20: =B20*'User Parameters'!$C$15 -> 6.344228257 | G20: 243.7823582 | H20: 0.3842584919 | I20: 0.5322522382 | J20: =IF(UP_RSBasis="MLR",UP_RSTarget_MLR,IF(UP_RSBasis="Medical Baseline",UP_RSTarget_Medlcal,0)) -> 0 | K20: 0 | L20: 0 | M20: 0 | N20: 0 | O20: 0 | P20: 0 | Q20: 0 | S20: 0 | T20: =(S20+C20+'User Parameters'!$C$12)/(B20-F20) -> 0.5322522382 | U20: =IF(T20<'User Parameters'!$J$5,'User Parameters'!$J$5,IF(T20>'User Parameters'!$J$6,'User Parameters'!$J$6,T20)) -> 0.9 | V20: 230.9744985 | W20: 0.3640702842 | X20: =(B20-C20-F20-E20-S20-V20)/'Results Dashboard'!$D$43 -> 0.02018820766 | Y20: =IF((X20+W20)>0,(X20+W20)*0.5*((1+'User Parameters'!C$50)^((12+UP_COC_WithholdLag)/12)-1),(X20+W20)*0.5*((1+'User Parameters'!$C$51)^((12+UP_COC_WithholdLag)/12)-1)) -> 0 | Z20: =-'User Parameters'!$C$13*('User Parameters'!$C$14-1) -> 0 | AA20: 0.02018820766 | AB20: 1 | AC20: 0 | AD20: 0 | AE20: 0 | AF20: =IF($AA20<-'Results Dashboard'!$J$7,$AA20+'Results Dashboard'!$J$7,0) -> 0 | AG20: =IF($AA20<-'Results Dashboard'!$J$8,$AA20+'Results Dashboard'!$J$8,0) -> 0 | AH20: =IF($AA20<-'Results Dashboard'!$J$9,$AA20+'Results Dashboard'!$J$9,0) -> 0 | AI20: =IF($AA20<-'Results Dashboard'!$J$11,$AA20+'Results Dashboard'!$J$11,0) -> 0 | AJ20: =IF($AA20<-'Results Dashboard'!$J$10,$AA20+'Results Dashboard'!$J$10,0) -> 0 | AL20: =IF((X20+W20)>0,(X20+W20)*0.5*'User Parameters'!C$50,(X20+W20)*0.5*'User Parameters'!$C$51) -> 0 | AM20: =-'User Parameters'!$C$13*('User Parameters'!$C$14-1) -> 0 | AN20: 0.02018820766
A21: 0.5319297158 | B21: 634.4228257 | C21: 337.4683534 | D21: 0.5319297158 | E21: ='User Parameters'!$C$11 -> 50 | F21: =B21*'User Parameters'!$C$15 -> 6.344228257 | G21: 240.6102441 | H21: 0.3792584919 | I21: 0.5373027432 | J21: =IF(UP_RSBasis="MLR",UP_RSTarget_MLR,IF(UP_RSBasis="Medical Baseline",UP_RSTarget_Medlcal,0)) -> 0 | K21: 0 | L21: 0 | M21: 0 | N21: 0 | O21: 0 | P21: 0 | Q21: 0 | S21: 0 | T21: =(S21+C21+'User Parameters'!$C$12)/(B21-F21) -> 0.5373027432 | U21: =IF(T21<'User Parameters'!$J$5,'User Parameters'!$J$5,IF(T21>'User Parameters'!$J$6,'User Parameters'!$J$6,T21)) -> 0.9 | V21: 227.8023844 | W21: 0.3590702842 | X21: =(B21-C21-F21-E21-S21-V21)/'Results Dashboard'!$D$43 -> 0.02018820766 | Y21: =IF((X21+W21)>0,(X21+W21)*0.5*((1+'User Parameters'!C$50)^((12+UP_COC_WithholdLag)/12)-1),(X21+W21)*0.5*((1+'User Parameters'!$C$51)^((12+UP_COC_WithholdLag)/12)-1)) -> 0 | Z21: =-'User Parameters'!$C$13*('User Parameters'!$C$14-1) -> 0 | AA21: 0.02018820766 | AB21: 1 | AC21: 0 | AD21: 0 | AE21: 0 | AF21: =IF($AA21<-'Results Dashboard'!$J$7,$AA21+'Results Dashboard'!$J$7,0) -> 0 | AG21: =IF($AA21<-'Results Dashboard'!$J$8,$AA21+'Results Dashboard'!$J$8,0) -> 0 | AH21: =IF($AA21<-'Results Dashboard'!$J$9,$AA21+'Results Dashboard'!$J$9,0) -> 0 | AI21: =IF($AA21<-'Results Dashboard'!$J$11,$AA21+'Results Dashboard'!$J$11,0) -> 0 | AJ21: =IF($AA21<-'Results Dashboard'!$J$10,$AA21+'Results Dashboard'!$J$10,0) -> 0 | AL21: =IF((X21+W21)>0,(X21+W21)*0.5*'User Parameters'!C$50,(X21+W21)*0.5*'User Parameters'!$C$51) -> 0 | AM21: =-'User Parameters'!$C$13*('User Parameters'!$C$14-1) -> 0 | AN21: 0.02018820766
A22: 0.5369297158 | B22: 634.4228257 | C22: 340.6404675 | D22: 0.5369297158 | E22: ='User Parameters'!$C$11 -> 50 | F22: =B22*'User Parameters'!$C$15 -> 6.344228257 | G22: 237.43813 | H22: 0.3742584919 | I22: 0.5423532483 | J22: =IF(UP_RSBasis="MLR",UP_RSTarget_MLR,IF(UP_RSBasis="Medical Baseline",UP_RSTarget_Medlcal,0)) -> 0 | K22: 0 | L22: 0 | M22: 0 | N22: 0 | O22: 0 | P22: 0 | Q22: 0 | S22: 0 | T22: =(S22+C22+'User Parameters'!$C$12)/(B22-F22) -> 0.5423532483 | U22: =IF(T22<'User Parameters'!$J$5,'User Parameters'!$J$5,IF(T22>'User Parameters'!$J$6,'User Parameters'!$J$6,T22)) -> 0.9 | V22: 224.6302702 | W22: 0.3540702842 | X22: =(B22-C22-F22-E22-S22-V22)/'Results Dashboard'!$D$43 -> 0.02018820766 | Y22: =IF((X22+W22)>0,(X22+W22)*0.5*((1+'User Parameters'!C$50)^((12+UP_COC_WithholdLag)/12)-1),(X22+W22)*0.5*((1+'User Parameters'!$C$51)^((12+UP_COC_WithholdLag)/12)-1)) -> 0 | Z22: =-'User Parameters'!$C$13*('User Parameters'!$C$14-1) -> 0 | AA22: 0.02018820766 | AB22: 1 | AC22: 0 | AD22: 0 | AE22: 0 | AF22: =IF($AA22<-'Results Dashboard'!$J$7,$AA22+'Results Dashboard'!$J$7,0) -> 0 | AG22: =IF($AA22<-'Results Dashboard'!$J$8,$AA22+'Results Dashboard'!$J$8,0) -> 0 | AH22: =IF($AA22<-'Results Dashboard'!$J$9,$AA22+'Results Dashboard'!$J$9,0) -> 0 | AI22: =IF($AA22<-'Results Dashboard'!$J$11,$AA22+'Results Dashboard'!$J$11,0) -> 0 | AJ22: =IF($AA22<-'Results Dashboard'!$J$10,$AA22+'Results Dashboard'!$J$10,0) -> 0 | AL22: =IF((X22+W22)>0,(X22+W22)*0.5*'User Parameters'!C$50,(X22+W22)*0.5*'User Parameters'!$C$51) -> 0 | AM22: =-'User Parameters'!$C$13*('User Parameters'!$C$14-1) -> 0 | AN22: 0.02018820766
A23: 0.5419297158 | B23: 634.4228257 | C23: 343.8125816 | D23: 0.5419297158 | E23: ='User Parameters'!$C$11 -> 50 | F23: =B23*'User Parameters'!$C$15 -> 6.344228257 | G23: 234.2660159 | H23: 0.3692584919 | I23: 0.5474037533 | J23: =IF(UP_RSBasis="MLR",UP_RSTarget_MLR,IF(UP_RSBasis="Medical Baseline",UP_RSTarget_Medlcal,0)) -> 0 | K23: 0 | L23: 0 | M23: 0 | N23: 0 | O23: 0 | P23: 0 | Q23: 0 | S23: 0 | T23: =(S23+C23+'User Parameters'!$C$12)/(B23-F23) -> 0.5474037533 | U23: =IF(T23<'User Parameters'!$J$5,'User Parameters'!$J$5,IF(T23>'User Parameters'!$J$6,'User Parameters'!$J$6,T23)) -> 0.9 | V23: 221.4581561 | W23: 0.3490702842 | X23: =(B23-C23-F23-E23-S23-V23)/'Results Dashboard'!$D$43 -> 0.02018820766 | Y23: =IF((X23+W23)>0,(X23+W23)*0.5*((1+'User Parameters'!C$50)^((12+UP_COC_WithholdLag)/12)-1),(X23+W23)*0.5*((1+'User Parameters'!$C$51)^((12+UP_COC_WithholdLag)/12)-1)) -> 0 | Z23: =-'User Parameters'!$C$13*('User Parameters'!$C$14-1) -> 0 | AA23: 0.02018820766 | AB23: 1 | AC23: 0 | AD23: 0 | AE23: 0 | AF23: =IF($AA23<-'Results Dashboard'!$J$7,$AA23+'Results Dashboard'!$J$7,0) -> 0 | AG23: =IF($AA23<-'Results Dashboard'!$J$8,$AA23+'Results Dashboard'!$J$8,0) -> 0 | AH23: =IF($AA23<-'Results Dashboard'!$J$9,$AA23+'Results Dashboard'!$J$9,0) -> 0 | AI23: =IF($AA23<-'Results Dashboard'!$J$11,$AA23+'Results Dashboard'!$J$11,0) -> 0 | AJ23: =IF($AA23<-'Results Dashboard'!$J$10,$AA23+'Results Dashboard'!$J$10,0) -> 0 | AL23: =IF((X23+W23)>0,(X23+W23)*0.5*'User Parameters'!C$50,(X23+W23)*0.5*'User Parameters'!$C$51) -> 0 | AM23: =-'User Parameters'!$C$13*('User Parameters'!$C$14-1) -> 0 | AN23: 0.02018820766
A24: 0.5469297158 | B24: 634.4228257 | C24: 346.9846958 | D24: 0.5469297158 | E24: ='User Parameters'!$C$11 -> 50 | F24: =B24*'User Parameters'!$C$15 -> 6.344228257 | G24: 231.0939017 | H24: 0.3642584919 | I24: 0.5524542584 | J24: =IF(UP_RSBasis="MLR",UP_RSTarget_MLR,IF(UP_RSBasis="Medical Baseline",UP_RSTarget_Medlcal,0)) -> 0 | K24: 0 | L24: 0 | M24: 0 | N24: 0 | O24: 0 | P24: 0 | Q24: 0 | S24: 0 | T24: =(S24+C24+'User Parameters'!$C$12)/(B24-F24) -> 0.5524542584 | U24: =IF(T24<'User Parameters'!$J$5,'User Parameters'!$J$5,IF(T24>'User Parameters'!$J$6,'User Parameters'!$J$6,T24)) -> 0.9 | V24: 218.286042 | W24: 0.3440702842 | X24: =(B24-C24-F24-E24-S24-V24)/'Results Dashboard'!$D$43 -> 0.02018820766 | Y24: =IF((X24+W24)>0,(X24+W24)*0.5*((1+'User Parameters'!C$50)^((12+UP_COC_WithholdLag)/12)-1),(X24+W24)*0.5*((1+'User Parameters'!$C$51)^((12+UP_COC_WithholdLag)/12)-1)) -> 0 | Z24: =-'User Parameters'!$C$13*('User Parameters'!$C$14-1) -> 0 | AA24: 0.02018820766 | AB24: 1 | AC24: 0 | AD24: 0 | AE24: 0 | AF24: =IF($AA24<-'Results Dashboard'!$J$7,$AA24+'Results Dashboard'!$J$7,0) -> 0 | AG24: =IF($AA24<-'Results Dashboard'!$J$8,$AA24+'Results Dashboard'!$J$8,0) -> 0 | AH24: =IF($AA24<-'Results Dashboard'!$J$9,$AA24+'Results Dashboard'!$J$9,0) -> 0 | AI24: =IF($AA24<-'Results Dashboard'!$J$11,$AA24+'Results Dashboard'!$J$11,0) -> 0 | AJ24: =IF($AA24<-'Results Dashboard'!$J$10,$AA24+'Results Dashboard'!$J$10,0) -> 0 | AL24: =IF((X24+W24)>0,(X24+W24)*0.5*'User Parameters'!C$50,(X24+W24)*0.5*'User Parameters'!$C$51) -> 0 | AM24: =-'User Parameters'!$C$13*('User Parameters'!$C$14-1) -> 0 | AN24: 0.02018820766
A25: 0.5519297158 | B25: 634.4228257 | C25: 350.1568099 | D25: 0.5519297158 | E25: ='User Parameters'!$C$11 -> 50 | F25: =B25*'User Parameters'!$C$15 -> 6.344228257 | G25: 227.9217876 | H25: 0.3592584919 | I25: 0.5575047634 | J25: =IF(UP_RSBasis="MLR",UP_RSTarget_MLR,IF(UP_RSBasis="Medical Baseline",UP_RSTarget_Medlcal,0)) -> 0 | K25: 0 | L25: 0 | M25: 0 | N25: 0 | O25: 0 | P25: 0 | Q25: 0 | S25: 0 | T25: =(S25+C25+'User Parameters'!$C$12)/(B25-F25) -> 0.5575047634 | U25: =IF(T25<'User Parameters'!$J$5,'User Parameters'!$J$5,IF(T25>'User Parameters'!$J$6,'User Parameters'!$J$6,T25)) -> 0.9 | V25: 215.1139278 | W25: 0.3390702842 | X25: =(B25-C25-F25-E25-S25-V25)/'Results Dashboard'!$D$43 -> 0.02018820766 | Y25: =IF((X25+W25)>0,(X25+W25)*0.5*((1+'User Parameters'!C$50)^((12+UP_COC_WithholdLag)/12)-1),(X25+W25)*0.5*((1+'User Parameters'!$C$51)^((12+UP_COC_WithholdLag)/12)-1)) -> 0 | Z25: =-'User Parameters'!$C$13*('User Parameters'!$C$14-1) -> 0 | AA25: 0.02018820766 | AB25: 1 | AC25: 0 | AD25: 0 | AE25: 0 | AF25: =IF($AA25<-'Results Dashboard'!$J$7,$AA25+'Results Dashboard'!$J$7,0) -> 0 | AG25: =IF($AA25<-'Results Dashboard'!$J$8,$AA25+'Results Dashboard'!$J$8,0) -> 0 | AH25: =IF($AA25<-'Results Dashboard'!$J$9,$AA25+'Results Dashboard'!$J$9,0) -> 0 | AI25: =IF($AA25<-'Results Dashboard'!$J$11,$AA25+'Results Dashboard'!$J$11,0) -> 0 | AJ25: =IF($AA25<-'Results Dashboard'!$J$10,$AA25+'Results Dashboard'!$J$10,0) -> 0 | AL25: =IF((X25+W25)>0,(X25+W25)*0.5*'User Parameters'!C$50,(X25+W25)*0.5*'User Parameters'!$C$51) -> 0 | AM25: =-'User Parameters'!$C$13*('User Parameters'!$C$14-1) -> 0 | AN25: 0.02018820766
A26: 0.5569297158 | B26: 634.4228257 | C26: 353.328924 | D26: 0.5569297158 | E26: ='User Parameters'!$C$11 -> 50 | F26: =B26*'User Parameters'!$C$15 -> 6.344228257 | G26: 224.7496735 | H26: 0.3542584919 | I26: 0.5625552685 | J26: =IF(UP_RSBasis="MLR",UP_RSTarget_MLR,IF(UP_RSBasis="Medical Baseline",UP_RSTarget_Medlcal,0)) -> 0 | K26: 0 | L26: 0 | M26: 0 | N26: 0 | O26: 0 | P26: 0 | Q26: 0 | S26: 0 | T26: =(S26+C26+'User Parameters'!$C$12)/(B26-F26) -> 0.5625552685 | U26: =IF(T26<'User Parameters'!$J$5,'User Parameters'!$J$5,IF(T26>'User Parameters'!$J$6,'User Parameters'!$J$6,T26)) -> 0.9 | V26: 211.9418137 | W26: 0.3340702842 | X26: =(B26-C26-F26-E26-S26-V26)/'Results Dashboard'!$D$43 -> 0.02018820766 | Y26: =IF((X26+W26)>0,(X26+W26)*0.5*((1+'User Parameters'!C$50)^((12+UP_COC_WithholdLag)/12)-1),(X26+W26)*0.5*((1+'User Parameters'!$C$51)^((12+UP_COC_WithholdLag)/12)-1)) -> 0 | Z26: =-'User Parameters'!$C$13*('User Parameters'!$C$14-1) -> 0 | AA26: 0.02018820766 | AB26: 1 | AC26: 0 | AD26: 0 | AE26: 0 | AF26: =IF($AA26<-'Results Dashboard'!$J$7,$AA26+'Results Dashboard'!$J$7,0) -> 0 | AG26: =IF($AA26<-'Results Dashboard'!$J$8,$AA26+'Results Dashboard'!$J$8,0) -> 0 | AH26: =IF($AA26<-'Results Dashboard'!$J$9,$AA26+'Results Dashboard'!$J$9,0) -> 0 | AI26: =IF($AA26<-'Results Dashboard'!$J$11,$AA26+'Results Dashboard'!$J$11,0) -> 0 | AJ26: =IF($AA26<-'Results Dashboard'!$J$10,$AA26+'Results Dashboard'!$J$10,0) -> 0 | AL26: =IF((X26+W26)>0,(X26+W26)*0.5*'User Parameters'!C$50,(X26+W26)*0.5*'User Parameters'!$C$51) -> 0 | AM26: =-'User Parameters'!$C$13*('User Parameters'!$C$14-1) -> 0 | AN26: 0.02018820766
A27: 0.5619297158 | B27: 634.4228257 | C27: 356.5010381 | D27: 0.5619297158 | E27: ='User Parameters'!$C$11 -> 50 | F27: =B27*'User Parameters'!$C$15 -> 6.344228257 | G27: 221.5775593 | H27: 0.3492584919 | I27: 0.5676057735 | J27: =IF(UP_RSBasis="MLR",UP_RSTarget_MLR,IF(UP_RSBasis="Medical Baseline",UP_RSTarget_Medlcal,0)) -> 0 | K27: 0 | L27: 0 | M27: 0 | N27: 0 | O27: 0 | P27: 0 | Q27: 0 | S27: 0 | T27: =(S27+C27+'User Parameters'!$C$12)/(B27-F27) -> 0.5676057735 | U27: =IF(T27<'User Parameters'!$J$5,'User Parameters'!$J$5,IF(T27>'User Parameters'!$J$6,'User Parameters'!$J$6,T27)) -> 0.9 | V27: 208.7696996 | W27: 0.3290702842 | X27: =(B27-C27-F27-E27-S27-V27)/'Results Dashboard'!$D$43 -> 0.02018820766 | Y27: =IF((X27+W27)>0,(X27+W27)*0.5*((1+'User Parameters'!C$50)^((12+UP_COC_WithholdLag)/12)-1),(X27+W27)*0.5*((1+'User Parameters'!$C$51)^((12+UP_COC_WithholdLag)/12)-1)) -> 0 | Z27: =-'User Parameters'!$C$13*('User Parameters'!$C$14-1) -> 0 | AA27: 0.02018820766 | AB27: 1 | AC27: 0 | AD27: 0 | AE27: 0 | AF27: =IF($AA27<-'Results Dashboard'!$J$7,$AA27+'Results Dashboard'!$J$7,0) -> 0 | AG27: =IF($AA27<-'Results Dashboard'!$J$8,$AA27+'Results Dashboard'!$J$8,0) -> 0 | AH27: =IF($AA27<-'Results Dashboard'!$J$9,$AA27+'Results Dashboard'!$J$9,0) -> 0 | AI27: =IF($AA27<-'Results Dashboard'!$J$11,$AA27+'Results Dashboard'!$J$11,0) -> 0 | AJ27: =IF($AA27<-'Results Dashboard'!$J$10,$AA27+'Results Dashboard'!$J$10,0) -> 0 | AL27: =IF((X27+W27)>0,(X27+W27)*0.5*'User Parameters'!C$50,(X27+W27)*0.5*'User Parameters'!$C$51) -> 0 | AM27: =-'User Parameters'!$C$13*('User Parameters'!$C$14-1) -> 0 | AN27: 0.02018820766
A28: 0.5669297158 | B28: 634.4228257 | C28: 359.6731523 | D28: 0.5669297158 | E28: ='User Parameters'!$C$11 -> 50 | F28: =B28*'User Parameters'!$C$15 -> 6.344228257 | G28: 218.4054452 | H28: 0.3442584919 | I28: 0.5726562786 | J28: =IF(UP_RSBasis="MLR",UP_RSTarget_MLR,IF(UP_RSBasis="Medical Baseline",UP_RSTarget_Medlcal,0)) -> 0 | K28: 0 | L28: 0 | M28: 0 | N28: 0 | O28: 0 | P28: 0 | Q28: 0 | S28: 0 | T28: =(S28+C28+'User Parameters'!$C$12)/(B28-F28) -> 0.5726562786 | U28: =IF(T28<'User Parameters'!$J$5,'User Parameters'!$J$5,IF(T28>'User Parameters'!$J$6,'User Parameters'!$J$6,T28)) -> 0.9 | V28: 205.5975855 | W28: 0.3240702842 | X28: =(B28-C28-F28-E28-S28-V28)/'Results Dashboard'!$D$43 -> 0.02018820766 | Y28: =IF((X28+W28)>0,(X28+W28)*0.5*((1+'User Parameters'!C$50)^((12+UP_COC_WithholdLag)/12)-1),(X28+W28)*0.5*((1+'User Parameters'!$C$51)^((12+UP_COC_WithholdLag)/12)-1)) -> 0 | Z28: =-'User Parameters'!$C$13*('User Parameters'!$C$14-1) -> 0 | AA28: 0.02018820766 | AB28: 1 | AC28: 0 | AD28: 0 | AE28: 0 | AF28: =IF($AA28<-'Results Dashboard'!$J$7,$AA28+'Results Dashboard'!$J$7,0) -> 0 | AG28: =IF($AA28<-'Results Dashboard'!$J$8,$AA28+'Results Dashboard'!$J$8,0) -> 0 | AH28: =IF($AA28<-'Results Dashboard'!$J$9,$AA28+'Results Dashboard'!$J$9,0) -> 0 | AI28: =IF($AA28<-'Results Dashboard'!$J$11,$AA28+'Results Dashboard'!$J$11,0) -> 0 | AJ28: =IF($AA28<-'Results Dashboard'!$J$10,$AA28+'Results Dashboard'!$J$10,0) -> 0 | AL28: =IF((X28+W28)>0,(X28+W28)*0.5*'User Parameters'!C$50,(X28+W28)*0.5*'User Parameters'!$C$51) -> 0 | AM28: =-'User Parameters'!$C$13*('User Parameters'!$C$14-1) -> 0 | AN28: 0.02018820766
A29: 0.5719297158 | B29: 634.4228257 | C29: 362.8452664 | D29: 0.5719297158 | E29: ='User Parameters'!$C$11 -> 50 | F29: =B29*'User Parameters'!$C$15 -> 6.344228257 | G29: 215.2333311 | H29: 0.3392584919 | I29: 0.5777067836 | J29: =IF(UP_RSBasis="MLR",UP_RSTarget_MLR,IF(UP_RSBasis="Medical Baseline",UP_RSTarget_Medlcal,0)) -> 0 | K29: 0 | L29: 0 | M29: 0 | N29: 0 | O29: 0 | P29: 0 | Q29: 0 | S29: 0 | T29: =(S29+C29+'User Parameters'!$C$12)/(B29-F29) -> 0.5777067836 | U29: =IF(T29<'User Parameters'!$J$5,'User Parameters'!$J$5,IF(T29>'User Parameters'!$J$6,'User Parameters'!$J$6,T29)) -> 0.9 | V29: 202.4254713 | W29: 0.3190702842 | X29: =(B29-C29-F29-E29-S29-V29)/'Results Dashboard'!$D$43 -> 0.02018820766 | Y29: =IF((X29+W29)>0,(X29+W29)*0.5*((1+'User Parameters'!C$50)^((12+UP_COC_WithholdLag)/12)-1),(X29+W29)*0.5*((1+'User Parameters'!$C$51)^((12+UP_COC_WithholdLag)/12)-1)) -> 0 | Z29: =-'User Parameters'!$C$13*('User Parameters'!$C$14-1) -> 0 | AA29: 0.02018820766 | AB29: 1 | AC29: 0 | AD29: 0 | AE29: 0 | AF29: =IF($AA29<-'Results Dashboard'!$J$7,$AA29+'Results Dashboard'!$J$7,0) -> 0 | AG29: =IF($AA29<-'Results Dashboard'!$J$8,$AA29+'Results Dashboard'!$J$8,0) -> 0 | AH29: =IF($AA29<-'Results Dashboard'!$J$9,$AA29+'Results Dashboard'!$J$9,0) -> 0 | AI29: =IF($AA29<-'Results Dashboard'!$J$11,$AA29+'Results Dashboard'!$J$11,0) -> 0 | AJ29: =IF($AA29<-'Results Dashboard'!$J$10,$AA29+'Results Dashboard'!$J$10,0) -> 0 | AL29: =IF((X29+W29)>0,(X29+W29)*0.5*'User Parameters'!C$50,(X29+W29)*0.5*'User Parameters'!$C$51) -> 0 | AM29: =-'User Parameters'!$C$13*('User Parameters'!$C$14-1) -> 0 | AN29: 0.02018820766
A30: 0.5769297158 | B30: 634.4228257 | C30: 366.0173805 | D30: 0.5769297158 | E30: ='User Parameters'!$C$11 -> 50 | F30: =B30*'User Parameters'!$C$15 -> 6.344228257 | G30: 212.061217 | H30: 0.3342584919 | I30: 0.5827572887 | J30: =IF(UP_RSBasis="MLR",UP_RSTarget_MLR,IF(UP_RSBasis="Medical Baseline",UP_RSTarget_Medlcal,0)) -> 0 | K30: 0 | L30: 0 | M30: 0 | N30: 0 | O30: 0 | P30: 0 | Q30: 0 | S30: 0 | T30: =(S30+C30+'User Parameters'!$C$12)/(B30-F30) -> 0.5827572887 | U30: =IF(T30<'User Parameters'!$J$5,'User Parameters'!$J$5,IF(T30>'User Parameters'!$J$6,'User Parameters'!$J$6,T30)) -> 0.9 | V30: 199.2533572 | W30: 0.3140702842 | X30: =(B30-C30-F30-E30-S30-V30)/'Results Dashboard'!$D$43 -> 0.02018820766 | Y30: =IF((X30+W30)>0,(X30+W30)*0.5*((1+'User Parameters'!C$50)^((12+UP_COC_WithholdLag)/12)-1),(X30+W30)*0.5*((1+'User Parameters'!$C$51)^((12+UP_COC_WithholdLag)/12)-1)) -> 0 | Z30: =-'User Parameters'!$C$13*('User Parameters'!$C$14-1) -> 0 | AA30: 0.02018820766 | AB30: 1 | AC30: 0 | AD30: 0 | AE30: 0 | AF30: =IF($AA30<-'Results Dashboard'!$J$7,$AA30+'Results Dashboard'!$J$7,0) -> 0 | AG30: =IF($AA30<-'Results Dashboard'!$J$8,$AA30+'Results Dashboard'!$J$8,0) -> 0 | AH30: =IF($AA30<-'Results Dashboard'!$J$9,$AA30+'Results Dashboard'!$J$9,0) -> 0 | AI30: =IF($AA30<-'Results Dashboard'!$J$11,$AA30+'Results Dashboard'!$J$11,0) -> 0 | AJ30: =IF($AA30<-'Results Dashboard'!$J$10,$AA30+'Results Dashboard'!$J$10,0) -> 0 | AL30: =IF((X30+W30)>0,(X30+W30)*0.5*'User Parameters'!C$50,(X30+W30)*0.5*'User Parameters'!$C$51) -> 0 | AM30: =-'User Parameters'!$C$13*('User Parameters'!$C$14-1) -> 0 | AN30: 0.02018820766
A31: 0.5819297158 | B31: 634.4228257 | C31: 369.1894947 | D31: 0.5819297158 | E31: ='User Parameters'!$C$11 -> 50 | F31: =B31*'User Parameters'!$C$15 -> 6.344228257 | G31: 208.8891028 | H31: 0.3292584919 | I31: 0.5878077937 | J31: =IF(UP_RSBasis="MLR",UP_RSTarget_MLR,IF(UP_RSBasis="Medical Baseline",UP_RSTarget_Medlcal,0)) -> 0 | K31: 0 | L31: 0 | M31: 0 | N31: 0 | O31: 0 | P31: 0 | Q31: 0 | S31: 0 | T31: =(S31+C31+'User Parameters'!$C$12)/(B31-F31) -> 0.5878077937 | U31: =IF(T31<'User Parameters'!$J$5,'User Parameters'!$J$5,IF(T31>'User Parameters'!$J$6,'User Parameters'!$J$6,T31)) -> 0.9 | V31: 196.0812431 | W31: 0.3090702842 | X31: =(B31-C31-F31-E31-S31-V31)/'Results Dashboard'!$D$43 -> 0.02018820766 | Y31: =IF((X31+W31)>0,(X31+W31)*0.5*((1+'User Parameters'!C$50)^((12+UP_COC_WithholdLag)/12)-1),(X31+W31)*0.5*((1+'User Parameters'!$C$51)^((12+UP_COC_WithholdLag)/12)-1)) -> 0 | Z31: =-'User Parameters'!$C$13*('User Parameters'!$C$14-1) -> 0 | AA31: 0.02018820766 | AB31: 1 | AC31: 0 | AD31: 0 | AE31: 0 | AF31: =IF($AA31<-'Results Dashboard'!$J$7,$AA31+'Results Dashboard'!$J$7,0) -> 0 | AG31: =IF($AA31<-'Results Dashboard'!$J$8,$AA31+'Results Dashboard'!$J$8,0) -> 0 | AH31: =IF($AA31<-'Results Dashboard'!$J$9,$AA31+'Results Dashboard'!$J$9,0) -> 0 | AI31: =IF($AA31<-'Results Dashboard'!$J$11,$AA31+'Results Dashboard'!$J$11,0) -> 0 | AJ31: =IF($AA31<-'Results Dashboard'!$J$10,$AA31+'Results Dashboard'!$J$10,0) -> 0 | AL31: =IF((X31+W31)>0,(X31+W31)*0.5*'User Parameters'!C$50,(X31+W31)*0.5*'User Parameters'!$C$51) -> 0 | AM31: =-'User Parameters'!$C$13*('User Parameters'!$C$14-1) -> 0 | AN31: 0.02018820766
A32: 0.5869297158 | B32: 634.4228257 | C32: 372.3616088 | D32: 0.5869297158 | E32: ='User Parameters'!$C$11 -> 50 | F32: =B32*'User Parameters'!$C$15 -> 6.344228257 | G32: 205.7169887 | H32: 0.3242584919 | I32: 0.5928582988 | J32: =IF(UP_RSBasis="MLR",UP_RSTarget_MLR,IF(UP_RSBasis="Medical Baseline",UP_RSTarget_Medlcal,0)) -> 0 | K32: 0 | L32: 0 | M32: 0 | N32: 0 | O32: 0 | P32: 0 | Q32: 0 | S32: 0 | T32: =(S32+C32+'User Parameters'!$C$12)/(B32-F32) -> 0.5928582988 | U32: =IF(T32<'User Parameters'!$J$5,'User Parameters'!$J$5,IF(T32>'User Parameters'!$J$6,'User Parameters'!$J$6,T32)) -> 0.9 | V32: 192.9091289 | W32: 0.3040702842 | X32: =(B32-C32-F32-E32-S32-V32)/'Results Dashboard'!$D$43 -> 0.02018820766 | Y32: =IF((X32+W32)>0,(X32+W32)*0.5*((1+'User Parameters'!C$50)^((12+UP_COC_WithholdLag)/12)-1),(X32+W32)*0.5*((1+'User Parameters'!$C$51)^((12+UP_COC_WithholdLag)/12)-1)) -> 0 | Z32: =-'User Parameters'!$C$13*('User Parameters'!$C$14-1) -> 0 | AA32: 0.02018820766 | AB32: 1 | AC32: 2.220446049e-15 | AD32: 2.220446049e-15 | AE32: 2.220446049e-15 | AF32: =IF($AA32<-'Results Dashboard'!$J$7,$AA32+'Results Dashboard'!$J$7,0) -> 0 | AG32: =IF($AA32<-'Results Dashboard'!$J$8,$AA32+'Results Dashboard'!$J$8,0) -> 0 | AH32: =IF($AA32<-'Results Dashboard'!$J$9,$AA32+'Results Dashboard'!$J$9,0) -> 0 | AI32: =IF($AA32<-'Results Dashboard'!$J$11,$AA32+'Results Dashboard'!$J$11,0) -> 0 | AJ32: =IF($AA32<-'Results Dashboard'!$J$10,$AA32+'Results Dashboard'!$J$10,0) -> 0 | AL32: =IF((X32+W32)>0,(X32+W32)*0.5*'User Parameters'!C$50,(X32+W32)*0.5*'User Parameters'!$C$51) -> 0 | AM32: =-'User Parameters'!$C$13*('User Parameters'!$C$14-1) -> 0 | AN32: 0.02018820766
A33: 0.5919297158 | B33: 634.4228257 | C33: 375.5337229 | D33: 0.5919297158 | E33: ='User Parameters'!$C$11 -> 50 | F33: =B33*'User Parameters'!$C$15 -> 6.344228257 | G33: 202.5448746 | H33: 0.3192584919 | I33: 0.5979088038 | J33: =IF(UP_RSBasis="MLR",UP_RSTarget_MLR,IF(UP_RSBasis="Medical Baseline",UP_RSTarget_Medlcal,0)) -> 0 | K33: 0 | L33: 0 | M33: 0 | N33: 0 | O33: 0 | P33: 0 | Q33: 0 | S33: 0 | T33: =(S33+C33+'User Parameters'!$C$12)/(B33-F33) -> 0.5979088038 | U33: =IF(T33<'User Parameters'!$J$5,'User Parameters'!$J$5,IF(T33>'User Parameters'!$J$6,'User Parameters'!$J$6,T33)) -> 0.9 | V33: 189.7370148 | W33: 0.2990702842 | X33: =(B33-C33-F33-E33-S33-V33)/'Results Dashboard'!$D$43 -> 0.02018820766 | Y33: =IF((X33+W33)>0,(X33+W33)*0.5*((1+'User Parameters'!C$50)^((12+UP_COC_WithholdLag)/12)-1),(X33+W33)*0.5*((1+'User Parameters'!$C$51)^((12+UP_COC_WithholdLag)/12)-1)) -> 0 | Z33: =-'User Parameters'!$C$13*('User Parameters'!$C$14-1) -> 0 | AA33: 0.02018820766 | AB33: 1 | AC33: 6.661338148e-15 | AD33: 6.661338148e-15 | AE33: 6.661338148e-15 | AF33: =IF($AA33<-'Results Dashboard'!$J$7,$AA33+'Results Dashboard'!$J$7,0) -> 0 | AG33: =IF($AA33<-'Results Dashboard'!$J$8,$AA33+'Results Dashboard'!$J$8,0) -> 0 | AH33: =IF($AA33<-'Results Dashboard'!$J$9,$AA33+'Results Dashboard'!$J$9,0) -> 0 | AI33: =IF($AA33<-'Results Dashboard'!$J$11,$AA33+'Results Dashboard'!$J$11,0) -> 0 | AJ33: =IF($AA33<-'Results Dashboard'!$J$10,$AA33+'Results Dashboard'!$J$10,0) -> 0 | AL33: =IF((X33+W33)>0,(X33+W33)*0.5*'User Parameters'!C$50,(X33+W33)*0.5*'User Parameters'!$C$51) -> 0 | AM33: =-'User Parameters'!$C$13*('User Parameters'!$C$14-1) -> 0 | AN33: 0.02018820766
A34: 0.5969297158 | B34: 634.4228257 | C34: 378.705837 | D34: 0.5969297158 | E34: ='User Parameters'!$C$11 -> 50 | F34: =B34*'User Parameters'!$C$15 -> 6.344228257 | G34: 199.3727604 | H34: 0.3142584919 | I34: 0.6029593089 | J34: =IF(UP_RSBasis="MLR",UP_RSTarget_MLR,IF(UP_RSBasis="Medical Baseline",UP_RSTarget_Medlcal,0)) -> 0 | K34: 0 | L34: 0 | M34: 0 | N34: 0 | O34: 0 | P34: 0 | Q34: 0 | S34: 0 | T34: =(S34+C34+'User Parameters'!$C$12)/(B34-F34) -> 0.6029593089 | U34: =IF(T34<'User Parameters'!$J$5,'User Parameters'!$J$5,IF(T34>'User Parameters'!$J$6,'User Parameters'!$J$6,T34)) -> 0.9 | V34: 186.5649007 | W34: 0.2940702842 | X34: =(B34-C34-F34-E34-S34-V34)/'Results Dashboard'!$D$43 -> 0.02018820766 | Y34: =IF((X34+W34)>0,(X34+W34)*0.5*((1+'User Parameters'!C$50)^((12+UP_COC_WithholdLag)/12)-1),(X34+W34)*0.5*((1+'User Parameters'!$C$51)^((12+UP_COC_WithholdLag)/12)-1)) -> 0 | Z34: =-'User Parameters'!$C$13*('User Parameters'!$C$14-1) -> 0 | AA34: 0.02018820766 | AB34: 1 | AC34: 1.976196984e-14 | AD34: 1.976196984e-14 | AE34: 1.976196984e-14 | AF34: =IF($AA34<-'Results Dashboard'!$J$7,$AA34+'Results Dashboard'!$J$7,0) -> 0 | AG34: =IF($AA34<-'Results Dashboard'!$J$8,$AA34+'Results Dashboard'!$J$8,0) -> 0 | AH34: =IF($AA34<-'Results Dashboard'!$J$9,$AA34+'Results Dashboard'!$J$9,0) -> 0 | AI34: =IF($AA34<-'Results Dashboard'!$J$11,$AA34+'Results Dashboard'!$J$11,0) -> 0 | AJ34: =IF($AA34<-'Results Dashboard'!$J$10,$AA34+'Results Dashboard'!$J$10,0) -> 0 | AL34: =IF((X34+W34)>0,(X34+W34)*0.5*'User Parameters'!C$50,(X34+W34)*0.5*'User Parameters'!$C$51) -> 0 | AM34: =-'User Parameters'!$C$13*('User Parameters'!$C$14-1) -> 0 | AN34: 0.02018820766
A35: 0.6019297158 | B35: 634.4228257 | C35: 381.8779512 | D35: 0.6019297158 | E35: ='User Parameters'!$C$11 -> 50 | F35: =B35*'User Parameters'!$C$15 -> 6.344228257 | G35: 196.2006463 | H35: 0.3092584919 | I35: 0.6080098139 | J35: =IF(UP_RSBasis="MLR",UP_RSTarget_MLR,IF(UP_RSBasis="Medical Baseline",UP_RSTarget_Medlcal,0)) -> 0 | K35: 0 | L35: 0 | M35: 0 | N35: 0 | O35: 0 | P35: 0 | Q35: 0 | S35: 0 | T35: =(S35+C35+'User Parameters'!$C$12)/(B35-F35) -> 0.6080098139 | U35: =IF(T35<'User Parameters'!$J$5,'User Parameters'!$J$5,IF(T35>'User Parameters'!$J$6,'User Parameters'!$J$6,T35)) -> 0.9 | V35: 183.3927866 | W35: 0.2890702842 | X35: =(B35-C35-F35-E35-S35-V35)/'Results Dashboard'!$D$43 -> 0.02018820766 | Y35: =IF((X35+W35)>0,(X35+W35)*0.5*((1+'User Parameters'!C$50)^((12+UP_COC_WithholdLag)/12)-1),(X35+W35)*0.5*((1+'User Parameters'!$C$51)^((12+UP_COC_WithholdLag)/12)-1)) -> 0 | Z35: =-'User Parameters'!$C$13*('User Parameters'!$C$14-1) -> 0 | AA35: 0.02018820766 | AB35: 1 | AC35: 5.717648577e-14 | AD35: 5.717648577e-14 | AE35: 5.717648577e-14 | AF35: =IF($AA35<-'Results Dashboard'!$J$7,$AA35+'Results Dashboard'!$J$7,0) -> 0 | AG35: =IF($AA35<-'Results Dashboard'!$J$8,$AA35+'Results Dashboard'!$J$8,0) -> 0 | AH35: =IF($AA35<-'Results Dashboard'!$J$9,$AA35+'Results Dashboard'!$J$9,0) -> 0 | AI35: =IF($AA35<-'Results Dashboard'!$J$11,$AA35+'Results Dashboard'!$J$11,0) -> 0 | AJ35: =IF($AA35<-'Results Dashboard'!$J$10,$AA35+'Results Dashboard'!$J$10,0) -> 0 | AL35: =IF((X35+W35)>0,(X35+W35)*0.5*'User Parameters'!C$50,(X35+W35)*0.5*'User Parameters'!$C$51) -> 0 | AM35: =-'User Parameters'!$C$13*('User Parameters'!$C$14-1) -> 0 | AN35: 0.02018820766
A36: 0.6069297158 | B36: 634.4228257 | C36: 385.0500653 | D36: 0.6069297158 | E36: ='User Parameters'!$C$11 -> 50 | F36: =B36*'User Parameters'!$C$15 -> 6.344228257 | G36: 193.0285322 | H36: 0.3042584919 | I36: 0.613060319 | J36: =IF(UP_RSBasis="MLR",UP_RSTarget_MLR,IF(UP_RSBasis="Medical Baseline",UP_RSTarget_Medlcal,0)) -> 0 | K36: 0 | L36: 0 | M36: 0 | N36: 0 | O36: 0 | P36: 0 | Q36: 0 | S36: 0 | T36: =(S36+C36+'User Parameters'!$C$12)/(B36-F36) -> 0.613060319 | U36: =IF(T36<'User Parameters'!$J$5,'User Parameters'!$J$5,IF(T36>'User Parameters'!$J$6,'User Parameters'!$J$6,T36)) -> 0.9 | V36: 180.2206724 | W36: 0.2840702842 | X36: =(B36-C36-F36-E36-S36-V36)/'Results Dashboard'!$D$43 -> 0.02018820766 | Y36: =IF((X36+W36)>0,(X36+W36)*0.5*((1+'User Parameters'!C$50)^((12+UP_COC_WithholdLag)/12)-1),(X36+W36)*0.5*((1+'User Parameters'!$C$51)^((12+UP_COC_WithholdLag)/12)-1)) -> 0 | Z36: =-'User Parameters'!$C$13*('User Parameters'!$C$14-1) -> 0 | AA36: 0.02018820766 | AB36: 1 | AC36: 1.623146062e-13 | AD36: 1.623146062e-13 | AE36: 1.623146062e-13 | AF36: =IF($AA36<-'Results Dashboard'!$J$7,$AA36+'Results Dashboard'!$J$7,0) -> 0 | AG36: =IF($AA36<-'Results Dashboard'!$J$8,$AA36+'Results Dashboard'!$J$8,0) -> 0 | AH36: =IF($AA36<-'Results Dashboard'!$J$9,$AA36+'Results Dashboard'!$J$9,0) -> 0 | AI36: =IF($AA36<-'Results Dashboard'!$J$11,$AA36+'Results Dashboard'!$J$11,0) -> 0 | AJ36: =IF($AA36<-'Results Dashboard'!$J$10,$AA36+'Results Dashboard'!$J$10,0) -> 0 | AL36: =IF((X36+W36)>0,(X36+W36)*0.5*'User Parameters'!C$50,(X36+W36)*0.5*'User Parameters'!$C$51) -> 0 | AM36: =-'User Parameters'!$C$13*('User Parameters'!$C$14-1) -> 0 | AN36: 0.02018820766
A37: 0.6119297158 | B37: 634.4228257 | C37: 388.2221794 | D37: 0.6119297158 | E37: ='User Parameters'!$C$11 -> 50 | F37: =B37*'User Parameters'!$C$15 -> 6.344228257 | G37: 189.856418 | H37: 0.2992584919 | I37: 0.618110824 | J37: =IF(UP_RSBasis="MLR",UP_RSTarget_MLR,IF(UP_RSBasis="Medical Baseline",UP_RSTarget_Medlcal,0)) -> 0 | K37: 0 | L37: 0 | M37: 0 | N37: 0 | O37: 0 | P37: 0 | Q37: 0 | S37: 0 | T37: =(S37+C37+'User Parameters'!$C$12)/(B37-F37) -> 0.618110824 | U37: =IF(T37<'User Parameters'!$J$5,'User Parameters'!$J$5,IF(T37>'User Parameters'!$J$6,'User Parameters'!$J$6,T37)) -> 0.9 | V37: 177.0485583 | W37: 0.2790702842 | X37: =(B37-C37-F37-E37-S37-V37)/'Results Dashboard'!$D$43 -> 0.02018820766 | Y37: =IF((X37+W37)>0,(X37+W37)*0.5*((1+'User Parameters'!C$50)^((12+UP_COC_WithholdLag)/12)-1),(X37+W37)*0.5*((1+'User Parameters'!$C$51)^((12+UP_COC_WithholdLag)/12)-1)) -> 0 | Z37: =-'User Parameters'!$C$13*('User Parameters'!$C$14-1) -> 0 | AA37: 0.02018820766 | AB37: 1 | AC37: 4.50750548e-13 | AD37: 4.50750548e-13 | AE37: 4.50750548e-13 | AF37: =IF($AA37<-'Results Dashboard'!$J$7,$AA37+'Results Dashboard'!$J$7,0) -> 0 | AG37: =IF($AA37<-'Results Dashboard'!$J$8,$AA37+'Results Dashboard'!$J$8,0) -> 0 | AH37: =IF($AA37<-'Results Dashboard'!$J$9,$AA37+'Results Dashboard'!$J$9,0) -> 0 | AI37: =IF($AA37<-'Results Dashboard'!$J$11,$AA37+'Results Dashboard'!$J$11,0) -> 0 | AJ37: =IF($AA37<-'Results Dashboard'!$J$10,$AA37+'Results Dashboard'!$J$10,0) -> 0 | AL37: =IF((X37+W37)>0,(X37+W37)*0.5*'User Parameters'!C$50,(X37+W37)*0.5*'User Parameters'!$C$51) -> 0 | AM37: =-'User Parameters'!$C$13*('User Parameters'!$C$14-1) -> 0 | AN37: 0.02018820766
A38: 0.6169297158 | B38: 634.4228257 | C38: 391.3942936 | D38: 0.6169297158 | E38: ='User Parameters'!$C$11 -> 50 | F38: =B38*'User Parameters'!$C$15 -> 6.344228257 | G38: 186.6843039 | H38: 0.2942584919 | I38: 0.6231613291 | J38: =IF(UP_RSBasis="MLR",UP_RSTarget_MLR,IF(UP_RSBasis="Medical Baseline",UP_RSTarget_Medlcal,0)) -> 0 | K38: 0 | L38: 0 | M38: 0 | N38: 0 | O38: 0 | P38: 0 | Q38: 0 | S38: 0 | T38: =(S38+C38+'User Parameters'!$C$12)/(B38-F38) -> 0.6231613291 | U38: =IF(T38<'User Parameters'!$J$5,'User Parameters'!$J$5,IF(T38>'User Parameters'!$J$6,'User Parameters'!$J$6,T38)) -> 0.9 | V38: 173.8764442 | W38: 0.2740702842 | X38: =(B38-C38-F38-E38-S38-V38)/'Results Dashboard'!$D$43 -> 0.02018820766 | Y38: =IF((X38+W38)>0,(X38+W38)*0.5*((1+'User Parameters'!C$50)^((12+UP_COC_WithholdLag)/12)-1),(X38+W38)*0.5*((1+'User Parameters'!$C$51)^((12+UP_COC_WithholdLag)/12)-1)) -> 0 | Z38: =-'User Parameters'!$C$13*('User Parameters'!$C$14-1) -> 0 | AA38: 0.02018820766 | AB38: 1 | AC38: 1.227795643e-12 | AD38: 1.227795643e-12 | AE38: 1.227795643e-12 | AF38: =IF($AA38<-'Results Dashboard'!$J$7,$AA38+'Results Dashboard'!$J$7,0) -> 0 | AG38: =IF($AA38<-'Results Dashboard'!$J$8,$AA38+'Results Dashboard'!$J$8,0) -> 0 | AH38: =IF($AA38<-'Results Dashboard'!$J$9,$AA38+'Results Dashboard'!$J$9,0) -> 0 | AI38: =IF($AA38<-'Results Dashboard'!$J$11,$AA38+'Results Dashboard'!$J$11,0) -> 0 | AJ38: =IF($AA38<-'Results Dashboard'!$J$10,$AA38+'Results Dashboard'!$J$10,0) -> 0 | AL38: =IF((X38+W38)>0,(X38+W38)*0.5*'User Parameters'!C$50,(X38+W38)*0.5*'User Parameters'!$C$51) -> 0 | AM38: =-'User Parameters'!$C$13*('User Parameters'!$C$14-1) -> 0 | AN38: 0.02018820766
A39: 0.6219297158 | B39: 634.4228257 | C39: 394.5664077 | D39: 0.6219297158 | E39: ='User Parameters'!$C$11 -> 50 | F39: =B39*'User Parameters'!$C$15 -> 6.344228257 | G39: 183.5121898 | H39: 0.2892584919 | I39: 0.6282118341 | J39: =IF(UP_RSBasis="MLR",UP_RSTarget_MLR,IF(UP_RSBasis="Medical Baseline",UP_RSTarget_Medlcal,0)) -> 0 | K39: 0 | L39: 0 | M39: 0 | N39: 0 | O39: 0 | P39: 0 | Q39: 0 | S39: 0 | T39: =(S39+C39+'User Parameters'!$C$12)/(B39-F39) -> 0.6282118341 | U39: =IF(T39<'User Parameters'!$J$5,'User Parameters'!$J$5,IF(T39>'User Parameters'!$J$6,'User Parameters'!$J$6,T39)) -> 0.9 | V39: 170.70433 | W39: 0.2690702842 | X39: =(B39-C39-F39-E39-S39-V39)/'Results Dashboard'!$D$43 -> 0.02018820766 | Y39: =IF((X39+W39)>0,(X39+W39)*0.5*((1+'User Parameters'!C$50)^((12+UP_COC_WithholdLag)/12)-1),(X39+W39)*0.5*((1+'User Parameters'!$C$51)^((12+UP_COC_WithholdLag)/12)-1)) -> 0 | Z39: =-'User Parameters'!$C$13*('User Parameters'!$C$14-1) -> 0 | AA39: 0.02018820766 | AB39: 1 | AC39: 3.27793348e-12 | AD39: 3.27793348e-12 | AE39: 3.27793348e-12 | AF39: =IF($AA39<-'Results Dashboard'!$J$7,$AA39+'Results Dashboard'!$J$7,0) -> 0 | AG39: =IF($AA39<-'Results Dashboard'!$J$8,$AA39+'Results Dashboard'!$J$8,0) -> 0 | AH39: =IF($AA39<-'Results Dashboard'!$J$9,$AA39+'Results Dashboard'!$J$9,0) -> 0 | AI39: =IF($AA39<-'Results Dashboard'!$J$11,$AA39+'Results Dashboard'!$J$11,0) -> 0 | AJ39: =IF($AA39<-'Results Dashboard'!$J$10,$AA39+'Results Dashboard'!$J$10,0) -> 0 | AL39: =IF((X39+W39)>0,(X39+W39)*0.5*'User Parameters'!C$50,(X39+W39)*0.5*'User Parameters'!$C$51) -> 0 | AM39: =-'User Parameters'!$C$13*('User Parameters'!$C$14-1) -> 0 | AN39: 0.02018820766
A40: 0.6269297158 | B40: 634.4228257 | C40: 397.7385218 | D40: 0.6269297158 | E40: ='User Parameters'!$C$11 -> 50 | F40: =B40*'User Parameters'!$C$15 -> 6.344228257 | G40: 180.3400757 | H40: 0.2842584919 | I40: 0.6332623392 | J40: =IF(UP_RSBasis="MLR",UP_RSTarget_MLR,IF(UP_RSBasis="Medical Baseline",UP_RSTarget_Medlcal,0)) -> 0 | K40: =IF(UP_RSBasis="MLR",J40-I40,IF(UP_RSBasis="Medical Baseline",J40-$C40,0)) -> 0 | L40: 0 | M40: 0 | N40: 0 | O40: 0 | P40: 0 | Q40: 0 | R40: =IF(UP_RSBasis="MLR",SUMPRODUCT(L$4:Q$4,L40:Q40),"") ->  | S40: =IF(UP_RSBasis="MLR",R40*(B40-F40),SUMPRODUCT($L$4:$Q$4,$L40:$Q40)) -> 0 | T40: =(S40+C40+'User Parameters'!$C$12)/(B40-F40) -> 0.6332623392 | U40: =IF(T40<'User Parameters'!$J$5,'User Parameters'!$J$5,IF(T40>'User Parameters'!$J$6,'User Parameters'!$J$6,T40)) -> 0.9 | V40: =(U40-T40)*(B40-F40) -> 167.5322159 | W40: =V40/B40 -> 0.2640702842 | X40: =(B40-C40-F40-E40-S40-V40)/'Results Dashboard'!$D$43 -> 0.02018820766 | Y40: =IF((X40+W40)>0,(X40+W40)*0.5*((1+'User Parameters'!C$50)^((12+UP_COC_WithholdLag)/12)-1),(X40+W40)*0.5*((1+'User Parameters'!$C$51)^((12+UP_COC_WithholdLag)/12)-1)) -> 0 | Z40: =-'User Parameters'!$C$13*('User Parameters'!$C$14-1) -> 0 | AA40: 0.02018820766 | AB40: =_xlfn.NORM.DIST(H40,$AD$2,$AD$3,TRUE) -> 1 | AC40: 8.577694111e-12 | AD40: 8.577694111e-12 | AE40: 8.577694111e-12 | AF40: =IF($AA40<-'Results Dashboard'!$J$7,$AA40+'Results Dashboard'!$J$7,0) -> 0 | AG40: =IF($AA40<-'Results Dashboard'!$J$8,$AA40+'Results Dashboard'!$J$8,0) -> 0 | AH40: =IF($AA40<-'Results Dashboard'!$J$9,$AA40+'Results Dashboard'!$J$9,0) -> 0 | AI40: =IF($AA40<-'Results Dashboard'!$J$11,$AA40+'Results Dashboard'!$J$11,0) -> 0 | AJ40: =IF($AA40<-'Results Dashboard'!$J$10,$AA40+'Results Dashboard'!$J$10,0) -> 0 | AL40: =IF((X40+W40)>0,(X40+W40)*0.5*'User Parameters'!C$50,(X40+W40)*0.5*'User Parameters'!$C$51) -> 0 | AM40: =-'User Parameters'!$C$13*('User Parameters'!$C$14-1) -> 0 | AN40: 0.02018820766
A41: 0.6319297158 | B41: 634.4228257 | C41: 400.910636 | D41: 0.6319297158 | E41: ='User Parameters'!$C$11 -> 50 | F41: =B41*'User Parameters'!$C$15 -> 6.344228257 | G41: 177.1679615 | H41: 0.2792584919 | I41: 0.6383128442 | J41: =IF(UP_RSBasis="MLR",UP_RSTarget_MLR,IF(UP_RSBasis="Medical Baseline",UP_RSTarget_Medlcal,0)) -> 0 | K41: 0 | L41: 0 | M41: 0 | N41: 0 | O41: 0 | P41: 0 | Q41: 0 | S41: 0 | T41: =(S41+C41+'User Parameters'!$C$12)/(B41-F41) -> 0.6383128442 | U41: =IF(T41<'User Parameters'!$J$5,'User Parameters'!$J$5,IF(T41>'User Parameters'!$J$6,'User Parameters'!$J$6,T41)) -> 0.9 | V41: 164.3601018 | W41: 0.2590702842 | X41: =(B41-C41-F41-E41-S41-V41)/'Results Dashboard'!$D$43 -> 0.02018820766 | Y41: =IF((X41+W41)>0,(X41+W41)*0.5*((1+'User Parameters'!C$50)^((12+UP_COC_WithholdLag)/12)-1),(X41+W41)*0.5*((1+'User Parameters'!$C$51)^((12+UP_COC_WithholdLag)/12)-1)) -> 0 | Z41: =-'User Parameters'!$C$13*('User Parameters'!$C$14-1) -> 0 | AA41: 0.02018820766 | AB41: 1 | AC41: 2.200051252e-11 | AD41: 2.200051252e-11 | AE41: 2.200051252e-11 | AF41: =IF($AA41<-'Results Dashboard'!$J$7,$AA41+'Results Dashboard'!$J$7,0) -> 0 | AG41: =IF($AA41<-'Results Dashboard'!$J$8,$AA41+'Results Dashboard'!$J$8,0) -> 0 | AH41: =IF($AA41<-'Results Dashboard'!$J$9,$AA41+'Results Dashboard'!$J$9,0) -> 0 | AI41: =IF($AA41<-'Results Dashboard'!$J$11,$AA41+'Results Dashboard'!$J$11,0) -> 0 | AJ41: =IF($AA41<-'Results Dashboard'!$J$10,$AA41+'Results Dashboard'!$J$10,0) -> 0 | AL41: =IF((X41+W41)>0,(X41+W41)*0.5*'User Parameters'!C$50,(X41+W41)*0.5*'User Parameters'!$C$51) -> 0 | AM41: =-'User Parameters'!$C$13*('User Parameters'!$C$14-1) -> 0 | AN41: 0.02018820766
A42: 0.6369297158 | B42: 634.4228257 | C42: 404.0827501 | D42: 0.6369297158 | E42: ='User Parameters'!$C$11 -> 50 | F42: =B42*'User Parameters'!$C$15 -> 6.344228257 | G42: 173.9958474 | H42: 0.2742584919 | I42: 0.6433633493 | J42: =IF(UP_RSBasis="MLR",UP_RSTarget_MLR,IF(UP_RSBasis="Medical Baseline",UP_RSTarget_Medlcal,0)) -> 0 | K42: 0 | L42: 0 | M42: 0 | N42: 0 | O42: 0 | P42: 0 | Q42: 0 | S42: 0 | T42: =(S42+C42+'User Parameters'!$C$12)/(B42-F42) -> 0.6433633493 | U42: =IF(T42<'User Parameters'!$J$5,'User Parameters'!$J$5,IF(T42>'User Parameters'!$J$6,'User Parameters'!$J$6,T42)) -> 0.9 | V42: 161.1879877 | W42: 0.2540702842 | X42: =(B42-C42-F42-E42-S42-V42)/'Results Dashboard'!$D$43 -> 0.02018820766 | Y42: =IF((X42+W42)>0,(X42+W42)*0.5*((1+'User Parameters'!C$50)^((12+UP_COC_WithholdLag)/12)-1),(X42+W42)*0.5*((1+'User Parameters'!$C$51)^((12+UP_COC_WithholdLag)/12)-1)) -> 0 | Z42: =-'User Parameters'!$C$13*('User Parameters'!$C$14-1) -> 0 | AA42: 0.02018820766 | AB42: 1 | AC42: 5.530864655e-11 | AD42: 5.530864655e-11 | AE42: 5.530864655e-11 | AF42: =IF($AA42<-'Results Dashboard'!$J$7,$AA42+'Results Dashboard'!$J$7,0) -> 0 | AG42: =IF($AA42<-'Results Dashboard'!$J$8,$AA42+'Results Dashboard'!$J$8,0) -> 0 | AH42: =IF($AA42<-'Results Dashboard'!$J$9,$AA42+'Results Dashboard'!$J$9,0) -> 0 | AI42: =IF($AA42<-'Results Dashboard'!$J$11,$AA42+'Results Dashboard'!$J$11,0) -> 0 | AJ42: =IF($AA42<-'Results Dashboard'!$J$10,$AA42+'Results Dashboard'!$J$10,0) -> 0 | AL42: =IF((X42+W42)>0,(X42+W42)*0.5*'User Parameters'!C$50,(X42+W42)*0.5*'User Parameters'!$C$51) -> 0 | AM42: =-'User Parameters'!$C$13*('User Parameters'!$C$14-1) -> 0 | AN42: 0.02018820766
A43: 0.6419297158 | B43: 634.4228257 | C43: 407.2548642 | D43: 0.6419297158 | E43: ='User Parameters'!$C$11 -> 50 | F43: =B43*'User Parameters'!$C$15 -> 6.344228257 | G43: 170.8237333 | H43: 0.2692584919 | I43: 0.6484138543 | J43: =IF(UP_RSBasis="MLR",UP_RSTarget_MLR,IF(UP_RSBasis="Medical Baseline",UP_RSTarget_Medlcal,0)) -> 0 | K43: 0 | L43: 0 | M43: 0 | N43: 0 | O43: 0 | P43: 0 | Q43: 0 | S43: 0 | T43: =(S43+C43+'User Parameters'!$C$12)/(B43-F43) -> 0.6484138543 | U43: =IF(T43<'User Parameters'!$J$5,'User Parameters'!$J$5,IF(T43>'User Parameters'!$J$6,'User Parameters'!$J$6,T43)) -> 0.9 | V43: 158.0158735 | W43: 0.2490702842 | X43: =(B43-C43-F43-E43-S43-V43)/'Results Dashboard'!$D$43 -> 0.02018820766 | Y43: =IF((X43+W43)>0,(X43+W43)*0.5*((1+'User Parameters'!C$50)^((12+UP_COC_WithholdLag)/12)-1),(X43+W43)*0.5*((1+'User Parameters'!$C$51)^((12+UP_COC_WithholdLag)/12)-1)) -> 0 | Z43: =-'User Parameters'!$C$13*('User Parameters'!$C$14-1) -> 0 | AA43: 0.02018820766 | AB43: 0.9999999999 | AC43: 1.362849833e-10 | AD43: 1.362849833e-10 | AE43: 1.362849833e-10 | AF43: =IF($AA43<-'Results Dashboard'!$J$7,$AA43+'Results Dashboard'!$J$7,0) -> 0 | AG43: =IF($AA43<-'Results Dashboard'!$J$8,$AA43+'Results Dashboard'!$J$8,0) -> 0 | AH43: =IF($AA43<-'Results Dashboard'!$J$9,$AA43+'Results Dashboard'!$J$9,0) -> 0 | AI43: =IF($AA43<-'Results Dashboard'!$J$11,$AA43+'Results Dashboard'!$J$11,0) -> 0 | AJ43: =IF($AA43<-'Results Dashboard'!$J$10,$AA43+'Results Dashboard'!$J$10,0) -> 0 | AL43: =IF((X43+W43)>0,(X43+W43)*0.5*'User Parameters'!C$50,(X43+W43)*0.5*'User Parameters'!$C$51) -> 0 | AM43: =-'User Parameters'!$C$13*('User Parameters'!$C$14-1) -> 0 | AN43: 0.02018820766
A44: 0.6469297158 | B44: 634.4228257 | C44: 410.4269783 | D44: 0.6469297158 | E44: ='User Parameters'!$C$11 -> 50 | F44: =B44*'User Parameters'!$C$15 -> 6.344228257 | G44: 167.6516191 | H44: 0.2642584919 | I44: 0.6534643594 | J44: =IF(UP_RSBasis="MLR",UP_RSTarget_MLR,IF(UP_RSBasis="Medical Baseline",UP_RSTarget_Medlcal,0)) -> 0 | K44: 0 | L44: 0 | M44: 0 | N44: 0 | O44: 0 | P44: 0 | Q44: 0 | S44: 0 | T44: =(S44+C44+'User Parameters'!$C$12)/(B44-F44) -> 0.6534643594 | U44: =IF(T44<'User Parameters'!$J$5,'User Parameters'!$J$5,IF(T44>'User Parameters'!$J$6,'User Parameters'!$J$6,T44)) -> 0.9 | V44: 154.8437594 | W44: 0.2440702842 | X44: =(B44-C44-F44-E44-S44-V44)/'Results Dashboard'!$D$43 -> 0.02018820766 | Y44: =IF((X44+W44)>0,(X44+W44)*0.5*((1+'User Parameters'!C$50)^((12+UP_COC_WithholdLag)/12)-1),(X44+W44)*0.5*((1+'User Parameters'!$C$51)^((12+UP_COC_WithholdLag)/12)-1)) -> 0 | Z44: =-'User Parameters'!$C$13*('User Parameters'!$C$14-1) -> 0 | AA44: 0.02018820766 | AB44: 0.9999999998 | AC44: 3.291544814e-10 | AD44: 3.291544814e-10 | AE44: 3.291544814e-10 | AF44: =IF($AA44<-'Results Dashboard'!$J$7,$AA44+'Results Dashboard'!$J$7,0) -> 0 | AG44: =IF($AA44<-'Results Dashboard'!$J$8,$AA44+'Results Dashboard'!$J$8,0) -> 0 | AH44: =IF($AA44<-'Results Dashboard'!$J$9,$AA44+'Results Dashboard'!$J$9,0) -> 0 | AI44: =IF($AA44<-'Results Dashboard'!$J$11,$AA44+'Results Dashboard'!$J$11,0) -> 0 | AJ44: =IF($AA44<-'Results Dashboard'!$J$10,$AA44+'Results Dashboard'!$J$10,0) -> 0 | AL44: =IF((X44+W44)>0,(X44+W44)*0.5*'User Parameters'!C$50,(X44+W44)*0.5*'User Parameters'!$C$51) -> 0 | AM44: =-'User Parameters'!$C$13*('User Parameters'!$C$14-1) -> 0 | AN44: 0.02018820766
A45: 0.6519297158 | B45: 634.4228257 | C45: 413.5990925 | D45: 0.6519297158 | E45: ='User Parameters'!$C$11 -> 50 | F45: =B45*'User Parameters'!$C$15 -> 6.344228257 | G45: 164.479505 | H45: 0.2592584919 | I45: 0.6585148644 | J45: =IF(UP_RSBasis="MLR",UP_RSTarget_MLR,IF(UP_RSBasis="Medical Baseline",UP_RSTarget_Medlcal,0)) -> 0 | K45: 0 | L45: 0 | M45: 0 | N45: 0 | O45: 0 | P45: 0 | Q45: 0 | S45: 0 | T45: =(S45+C45+'User Parameters'!$C$12)/(B45-F45) -> 0.6585148644 | U45: =IF(T45<'User Parameters'!$J$5,'User Parameters'!$J$5,IF(T45>'User Parameters'!$J$6,'User Parameters'!$J$6,T45)) -> 0.9 | V45: 151.6716453 | W45: 0.2390702842 | X45: =(B45-C45-F45-E45-S45-V45)/'Results Dashboard'!$D$43 -> 0.02018820766 | Y45: =IF((X45+W45)>0,(X45+W45)*0.5*((1+'User Parameters'!C$50)^((12+UP_COC_WithholdLag)/12)-1),(X45+W45)*0.5*((1+'User Parameters'!$C$51)^((12+UP_COC_WithholdLag)/12)-1)) -> 0 | Z45: =-'User Parameters'!$C$13*('User Parameters'!$C$14-1) -> 0 | AA45: 0.02018820766 | AB45: 0.9999999994 | AC45: 7.791977064e-10 | AD45: 7.791977064e-10 | AE45: 7.791977064e-10 | AF45: =IF($AA45<-'Results Dashboard'!$J$7,$AA45+'Results Dashboard'!$J$7,0) -> 0 | AG45: =IF($AA45<-'Results Dashboard'!$J$8,$AA45+'Results Dashboard'!$J$8,0) -> 0 | AH45: =IF($AA45<-'Results Dashboard'!$J$9,$AA45+'Results Dashboard'!$J$9,0) -> 0 | AI45: =IF($AA45<-'Results Dashboard'!$J$11,$AA45+'Results Dashboard'!$J$11,0) -> 0 | AJ45: =IF($AA45<-'Results Dashboard'!$J$10,$AA45+'Results Dashboard'!$J$10,0) -> 0 | AL45: =IF((X45+W45)>0,(X45+W45)*0.5*'User Parameters'!C$50,(X45+W45)*0.5*'User Parameters'!$C$51) -> 0 | AM45: =-'User Parameters'!$C$13*('User Parameters'!$C$14-1) -> 0 | AN45: 0.02018820766
A46: 0.6569297158 | B46: 634.4228257 | C46: 416.7712066 | D46: 0.6569297158 | E46: ='User Parameters'!$C$11 -> 50 | F46: =B46*'User Parameters'!$C$15 -> 6.344228257 | G46: 161.3073909 | H46: 0.2542584919 | I46: 0.6635653695 | J46: =IF(UP_RSBasis="MLR",UP_RSTarget_MLR,IF(UP_RSBasis="Medical Baseline",UP_RSTarget_Medlcal,0)) -> 0 | K46: 0 | L46: 0 | M46: 0 | N46: 0 | O46: 0 | P46: 0 | Q46: 0 | S46: 0 | T46: =(S46+C46+'User Parameters'!$C$12)/(B46-F46) -> 0.6635653695 | U46: =IF(T46<'User Parameters'!$J$5,'User Parameters'!$J$5,IF(T46>'User Parameters'!$J$6,'User Parameters'!$J$6,T46)) -> 0.9 | V46: 148.4995311 | W46: 0.2340702842 | X46: =(B46-C46-F46-E46-S46-V46)/'Results Dashboard'!$D$43 -> 0.02018820766 | Y46: =IF((X46+W46)>0,(X46+W46)*0.5*((1+'User Parameters'!C$50)^((12+UP_COC_WithholdLag)/12)-1),(X46+W46)*0.5*((1+'User Parameters'!$C$51)^((12+UP_COC_WithholdLag)/12)-1)) -> 0 | Z46: =-'User Parameters'!$C$13*('User Parameters'!$C$14-1) -> 0 | AA46: 0.02018820766 | AB46: 0.9999999987 | AC46: 1.807972216e-09 | AD46: 1.807972216e-09 | AE46: 1.807972216e-09 | AF46: =IF($AA46<-'Results Dashboard'!$J$7,$AA46+'Results Dashboard'!$J$7,0) -> 0 | AG46: =IF($AA46<-'Results Dashboard'!$J$8,$AA46+'Results Dashboard'!$J$8,0) -> 0 | AH46: =IF($AA46<-'Results Dashboard'!$J$9,$AA46+'Results Dashboard'!$J$9,0) -> 0 | AI46: =IF($AA46<-'Results Dashboard'!$J$11,$AA46+'Results Dashboard'!$J$11,0) -> 0 | AJ46: =IF($AA46<-'Results Dashboard'!$J$10,$AA46+'Results Dashboard'!$J$10,0) -> 0 | AL46: =IF((X46+W46)>0,(X46+W46)*0.5*'User Parameters'!C$50,(X46+W46)*0.5*'User Parameters'!$C$51) -> 0 | AM46: =-'User Parameters'!$C$13*('User Parameters'!$C$14-1) -> 0 | AN46: 0.02018820766
A47: 0.6619297158 | B47: 634.4228257 | C47: 419.9433207 | D47: 0.6619297158 | E47: ='User Parameters'!$C$11 -> 50 | F47: =B47*'User Parameters'!$C$15 -> 6.344228257 | G47: 158.1352768 | H47: 0.2492584919 | I47: 0.6686158745 | J47: =IF(UP_RSBasis="MLR",UP_RSTarget_MLR,IF(UP_RSBasis="Medical Baseline",UP_RSTarget_Medlcal,0)) -> 0 | K47: 0 | L47: 0 | M47: 0 | N47: 0 | O47: 0 | P47: 0 | Q47: 0 | S47: 0 | T47: =(S47+C47+'User Parameters'!$C$12)/(B47-F47) -> 0.6686158745 | U47: =IF(T47<'User Parameters'!$J$5,'User Parameters'!$J$5,IF(T47>'User Parameters'!$J$6,'User Parameters'!$J$6,T47)) -> 0.9 | V47: 145.327417 | W47: 0.2290702842 | X47: =(B47-C47-F47-E47-S47-V47)/'Results Dashboard'!$D$43 -> 0.02018820766 | Y47: =IF((X47+W47)>0,(X47+W47)*0.5*((1+'User Parameters'!C$50)^((12+UP_COC_WithholdLag)/12)-1),(X47+W47)*0.5*((1+'User Parameters'!$C$51)^((12+UP_COC_WithholdLag)/12)-1)) -> 0 | Z47: =-'User Parameters'!$C$13*('User Parameters'!$C$14-1) -> 0 | AA47: 0.02018820766 | AB47: 0.9999999969 | AC47: 4.1118009e-09 | AD47: 4.1118009e-09 | AE47: 4.1118009e-09 | AF47: =IF($AA47<-'Results Dashboard'!$J$7,$AA47+'Results Dashboard'!$J$7,0) -> 0 | AG47: =IF($AA47<-'Results Dashboard'!$J$8,$AA47+'Results Dashboard'!$J$8,0) -> 0 | AH47: =IF($AA47<-'Results Dashboard'!$J$9,$AA47+'Results Dashboard'!$J$9,0) -> 0 | AI47: =IF($AA47<-'Results Dashboard'!$J$11,$AA47+'Results Dashboard'!$J$11,0) -> 0 | AJ47: =IF($AA47<-'Results Dashboard'!$J$10,$AA47+'Results Dashboard'!$J$10,0) -> 0 | AL47: =IF((X47+W47)>0,(X47+W47)*0.5*'User Parameters'!C$50,(X47+W47)*0.5*'User Parameters'!$C$51) -> 0 | AM47: =-'User Parameters'!$C$13*('User Parameters'!$C$14-1) -> 0 | AN47: 0.02018820766
A48: 0.6669297158 | B48: 634.4228257 | C48: 423.1154349 | D48: 0.6669297158 | E48: ='User Parameters'!$C$11 -> 50 | F48: =B48*'User Parameters'!$C$15 -> 6.344228257 | G48: 154.9631626 | H48: 0.2442584919 | I48: 0.6736663796 | J48: =IF(UP_RSBasis="MLR",UP_RSTarget_MLR,IF(UP_RSBasis="Medical Baseline",UP_RSTarget_Medlcal,0)) -> 0 | K48: 0 | L48: 0 | M48: 0 | N48: 0 | O48: 0 | P48: 0 | Q48: 0 | S48: 0 | T48: =(S48+C48+'User Parameters'!$C$12)/(B48-F48) -> 0.6736663796 | U48: =IF(T48<'User Parameters'!$J$5,'User Parameters'!$J$5,IF(T48>'User Parameters'!$J$6,'User Parameters'!$J$6,T48)) -> 0.9 | V48: 142.1553029 | W48: 0.2240702842 | X48: =(B48-C48-F48-E48-S48-V48)/'Results Dashboard'!$D$43 -> 0.02018820766 | Y48: =IF((X48+W48)>0,(X48+W48)*0.5*((1+'User Parameters'!C$50)^((12+UP_COC_WithholdLag)/12)-1),(X48+W48)*0.5*((1+'User Parameters'!$C$51)^((12+UP_COC_WithholdLag)/12)-1)) -> 0 | Z48: =-'User Parameters'!$C$13*('User Parameters'!$C$14-1) -> 0 | AA48: 0.02018820766 | AB48: 0.9999999927 | AC48: 9.165764259e-09 | AD48: 9.165764259e-09 | AE48: 9.165764259e-09 | AF48: =IF($AA48<-'Results Dashboard'!$J$7,$AA48+'Results Dashboard'!$J$7,0) -> 0 | AG48: =IF($AA48<-'Results Dashboard'!$J$8,$AA48+'Results Dashboard'!$J$8,0) -> 0 | AH48: =IF($AA48<-'Results Dashboard'!$J$9,$AA48+'Results Dashboard'!$J$9,0) -> 0 | AI48: =IF($AA48<-'Results Dashboard'!$J$11,$AA48+'Results Dashboard'!$J$11,0) -> 0 | AJ48: =IF($AA48<-'Results Dashboard'!$J$10,$AA48+'Results Dashboard'!$J$10,0) -> 0 | AL48: =IF((X48+W48)>0,(X48+W48)*0.5*'User Parameters'!C$50,(X48+W48)*0.5*'User Parameters'!$C$51) -> 0 | AM48: =-'User Parameters'!$C$13*('User Parameters'!$C$14-1) -> 0 | AN48: 0.02018820766
A49: 0.6719297158 | B49: 634.4228257 | C49: 426.287549 | D49: 0.6719297158 | E49: ='User Parameters'!$C$11 -> 50 | F49: =B49*'User Parameters'!$C$15 -> 6.344228257 | G49: 151.7910485 | H49: 0.2392584919 | I49: 0.6787168846 | J49: =IF(UP_RSBasis="MLR",UP_RSTarget_MLR,IF(UP_RSBasis="Medical Baseline",UP_RSTarget_Medlcal,0)) -> 0 | K49: 0 | L49: 0 | M49: 0 | N49: 0 | O49: 0 | P49: 0 | Q49: 0 | S49: 0 | T49: =(S49+C49+'User Parameters'!$C$12)/(B49-F49) -> 0.6787168846 | U49: =IF(T49<'User Parameters'!$J$5,'User Parameters'!$J$5,IF(T49>'User Parameters'!$J$6,'User Parameters'!$J$6,T49)) -> 0.9 | V49: 138.9831888 | W49: 0.2190702842 | X49: =(B49-C49-F49-E49-S49-V49)/'Results Dashboard'!$D$43 -> 0.02018820766 | Y49: =IF((X49+W49)>0,(X49+W49)*0.5*((1+'User Parameters'!C$50)^((12+UP_COC_WithholdLag)/12)-1),(X49+W49)*0.5*((1+'User Parameters'!$C$51)^((12+UP_COC_WithholdLag)/12)-1)) -> 0 | Z49: =-'User Parameters'!$C$13*('User Parameters'!$C$14-1) -> 0 | AA49: 0.02018820766 | AB49: 0.9999999836 | AC49: 2.00263397e-08 | AD49: 2.00263397e-08 | AE49: 2.00263397e-08 | AF49: =IF($AA49<-'Results Dashboard'!$J$7,$AA49+'Results Dashboard'!$J$7,0) -> 0 | AG49: =IF($AA49<-'Results Dashboard'!$J$8,$AA49+'Results Dashboard'!$J$8,0) -> 0 | AH49: =IF($AA49<-'Results Dashboard'!$J$9,$AA49+'Results Dashboard'!$J$9,0) -> 0 | AI49: =IF($AA49<-'Results Dashboard'!$J$11,$AA49+'Results Dashboard'!$J$11,0) -> 0 | AJ49: =IF($AA49<-'Results Dashboard'!$J$10,$AA49+'Results Dashboard'!$J$10,0) -> 0 | AL49: =IF((X49+W49)>0,(X49+W49)*0.5*'User Parameters'!C$50,(X49+W49)*0.5*'User Parameters'!$C$51) -> 0 | AM49: =-'User Parameters'!$C$13*('User Parameters'!$C$14-1) -> 0 | AN49: 0.02018820766
A50: 0.6769297158 | B50: 634.4228257 | C50: 429.4596631 | D50: 0.6769297158 | E50: ='User Parameters'!$C$11 -> 50 | F50: =B50*'User Parameters'!$C$15 -> 6.344228257 | G50: 148.6189344 | H50: 0.2342584919 | I50: 0.6837673897 | J50: =IF(UP_RSBasis="MLR",UP_RSTarget_MLR,IF(UP_RSBasis="Medical Baseline",UP_RSTarget_Medlcal,0)) -> 0 | K50: 0 | L50: 0 | M50: 0 | N50: 0 | O50: 0 | P50: 0 | Q50: 0 | S50: 0 | T50: =(S50+C50+'User Parameters'!$C$12)/(B50-F50) -> 0.6837673897 | U50: =IF(T50<'User Parameters'!$J$5,'User Parameters'!$J$5,IF(T50>'User Parameters'!$J$6,'User Parameters'!$J$6,T50)) -> 0.9 | V50: 135.8110746 | W50: 0.2140702842 | X50: =(B50-C50-F50-E50-S50-V50)/'Results Dashboard'!$D$43 -> 0.02018820766 | Y50: =IF((X50+W50)>0,(X50+W50)*0.5*((1+'User Parameters'!C$50)^((12+UP_COC_WithholdLag)/12)-1),(X50+W50)*0.5*((1+'User Parameters'!$C$51)^((12+UP_COC_WithholdLag)/12)-1)) -> 0 | Z50: =-'User Parameters'!$C$13*('User Parameters'!$C$14-1) -> 0 | AA50: 0.02018820766 | AB50: 0.9999999636 | AC50: 4.288750566e-08 | AD50: 4.288750566e-08 | AE50: 4.288750566e-08 | AF50: =IF($AA50<-'Results Dashboard'!$J$7,$AA50+'Results Dashboard'!$J$7,0) -> 0 | AG50: =IF($AA50<-'Results Dashboard'!$J$8,$AA50+'Results Dashboard'!$J$8,0) -> 0 | AH50: =IF($AA50<-'Results Dashboard'!$J$9,$AA50+'Results Dashboard'!$J$9,0) -> 0 | AI50: =IF($AA50<-'Results Dashboard'!$J$11,$AA50+'Results Dashboard'!$J$11,0) -> 0 | AJ50: =IF($AA50<-'Results Dashboard'!$J$10,$AA50+'Results Dashboard'!$J$10,0) -> 0 | AL50: =IF((X50+W50)>0,(X50+W50)*0.5*'User Parameters'!C$50,(X50+W50)*0.5*'User Parameters'!$C$51) -> 0 | AM50: =-'User Parameters'!$C$13*('User Parameters'!$C$14-1) -> 0 | AN50: 0.02018820766
A51: 0.6819297158 | B51: 634.4228257 | C51: 432.6317772 | D51: 0.6819297158 | E51: ='User Parameters'!$C$11 -> 50 | F51: =B51*'User Parameters'!$C$15 -> 6.344228257 | G51: 145.4468202 | H51: 0.2292584919 | I51: 0.6888178947 | J51: =IF(UP_RSBasis="MLR",UP_RSTarget_MLR,IF(UP_RSBasis="Medical Baseline",UP_RSTarget_Medlcal,0)) -> 0 | K51: 0 | L51: 0 | M51: 0 | N51: 0 | O51: 0 | P51: 0 | Q51: 0 | S51: 0 | T51: =(S51+C51+'User Parameters'!$C$12)/(B51-F51) -> 0.6888178947 | U51: =IF(T51<'User Parameters'!$J$5,'User Parameters'!$J$5,IF(T51>'User Parameters'!$J$6,'User Parameters'!$J$6,T51)) -> 0.9 | V51: 132.6389605 | W51: 0.2090702842 | X51: =(B51-C51-F51-E51-S51-V51)/'Results Dashboard'!$D$43 -> 0.02018820766 | Y51: =IF((X51+W51)>0,(X51+W51)*0.5*((1+'User Parameters'!C$50)^((12+UP_COC_WithholdLag)/12)-1),(X51+W51)*0.5*((1+'User Parameters'!$C$51)^((12+UP_COC_WithholdLag)/12)-1)) -> 0 | Z51: =-'User Parameters'!$C$13*('User Parameters'!$C$14-1) -> 0 | AA51: 0.02018820766 | AB51: 0.9999999207 | AC51: 9.002359147e-08 | AD51: 9.002359147e-08 | AE51: 9.002359147e-08 | AF51: =IF($AA51<-'Results Dashboard'!$J$7,$AA51+'Results Dashboard'!$J$7,0) -> 0 | AG51: =IF($AA51<-'Results Dashboard'!$J$8,$AA51+'Results Dashboard'!$J$8,0) -> 0 | AH51: =IF($AA51<-'Results Dashboard'!$J$9,$AA51+'Results Dashboard'!$J$9,0) -> 0 | AI51: =IF($AA51<-'Results Dashboard'!$J$11,$AA51+'Results Dashboard'!$J$11,0) -> 0 | AJ51: =IF($AA51<-'Results Dashboard'!$J$10,$AA51+'Results Dashboard'!$J$10,0) -> 0 | AL51: =IF((X51+W51)>0,(X51+W51)*0.5*'User Parameters'!C$50,(X51+W51)*0.5*'User Parameters'!$C$51) -> 0 | AM51: =-'User Parameters'!$C$13*('User Parameters'!$C$14-1) -> 0 | AN51: 0.02018820766
A52: 0.6869297158 | B52: 634.4228257 | C52: 435.8038914 | D52: 0.6869297158 | E52: ='User Parameters'!$C$11 -> 50 | F52: =B52*'User Parameters'!$C$15 -> 6.344228257 | G52: 142.2747061 | H52: 0.2242584919 | I52: 0.6938683998 | J52: =IF(UP_RSBasis="MLR",UP_RSTarget_MLR,IF(UP_RSBasis="Medical Baseline",UP_RSTarget_Medlcal,0)) -> 0 | K52: 0 | L52: 0 | M52: 0 | N52: 0 | O52: 0 | P52: 0 | Q52: 0 | S52: 0 | T52: =(S52+C52+'User Parameters'!$C$12)/(B52-F52) -> 0.6938683998 | U52: =IF(T52<'User Parameters'!$J$5,'User Parameters'!$J$5,IF(T52>'User Parameters'!$J$6,'User Parameters'!$J$6,T52)) -> 0.9 | V52: 129.4668464 | W52: 0.2040702842 | X52: =(B52-C52-F52-E52-S52-V52)/'Results Dashboard'!$D$43 -> 0.02018820766 | Y52: =IF((X52+W52)>0,(X52+W52)*0.5*((1+'User Parameters'!C$50)^((12+UP_COC_WithholdLag)/12)-1),(X52+W52)*0.5*((1+'User Parameters'!$C$51)^((12+UP_COC_WithholdLag)/12)-1)) -> 0 | Z52: =-'User Parameters'!$C$13*('User Parameters'!$C$14-1) -> 0 | AA52: 0.02018820766 | AB52: 0.9999998306 | AC52: 1.852158878e-07 | AD52: 1.852158878e-07 | AE52: 1.852158878e-07 | AF52: =IF($AA52<-'Results Dashboard'!$J$7,$AA52+'Results Dashboard'!$J$7,0) -> 0 | AG52: =IF($AA52<-'Results Dashboard'!$J$8,$AA52+'Results Dashboard'!$J$8,0) -> 0 | AH52: =IF($AA52<-'Results Dashboard'!$J$9,$AA52+'Results Dashboard'!$J$9,0) -> 0 | AI52: =IF($AA52<-'Results Dashboard'!$J$11,$AA52+'Results Dashboard'!$J$11,0) -> 0 | AJ52: =IF($AA52<-'Results Dashboard'!$J$10,$AA52+'Results Dashboard'!$J$10,0) -> 0 | AL52: =IF((X52+W52)>0,(X52+W52)*0.5*'User Parameters'!C$50,(X52+W52)*0.5*'User Parameters'!$C$51) -> 0 | AM52: =-'User Parameters'!$C$13*('User Parameters'!$C$14-1) -> 0 | AN52: 0.02018820766
A53: 0.6919297158 | B53: 634.4228257 | C53: 438.9760055 | D53: 0.6919297158 | E53: ='User Parameters'!$C$11 -> 50 | F53: =B53*'User Parameters'!$C$15 -> 6.344228257 | G53: 139.102592 | H53: 0.2192584919 | I53: 0.6989189048 | J53: =IF(UP_RSBasis="MLR",UP_RSTarget_MLR,IF(UP_RSBasis="Medical Baseline",UP_RSTarget_Medlcal,0)) -> 0 | K53: 0 | L53: 0 | M53: 0 | N53: 0 | O53: 0 | P53: 0 | Q53: 0 | S53: 0 | T53: =(S53+C53+'User Parameters'!$C$12)/(B53-F53) -> 0.6989189048 | U53: =IF(T53<'User Parameters'!$J$5,'User Parameters'!$J$5,IF(T53>'User Parameters'!$J$6,'User Parameters'!$J$6,T53)) -> 0.9 | V53: 126.2947322 | W53: 0.1990702842 | X53: =(B53-C53-F53-E53-S53-V53)/'Results Dashboard'!$D$43 -> 0.02018820766 | Y53: =IF((X53+W53)>0,(X53+W53)*0.5*((1+'User Parameters'!C$50)^((12+UP_COC_WithholdLag)/12)-1),(X53+W53)*0.5*((1+'User Parameters'!$C$51)^((12+UP_COC_WithholdLag)/12)-1)) -> 0 | Z53: =-'User Parameters'!$C$13*('User Parameters'!$C$14-1) -> 0 | AA53: 0.02018820766 | AB53: 0.9999996454 | AC53: 3.735050834e-07 | AD53: 3.735050834e-07 | AE53: 3.735050834e-07 | AF53: =IF($AA53<-'Results Dashboard'!$J$7,$AA53+'Results Dashboard'!$J$7,0) -> 0 | AG53: =IF($AA53<-'Results Dashboard'!$J$8,$AA53+'Results Dashboard'!$J$8,0) -> 0 | AH53: =IF($AA53<-'Results Dashboard'!$J$9,$AA53+'Results Dashboard'!$J$9,0) -> 0 | AI53: =IF($AA53<-'Results Dashboard'!$J$11,$AA53+'Results Dashboard'!$J$11,0) -> 0 | AJ53: =IF($AA53<-'Results Dashboard'!$J$10,$AA53+'Results Dashboard'!$J$10,0) -> 0 | AL53: =IF((X53+W53)>0,(X53+W53)*0.5*'User Parameters'!C$50,(X53+W53)*0.5*'User Parameters'!$C$51) -> 0 | AM53: =-'User Parameters'!$C$13*('User Parameters'!$C$14-1) -> 0 | AN53: 0.02018820766
A54: 0.6969297158 | B54: 634.4228257 | C54: 442.1481196 | D54: 0.6969297158 | E54: ='User Parameters'!$C$11 -> 50 | F54: =B54*'User Parameters'!$C$15 -> 6.344228257 | G54: 135.9304779 | H54: 0.2142584919 | I54: 0.7039694099 | J54: =IF(UP_RSBasis="MLR",UP_RSTarget_MLR,IF(UP_RSBasis="Medical Baseline",UP_RSTarget_Medlcal,0)) -> 0 | K54: 0 | L54: 0 | M54: 0 | N54: 0 | O54: 0 | P54: 0 | Q54: 0 | S54: 0 | T54: =(S54+C54+'User Parameters'!$C$12)/(B54-F54) -> 0.7039694099 | U54: =IF(T54<'User Parameters'!$J$5,'User Parameters'!$J$5,IF(T54>'User Parameters'!$J$6,'User Parameters'!$J$6,T54)) -> 0.9 | V54: 123.1226181 | W54: 0.1940702842 | X54: =(B54-C54-F54-E54-S54-V54)/'Results Dashboard'!$D$43 -> 0.02018820766 | Y54: =IF((X54+W54)>0,(X54+W54)*0.5*((1+'User Parameters'!C$50)^((12+UP_COC_WithholdLag)/12)-1),(X54+W54)*0.5*((1+'User Parameters'!$C$51)^((12+UP_COC_WithholdLag)/12)-1)) -> 0 | Z54: =-'User Parameters'!$C$13*('User Parameters'!$C$14-1) -> 0 | AA54: 0.02018820766 | AB54: 0.9999992719 | AC54: 7.382631524e-07 | AD54: 7.382631524e-07 | AE54: 7.382631524e-07 | AF54: =IF($AA54<-'Results Dashboard'!$J$7,$AA54+'Results Dashboard'!$J$7,0) -> 0 | AG54: =IF($AA54<-'Results Dashboard'!$J$8,$AA54+'Results Dashboard'!$J$8,0) -> 0 | AH54: =IF($AA54<-'Results Dashboard'!$J$9,$AA54+'Results Dashboard'!$J$9,0) -> 0 | AI54: =IF($AA54<-'Results Dashboard'!$J$11,$AA54+'Results Dashboard'!$J$11,0) -> 0 | AJ54: =IF($AA54<-'Results Dashboard'!$J$10,$AA54+'Results Dashboard'!$J$10,0) -> 0 | AL54: =IF((X54+W54)>0,(X54+W54)*0.5*'User Parameters'!C$50,(X54+W54)*0.5*'User Parameters'!$C$51) -> 0 | AM54: =-'User Parameters'!$C$13*('User Parameters'!$C$14-1) -> 0 | AN54: 0.02018820766
A55: 0.7019297158 | B55: 634.4228257 | C55: 445.3202338 | D55: 0.7019297158 | E55: ='User Parameters'!$C$11 -> 50 | F55: =B55*'User Parameters'!$C$15 -> 6.344228257 | G55: 132.7583637 | H55: 0.2092584919 | I55: 0.7090199149 | J55: =IF(UP_RSBasis="MLR",UP_RSTarget_MLR,IF(UP_RSBasis="Medical Baseline",UP_RSTarget_Medlcal,0)) -> 0 | K55: 0 | L55: 0 | M55: 0 | N55: 0 | O55: 0 | P55: 0 | Q55: 0 | S55: 0 | T55: =(S55+C55+'User Parameters'!$C$12)/(B55-F55) -> 0.7090199149 | U55: =IF(T55<'User Parameters'!$J$5,'User Parameters'!$J$5,IF(T55>'User Parameters'!$J$6,'User Parameters'!$J$6,T55)) -> 0.9 | V55: 119.950504 | W55: 0.1890702842 | X55: =(B55-C55-F55-E55-S55-V55)/'Results Dashboard'!$D$43 -> 0.02018820766 | Y55: =IF((X55+W55)>0,(X55+W55)*0.5*((1+'User Parameters'!C$50)^((12+UP_COC_WithholdLag)/12)-1),(X55+W55)*0.5*((1+'User Parameters'!$C$51)^((12+UP_COC_WithholdLag)/12)-1)) -> 0 | Z55: =-'User Parameters'!$C$13*('User Parameters'!$C$14-1) -> 0 | AA55: 0.02018820766 | AB55: 0.9999985337 | AC55: 1.430284012e-06 | AD55: 1.430284012e-06 | AE55: 1.430284012e-06 | AF55: =IF($AA55<-'Results Dashboard'!$J$7,$AA55+'Results Dashboard'!$J$7,0) -> 0 | AG55: =IF($AA55<-'Results Dashboard'!$J$8,$AA55+'Results Dashboard'!$J$8,0) -> 0 | AH55: =IF($AA55<-'Results Dashboard'!$J$9,$AA55+'Results Dashboard'!$J$9,0) -> 0 | AI55: =IF($AA55<-'Results Dashboard'!$J$11,$AA55+'Results Dashboard'!$J$11,0) -> 0 | AJ55: =IF($AA55<-'Results Dashboard'!$J$10,$AA55+'Results Dashboard'!$J$10,0) -> 0 | AL55: =IF((X55+W55)>0,(X55+W55)*0.5*'User Parameters'!C$50,(X55+W55)*0.5*'User Parameters'!$C$51) -> 0 | AM55: =-'User Parameters'!$C$13*('User Parameters'!$C$14-1) -> 0 | AN55: 0.02018820766
A56: 0.7069297158 | B56: 634.4228257 | C56: 448.4923479 | D56: 0.7069297158 | E56: ='User Parameters'!$C$11 -> 50 | F56: =B56*'User Parameters'!$C$15 -> 6.344228257 | G56: 129.5862496 | H56: 0.2042584919 | I56: 0.71407042 | J56: =IF(UP_RSBasis="MLR",UP_RSTarget_MLR,IF(UP_RSBasis="Medical Baseline",UP_RSTarget_Medlcal,0)) -> 0 | K56: 0 | L56: 0 | M56: 0 | N56: 0 | O56: 0 | P56: 0 | Q56: 0 | S56: 0 | T56: =(S56+C56+'User Parameters'!$C$12)/(B56-F56) -> 0.71407042 | U56: =IF(T56<'User Parameters'!$J$5,'User Parameters'!$J$5,IF(T56>'User Parameters'!$J$6,'User Parameters'!$J$6,T56)) -> 0.9 | V56: 116.7783899 | W56: 0.1840702842 | X56: =(B56-C56-F56-E56-S56-V56)/'Results Dashboard'!$D$43 -> 0.02018820766 | Y56: =IF((X56+W56)>0,(X56+W56)*0.5*((1+'User Parameters'!C$50)^((12+UP_COC_WithholdLag)/12)-1),(X56+W56)*0.5*((1+'User Parameters'!$C$51)^((12+UP_COC_WithholdLag)/12)-1)) -> 0 | Z56: =-'User Parameters'!$C$13*('User Parameters'!$C$14-1) -> 0 | AA56: 0.02018820766 | AB56: 0.9999971034 | AC56: 2.716000276e-06 | AD56: 2.716000276e-06 | AE56: 2.716000276e-06 | AF56: =IF($AA56<-'Results Dashboard'!$J$7,$AA56+'Results Dashboard'!$J$7,0) -> 0 | AG56: =IF($AA56<-'Results Dashboard'!$J$8,$AA56+'Results Dashboard'!$J$8,0) -> 0 | AH56: =IF($AA56<-'Results Dashboard'!$J$9,$AA56+'Results Dashboard'!$J$9,0) -> 0 | AI56: =IF($AA56<-'Results Dashboard'!$J$11,$AA56+'Results Dashboard'!$J$11,0) -> 0 | AJ56: =IF($AA56<-'Results Dashboard'!$J$10,$AA56+'Results Dashboard'!$J$10,0) -> 0 | AL56: =IF((X56+W56)>0,(X56+W56)*0.5*'User Parameters'!C$50,(X56+W56)*0.5*'User Parameters'!$C$51) -> 0 | AM56: =-'User Parameters'!$C$13*('User Parameters'!$C$14-1) -> 0 | AN56: 0.02018820766
A57: 0.7119297158 | B57: 634.4228257 | C57: 451.664462 | D57: 0.7119297158 | E57: ='User Parameters'!$C$11 -> 50 | F57: =B57*'User Parameters'!$C$15 -> 6.344228257 | G57: 126.4141355 | H57: 0.1992584919 | I57: 0.719120925 | J57: =IF(UP_RSBasis="MLR",UP_RSTarget_MLR,IF(UP_RSBasis="Medical Baseline",UP_RSTarget_Medlcal,0)) -> 0 | K57: 0 | L57: 0 | M57: 0 | N57: 0 | O57: 0 | P57: 0 | Q57: 0 | S57: 0 | T57: =(S57+C57+'User Parameters'!$C$12)/(B57-F57) -> 0.719120925 | U57: =IF(T57<'User Parameters'!$J$5,'User Parameters'!$J$5,IF(T57>'User Parameters'!$J$6,'User Parameters'!$J$6,T57)) -> 0.9 | V57: 113.6062757 | W57: 0.1790702842 | X57: =(B57-C57-F57-E57-S57-V57)/'Results Dashboard'!$D$43 -> 0.02018820766 | Y57: =IF((X57+W57)>0,(X57+W57)*0.5*((1+'User Parameters'!C$50)^((12+UP_COC_WithholdLag)/12)-1),(X57+W57)*0.5*((1+'User Parameters'!$C$51)^((12+UP_COC_WithholdLag)/12)-1)) -> 0 | Z57: =-'User Parameters'!$C$13*('User Parameters'!$C$14-1) -> 0 | AA57: 0.02018820766 | AB57: 0.9999943874 | AC57: 5.055146987e-06 | AD57: 5.055146987e-06 | AE57: 5.055146987e-06 | AF57: =IF($AA57<-'Results Dashboard'!$J$7,$AA57+'Results Dashboard'!$J$7,0) -> 0 | AG57: =IF($AA57<-'Results Dashboard'!$J$8,$AA57+'Results Dashboard'!$J$8,0) -> 0 | AH57: =IF($AA57<-'Results Dashboard'!$J$9,$AA57+'Results Dashboard'!$J$9,0) -> 0 | AI57: =IF($AA57<-'Results Dashboard'!$J$11,$AA57+'Results Dashboard'!$J$11,0) -> 0 | AJ57: =IF($AA57<-'Results Dashboard'!$J$10,$AA57+'Results Dashboard'!$J$10,0) -> 0 | AL57: =IF((X57+W57)>0,(X57+W57)*0.5*'User Parameters'!C$50,(X57+W57)*0.5*'User Parameters'!$C$51) -> 0 | AM57: =-'User Parameters'!$C$13*('User Parameters'!$C$14-1) -> 0 | AN57: 0.02018820766
A58: 0.7169297158 | B58: 634.4228257 | C58: 454.8365761 | D58: 0.7169297158 | E58: ='User Parameters'!$C$11 -> 50 | F58: =B58*'User Parameters'!$C$15 -> 6.344228257 | G58: 123.2420213 | H58: 0.1942584919 | I58: 0.7241714301 | J58: =IF(UP_RSBasis="MLR",UP_RSTarget_MLR,IF(UP_RSBasis="Medical Baseline",UP_RSTarget_Medlcal,0)) -> 0 | K58: 0 | L58: 0 | M58: 0 | N58: 0 | O58: 0 | P58: 0 | Q58: 0 | S58: 0 | T58: =(S58+C58+'User Parameters'!$C$12)/(B58-F58) -> 0.7241714301 | U58: =IF(T58<'User Parameters'!$J$5,'User Parameters'!$J$5,IF(T58>'User Parameters'!$J$6,'User Parameters'!$J$6,T58)) -> 0.9 | V58: 110.4341616 | W58: 0.1740702842 | X58: =(B58-C58-F58-E58-S58-V58)/'Results Dashboard'!$D$43 -> 0.02018820766 | Y58: =IF((X58+W58)>0,(X58+W58)*0.5*((1+'User Parameters'!C$50)^((12+UP_COC_WithholdLag)/12)-1),(X58+W58)*0.5*((1+'User Parameters'!$C$51)^((12+UP_COC_WithholdLag)/12)-1)) -> 0 | Z58: =-'User Parameters'!$C$13*('User Parameters'!$C$14-1) -> 0 | AA58: 0.02018820766 | AB58: 0.9999893322 | AC58: 9.222193626e-06 | AD58: 9.222193626e-06 | AE58: 9.222193626e-06 | AF58: =IF($AA58<-'Results Dashboard'!$J$7,$AA58+'Results Dashboard'!$J$7,0) -> 0 | AG58: =IF($AA58<-'Results Dashboard'!$J$8,$AA58+'Results Dashboard'!$J$8,0) -> 0 | AH58: =IF($AA58<-'Results Dashboard'!$J$9,$AA58+'Results Dashboard'!$J$9,0) -> 0 | AI58: =IF($AA58<-'Results Dashboard'!$J$11,$AA58+'Results Dashboard'!$J$11,0) -> 0 | AJ58: =IF($AA58<-'Results Dashboard'!$J$10,$AA58+'Results Dashboard'!$J$10,0) -> 0 | AL58: =IF((X58+W58)>0,(X58+W58)*0.5*'User Parameters'!C$50,(X58+W58)*0.5*'User Parameters'!$C$51) -> 0 | AM58: =-'User Parameters'!$C$13*('User Parameters'!$C$14-1) -> 0 | AN58: 0.02018820766
A59: 0.7219297158 | B59: 634.4228257 | C59: 458.0086903 | D59: 0.7219297158 | E59: ='User Parameters'!$C$11 -> 50 | F59: =B59*'User Parameters'!$C$15 -> 6.344228257 | G59: 120.0699072 | H59: 0.1892584919 | I59: 0.7292219351 | J59: =IF(UP_RSBasis="MLR",UP_RSTarget_MLR,IF(UP_RSBasis="Medical Baseline",UP_RSTarget_Medlcal,0)) -> 0 | K59: 0 | L59: 0 | M59: 0 | N59: 0 | O59: 0 | P59: 0 | Q59: 0 | S59: 0 | T59: =(S59+C59+'User Parameters'!$C$12)/(B59-F59) -> 0.7292219351 | U59: =IF(T59<'User Parameters'!$J$5,'User Parameters'!$J$5,IF(T59>'User Parameters'!$J$6,'User Parameters'!$J$6,T59)) -> 0.9 | V59: 107.2620475 | W59: 0.1690702842 | X59: =(B59-C59-F59-E59-S59-V59)/'Results Dashboard'!$D$43 -> 0.02018820766 | Y59: =IF((X59+W59)>0,(X59+W59)*0.5*((1+'User Parameters'!C$50)^((12+UP_COC_WithholdLag)/12)-1),(X59+W59)*0.5*((1+'User Parameters'!$C$51)^((12+UP_COC_WithholdLag)/12)-1)) -> 0 | Z59: =-'User Parameters'!$C$13*('User Parameters'!$C$14-1) -> 0 | AA59: 0.02018820766 | AB59: 0.99998011 | AC59: 1.64903993e-05 | AD59: 1.64903993e-05 | AE59: 1.64903993e-05 | AF59: =IF($AA59<-'Results Dashboard'!$J$7,$AA59+'Results Dashboard'!$J$7,0) -> 0 | AG59: =IF($AA59<-'Results Dashboard'!$J$8,$AA59+'Results Dashboard'!$J$8,0) -> 0 | AH59: =IF($AA59<-'Results Dashboard'!$J$9,$AA59+'Results Dashboard'!$J$9,0) -> 0 | AI59: =IF($AA59<-'Results Dashboard'!$J$11,$AA59+'Results Dashboard'!$J$11,0) -> 0 | AJ59: =IF($AA59<-'Results Dashboard'!$J$10,$AA59+'Results Dashboard'!$J$10,0) -> 0 | AL59: =IF((X59+W59)>0,(X59+W59)*0.5*'User Parameters'!C$50,(X59+W59)*0.5*'User Parameters'!$C$51) -> 0 | AM59: =-'User Parameters'!$C$13*('User Parameters'!$C$14-1) -> 0 | AN59: 0.02018820766
A60: 0.7269297158 | B60: 634.4228257 | C60: 461.1808044 | D60: 0.7269297158 | E60: ='User Parameters'!$C$11 -> 50 | F60: =B60*'User Parameters'!$C$15 -> 6.344228257 | G60: 116.8977931 | H60: 0.1842584919 | I60: 0.7342724402 | J60: =IF(UP_RSBasis="MLR",UP_RSTarget_MLR,IF(UP_RSBasis="Medical Baseline",UP_RSTarget_Medlcal,0)) -> 0 | K60: 0 | L60: 0 | M60: 0 | N60: 0 | O60: 0 | P60: 0 | Q60: 0 | S60: 0 | T60: =(S60+C60+'User Parameters'!$C$12)/(B60-F60) -> 0.7342724402 | U60: =IF(T60<'User Parameters'!$J$5,'User Parameters'!$J$5,IF(T60>'User Parameters'!$J$6,'User Parameters'!$J$6,T60)) -> 0.9 | V60: 104.0899333 | W60: 0.1640702842 | X60: =(B60-C60-F60-E60-S60-V60)/'Results Dashboard'!$D$43 -> 0.02018820766 | Y60: =IF((X60+W60)>0,(X60+W60)*0.5*((1+'User Parameters'!C$50)^((12+UP_COC_WithholdLag)/12)-1),(X60+W60)*0.5*((1+'User Parameters'!$C$51)^((12+UP_COC_WithholdLag)/12)-1)) -> 0 | Z60: =-'User Parameters'!$C$13*('User Parameters'!$C$14-1) -> 0 | AA60: 0.02018820766 | AB60: 0.9999636196 | AC60: 2.890178135e-05 | AD60: 2.890178135e-05 | AE60: 2.890178135e-05 | AF60: =IF($AA60<-'Results Dashboard'!$J$7,$AA60+'Results Dashboard'!$J$7,0) -> 0 | AG60: =IF($AA60<-'Results Dashboard'!$J$8,$AA60+'Results Dashboard'!$J$8,0) -> 0 | AH60: =IF($AA60<-'Results Dashboard'!$J$9,$AA60+'Results Dashboard'!$J$9,0) -> 0 | AI60: =IF($AA60<-'Results Dashboard'!$J$11,$AA60+'Results Dashboard'!$J$11,0) -> 0 | AJ60: =IF($AA60<-'Results Dashboard'!$J$10,$AA60+'Results Dashboard'!$J$10,0) -> 0 | AL60: =IF((X60+W60)>0,(X60+W60)*0.5*'User Parameters'!C$50,(X60+W60)*0.5*'User Parameters'!$C$51) -> 0 | AM60: =-'User Parameters'!$C$13*('User Parameters'!$C$14-1) -> 0 | AN60: 0.02018820766
A61: 0.7319297158 | B61: 634.4228257 | C61: 464.3529185 | D61: 0.7319297158 | E61: ='User Parameters'!$C$11 -> 50 | F61: =B61*'User Parameters'!$C$15 -> 6.344228257 | G61: 113.725679 | H61: 0.1792584919 | I61: 0.7393229452 | J61: =IF(UP_RSBasis="MLR",UP_RSTarget_MLR,IF(UP_RSBasis="Medical Baseline",UP_RSTarget_Medlcal,0)) -> 0 | K61: 0 | L61: 0 | M61: 0 | N61: 0 | O61: 0 | P61: 0 | Q61: 0 | S61: 0 | T61: =(S61+C61+'User Parameters'!$C$12)/(B61-F61) -> 0.7393229452 | U61: =IF(T61<'User Parameters'!$J$5,'User Parameters'!$J$5,IF(T61>'User Parameters'!$J$6,'User Parameters'!$J$6,T61)) -> 0.9 | V61: 100.9178192 | W61: 0.1590702842 | X61: =(B61-C61-F61-E61-S61-V61)/'Results Dashboard'!$D$43 -> 0.02018820766 | Y61: =IF((X61+W61)>0,(X61+W61)*0.5*((1+'User Parameters'!C$50)^((12+UP_COC_WithholdLag)/12)-1),(X61+W61)*0.5*((1+'User Parameters'!$C$51)^((12+UP_COC_WithholdLag)/12)-1)) -> 0 | Z61: =-'User Parameters'!$C$13*('User Parameters'!$C$14-1) -> 0 | AA61: 0.02018820766 | AB61: 0.9999347179 | AC61: 4.964946467e-05 | AD61: 4.964946467e-05 | AE61: 4.964946467e-05 | AF61: =IF($AA61<-'Results Dashboard'!$J$7,$AA61+'Results Dashboard'!$J$7,0) -> 0 | AG61: =IF($AA61<-'Results Dashboard'!$J$8,$AA61+'Results Dashboard'!$J$8,0) -> 0 | AH61: =IF($AA61<-'Results Dashboard'!$J$9,$AA61+'Results Dashboard'!$J$9,0) -> 0 | AI61: =IF($AA61<-'Results Dashboard'!$J$11,$AA61+'Results Dashboard'!$J$11,0) -> 0 | AJ61: =IF($AA61<-'Results Dashboard'!$J$10,$AA61+'Results Dashboard'!$J$10,0) -> 0 | AL61: =IF((X61+W61)>0,(X61+W61)*0.5*'User Parameters'!C$50,(X61+W61)*0.5*'User Parameters'!$C$51) -> 0 | AM61: =-'User Parameters'!$C$13*('User Parameters'!$C$14-1) -> 0 | AN61: 0.02018820766
A62: 0.7369297158 | B62: 634.4228257 | C62: 467.5250327 | D62: 0.7369297158 | E62: ='User Parameters'!$C$11 -> 50 | F62: =B62*'User Parameters'!$C$15 -> 6.344228257 | G62: 110.5535648 | H62: 0.1742584919 | I62: 0.7443734503 | J62: =IF(UP_RSBasis="MLR",UP_RSTarget_MLR,IF(UP_RSBasis="Medical Baseline",UP_RSTarget_Medlcal,0)) -> 0 | K62: 0 | L62: 0 | M62: 0 | N62: 0 | O62: 0 | P62: 0 | Q62: 0 | S62: 0 | T62: =(S62+C62+'User Parameters'!$C$12)/(B62-F62) -> 0.7443734503 | U62: =IF(T62<'User Parameters'!$J$5,'User Parameters'!$J$5,IF(T62>'User Parameters'!$J$6,'User Parameters'!$J$6,T62)) -> 0.9 | V62: 97.74570508 | W62: 0.1540702842 | X62: =(B62-C62-F62-E62-S62-V62)/'Results Dashboard'!$D$43 -> 0.02018820766 | Y62: =IF((X62+W62)>0,(X62+W62)*0.5*((1+'User Parameters'!C$50)^((12+UP_COC_WithholdLag)/12)-1),(X62+W62)*0.5*((1+'User Parameters'!$C$51)^((12+UP_COC_WithholdLag)/12)-1)) -> 0 | Z62: =-'User Parameters'!$C$13*('User Parameters'!$C$14-1) -> 0 | AA62: 0.02018820766 | AB62: 0.9998850684 | AC62: 8.359899656e-05 | AD62: 8.359899656e-05 | AE62: 8.359899656e-05 | AF62: =IF($AA62<-'Results Dashboard'!$J$7,$AA62+'Results Dashboard'!$J$7,0) -> 0 | AG62: =IF($AA62<-'Results Dashboard'!$J$8,$AA62+'Results Dashboard'!$J$8,0) -> 0 | AH62: =IF($AA62<-'Results Dashboard'!$J$9,$AA62+'Results Dashboard'!$J$9,0) -> 0 | AI62: =IF($AA62<-'Results Dashboard'!$J$11,$AA62+'Results Dashboard'!$J$11,0) -> 0 | AJ62: =IF($AA62<-'Results Dashboard'!$J$10,$AA62+'Results Dashboard'!$J$10,0) -> 0 | AL62: =IF((X62+W62)>0,(X62+W62)*0.5*'User Parameters'!C$50,(X62+W62)*0.5*'User Parameters'!$C$51) -> 0 | AM62: =-'User Parameters'!$C$13*('User Parameters'!$C$14-1) -> 0 | AN62: 0.02018820766
A63: 0.7419297158 | B63: 634.4228257 | C63: 470.6971468 | D63: 0.7419297158 | E63: ='User Parameters'!$C$11 -> 50 | F63: =B63*'User Parameters'!$C$15 -> 6.344228257 | G63: 107.3814507 | H63: 0.1692584919 | I63: 0.7494239553 | J63: =IF(UP_RSBasis="MLR",UP_RSTarget_MLR,IF(UP_RSBasis="Medical Baseline",UP_RSTarget_Medlcal,0)) -> 0 | K63: 0 | L63: 0 | M63: 0 | N63: 0 | O63: 0 | P63: 0 | Q63: 0 | S63: 0 | T63: =(S63+C63+'User Parameters'!$C$12)/(B63-F63) -> 0.7494239553 | U63: =IF(T63<'User Parameters'!$J$5,'User Parameters'!$J$5,IF(T63>'User Parameters'!$J$6,'User Parameters'!$J$6,T63)) -> 0.9 | V63: 94.57359095 | W63: 0.1490702842 | X63: =(B63-C63-F63-E63-S63-V63)/'Results Dashboard'!$D$43 -> 0.02018820766 | Y63: =IF((X63+W63)>0,(X63+W63)*0.5*((1+'User Parameters'!C$50)^((12+UP_COC_WithholdLag)/12)-1),(X63+W63)*0.5*((1+'User Parameters'!$C$51)^((12+UP_COC_WithholdLag)/12)-1)) -> 0 | Z63: =-'User Parameters'!$C$13*('User Parameters'!$C$14-1) -> 0 | AA63: 0.02018820766 | AB63: 0.9998014694 | AC63: 0.0001379698237 | AD63: 0.0001379698237 | AE63: 0.0001379698237 | AF63: =IF($AA63<-'Results Dashboard'!$J$7,$AA63+'Results Dashboard'!$J$7,0) -> 0 | AG63: =IF($AA63<-'Results Dashboard'!$J$8,$AA63+'Results Dashboard'!$J$8,0) -> 0 | AH63: =IF($AA63<-'Results Dashboard'!$J$9,$AA63+'Results Dashboard'!$J$9,0) -> 0 | AI63: =IF($AA63<-'Results Dashboard'!$J$11,$AA63+'Results Dashboard'!$J$11,0) -> 0 | AJ63: =IF($AA63<-'Results Dashboard'!$J$10,$AA63+'Results Dashboard'!$J$10,0) -> 0 | AL63: =IF((X63+W63)>0,(X63+W63)*0.5*'User Parameters'!C$50,(X63+W63)*0.5*'User Parameters'!$C$51) -> 0 | AM63: =-'User Parameters'!$C$13*('User Parameters'!$C$14-1) -> 0 | AN63: 0.02018820766
A64: 0.7469297158 | B64: 634.4228257 | C64: 473.8692609 | D64: 0.7469297158 | E64: ='User Parameters'!$C$11 -> 50 | F64: =B64*'User Parameters'!$C$15 -> 6.344228257 | G64: 104.2093366 | H64: 0.1642584919 | I64: 0.7544744604 | J64: =IF(UP_RSBasis="MLR",UP_RSTarget_MLR,IF(UP_RSBasis="Medical Baseline",UP_RSTarget_Medlcal,0)) -> 0 | K64: 0 | L64: 0 | M64: 0 | N64: 0 | O64: 0 | P64: 0 | Q64: 0 | S64: 0 | T64: =(S64+C64+'User Parameters'!$C$12)/(B64-F64) -> 0.7544744604 | U64: =IF(T64<'User Parameters'!$J$5,'User Parameters'!$J$5,IF(T64>'User Parameters'!$J$6,'User Parameters'!$J$6,T64)) -> 0.9 | V64: 91.40147683 | W64: 0.1440702842 | X64: =(B64-C64-F64-E64-S64-V64)/'Results Dashboard'!$D$43 -> 0.02018820766 | Y64: =IF((X64+W64)>0,(X64+W64)*0.5*((1+'User Parameters'!C$50)^((12+UP_COC_WithholdLag)/12)-1),(X64+W64)*0.5*((1+'User Parameters'!$C$51)^((12+UP_COC_WithholdLag)/12)-1)) -> 0 | Z64: =-'User Parameters'!$C$13*('User Parameters'!$C$14-1) -> 0 | AA64: 0.02018820766 | AB64: 0.9996634996 | AC64: 0.0002231843399 | AD64: 0.0002231843399 | AE64: 0.0002231843399 | AF64: =IF($AA64<-'Results Dashboard'!$J$7,$AA64+'Results Dashboard'!$J$7,0) -> 0 | AG64: =IF($AA64<-'Results Dashboard'!$J$8,$AA64+'Results Dashboard'!$J$8,0) -> 0 | AH64: =IF($AA64<-'Results Dashboard'!$J$9,$AA64+'Results Dashboard'!$J$9,0) -> 0 | AI64: =IF($AA64<-'Results Dashboard'!$J$11,$AA64+'Results Dashboard'!$J$11,0) -> 0 | AJ64: =IF($AA64<-'Results Dashboard'!$J$10,$AA64+'Results Dashboard'!$J$10,0) -> 0 | AL64: =IF((X64+W64)>0,(X64+W64)*0.5*'User Parameters'!C$50,(X64+W64)*0.5*'User Parameters'!$C$51) -> 0 | AM64: =-'User Parameters'!$C$13*('User Parameters'!$C$14-1) -> 0 | AN64: 0.02018820766
A65: 0.7519297158 | B65: 634.4228257 | C65: 477.041375 | D65: 0.7519297158 | E65: ='User Parameters'!$C$11 -> 50 | F65: =B65*'User Parameters'!$C$15 -> 6.344228257 | G65: 101.0372224 | H65: 0.1592584919 | I65: 0.7595249654 | J65: =IF(UP_RSBasis="MLR",UP_RSTarget_MLR,IF(UP_RSBasis="Medical Baseline",UP_RSTarget_Medlcal,0)) -> 0 | K65: 0 | L65: 0 | M65: 0 | N65: 0 | O65: 0 | P65: 0 | Q65: 0 | S65: 0 | T65: =(S65+C65+'User Parameters'!$C$12)/(B65-F65) -> 0.7595249654 | U65: =IF(T65<'User Parameters'!$J$5,'User Parameters'!$J$5,IF(T65>'User Parameters'!$J$6,'User Parameters'!$J$6,T65)) -> 0.9 | V65: 88.2293627 | W65: 0.1390702842 | X65: =(B65-C65-F65-E65-S65-V65)/'Results Dashboard'!$D$43 -> 0.02018820766 | Y65: =IF((X65+W65)>0,(X65+W65)*0.5*((1+'User Parameters'!C$50)^((12+UP_COC_WithholdLag)/12)-1),(X65+W65)*0.5*((1+'User Parameters'!$C$51)^((12+UP_COC_WithholdLag)/12)-1)) -> 0 | Z65: =-'User Parameters'!$C$13*('User Parameters'!$C$14-1) -> 0 | AA65: 0.02018820766 | AB65: 0.9994403152 | AC65: 0.000353866871 | AD65: 0.000353866871 | AE65: 0.000353866871 | AF65: =IF($AA65<-'Results Dashboard'!$J$7,$AA65+'Results Dashboard'!$J$7,0) -> 0 | AG65: =IF($AA65<-'Results Dashboard'!$J$8,$AA65+'Results Dashboard'!$J$8,0) -> 0 | AH65: =IF($AA65<-'Results Dashboard'!$J$9,$AA65+'Results Dashboard'!$J$9,0) -> 0 | AI65: =IF($AA65<-'Results Dashboard'!$J$11,$AA65+'Results Dashboard'!$J$11,0) -> 0 | AJ65: =IF($AA65<-'Results Dashboard'!$J$10,$AA65+'Results Dashboard'!$J$10,0) -> 0 | AL65: =IF((X65+W65)>0,(X65+W65)*0.5*'User Parameters'!C$50,(X65+W65)*0.5*'User Parameters'!$C$51) -> 0 | AM65: =-'User Parameters'!$C$13*('User Parameters'!$C$14-1) -> 0 | AN65: 0.02018820766
A66: 0.7569297158 | B66: 634.4228257 | C66: 480.2134892 | D66: 0.7569297158 | E66: ='User Parameters'!$C$11 -> 50 | F66: =B66*'User Parameters'!$C$15 -> 6.344228257 | G66: 97.86510832 | H66: 0.1542584919 | I66: 0.7645754705 | J66: =IF(UP_RSBasis="MLR",UP_RSTarget_MLR,IF(UP_RSBasis="Medical Baseline",UP_RSTarget_Medlcal,0)) -> 0 | K66: 0 | L66: 0 | M66: 0 | N66: 0 | O66: 0 | P66: 0 | Q66: 0 | S66: 0 | T66: =(S66+C66+'User Parameters'!$C$12)/(B66-F66) -> 0.7645754705 | U66: =IF(T66<'User Parameters'!$J$5,'User Parameters'!$J$5,IF(T66>'User Parameters'!$J$6,'User Parameters'!$J$6,T66)) -> 0.9 | V66: 85.05724857 | W66: 0.1340702842 | X66: =(B66-C66-F66-E66-S66-V66)/'Results Dashboard'!$D$43 -> 0.02018820766 | Y66: =IF((X66+W66)>0,(X66+W66)*0.5*((1+'User Parameters'!C$50)^((12+UP_COC_WithholdLag)/12)-1),(X66+W66)*0.5*((1+'User Parameters'!$C$51)^((12+UP_COC_WithholdLag)/12)-1)) -> 0 | Z66: =-'User Parameters'!$C$13*('User Parameters'!$C$14-1) -> 0 | AA66: 0.02018820766 | AB66: 0.9990864484 | AC66: 0.0005499366771 | AD66: 0.0005499366771 | AE66: 0.0005499366771 | AF66: =IF($AA66<-'Results Dashboard'!$J$7,$AA66+'Results Dashboard'!$J$7,0) -> 0 | AG66: =IF($AA66<-'Results Dashboard'!$J$8,$AA66+'Results Dashboard'!$J$8,0) -> 0 | AH66: =IF($AA66<-'Results Dashboard'!$J$9,$AA66+'Results Dashboard'!$J$9,0) -> 0 | AI66: =IF($AA66<-'Results Dashboard'!$J$11,$AA66+'Results Dashboard'!$J$11,0) -> 0 | AJ66: =IF($AA66<-'Results Dashboard'!$J$10,$AA66+'Results Dashboard'!$J$10,0) -> 0 | AL66: =IF((X66+W66)>0,(X66+W66)*0.5*'User Parameters'!C$50,(X66+W66)*0.5*'User Parameters'!$C$51) -> 0 | AM66: =-'User Parameters'!$C$13*('User Parameters'!$C$14-1) -> 0 | AN66: 0.02018820766
A67: 0.7619297158 | B67: 634.4228257 | C67: 483.3856033 | D67: 0.7619297158 | E67: ='User Parameters'!$C$11 -> 50 | F67: =B67*'User Parameters'!$C$15 -> 6.344228257 | G67: 94.69299419 | H67: 0.1492584919 | I67: 0.7696259755 | J67: =IF(UP_RSBasis="MLR",UP_RSTarget_MLR,IF(UP_RSBasis="Medical Baseline",UP_RSTarget_Medlcal,0)) -> 0 | K67: 0 | L67: 0 | M67: 0 | N67: 0 | O67: 0 | P67: 0 | Q67: 0 | S67: 0 | T67: =(S67+C67+'User Parameters'!$C$12)/(B67-F67) -> 0.7696259755 | U67: =IF(T67<'User Parameters'!$J$5,'User Parameters'!$J$5,IF(T67>'User Parameters'!$J$6,'User Parameters'!$J$6,T67)) -> 0.9 | V67: 81.88513444 | W67: 0.1290702842 | X67: =(B67-C67-F67-E67-S67-V67)/'Results Dashboard'!$D$43 -> 0.02018820766 | Y67: =IF((X67+W67)>0,(X67+W67)*0.5*((1+'User Parameters'!C$50)^((12+UP_COC_WithholdLag)/12)-1),(X67+W67)*0.5*((1+'User Parameters'!$C$51)^((12+UP_COC_WithholdLag)/12)-1)) -> 0 | Z67: =-'User Parameters'!$C$13*('User Parameters'!$C$14-1) -> 0 | AA67: 0.02018820766 | AB67: 0.9985365117 | AC67: 0.0008376875653 | AD67: 0.0008376875653 | AE67: 0.0008376875653 | AF67: =IF($AA67<-'Results Dashboard'!$J$7,$AA67+'Results Dashboard'!$J$7,0) -> 0 | AG67: =IF($AA67<-'Results Dashboard'!$J$8,$AA67+'Results Dashboard'!$J$8,0) -> 0 | AH67: =IF($AA67<-'Results Dashboard'!$J$9,$AA67+'Results Dashboard'!$J$9,0) -> 0 | AI67: =IF($AA67<-'Results Dashboard'!$J$11,$AA67+'Results Dashboard'!$J$11,0) -> 0 | AJ67: =IF($AA67<-'Results Dashboard'!$J$10,$AA67+'Results Dashboard'!$J$10,0) -> 0 | AL67: =IF((X67+W67)>0,(X67+W67)*0.5*'User Parameters'!C$50,(X67+W67)*0.5*'User Parameters'!$C$51) -> 0 | AM67: =-'User Parameters'!$C$13*('User Parameters'!$C$14-1) -> 0 | AN67: 0.02018820766
A68: 0.7669297158 | B68: 634.4228257 | C68: 486.5577174 | D68: 0.7669297158 | E68: ='User Parameters'!$C$11 -> 50 | F68: =B68*'User Parameters'!$C$15 -> 6.344228257 | G68: 91.52088006 | H68: 0.1442584919 | I68: 0.7746764806 | J68: =IF(UP_RSBasis="MLR",UP_RSTarget_MLR,IF(UP_RSBasis="Medical Baseline",UP_RSTarget_Medlcal,0)) -> 0 | K68: 0 | L68: 0 | M68: 0 | N68: 0 | O68: 0 | P68: 0 | Q68: 0 | S68: 0 | T68: =(S68+C68+'User Parameters'!$C$12)/(B68-F68) -> 0.7746764806 | U68: =IF(T68<'User Parameters'!$J$5,'User Parameters'!$J$5,IF(T68>'User Parameters'!$J$6,'User Parameters'!$J$6,T68)) -> 0.9 | V68: 78.71302031 | W68: 0.1240702842 | X68: =(B68-C68-F68-E68-S68-V68)/'Results Dashboard'!$D$43 -> 0.02018820766 | Y68: =IF((X68+W68)>0,(X68+W68)*0.5*((1+'User Parameters'!C$50)^((12+UP_COC_WithholdLag)/12)-1),(X68+W68)*0.5*((1+'User Parameters'!$C$51)^((12+UP_COC_WithholdLag)/12)-1)) -> 0 | Z68: =-'User Parameters'!$C$13*('User Parameters'!$C$14-1) -> 0 | AA68: 0.02018820766 | AB68: 0.9976988241 | AC68: 0.001250685368 | AD68: 0.001250685368 | AE68: 0.001250685368 | AF68: =IF($AA68<-'Results Dashboard'!$J$7,$AA68+'Results Dashboard'!$J$7,0) -> 0 | AG68: =IF($AA68<-'Results Dashboard'!$J$8,$AA68+'Results Dashboard'!$J$8,0) -> 0 | AH68: =IF($AA68<-'Results Dashboard'!$J$9,$AA68+'Results Dashboard'!$J$9,0) -> 0 | AI68: =IF($AA68<-'Results Dashboard'!$J$11,$AA68+'Results Dashboard'!$J$11,0) -> 0 | AJ68: =IF($AA68<-'Results Dashboard'!$J$10,$AA68+'Results Dashboard'!$J$10,0) -> 0 | AL68: =IF((X68+W68)>0,(X68+W68)*0.5*'User Parameters'!C$50,(X68+W68)*0.5*'User Parameters'!$C$51) -> 0 | AM68: =-'User Parameters'!$C$13*('User Parameters'!$C$14-1) -> 0 | AN68: 0.02018820766
A69: 0.7719297158 | B69: 634.4228257 | C69: 489.7298316 | D69: 0.7719297158 | E69: ='User Parameters'!$C$11 -> 50 | F69: =B69*'User Parameters'!$C$15 -> 6.344228257 | G69: 88.34876593 | H69: 0.1392584919 | I69: 0.7797269856 | J69: =IF(UP_RSBasis="MLR",UP_RSTarget_MLR,IF(UP_RSBasis="Medical Baseline",UP_RSTarget_Medlcal,0)) -> 0 | K69: 0 | L69: 0 | M69: 0 | N69: 0 | O69: 0 | P69: 0 | Q69: 0 | S69: 0 | T69: =(S69+C69+'User Parameters'!$C$12)/(B69-F69) -> 0.7797269856 | U69: =IF(T69<'User Parameters'!$J$5,'User Parameters'!$J$5,IF(T69>'User Parameters'!$J$6,'User Parameters'!$J$6,T69)) -> 0.9 | V69: 75.54090618 | W69: 0.1190702842 | X69: =(B69-C69-F69-E69-S69-V69)/'Results Dashboard'!$D$43 -> 0.02018820766 | Y69: =IF((X69+W69)>0,(X69+W69)*0.5*((1+'User Parameters'!C$50)^((12+UP_COC_WithholdLag)/12)-1),(X69+W69)*0.5*((1+'User Parameters'!$C$51)^((12+UP_COC_WithholdLag)/12)-1)) -> 0 | Z69: =-'User Parameters'!$C$13*('User Parameters'!$C$14-1) -> 0 | AA69: 0.02018820766 | AB69: 0.9964481387 | AC69: 0.001830251186 | AD69: 0.001830251186 | AE69: 0.001830251186 | AF69: =IF($AA69<-'Results Dashboard'!$J$7,$AA69+'Results Dashboard'!$J$7,0) -> 0 | AG69: =IF($AA69<-'Results Dashboard'!$J$8,$AA69+'Results Dashboard'!$J$8,0) -> 0 | AH69: =IF($AA69<-'Results Dashboard'!$J$9,$AA69+'Results Dashboard'!$J$9,0) -> 0 | AI69: =IF($AA69<-'Results Dashboard'!$J$11,$AA69+'Results Dashboard'!$J$11,0) -> 0 | AJ69: =IF($AA69<-'Results Dashboard'!$J$10,$AA69+'Results Dashboard'!$J$10,0) -> 0 | AL69: =IF((X69+W69)>0,(X69+W69)*0.5*'User Parameters'!C$50,(X69+W69)*0.5*'User Parameters'!$C$51) -> 0 | AM69: =-'User Parameters'!$C$13*('User Parameters'!$C$14-1) -> 0 | AN69: 0.02018820766
A70: 0.7769297158 | B70: 634.4228257 | C70: 492.9019457 | D70: 0.7769297158 | E70: ='User Parameters'!$C$11 -> 50 | F70: =B70*'User Parameters'!$C$15 -> 6.344228257 | G70: 85.1766518 | H70: 0.1342584919 | I70: 0.7847774907 | J70: =IF(UP_RSBasis="MLR",UP_RSTarget_MLR,IF(UP_RSBasis="Medical Baseline",UP_RSTarget_Medlcal,0)) -> 0 | K70: 0 | L70: 0 | M70: 0 | N70: 0 | O70: 0 | P70: 0 | Q70: 0 | S70: 0 | T70: =(S70+C70+'User Parameters'!$C$12)/(B70-F70) -> 0.7847774907 | U70: =IF(T70<'User Parameters'!$J$5,'User Parameters'!$J$5,IF(T70>'User Parameters'!$J$6,'User Parameters'!$J$6,T70)) -> 0.9 | V70: 72.36879205 | W70: 0.1140702842 | X70: =(B70-C70-F70-E70-S70-V70)/'Results Dashboard'!$D$43 -> 0.02018820766 | Y70: =IF((X70+W70)>0,(X70+W70)*0.5*((1+'User Parameters'!C$50)^((12+UP_COC_WithholdLag)/12)-1),(X70+W70)*0.5*((1+'User Parameters'!$C$51)^((12+UP_COC_WithholdLag)/12)-1)) -> 0 | Z70: =-'User Parameters'!$C$13*('User Parameters'!$C$14-1) -> 0 | AA70: 0.02018820766 | AB70: 0.9946178876 | AC70: 0.002625245752 | AD70: 0.002625245752 | AE70: 0.002625245752 | AF70: =IF($AA70<-'Results Dashboard'!$J$7,$AA70+'Results Dashboard'!$J$7,0) -> 0 | AG70: =IF($AA70<-'Results Dashboard'!$J$8,$AA70+'Results Dashboard'!$J$8,0) -> 0 | AH70: =IF($AA70<-'Results Dashboard'!$J$9,$AA70+'Results Dashboard'!$J$9,0) -> 0 | AI70: =IF($AA70<-'Results Dashboard'!$J$11,$AA70+'Results Dashboard'!$J$11,0) -> 0 | AJ70: =IF($AA70<-'Results Dashboard'!$J$10,$AA70+'Results Dashboard'!$J$10,0) -> 0 | AL70: =IF((X70+W70)>0,(X70+W70)*0.5*'User Parameters'!C$50,(X70+W70)*0.5*'User Parameters'!$C$51) -> 0 | AM70: =-'User Parameters'!$C$13*('User Parameters'!$C$14-1) -> 0 | AN70: 0.02018820766
A71: 0.7819297158 | B71: 634.4228257 | C71: 496.0740598 | D71: 0.7819297158 | E71: ='User Parameters'!$C$11 -> 50 | F71: =B71*'User Parameters'!$C$15 -> 6.344228257 | G71: 82.00453767 | H71: 0.1292584919 | I71: 0.7898279957 | J71: =IF(UP_RSBasis="MLR",UP_RSTarget_MLR,IF(UP_RSBasis="Medical Baseline",UP_RSTarget_Medlcal,0)) -> 0 | K71: 0 | L71: 0 | M71: 0 | N71: 0 | O71: 0 | P71: 0 | Q71: 0 | S71: 0 | T71: =(S71+C71+'User Parameters'!$C$12)/(B71-F71) -> 0.7898279957 | U71: =IF(T71<'User Parameters'!$J$5,'User Parameters'!$J$5,IF(T71>'User Parameters'!$J$6,'User Parameters'!$J$6,T71)) -> 0.9 | V71: 69.19667792 | W71: 0.1090702842 | X71: =(B71-C71-F71-E71-S71-V71)/'Results Dashboard'!$D$43 -> 0.02018820766 | Y71: =IF((X71+W71)>0,(X71+W71)*0.5*((1+'User Parameters'!C$50)^((12+UP_COC_WithholdLag)/12)-1),(X71+W71)*0.5*((1+'User Parameters'!$C$51)^((12+UP_COC_WithholdLag)/12)-1)) -> 0 | Z71: =-'User Parameters'!$C$13*('User Parameters'!$C$14-1) -> 0 | AA71: 0.02018820766 | AB71: 0.9919926418 | AC71: 0.00369084563 | AD71: 0.00369084563 | AE71: 0.00369084563 | AF71: =IF($AA71<-'Results Dashboard'!$J$7,$AA71+'Results Dashboard'!$J$7,0) -> 0 | AG71: =IF($AA71<-'Results Dashboard'!$J$8,$AA71+'Results Dashboard'!$J$8,0) -> 0 | AH71: =IF($AA71<-'Results Dashboard'!$J$9,$AA71+'Results Dashboard'!$J$9,0) -> 0 | AI71: =IF($AA71<-'Results Dashboard'!$J$11,$AA71+'Results Dashboard'!$J$11,0) -> 0 | AJ71: =IF($AA71<-'Results Dashboard'!$J$10,$AA71+'Results Dashboard'!$J$10,0) -> 0 | AL71: =IF((X71+W71)>0,(X71+W71)*0.5*'User Parameters'!C$50,(X71+W71)*0.5*'User Parameters'!$C$51) -> 0 | AM71: =-'User Parameters'!$C$13*('User Parameters'!$C$14-1) -> 0 | AN71: 0.02018820766
A72: =A73-0.005 -> 0.7869297158 | B72: =$B$88 -> 634.4228257 | C72: 499.2461739 | D72: 0.7869297158 | E72: ='User Parameters'!$C$11 -> 50 | F72: =B72*'User Parameters'!$C$15 -> 6.344228257 | G72: 78.83242354 | H72: 0.1242584919 | I72: 0.7948785008 | J72: =IF(UP_RSBasis="MLR",UP_RSTarget_MLR,IF(UP_RSBasis="Medical Baseline",UP_RSTarget_Medlcal,0)) -> 0 | K72: =IF(UP_RSBasis="MLR",J72-I72,IF(UP_RSBasis="Medical Baseline",J72-$C72,0)) -> 0 | L72: 0 | M72: 0 | N72: 0 | O72: 0 | P72: 0 | Q72: 0 | R72: =IF(UP_RSBasis="MLR",SUMPRODUCT(L$4:Q$4,L72:Q72),"") ->  | S72: =IF(UP_RSBasis="MLR",R72*(B72-F72),SUMPRODUCT($L$4:$Q$4,$L72:$Q72)) -> 0 | T72: =(S72+C72+'User Parameters'!$C$12)/(B72-F72) -> 0.7948785008 | U72: =IF(T72<'User Parameters'!$J$5,'User Parameters'!$J$5,IF(T72>'User Parameters'!$J$6,'User Parameters'!$J$6,T72)) -> 0.9 | V72: =(U72-T72)*(B72-F72) -> 66.0245638 | W72: =V72/B72 -> 0.1040702842 | X72: =(B72-C72-F72-E72-S72-V72)/'Results Dashboard'!$D$43 -> 0.02018820766 | Y72: =IF((X72+W72)>0,(X72+W72)*0.5*((1+'User Parameters'!C$50)^((12+UP_COC_WithholdLag)/12)-1),(X72+W72)*0.5*((1+'User Parameters'!$C$51)^((12+UP_COC_WithholdLag)/12)-1)) -> 0 | Z72: =-'User Parameters'!$C$13*('User Parameters'!$C$14-1) -> 0 | AA72: 0.02018820766 | AB72: =_xlfn.NORM.DIST(H72,$AD$2,$AD$3,TRUE) -> 0.9883017962 | AC72: 0.005086024612 | AD72: 0.005086024612 | AE72: 0.005086024612 | AF72: =IF($AA72<-'Results Dashboard'!$J$7,$AA72+'Results Dashboard'!$J$7,0) -> 0 | AG72: =IF($AA72<-'Results Dashboard'!$J$8,$AA72+'Results Dashboard'!$J$8,0) -> 0 | AH72: =IF($AA72<-'Results Dashboard'!$J$9,$AA72+'Results Dashboard'!$J$9,0) -> 0 | AI72: =IF($AA72<-'Results Dashboard'!$J$11,$AA72+'Results Dashboard'!$J$11,0) -> 0 | AJ72: =IF($AA72<-'Results Dashboard'!$J$10,$AA72+'Results Dashboard'!$J$10,0) -> 0 | AL72: =IF((X72+W72)>0,(X72+W72)*0.5*'User Parameters'!C$50,(X72+W72)*0.5*'User Parameters'!$C$51) -> 0 | AM72: =-'User Parameters'!$C$13*('User Parameters'!$C$14-1) -> 0 | AN72: 0.02018820766
A73: 0.7919297158 | B73: 634.4228257 | C73: =B73*A73 -> 502.4182881 | D73: =(C73)/(B73) -> 0.7919297158 | E73: ='User Parameters'!$C$11 -> 50 | F73: =B73*'User Parameters'!$C$15 -> 6.344228257 | G73: =B73-E73-C73-F73 -> 75.66030942 | H73: =G73/B73 -> 0.1192584919 | I73: 0.7999290058 | J73: =IF(UP_RSBasis="MLR",UP_RSTarget_MLR,IF(UP_RSBasis="Medical Baseline",UP_RSTarget_Medlcal,0)) -> 0 | K73: 0 | L73: =IF($K73>0,MIN(J73*L$3-J73*L$2,$K73-M73-N73),0) -> 0 | M73: =IF($K73>0,MIN(J73*M$3-J73*M$2,$K73-N73),0) -> 0 | N73: =IF($K73>0,MIN(J73*N$3-J73*N$2,$K73),0) -> 0 | O73: =IF($K73<0,MAX(J73*O$2-J73*O$3,$K73),0) -> 0 | P73: =IF($K73<0,MAX(J73*P$2-J73*P$3,$K73-O73),0) -> 0 | Q73: =IF($K73<0,MAX(J73*Q$2-J73*Q$3,$K73-P73-O73),0) -> 0 | S73: 0 | T73: =(S73+C73+'User Parameters'!$C$12)/(B73-F73) -> 0.7999290058 | U73: =IF(T73<'User Parameters'!$J$5,'User Parameters'!$J$5,IF(T73>'User Parameters'!$J$6,'User Parameters'!$J$6,T73)) -> 0.9 | V73: 62.85244967 | W73: 0.09907028423 | X73: =(B73-C73-F73-E73-S73-V73)/'Results Dashboard'!$D$43 -> 0.02018820766 | Y73: =IF((X73+W73)>0,(X73+W73)*0.5*((1+'User Parameters'!C$50)^((12+UP_COC_WithholdLag)/12)-1),(X73+W73)*0.5*((1+'User Parameters'!$C$51)^((12+UP_COC_WithholdLag)/12)-1)) -> 0 | Z73: =-'User Parameters'!$C$13*('User Parameters'!$C$14-1) -> 0 | AA73: =Y73+X73-Z73 -> 0.02018820766 | AB73: 0.9832157716 | AC73: =AB73-AB74 -> 0.006869540724 | AD73: 0.006869540724 | AE73: =AD73 -> 0.006869540724 | AF73: =IF($AA73<-'Results Dashboard'!$J$7,$AA73+'Results Dashboard'!$J$7,0) -> 0 | AG73: =IF($AA73<-'Results Dashboard'!$J$8,$AA73+'Results Dashboard'!$J$8,0) -> 0 | AH73: =IF($AA73<-'Results Dashboard'!$J$9,$AA73+'Results Dashboard'!$J$9,0) -> 0 | AI73: =IF($AA73<-'Results Dashboard'!$J$11,$AA73+'Results Dashboard'!$J$11,0) -> 0 | AJ73: =IF($AA73<-'Results Dashboard'!$J$10,$AA73+'Results Dashboard'!$J$10,0) -> 0 | AL73: =IF((X73+W73)>0,(X73+W73)*0.5*'User Parameters'!C$50,(X73+W73)*0.5*'User Parameters'!$C$51) -> 0 | AM73: =-'User Parameters'!$C$13*('User Parameters'!$C$14-1) -> 0 | AN73: =-AL73+X73-AM73 -> 0.02018820766
A74: 0.7969297158 | B74: 634.4228257 | C74: 505.5904022 | D74: 0.7969297158 | E74: ='User Parameters'!$C$11 -> 50 | F74: =B74*'User Parameters'!$C$15 -> 6.344228257 | G74: 72.48819529 | H74: 0.1142584919 | I74: 0.8049795109 | J74: =IF(UP_RSBasis="MLR",UP_RSTarget_MLR,IF(UP_RSBasis="Medical Baseline",UP_RSTarget_Medlcal,0)) -> 0 | K74: 0 | L74: 0 | M74: 0 | N74: 0 | O74: 0 | P74: 0 | Q74: 0 | S74: 0 | T74: =(S74+C74+'User Parameters'!$C$12)/(B74-F74) -> 0.8049795109 | U74: =IF(T74<'User Parameters'!$J$5,'User Parameters'!$J$5,IF(T74>'User Parameters'!$J$6,'User Parameters'!$J$6,T74)) -> 0.9 | V74: 59.68033554 | W74: 0.09407028423 | X74: =(B74-C74-F74-E74-S74-V74)/'Results Dashboard'!$D$43 -> 0.02018820766 | Y74: =IF((X74+W74)>0,(X74+W74)*0.5*((1+'User Parameters'!C$50)^((12+UP_COC_WithholdLag)/12)-1),(X74+W74)*0.5*((1+'User Parameters'!$C$51)^((12+UP_COC_WithholdLag)/12)-1)) -> 0 | Z74: =-'User Parameters'!$C$13*('User Parameters'!$C$14-1) -> 0 | AA74: 0.02018820766 | AB74: 0.9763462308 | AC74: 0.009094391059 | AD74: =AC74 -> 0.009094391059 | AE74: 0.009094391059 | AF74: =IF($AA74<-'Results Dashboard'!$J$7,$AA74+'Results Dashboard'!$J$7,0) -> 0 | AG74: =IF($AA74<-'Results Dashboard'!$J$8,$AA74+'Results Dashboard'!$J$8,0) -> 0 | AH74: =IF($AA74<-'Results Dashboard'!$J$9,$AA74+'Results Dashboard'!$J$9,0) -> 0 | AI74: =IF($AA74<-'Results Dashboard'!$J$11,$AA74+'Results Dashboard'!$J$11,0) -> 0 | AJ74: =IF($AA74<-'Results Dashboard'!$J$10,$AA74+'Results Dashboard'!$J$10,0) -> 0 | AL74: =IF((X74+W74)>0,(X74+W74)*0.5*'User Parameters'!C$50,(X74+W74)*0.5*'User Parameters'!$C$51) -> 0 | AM74: =-'User Parameters'!$C$13*('User Parameters'!$C$14-1) -> 0 | AN74: 0.02018820766
A75: 0.8019297158 | B75: 634.4228257 | C75: 508.7625163 | D75: 0.8019297158 | E75: ='User Parameters'!$C$11 -> 50 | F75: =B75*'User Parameters'!$C$15 -> 6.344228257 | G75: 69.31608116 | H75: 0.1092584919 | I75: 0.8100300159 | J75: =IF(UP_RSBasis="MLR",UP_RSTarget_MLR,IF(UP_RSBasis="Medical Baseline",UP_RSTarget_Medlcal,0)) -> 0 | K75: 0 | L75: 0 | M75: 0 | N75: 0 | O75: 0 | P75: 0 | Q75: 0 | S75: 0 | T75: =(S75+C75+'User Parameters'!$C$12)/(B75-F75) -> 0.8100300159 | U75: =IF(T75<'User Parameters'!$J$5,'User Parameters'!$J$5,IF(T75>'User Parameters'!$J$6,'User Parameters'!$J$6,T75)) -> 0.9 | V75: 56.50822141 | W75: 0.08907028423 | X75: =(B75-C75-F75-E75-S75-V75)/'Results Dashboard'!$D$43 -> 0.02018820766 | Y75: =IF((X75+W75)>0,(X75+W75)*0.5*((1+'User Parameters'!C$50)^((12+UP_COC_WithholdLag)/12)-1),(X75+W75)*0.5*((1+'User Parameters'!$C$51)^((12+UP_COC_WithholdLag)/12)-1)) -> 0 | Z75: =-'User Parameters'!$C$13*('User Parameters'!$C$14-1) -> 0 | AA75: 0.02018820766 | AB75: 0.9672518398 | AC75: 0.01180092997 | AD75: 0.01180092997 | AE75: 0.01180092997 | AF75: =IF($AA75<-'Results Dashboard'!$J$7,$AA75+'Results Dashboard'!$J$7,0) -> 0 | AG75: =IF($AA75<-'Results Dashboard'!$J$8,$AA75+'Results Dashboard'!$J$8,0) -> 0 | AH75: =IF($AA75<-'Results Dashboard'!$J$9,$AA75+'Results Dashboard'!$J$9,0) -> 0 | AI75: =IF($AA75<-'Results Dashboard'!$J$11,$AA75+'Results Dashboard'!$J$11,0) -> 0 | AJ75: =IF($AA75<-'Results Dashboard'!$J$10,$AA75+'Results Dashboard'!$J$10,0) -> 0 | AL75: =IF((X75+W75)>0,(X75+W75)*0.5*'User Parameters'!C$50,(X75+W75)*0.5*'User Parameters'!$C$51) -> 0 | AM75: =-'User Parameters'!$C$13*('User Parameters'!$C$14-1) -> 0 | AN75: 0.02018820766
A76: 0.8069297158 | B76: 634.4228257 | C76: 511.9346305 | D76: 0.8069297158 | E76: ='User Parameters'!$C$11 -> 50 | F76: =B76*'User Parameters'!$C$15 -> 6.344228257 | G76: 66.14396703 | H76: 0.1042584919 | I76: 0.815080521 | J76: =IF(UP_RSBasis="MLR",UP_RSTarget_MLR,IF(UP_RSBasis="Medical Baseline",UP_RSTarget_Medlcal,0)) -> 0 | K76: 0 | L76: 0 | M76: 0 | N76: 0 | O76: 0 | P76: 0 | Q76: 0 | S76: 0 | T76: =(S76+C76+'User Parameters'!$C$12)/(B76-F76) -> 0.815080521 | U76: =IF(T76<'User Parameters'!$J$5,'User Parameters'!$J$5,IF(T76>'User Parameters'!$J$6,'User Parameters'!$J$6,T76)) -> 0.9 | V76: 53.33610728 | W76: 0.08407028423 | X76: =(B76-C76-F76-E76-S76-V76)/'Results Dashboard'!$D$43 -> 0.02018820766 | Y76: =IF((X76+W76)>0,(X76+W76)*0.5*((1+'User Parameters'!C$50)^((12+UP_COC_WithholdLag)/12)-1),(X76+W76)*0.5*((1+'User Parameters'!$C$51)^((12+UP_COC_WithholdLag)/12)-1)) -> 0 | Z76: =-'User Parameters'!$C$13*('User Parameters'!$C$14-1) -> 0 | AA76: 0.02018820766 | AB76: 0.9554509098 | AC76: 0.01500913052 | AD76: 0.01500913052 | AE76: 0.01500913052 | AF76: =IF($AA76<-'Results Dashboard'!$J$7,$AA76+'Results Dashboard'!$J$7,0) -> 0 | AG76: =IF($AA76<-'Results Dashboard'!$J$8,$AA76+'Results Dashboard'!$J$8,0) -> 0 | AH76: =IF($AA76<-'Results Dashboard'!$J$9,$AA76+'Results Dashboard'!$J$9,0) -> 0 | AI76: =IF($AA76<-'Results Dashboard'!$J$11,$AA76+'Results Dashboard'!$J$11,0) -> 0 | AJ76: =IF($AA76<-'Results Dashboard'!$J$10,$AA76+'Results Dashboard'!$J$10,0) -> 0 | AL76: =IF((X76+W76)>0,(X76+W76)*0.5*'User Parameters'!C$50,(X76+W76)*0.5*'User Parameters'!$C$51) -> 0 | AM76: =-'User Parameters'!$C$13*('User Parameters'!$C$14-1) -> 0 | AN76: 0.02018820766
A77: 0.8119297158 | B77: 634.4228257 | C77: 515.1067446 | D77: 0.8119297158 | E77: ='User Parameters'!$C$11 -> 50 | F77: =B77*'User Parameters'!$C$15 -> 6.344228257 | G77: =B77-E77-C77-F77 -> 62.9718529 | H77: 0.09925849189 | I77: 0.820131026 | J77: =IF(UP_RSBasis="MLR",UP_RSTarget_MLR,IF(UP_RSBasis="Medical Baseline",UP_RSTarget_Medlcal,0)) -> 0 | K77: 0 | L77: 0 | M77: 0 | N77: 0 | O77: 0 | P77: 0 | Q77: 0 | S77: 0 | T77: =(S77+C77+'User Parameters'!$C$12)/(B77-F77) -> 0.820131026 | U77: =IF(T77<'User Parameters'!$J$5,'User Parameters'!$J$5,IF(T77>'User Parameters'!$J$6,'User Parameters'!$J$6,T77)) -> 0.9 | V77: 50.16399315 | W77: 0.07907028423 | X77: =(B77-C77-F77-E77-S77-V77)/'Results Dashboard'!$D$43 -> 0.02018820766 | Y77: =IF((X77+W77)>0,(X77+W77)*0.5*((1+'User Parameters'!C$50)^((12+UP_COC_WithholdLag)/12)-1),(X77+W77)*0.5*((1+'User Parameters'!$C$51)^((12+UP_COC_WithholdLag)/12)-1)) -> 0 | Z77: =-'User Parameters'!$C$13*('User Parameters'!$C$14-1) -> 0 | AA77: 0.02018820766 | AB77: 0.9404417793 | AC77: 0.01871076464 | AD77: 0.01871076464 | AE77: 0.01871076464 | AF77: =IF($AA77<-'Results Dashboard'!$J$7,$AA77+'Results Dashboard'!$J$7,0) -> 0 | AG77: =IF($AA77<-'Results Dashboard'!$J$8,$AA77+'Results Dashboard'!$J$8,0) -> 0 | AH77: =IF($AA77<-'Results Dashboard'!$J$9,$AA77+'Results Dashboard'!$J$9,0) -> 0 | AI77: =IF($AA77<-'Results Dashboard'!$J$11,$AA77+'Results Dashboard'!$J$11,0) -> 0 | AJ77: =IF($AA77<-'Results Dashboard'!$J$10,$AA77+'Results Dashboard'!$J$10,0) -> 0 | AL77: =IF((X77+W77)>0,(X77+W77)*0.5*'User Parameters'!C$50,(X77+W77)*0.5*'User Parameters'!$C$51) -> 0 | AM77: =-'User Parameters'!$C$13*('User Parameters'!$C$14-1) -> 0 | AN77: 0.02018820766
A78: 0.8169297158 | B78: 634.4228257 | C78: 518.2788587 | D78: 0.8169297158 | E78: ='User Parameters'!$C$11 -> 50 | F78: =B78*'User Parameters'!$C$15 -> 6.344228257 | G78: 59.79973877 | H78: 0.09425849189 | I78: 0.8251815311 | J78: =IF(UP_RSBasis="MLR",UP_RSTarget_MLR,IF(UP_RSBasis="Medical Baseline",UP_RSTarget_Medlcal,0)) -> 0 | K78: 0 | L78: 0 | M78: 0 | N78: 0 | O78: 0 | P78: 0 | Q78: 0 | S78: 0 | T78: =(S78+C78+'User Parameters'!$C$12)/(B78-F78) -> 0.8251815311 | U78: =IF(T78<'User Parameters'!$J$5,'User Parameters'!$J$5,IF(T78>'User Parameters'!$J$6,'User Parameters'!$J$6,T78)) -> 0.9 | V78: 46.99187902 | W78: 0.07407028423 | X78: =(B78-C78-F78-E78-S78-V78)/'Results Dashboard'!$D$43 -> 0.02018820766 | Y78: =IF((X78+W78)>0,(X78+W78)*0.5*((1+'User Parameters'!C$50)^((12+UP_COC_WithholdLag)/12)-1),(X78+W78)*0.5*((1+'User Parameters'!$C$51)^((12+UP_COC_WithholdLag)/12)-1)) -> 0 | Z78: =-'User Parameters'!$C$13*('User Parameters'!$C$14-1) -> 0 | AA78: 0.02018820766 | AB78: 0.9217310147 | AC78: 0.02286252767 | AD78: 0.02286252767 | AE78: 0.02286252767 | AF78: =IF($AA78<-'Results Dashboard'!$J$7,$AA78+'Results Dashboard'!$J$7,0) -> 0 | AG78: =IF($AA78<-'Results Dashboard'!$J$8,$AA78+'Results Dashboard'!$J$8,0) -> 0 | AH78: =IF($AA78<-'Results Dashboard'!$J$9,$AA78+'Results Dashboard'!$J$9,0) -> 0 | AI78: =IF($AA78<-'Results Dashboard'!$J$11,$AA78+'Results Dashboard'!$J$11,0) -> 0 | AJ78: =IF($AA78<-'Results Dashboard'!$J$10,$AA78+'Results Dashboard'!$J$10,0) -> 0 | AL78: =IF((X78+W78)>0,(X78+W78)*0.5*'User Parameters'!C$50,(X78+W78)*0.5*'User Parameters'!$C$51) -> 0 | AM78: =-'User Parameters'!$C$13*('User Parameters'!$C$14-1) -> 0 | AN78: 0.02018820766
A79: 0.8219297158 | B79: 634.4228257 | C79: 521.4509728 | D79: 0.8219297158 | E79: ='User Parameters'!$C$11 -> 50 | F79: =B79*'User Parameters'!$C$15 -> 6.344228257 | G79: 56.62762464 | H79: 0.08925849189 | I79: 0.8302320361 | J79: =IF(UP_RSBasis="MLR",UP_RSTarget_MLR,IF(UP_RSBasis="Medical Baseline",UP_RSTarget_Medlcal,0)) -> 0 | K79: 0 | L79: 0 | M79: 0 | N79: 0 | O79: 0 | P79: 0 | Q79: 0 | S79: 0 | T79: =(S79+C79+'User Parameters'!$C$12)/(B79-F79) -> 0.8302320361 | U79: =IF(T79<'User Parameters'!$J$5,'User Parameters'!$J$5,IF(T79>'User Parameters'!$J$6,'User Parameters'!$J$6,T79)) -> 0.9 | V79: 43.81976489 | W79: 0.06907028423 | X79: =(B79-C79-F79-E79-S79-V79)/'Results Dashboard'!$D$43 -> 0.02018820766 | Y79: =IF((X79+W79)>0,(X79+W79)*0.5*((1+'User Parameters'!C$50)^((12+UP_COC_WithholdLag)/12)-1),(X79+W79)*0.5*((1+'User Parameters'!$C$51)^((12+UP_COC_WithholdLag)/12)-1)) -> 0 | Z79: =-'User Parameters'!$C$13*('User Parameters'!$C$14-1) -> 0 | AA79: 0.02018820766 | AB79: 0.898868487 | AC79: 0.02738127486 | AD79: 0.02738127486 | AE79: 0.02738127486 | AF79: =IF($AA79<-'Results Dashboard'!$J$7,$AA79+'Results Dashboard'!$J$7,0) -> 0 | AG79: =IF($AA79<-'Results Dashboard'!$J$8,$AA79+'Results Dashboard'!$J$8,0) -> 0 | AH79: =IF($AA79<-'Results Dashboard'!$J$9,$AA79+'Results Dashboard'!$J$9,0) -> 0 | AI79: =IF($AA79<-'Results Dashboard'!$J$11,$AA79+'Results Dashboard'!$J$11,0) -> 0 | AJ79: =IF($AA79<-'Results Dashboard'!$J$10,$AA79+'Results Dashboard'!$J$10,0) -> 0 | AL79: =IF((X79+W79)>0,(X79+W79)*0.5*'User Parameters'!C$50,(X79+W79)*0.5*'User Parameters'!$C$51) -> 0 | AM79: =-'User Parameters'!$C$13*('User Parameters'!$C$14-1) -> 0 | AN79: 0.02018820766
A80: 0.8269297158 | B80: 634.4228257 | C80: 524.623087 | D80: 0.8269297158 | E80: ='User Parameters'!$C$11 -> 50 | F80: =B80*'User Parameters'!$C$15 -> 6.344228257 | G80: 53.45551051 | H80: 0.08425849189 | I80: 0.8352825412 | J80: =IF(UP_RSBasis="MLR",UP_RSTarget_MLR,IF(UP_RSBasis="Medical Baseline",UP_RSTarget_Medlcal,0)) -> 0 | K80: 0 | L80: 0 | M80: 0 | N80: 0 | O80: 0 | P80: 0 | Q80: 0 | S80: 0 | T80: =(S80+C80+'User Parameters'!$C$12)/(B80-F80) -> 0.8352825412 | U80: =IF(T80<'User Parameters'!$J$5,'User Parameters'!$J$5,IF(T80>'User Parameters'!$J$6,'User Parameters'!$J$6,T80)) -> 0.9 | V80: 40.64765077 | W80: 0.06407028423 | X80: =(B80-C80-F80-E80-S80-V80)/'Results Dashboard'!$D$43 -> 0.02018820766 | Y80: =IF((X80+W80)>0,(X80+W80)*0.5*((1+'User Parameters'!C$50)^((12+UP_COC_WithholdLag)/12)-1),(X80+W80)*0.5*((1+'User Parameters'!$C$51)^((12+UP_COC_WithholdLag)/12)-1)) -> 0 | Z80: =-'User Parameters'!$C$13*('User Parameters'!$C$14-1) -> 0 | AA80: 0.02018820766 | AB80: 0.8714872121 | AC80: 0.03214251115 | AD80: 0.03214251115 | AE80: 0.03214251115 | AF80: =IF($AA80<-'Results Dashboard'!$J$7,$AA80+'Results Dashboard'!$J$7,0) -> 0 | AG80: =IF($AA80<-'Results Dashboard'!$J$8,$AA80+'Results Dashboard'!$J$8,0) -> 0 | AH80: =IF($AA80<-'Results Dashboard'!$J$9,$AA80+'Results Dashboard'!$J$9,0) -> 0 | AI80: =IF($AA80<-'Results Dashboard'!$J$11,$AA80+'Results Dashboard'!$J$11,0) -> 0 | AJ80: =IF($AA80<-'Results Dashboard'!$J$10,$AA80+'Results Dashboard'!$J$10,0) -> 0 | AL80: =IF((X80+W80)>0,(X80+W80)*0.5*'User Parameters'!C$50,(X80+W80)*0.5*'User Parameters'!$C$51) -> 0 | AM80: =-'User Parameters'!$C$13*('User Parameters'!$C$14-1) -> 0 | AN80: 0.02018820766
A81: 0.8319297158 | B81: 634.4228257 | C81: 527.7952011 | D81: 0.8319297158 | E81: ='User Parameters'!$C$11 -> 50 | F81: =B81*'User Parameters'!$C$15 -> 6.344228257 | G81: 50.28339639 | H81: 0.07925849189 | I81: 0.8403330462 | J81: =IF(UP_RSBasis="MLR",UP_RSTarget_MLR,IF(UP_RSBasis="Medical Baseline",UP_RSTarget_Medlcal,0)) -> 0 | K81: 0 | L81: 0 | M81: 0 | N81: 0 | O81: 0 | P81: 0 | Q81: 0 | S81: 0 | T81: =(S81+C81+'User Parameters'!$C$12)/(B81-F81) -> 0.8403330462 | U81: =IF(T81<'User Parameters'!$J$5,'User Parameters'!$J$5,IF(T81>'User Parameters'!$J$6,'User Parameters'!$J$6,T81)) -> 0.9 | V81: 37.47553664 | W81: 0.05907028423 | X81: =(B81-C81-F81-E81-S81-V81)/'Results Dashboard'!$D$43 -> 0.02018820766 | Y81: =IF((X81+W81)>0,(X81+W81)*0.5*((1+'User Parameters'!C$50)^((12+UP_COC_WithholdLag)/12)-1),(X81+W81)*0.5*((1+'User Parameters'!$C$51)^((12+UP_COC_WithholdLag)/12)-1)) -> 0 | Z81: =-'User Parameters'!$C$13*('User Parameters'!$C$14-1) -> 0 | AA81: 0.02018820766 | AB81: 0.839344701 | AC81: 0.03698304485 | AD81: 0.03698304485 | AE81: 0.03698304485 | AF81: =IF($AA81<-'Results Dashboard'!$J$7,$AA81+'Results Dashboard'!$J$7,0) -> 0 | AG81: =IF($AA81<-'Results Dashboard'!$J$8,$AA81+'Results Dashboard'!$J$8,0) -> 0 | AH81: =IF($AA81<-'Results Dashboard'!$J$9,$AA81+'Results Dashboard'!$J$9,0) -> 0 | AI81: =IF($AA81<-'Results Dashboard'!$J$11,$AA81+'Results Dashboard'!$J$11,0) -> 0 | AJ81: =IF($AA81<-'Results Dashboard'!$J$10,$AA81+'Results Dashboard'!$J$10,0) -> 0 | AL81: =IF((X81+W81)>0,(X81+W81)*0.5*'User Parameters'!C$50,(X81+W81)*0.5*'User Parameters'!$C$51) -> 0 | AM81: =-'User Parameters'!$C$13*('User Parameters'!$C$14-1) -> 0 | AN81: 0.02018820766
A82: 0.8369297158 | B82: 634.4228257 | C82: 530.9673152 | D82: 0.8369297158 | E82: ='User Parameters'!$C$11 -> 50 | F82: =B82*'User Parameters'!$C$15 -> 6.344228257 | G82: 47.11128226 | H82: 0.07425849189 | I82: 0.8453835513 | J82: =IF(UP_RSBasis="MLR",UP_RSTarget_MLR,IF(UP_RSBasis="Medical Baseline",UP_RSTarget_Medlcal,0)) -> 0 | K82: 0 | L82: 0 | M82: 0 | N82: 0 | O82: 0 | P82: 0 | Q82: 0 | S82: 0 | T82: =(S82+C82+'User Parameters'!$C$12)/(B82-F82) -> 0.8453835513 | U82: =IF(T82<'User Parameters'!$J$5,'User Parameters'!$J$5,IF(T82>'User Parameters'!$J$6,'User Parameters'!$J$6,T82)) -> 0.9 | V82: 34.30342251 | W82: 0.05407028423 | X82: =(B82-C82-F82-E82-S82-V82)/'Results Dashboard'!$D$43 -> 0.02018820766 | Y82: =IF((X82+W82)>0,(X82+W82)*0.5*((1+'User Parameters'!C$50)^((12+UP_COC_WithholdLag)/12)-1),(X82+W82)*0.5*((1+'User Parameters'!$C$51)^((12+UP_COC_WithholdLag)/12)-1)) -> 0 | Z82: =-'User Parameters'!$C$13*('User Parameters'!$C$14-1) -> 0 | AA82: 0.02018820766 | AB82: 0.8023616561 | AC82: 0.04170827723 | AD82: 0.04170827723 | AE82: 0.04170827723 | AF82: =IF($AA82<-'Results Dashboard'!$J$7,$AA82+'Results Dashboard'!$J$7,0) -> 0 | AG82: =IF($AA82<-'Results Dashboard'!$J$8,$AA82+'Results Dashboard'!$J$8,0) -> 0 | AH82: =IF($AA82<-'Results Dashboard'!$J$9,$AA82+'Results Dashboard'!$J$9,0) -> 0 | AI82: =IF($AA82<-'Results Dashboard'!$J$11,$AA82+'Results Dashboard'!$J$11,0) -> 0 | AJ82: =IF($AA82<-'Results Dashboard'!$J$10,$AA82+'Results Dashboard'!$J$10,0) -> 0 | AL82: =IF((X82+W82)>0,(X82+W82)*0.5*'User Parameters'!C$50,(X82+W82)*0.5*'User Parameters'!$C$51) -> 0 | AM82: =-'User Parameters'!$C$13*('User Parameters'!$C$14-1) -> 0 | AN82: 0.02018820766
A83: 0.8419297158 | B83: 634.4228257 | C83: 534.1394294 | D83: 0.8419297158 | E83: ='User Parameters'!$C$11 -> 50 | F83: =B83*'User Parameters'!$C$15 -> 6.344228257 | G83: 43.93916813 | H83: 0.06925849189 | I83: 0.8504340563 | J83: =IF(UP_RSBasis="MLR",UP_RSTarget_MLR,IF(UP_RSBasis="Medical Baseline",UP_RSTarget_Medlcal,0)) -> 0 | K83: 0 | L83: 0 | M83: 0 | N83: 0 | O83: 0 | P83: 0 | Q83: 0 | S83: 0 | T83: =(S83+C83+'User Parameters'!$C$12)/(B83-F83) -> 0.8504340563 | U83: =IF(T83<'User Parameters'!$J$5,'User Parameters'!$J$5,IF(T83>'User Parameters'!$J$6,'User Parameters'!$J$6,T83)) -> 0.9 | V83: 31.13130838 | W83: 0.04907028423 | X83: =(B83-C83-F83-E83-S83-V83)/'Results Dashboard'!$D$43 -> 0.02018820766 | Y83: =IF((X83+W83)>0,(X83+W83)*0.5*((1+'User Parameters'!C$50)^((12+UP_COC_WithholdLag)/12)-1),(X83+W83)*0.5*((1+'User Parameters'!$C$51)^((12+UP_COC_WithholdLag)/12)-1)) -> 0 | Z83: =-'User Parameters'!$C$13*('User Parameters'!$C$14-1) -> 0 | AA83: 0.02018820766 | AB83: 0.7606533789 | AC83: 0.04610399602 | AD83: 0.04610399602 | AE83: 0.04610399602 | AF83: =IF($AA83<-'Results Dashboard'!$J$7,$AA83+'Results Dashboard'!$J$7,0) -> 0 | AG83: =IF($AA83<-'Results Dashboard'!$J$8,$AA83+'Results Dashboard'!$J$8,0) -> 0 | AH83: =IF($AA83<-'Results Dashboard'!$J$9,$AA83+'Results Dashboard'!$J$9,0) -> 0 | AI83: =IF($AA83<-'Results Dashboard'!$J$11,$AA83+'Results Dashboard'!$J$11,0) -> 0 | AJ83: =IF($AA83<-'Results Dashboard'!$J$10,$AA83+'Results Dashboard'!$J$10,0) -> 0 | AL83: =IF((X83+W83)>0,(X83+W83)*0.5*'User Parameters'!C$50,(X83+W83)*0.5*'User Parameters'!$C$51) -> 0 | AM83: =-'User Parameters'!$C$13*('User Parameters'!$C$14-1) -> 0 | AN83: 0.02018820766
A84: 0.8469297158 | B84: 634.4228257 | C84: 537.3115435 | D84: 0.8469297158 | E84: ='User Parameters'!$C$11 -> 50 | F84: =B84*'User Parameters'!$C$15 -> 6.344228257 | G84: 40.767054 | H84: 0.06425849189 | I84: 0.8554845614 | J84: =IF(UP_RSBasis="MLR",UP_RSTarget_MLR,IF(UP_RSBasis="Medical Baseline",UP_RSTarget_Medlcal,0)) -> 0 | K84: 0 | L84: 0 | M84: 0 | N84: 0 | O84: 0 | P84: 0 | Q84: 0 | S84: 0 | T84: =(S84+C84+'User Parameters'!$C$12)/(B84-F84) -> 0.8554845614 | U84: =IF(T84<'User Parameters'!$J$5,'User Parameters'!$J$5,IF(T84>'User Parameters'!$J$6,'User Parameters'!$J$6,T84)) -> 0.9 | V84: 27.95919425 | W84: 0.04407028423 | X84: =(B84-C84-F84-E84-S84-V84)/'Results Dashboard'!$D$43 -> 0.02018820766 | Y84: =IF((X84+W84)>0,(X84+W84)*0.5*((1+'User Parameters'!C$50)^((12+UP_COC_WithholdLag)/12)-1),(X84+W84)*0.5*((1+'User Parameters'!$C$51)^((12+UP_COC_WithholdLag)/12)-1)) -> 0 | Z84: =-'User Parameters'!$C$13*('User Parameters'!$C$14-1) -> 0 | AA84: 0.02018820766 | AB84: 0.7145493829 | AC84: 0.04995185486 | AD84: 0.04995185486 | AE84: 0.04995185486 | AF84: =IF($AA84<-'Results Dashboard'!$J$7,$AA84+'Results Dashboard'!$J$7,0) -> 0 | AG84: =IF($AA84<-'Results Dashboard'!$J$8,$AA84+'Results Dashboard'!$J$8,0) -> 0 | AH84: =IF($AA84<-'Results Dashboard'!$J$9,$AA84+'Results Dashboard'!$J$9,0) -> 0 | AI84: =IF($AA84<-'Results Dashboard'!$J$11,$AA84+'Results Dashboard'!$J$11,0) -> 0 | AJ84: =IF($AA84<-'Results Dashboard'!$J$10,$AA84+'Results Dashboard'!$J$10,0) -> 0 | AL84: =IF((X84+W84)>0,(X84+W84)*0.5*'User Parameters'!C$50,(X84+W84)*0.5*'User Parameters'!$C$51) -> 0 | AM84: =-'User Parameters'!$C$13*('User Parameters'!$C$14-1) -> 0 | AN84: 0.02018820766
A85: 0.8519297158 | B85: 634.4228257 | C85: 540.4836576 | D85: 0.8519297158 | E85: ='User Parameters'!$C$11 -> 50 | F85: =B85*'User Parameters'!$C$15 -> 6.344228257 | G85: 37.59493987 | H85: 0.05925849189 | I85: 0.8605350664 | J85: =IF(UP_RSBasis="MLR",UP_RSTarget_MLR,IF(UP_RSBasis="Medical Baseline",UP_RSTarget_Medlcal,0)) -> 0 | K85: 0 | L85: 0 | M85: 0 | N85: 0 | O85: 0 | P85: 0 | Q85: 0 | S85: 0 | T85: =(S85+C85+'User Parameters'!$C$12)/(B85-F85) -> 0.8605350664 | U85: =IF(T85<'User Parameters'!$J$5,'User Parameters'!$J$5,IF(T85>'User Parameters'!$J$6,'User Parameters'!$J$6,T85)) -> 0.9 | V85: 24.78708012 | W85: 0.03907028423 | X85: =(B85-C85-F85-E85-S85-V85)/'Results Dashboard'!$D$43 -> 0.02018820766 | Y85: =IF((X85+W85)>0,(X85+W85)*0.5*((1+'User Parameters'!C$50)^((12+UP_COC_WithholdLag)/12)-1),(X85+W85)*0.5*((1+'User Parameters'!$C$51)^((12+UP_COC_WithholdLag)/12)-1)) -> 0 | Z85: =-'User Parameters'!$C$13*('User Parameters'!$C$14-1) -> 0 | AA85: 0.02018820766 | AB85: 0.664597528 | AC85: 0.05304707052 | AD85: 0.05304707052 | AE85: 0.05304707052 | AF85: =IF($AA85<-'Results Dashboard'!$J$7,$AA85+'Results Dashboard'!$J$7,0) -> 0 | AG85: =IF($AA85<-'Results Dashboard'!$J$8,$AA85+'Results Dashboard'!$J$8,0) -> 0 | AH85: =IF($AA85<-'Results Dashboard'!$J$9,$AA85+'Results Dashboard'!$J$9,0) -> 0 | AI85: =IF($AA85<-'Results Dashboard'!$J$11,$AA85+'Results Dashboard'!$J$11,0) -> 0 | AJ85: =IF($AA85<-'Results Dashboard'!$J$10,$AA85+'Results Dashboard'!$J$10,0) -> 0 | AL85: =IF((X85+W85)>0,(X85+W85)*0.5*'User Parameters'!C$50,(X85+W85)*0.5*'User Parameters'!$C$51) -> 0 | AM85: =-'User Parameters'!$C$13*('User Parameters'!$C$14-1) -> 0 | AN85: 0.02018820766
A86: 0.8569297158 | B86: 634.4228257 | C86: 543.6557717 | D86: 0.8569297158 | E86: ='User Parameters'!$C$11 -> 50 | F86: =B86*'User Parameters'!$C$15 -> 6.344228257 | G86: 34.42282574 | H86: 0.05425849189 | I86: 0.8655855715 | J86: =IF(UP_RSBasis="MLR",UP_RSTarget_MLR,IF(UP_RSBasis="Medical Baseline",UP_RSTarget_Medlcal,0)) -> 0 | K86: 0 | L86: 0 | M86: 0 | N86: 0 | O86: 0 | P86: 0 | Q86: 0 | S86: 0 | T86: =(S86+C86+'User Parameters'!$C$12)/(B86-F86) -> 0.8655855715 | U86: =IF(T86<'User Parameters'!$J$5,'User Parameters'!$J$5,IF(T86>'User Parameters'!$J$6,'User Parameters'!$J$6,T86)) -> 0.9 | V86: 21.61496599 | W86: 0.03407028423 | X86: =(B86-C86-F86-E86-S86-V86)/'Results Dashboard'!$D$43 -> 0.02018820766 | Y86: =IF((X86+W86)>0,(X86+W86)*0.5*((1+'User Parameters'!C$50)^((12+UP_COC_WithholdLag)/12)-1),(X86+W86)*0.5*((1+'User Parameters'!$C$51)^((12+UP_COC_WithholdLag)/12)-1)) -> 0 | Z86: =-'User Parameters'!$C$13*('User Parameters'!$C$14-1) -> 0 | AA86: 0.02018820766 | AB86: 0.6115504575 | AC86: 0.05521637968 | AD86: 0.05521637968 | AE86: 0.05521637968 | AF86: =IF($AA86<-'Results Dashboard'!$J$7,$AA86+'Results Dashboard'!$J$7,0) -> 0 | AG86: =IF($AA86<-'Results Dashboard'!$J$8,$AA86+'Results Dashboard'!$J$8,0) -> 0 | AH86: =IF($AA86<-'Results Dashboard'!$J$9,$AA86+'Results Dashboard'!$J$9,0) -> 0 | AI86: =IF($AA86<-'Results Dashboard'!$J$11,$AA86+'Results Dashboard'!$J$11,0) -> 0 | AJ86: =IF($AA86<-'Results Dashboard'!$J$10,$AA86+'Results Dashboard'!$J$10,0) -> 0 | AL86: =IF((X86+W86)>0,(X86+W86)*0.5*'User Parameters'!C$50,(X86+W86)*0.5*'User Parameters'!$C$51) -> 0 | AM86: =-'User Parameters'!$C$13*('User Parameters'!$C$14-1) -> 0 | AN86: 0.02018820766
A87: =A88-0.005 -> 0.8619297158 | B87: 634.4228257 | C87: 546.8278859 | D87: 0.8619297158 | E87: ='User Parameters'!$C$11 -> 50 | F87: =B87*'User Parameters'!$C$15 -> 6.344228257 | G87: 31.25071161 | H87: 0.04925849189 | I87: 0.8706360765 | J87: =IF(UP_RSBasis="MLR",UP_RSTarget_MLR,IF(UP_RSBasis="Medical Baseline",UP_RSTarget_Medlcal,0)) -> 0 | K87: 0 | L87: 0 | M87: 0 | N87: 0 | O87: 0 | P87: 0 | Q87: 0 | S87: 0 | T87: =(S87+C87+'User Parameters'!$C$12)/(B87-F87) -> 0.8706360765 | U87: =IF(T87<'User Parameters'!$J$5,'User Parameters'!$J$5,IF(T87>'User Parameters'!$J$6,'User Parameters'!$J$6,T87)) -> 0.9 | V87: 18.44285187 | W87: 0.02907028423 | X87: =(B87-C87-F87-E87-S87-V87)/'Results Dashboard'!$D$43 -> 0.02018820766 | Y87: =IF((X87+W87)>0,(X87+W87)*0.5*((1+'User Parameters'!C$50)^((12+UP_COC_WithholdLag)/12)-1),(X87+W87)*0.5*((1+'User Parameters'!$C$51)^((12+UP_COC_WithholdLag)/12)-1)) -> 0 | Z87: =-'User Parameters'!$C$13*('User Parameters'!$C$14-1) -> 0 | AA87: 0.02018820766 | AB87: 0.5563340778 | AC87: 0.05633407782 | AD87: 0.05633407782 | AE87: 0.05633407782 | AF87: =IF($AA87<-'Results Dashboard'!$J$7,$AA87+'Results Dashboard'!$J$7,0) -> 0 | AG87: =IF($AA87<-'Results Dashboard'!$J$8,$AA87+'Results Dashboard'!$J$8,0) -> 0 | AH87: =IF($AA87<-'Results Dashboard'!$J$9,$AA87+'Results Dashboard'!$J$9,0) -> 0 | AI87: =IF($AA87<-'Results Dashboard'!$J$11,$AA87+'Results Dashboard'!$J$11,0) -> 0 | AJ87: =IF($AA87<-'Results Dashboard'!$J$10,$AA87+'Results Dashboard'!$J$10,0) -> 0 | AL87: =IF((X87+W87)>0,(X87+W87)*0.5*'User Parameters'!C$50,(X87+W87)*0.5*'User Parameters'!$C$51) -> 0 | AM87: =-'User Parameters'!$C$13*('User Parameters'!$C$14-1) -> 0 | AN87: 0.02018820766
A88: ='Results Dashboard'!D33/Results_Premium -> 0.8669297158 | B88: =C88/A88 -> 634.4228257 | C88: ='User Parameters'!C10 -> 550 | D88: 0.8669297158 | E88: ='User Parameters'!$C$11 -> 50 | F88: =B88*'User Parameters'!$C$15 -> 6.344228257 | G88: 28.07859749 | H88: 0.04425849189 | I88: 0.8756865816 | J88: =IF(UP_RSBasis="MLR",UP_RSTarget_MLR,IF(UP_RSBasis="Medical Baseline",UP_RSTarget_Medlcal,0)) -> 0 | K88: 0 | L88: 0 | M88: 0 | N88: 0 | O88: 0 | P88: 0 | Q88: 0 | S88: 0 | T88: =(S88+C88+'User Parameters'!$C$12)/(B88-F88) -> 0.8756865816 | U88: =IF(T88<'User Parameters'!$J$5,'User Parameters'!$J$5,IF(T88>'User Parameters'!$J$6,'User Parameters'!$J$6,T88)) -> 0.9 | V88: 15.27073774 | W88: 0.02407028423 | X88: =(B88-C88-F88-E88-S88-V88)/'Results Dashboard'!$D$43 -> 0.02018820766 | Y88: =IF((X88+W88)>0,(X88+W88)*0.5*((1+'User Parameters'!C$50)^((12+UP_COC_WithholdLag)/12)-1),(X88+W88)*0.5*((1+'User Parameters'!$C$51)^((12+UP_COC_WithholdLag)/12)-1)) -> 0 | Z88: =-'User Parameters'!$C$13*('User Parameters'!$C$14-1) -> 0 | AA88: 0.02018820766 | AB88: 0.5 | AC88: 0 | AD88: 0 | AE88: =AVERAGE(AE87,AE89) -> 0.05633407782 | AF88: =IF($AA88<-'Results Dashboard'!$J$7,$AA88+'Results Dashboard'!$J$7,0) -> 0 | AG88: =IF($AA88<-'Results Dashboard'!$J$8,$AA88+'Results Dashboard'!$J$8,0) -> 0 | AH88: =IF($AA88<-'Results Dashboard'!$J$9,$AA88+'Results Dashboard'!$J$9,0) -> 0 | AI88: =IF($AA88<-'Results Dashboard'!$J$11,$AA88+'Results Dashboard'!$J$11,0) -> 0 | AJ88: =IF($AA88<-'Results Dashboard'!$J$10,$AA88+'Results Dashboard'!$J$10,0) -> 0 | AL88: =IF((X88+W88)>0,(X88+W88)*0.5*'User Parameters'!C$50,(X88+W88)*0.5*'User Parameters'!$C$51) -> 0 | AM88: =-'User Parameters'!$C$13*('User Parameters'!$C$14-1) -> 0 | AN88: 0.02018820766
A89: =A88+0.005 -> 0.8719297158 | B89: =$B$88 -> 634.4228257 | C89: 553.1721141 | D89: 0.8719297158 | E89: ='User Parameters'!$C$11 -> 50 | F89: =B89*'User Parameters'!$C$15 -> 6.344228257 | G89: 24.90648336 | H89: 0.03925849189 | I89: 0.8807370866 | J89: =IF(UP_RSBasis="MLR",UP_RSTarget_MLR,IF(UP_RSBasis="Medical Baseline",UP_RSTarget_Medlcal,0)) -> 0 | K89: 0 | L89: 0 | M89: 0 | N89: 0 | O89: 0 | P89: 0 | Q89: 0 | S89: 0 | T89: =(S89+C89+'User Parameters'!$C$12)/(B89-F89) -> 0.8807370866 | U89: =IF(T89<'User Parameters'!$J$5,'User Parameters'!$J$5,IF(T89>'User Parameters'!$J$6,'User Parameters'!$J$6,T89)) -> 0.9 | V89: 12.09862361 | W89: 0.01907028423 | X89: =(B89-C89-F89-E89-S89-V89)/'Results Dashboard'!$D$43 -> 0.02018820766 | Y89: =IF((X89+W89)>0,(X89+W89)*0.5*((1+'User Parameters'!C$50)^((12+UP_COC_WithholdLag)/12)-1),(X89+W89)*0.5*((1+'User Parameters'!$C$51)^((12+UP_COC_WithholdLag)/12)-1)) -> 0 | Z89: =-'User Parameters'!$C$13*('User Parameters'!$C$14-1) -> 0 | AA89: 0.02018820766 | AB89: 0.4436659222 | AC89: =AB88-AB89 -> 0.05633407782 | AD89: 0.05633407782 | AE89: 0.05633407782 | AF89: =IF($AA89<-'Results Dashboard'!$J$7,$AA89+'Results Dashboard'!$J$7,0) -> 0 | AG89: =IF($AA89<-'Results Dashboard'!$J$8,$AA89+'Results Dashboard'!$J$8,0) -> 0 | AH89: =IF($AA89<-'Results Dashboard'!$J$9,$AA89+'Results Dashboard'!$J$9,0) -> 0 | AI89: =IF($AA89<-'Results Dashboard'!$J$11,$AA89+'Results Dashboard'!$J$11,0) -> 0 | AJ89: =IF($AA89<-'Results Dashboard'!$J$10,$AA89+'Results Dashboard'!$J$10,0) -> 0 | AL89: =IF((X89+W89)>0,(X89+W89)*0.5*'User Parameters'!C$50,(X89+W89)*0.5*'User Parameters'!$C$51) -> 0 | AM89: =-'User Parameters'!$C$13*('User Parameters'!$C$14-1) -> 0 | AN89: 0.02018820766
A90: =A89+0.005 -> 0.8769297158 | B90: 634.4228257 | C90: 556.3442283 | D90: 0.8769297158 | E90: ='User Parameters'!$C$11 -> 50 | F90: =B90*'User Parameters'!$C$15 -> 6.344228257 | G90: 21.73436923 | H90: 0.03425849189 | I90: 0.8857875917 | J90: =IF(UP_RSBasis="MLR",UP_RSTarget_MLR,IF(UP_RSBasis="Medical Baseline",UP_RSTarget_Medlcal,0)) -> 0 | K90: 0 | L90: 0 | M90: 0 | N90: 0 | O90: 0 | P90: 0 | Q90: 0 | S90: 0 | T90: =(S90+C90+'User Parameters'!$C$12)/(B90-F90) -> 0.8857875917 | U90: =IF(T90<'User Parameters'!$J$5,'User Parameters'!$J$5,IF(T90>'User Parameters'!$J$6,'User Parameters'!$J$6,T90)) -> 0.9 | V90: 8.926509479 | W90: 0.01407028423 | X90: =(B90-C90-F90-E90-S90-V90)/'Results Dashboard'!$D$43 -> 0.02018820766 | Y90: =IF((X90+W90)>0,(X90+W90)*0.5*((1+'User Parameters'!C$50)^((12+UP_COC_WithholdLag)/12)-1),(X90+W90)*0.5*((1+'User Parameters'!$C$51)^((12+UP_COC_WithholdLag)/12)-1)) -> 0 | Z90: =-'User Parameters'!$C$13*('User Parameters'!$C$14-1) -> 0 | AA90: 0.02018820766 | AB90: 0.3884495425 | AC90: =AB89-AB90 -> 0.05521637968 | AD90: 0.05521637968 | AE90: 0.05521637968 | AF90: =IF($AA90<-'Results Dashboard'!$J$7,$AA90+'Results Dashboard'!$J$7,0) -> 0 | AG90: =IF($AA90<-'Results Dashboard'!$J$8,$AA90+'Results Dashboard'!$J$8,0) -> 0 | AH90: =IF($AA90<-'Results Dashboard'!$J$9,$AA90+'Results Dashboard'!$J$9,0) -> 0 | AI90: =IF($AA90<-'Results Dashboard'!$J$11,$AA90+'Results Dashboard'!$J$11,0) -> 0 | AJ90: =IF($AA90<-'Results Dashboard'!$J$10,$AA90+'Results Dashboard'!$J$10,0) -> 0 | AL90: =IF((X90+W90)>0,(X90+W90)*0.5*'User Parameters'!C$50,(X90+W90)*0.5*'User Parameters'!$C$51) -> 0 | AM90: =-'User Parameters'!$C$13*('User Parameters'!$C$14-1) -> 0 | AN90: 0.02018820766
A91: 0.8819297158 | B91: 634.4228257 | C91: 559.5163424 | D91: 0.8819297158 | E91: ='User Parameters'!$C$11 -> 50 | F91: =B91*'User Parameters'!$C$15 -> 6.344228257 | G91: 18.5622551 | H91: 0.02925849189 | I91: 0.8908380967 | J91: =IF(UP_RSBasis="MLR",UP_RSTarget_MLR,IF(UP_RSBasis="Medical Baseline",UP_RSTarget_Medlcal,0)) -> 0 | K91: 0 | L91: 0 | M91: 0 | N91: 0 | O91: 0 | P91: 0 | Q91: 0 | S91: 0 | T91: =(S91+C91+'User Parameters'!$C$12)/(B91-F91) -> 0.8908380967 | U91: =IF(T91<'User Parameters'!$J$5,'User Parameters'!$J$5,IF(T91>'User Parameters'!$J$6,'User Parameters'!$J$6,T91)) -> 0.9 | V91: 5.75439535 | W91: 0.009070284228 | X91: =(B91-C91-F91-E91-S91-V91)/'Results Dashboard'!$D$43 -> 0.02018820766 | Y91: =IF((X91+W91)>0,(X91+W91)*0.5*((1+'User Parameters'!C$50)^((12+UP_COC_WithholdLag)/12)-1),(X91+W91)*0.5*((1+'User Parameters'!$C$51)^((12+UP_COC_WithholdLag)/12)-1)) -> 0 | Z91: =-'User Parameters'!$C$13*('User Parameters'!$C$14-1) -> 0 | AA91: 0.02018820766 | AB91: 0.335402472 | AC91: 0.05304707052 | AD91: 0.05304707052 | AE91: 0.05304707052 | AF91: =IF($AA91<-'Results Dashboard'!$J$7,$AA91+'Results Dashboard'!$J$7,0) -> 0 | AG91: =IF($AA91<-'Results Dashboard'!$J$8,$AA91+'Results Dashboard'!$J$8,0) -> 0 | AH91: =IF($AA91<-'Results Dashboard'!$J$9,$AA91+'Results Dashboard'!$J$9,0) -> 0 | AI91: =IF($AA91<-'Results Dashboard'!$J$11,$AA91+'Results Dashboard'!$J$11,0) -> 0 | AJ91: =IF($AA91<-'Results Dashboard'!$J$10,$AA91+'Results Dashboard'!$J$10,0) -> 0 | AL91: =IF((X91+W91)>0,(X91+W91)*0.5*'User Parameters'!C$50,(X91+W91)*0.5*'User Parameters'!$C$51) -> 0 | AM91: =-'User Parameters'!$C$13*('User Parameters'!$C$14-1) -> 0 | AN91: 0.02018820766
A92: 0.8869297158 | B92: 634.4228257 | C92: 562.6884565 | D92: 0.8869297158 | E92: ='User Parameters'!$C$11 -> 50 | F92: =B92*'User Parameters'!$C$15 -> 6.344228257 | G92: 15.39014097 | H92: 0.02425849189 | I92: 0.8958886018 | J92: =IF(UP_RSBasis="MLR",UP_RSTarget_MLR,IF(UP_RSBasis="Medical Baseline",UP_RSTarget_Medlcal,0)) -> 0 | K92: 0 | L92: 0 | M92: 0 | N92: 0 | O92: 0 | P92: 0 | Q92: 0 | S92: 0 | T92: =(S92+C92+'User Parameters'!$C$12)/(B92-F92) -> 0.8958886018 | U92: =IF(T92<'User Parameters'!$J$5,'User Parameters'!$J$5,IF(T92>'User Parameters'!$J$6,'User Parameters'!$J$6,T92)) -> 0.9 | V92: 2.582281222 | W92: 0.004070284228 | X92: =(B92-C92-F92-E92-S92-V92)/'Results Dashboard'!$D$43 -> 0.02018820766 | Y92: =IF((X92+W92)>0,(X92+W92)*0.5*((1+'User Parameters'!C$50)^((12+UP_COC_WithholdLag)/12)-1),(X92+W92)*0.5*((1+'User Parameters'!$C$51)^((12+UP_COC_WithholdLag)/12)-1)) -> 0 | Z92: =-'User Parameters'!$C$13*('User Parameters'!$C$14-1) -> 0 | AA92: 0.02018820766 | AB92: 0.2854506171 | AC92: 0.04995185486 | AD92: 0.04995185486 | AE92: 0.04995185486 | AF92: =IF($AA92<-'Results Dashboard'!$J$7,$AA92+'Results Dashboard'!$J$7,0) -> 0 | AG92: =IF($AA92<-'Results Dashboard'!$J$8,$AA92+'Results Dashboard'!$J$8,0) -> 0 | AH92: =IF($AA92<-'Results Dashboard'!$J$9,$AA92+'Results Dashboard'!$J$9,0) -> 0 | AI92: =IF($AA92<-'Results Dashboard'!$J$11,$AA92+'Results Dashboard'!$J$11,0) -> 0 | AJ92: =IF($AA92<-'Results Dashboard'!$J$10,$AA92+'Results Dashboard'!$J$10,0) -> 0 | AL92: =IF((X92+W92)>0,(X92+W92)*0.5*'User Parameters'!C$50,(X92+W92)*0.5*'User Parameters'!$C$51) -> 0 | AM92: =-'User Parameters'!$C$13*('User Parameters'!$C$14-1) -> 0 | AN92: 0.02018820766
A93: 0.8919297158 | B93: 634.4228257 | C93: 565.8605706 | D93: 0.8919297158 | E93: ='User Parameters'!$C$11 -> 50 | F93: =B93*'User Parameters'!$C$15 -> 6.344228257 | G93: 12.21802684 | H93: 0.01925849189 | I93: 0.9009391068 | J93: =IF(UP_RSBasis="MLR",UP_RSTarget_MLR,IF(UP_RSBasis="Medical Baseline",UP_RSTarget_Medlcal,0)) -> 0 | K93: 0 | L93: 0 | M93: 0 | N93: 0 | O93: 0 | P93: 0 | Q93: 0 | S93: 0 | T93: =(S93+C93+'User Parameters'!$C$12)/(B93-F93) -> 0.9009391068 | U93: =IF(T93<'User Parameters'!$J$5,'User Parameters'!$J$5,IF(T93>'User Parameters'!$J$6,'User Parameters'!$J$6,T93)) -> 0.9009391068 | V93: 0 | W93: 0 | X93: =(B93-C93-F93-E93-S93-V93)/'Results Dashboard'!$D$43 -> 0.01925849189 | Y93: =IF((X93+W93)>0,(X93+W93)*0.5*((1+'User Parameters'!C$50)^((12+UP_COC_WithholdLag)/12)-1),(X93+W93)*0.5*((1+'User Parameters'!$C$51)^((12+UP_COC_WithholdLag)/12)-1)) -> 0 | Z93: =-'User Parameters'!$C$13*('User Parameters'!$C$14-1) -> 0 | AA93: 0.01925849189 | AB93: 0.2393466211 | AC93: 0.04610399602 | AD93: 0.04610399602 | AE93: 0.04610399602 | AF93: =IF($AA93<-'Results Dashboard'!$J$7,$AA93+'Results Dashboard'!$J$7,0) -> 0 | AG93: =IF($AA93<-'Results Dashboard'!$J$8,$AA93+'Results Dashboard'!$J$8,0) -> 0 | AH93: =IF($AA93<-'Results Dashboard'!$J$9,$AA93+'Results Dashboard'!$J$9,0) -> 0 | AI93: =IF($AA93<-'Results Dashboard'!$J$11,$AA93+'Results Dashboard'!$J$11,0) -> 0 | AJ93: =IF($AA93<-'Results Dashboard'!$J$10,$AA93+'Results Dashboard'!$J$10,0) -> 0 | AL93: =IF((X93+W93)>0,(X93+W93)*0.5*'User Parameters'!C$50,(X93+W93)*0.5*'User Parameters'!$C$51) -> 0 | AM93: =-'User Parameters'!$C$13*('User Parameters'!$C$14-1) -> 0 | AN93: 0.01925849189
A94: 0.8969297158 | B94: 634.4228257 | C94: 569.0326848 | D94: 0.8969297158 | E94: ='User Parameters'!$C$11 -> 50 | F94: =B94*'User Parameters'!$C$15 -> 6.344228257 | G94: 9.045912713 | H94: 0.01425849189 | I94: 0.9059896119 | J94: =IF(UP_RSBasis="MLR",UP_RSTarget_MLR,IF(UP_RSBasis="Medical Baseline",UP_RSTarget_Medlcal,0)) -> 0 | K94: 0 | L94: 0 | M94: 0 | N94: 0 | O94: 0 | P94: 0 | Q94: 0 | S94: 0 | T94: =(S94+C94+'User Parameters'!$C$12)/(B94-F94) -> 0.9059896119 | U94: =IF(T94<'User Parameters'!$J$5,'User Parameters'!$J$5,IF(T94>'User Parameters'!$J$6,'User Parameters'!$J$6,T94)) -> 0.9059896119 | V94: 0 | W94: 0 | X94: =(B94-C94-F94-E94-S94-V94)/'Results Dashboard'!$D$43 -> 0.01425849189 | Y94: =IF((X94+W94)>0,(X94+W94)*0.5*((1+'User Parameters'!C$50)^((12+UP_COC_WithholdLag)/12)-1),(X94+W94)*0.5*((1+'User Parameters'!$C$51)^((12+UP_COC_WithholdLag)/12)-1)) -> 0 | Z94: =-'User Parameters'!$C$13*('User Parameters'!$C$14-1) -> 0 | AA94: 0.01425849189 | AB94: 0.1976383439 | AC94: 0.04170827723 | AD94: 0.04170827723 | AE94: 0.04170827723 | AF94: =IF($AA94<-'Results Dashboard'!$J$7,$AA94+'Results Dashboard'!$J$7,0) -> 0 | AG94: =IF($AA94<-'Results Dashboard'!$J$8,$AA94+'Results Dashboard'!$J$8,0) -> 0 | AH94: =IF($AA94<-'Results Dashboard'!$J$9,$AA94+'Results Dashboard'!$J$9,0) -> 0 | AI94: =IF($AA94<-'Results Dashboard'!$J$11,$AA94+'Results Dashboard'!$J$11,0) -> 0 | AJ94: =IF($AA94<-'Results Dashboard'!$J$10,$AA94+'Results Dashboard'!$J$10,0) -> 0 | AL94: =IF((X94+W94)>0,(X94+W94)*0.5*'User Parameters'!C$50,(X94+W94)*0.5*'User Parameters'!$C$51) -> 0 | AM94: =-'User Parameters'!$C$13*('User Parameters'!$C$14-1) -> 0 | AN94: 0.01425849189
A95: 0.9019297158 | B95: 634.4228257 | C95: 572.2047989 | D95: 0.9019297158 | E95: ='User Parameters'!$C$11 -> 50 | F95: =B95*'User Parameters'!$C$15 -> 6.344228257 | G95: 5.873798584 | H95: 0.009258491885 | I95: 0.9110401169 | J95: =IF(UP_RSBasis="MLR",UP_RSTarget_MLR,IF(UP_RSBasis="Medical Baseline",UP_RSTarget_Medlcal,0)) -> 0 | K95: 0 | L95: 0 | M95: 0 | N95: 0 | O95: 0 | P95: 0 | Q95: 0 | S95: 0 | T95: =(S95+C95+'User Parameters'!$C$12)/(B95-F95) -> 0.9110401169 | U95: =IF(T95<'User Parameters'!$J$5,'User Parameters'!$J$5,IF(T95>'User Parameters'!$J$6,'User Parameters'!$J$6,T95)) -> 0.9110401169 | V95: 0 | W95: 0 | X95: =(B95-C95-F95-E95-S95-V95)/'Results Dashboard'!$D$43 -> 0.009258491885 | Y95: =IF((X95+W95)>0,(X95+W95)*0.5*((1+'User Parameters'!C$50)^((12+UP_COC_WithholdLag)/12)-1),(X95+W95)*0.5*((1+'User Parameters'!$C$51)^((12+UP_COC_WithholdLag)/12)-1)) -> 0 | Z95: =-'User Parameters'!$C$13*('User Parameters'!$C$14-1) -> 0 | AA95: 0.009258491885 | AB95: 0.160655299 | AC95: 0.03698304485 | AD95: 0.03698304485 | AE95: 0.03698304485 | AF95: =IF($AA95<-'Results Dashboard'!$J$7,$AA95+'Results Dashboard'!$J$7,0) -> 0 | AG95: =IF($AA95<-'Results Dashboard'!$J$8,$AA95+'Results Dashboard'!$J$8,0) -> 0 | AH95: =IF($AA95<-'Results Dashboard'!$J$9,$AA95+'Results Dashboard'!$J$9,0) -> 0 | AI95: =IF($AA95<-'Results Dashboard'!$J$11,$AA95+'Results Dashboard'!$J$11,0) -> 0 | AJ95: =IF($AA95<-'Results Dashboard'!$J$10,$AA95+'Results Dashboard'!$J$10,0) -> 0 | AL95: =IF((X95+W95)>0,(X95+W95)*0.5*'User Parameters'!C$50,(X95+W95)*0.5*'User Parameters'!$C$51) -> 0 | AM95: =-'User Parameters'!$C$13*('User Parameters'!$C$14-1) -> 0 | AN95: 0.009258491885
A96: 0.9069297158 | B96: 634.4228257 | C96: 575.376913 | D96: 0.9069297158 | E96: ='User Parameters'!$C$11 -> 50 | F96: =B96*'User Parameters'!$C$15 -> 6.344228257 | G96: 2.701684455 | H96: 0.004258491885 | I96: 0.916090622 | J96: =IF(UP_RSBasis="MLR",UP_RSTarget_MLR,IF(UP_RSBasis="Medical Baseline",UP_RSTarget_Medlcal,0)) -> 0 | K96: 0 | L96: 0 | M96: 0 | N96: 0 | O96: 0 | P96: 0 | Q96: 0 | S96: 0 | T96: =(S96+C96+'User Parameters'!$C$12)/(B96-F96) -> 0.916090622 | U96: =IF(T96<'User Parameters'!$J$5,'User Parameters'!$J$5,IF(T96>'User Parameters'!$J$6,'User Parameters'!$J$6,T96)) -> 0.916090622 | V96: 0 | W96: 0 | X96: =(B96-C96-F96-E96-S96-V96)/'Results Dashboard'!$D$43 -> 0.004258491885 | Y96: =IF((X96+W96)>0,(X96+W96)*0.5*((1+'User Parameters'!C$50)^((12+UP_COC_WithholdLag)/12)-1),(X96+W96)*0.5*((1+'User Parameters'!$C$51)^((12+UP_COC_WithholdLag)/12)-1)) -> 0 | Z96: =-'User Parameters'!$C$13*('User Parameters'!$C$14-1) -> 0 | AA96: 0.004258491885 | AB96: 0.1285127879 | AC96: 0.03214251115 | AD96: 0.03214251115 | AE96: 0.03214251115 | AF96: =IF($AA96<-'Results Dashboard'!$J$7,$AA96+'Results Dashboard'!$J$7,0) -> 0 | AG96: =IF($AA96<-'Results Dashboard'!$J$8,$AA96+'Results Dashboard'!$J$8,0) -> 0 | AH96: =IF($AA96<-'Results Dashboard'!$J$9,$AA96+'Results Dashboard'!$J$9,0) -> 0 | AI96: =IF($AA96<-'Results Dashboard'!$J$11,$AA96+'Results Dashboard'!$J$11,0) -> 0 | AJ96: =IF($AA96<-'Results Dashboard'!$J$10,$AA96+'Results Dashboard'!$J$10,0) -> 0 | AL96: =IF((X96+W96)>0,(X96+W96)*0.5*'User Parameters'!C$50,(X96+W96)*0.5*'User Parameters'!$C$51) -> 0 | AM96: =-'User Parameters'!$C$13*('User Parameters'!$C$14-1) -> 0 | AN96: 0.004258491885
A97: 0.9119297158 | B97: 634.4228257 | C97: 578.5490272 | D97: 0.9119297158 | E97: ='User Parameters'!$C$11 -> 50 | F97: =B97*'User Parameters'!$C$15 -> 6.344228257 | G97: -0.4704296733 | H97: -0.0007415081146 | I97: 0.921141127 | J97: =IF(UP_RSBasis="MLR",UP_RSTarget_MLR,IF(UP_RSBasis="Medical Baseline",UP_RSTarget_Medlcal,0)) -> 0 | K97: 0 | L97: 0 | M97: 0 | N97: 0 | O97: 0 | P97: 0 | Q97: 0 | S97: 0 | T97: =(S97+C97+'User Parameters'!$C$12)/(B97-F97) -> 0.921141127 | U97: =IF(T97<'User Parameters'!$J$5,'User Parameters'!$J$5,IF(T97>'User Parameters'!$J$6,'User Parameters'!$J$6,T97)) -> 0.921141127 | V97: 0 | W97: 0 | X97: =(B97-C97-F97-E97-S97-V97)/'Results Dashboard'!$D$43 -> -0.0007415081146 | Y97: =IF((X97+W97)>0,(X97+W97)*0.5*((1+'User Parameters'!C$50)^((12+UP_COC_WithholdLag)/12)-1),(X97+W97)*0.5*((1+'User Parameters'!$C$51)^((12+UP_COC_WithholdLag)/12)-1)) -> 0 | Z97: =-'User Parameters'!$C$13*('User Parameters'!$C$14-1) -> 0 | AA97: -0.0007415081146 | AB97: 0.101131513 | AC97: 0.02738127486 | AD97: 0.02738127486 | AE97: 0.02738127486 | AF97: =IF($AA97<-'Results Dashboard'!$J$7,$AA97+'Results Dashboard'!$J$7,0) -> 0 | AG97: =IF($AA97<-'Results Dashboard'!$J$8,$AA97+'Results Dashboard'!$J$8,0) -> 0 | AH97: =IF($AA97<-'Results Dashboard'!$J$9,$AA97+'Results Dashboard'!$J$9,0) -> 0 | AI97: =IF($AA97<-'Results Dashboard'!$J$11,$AA97+'Results Dashboard'!$J$11,0) -> 0 | AJ97: =IF($AA97<-'Results Dashboard'!$J$10,$AA97+'Results Dashboard'!$J$10,0) -> 0 | AL97: =IF((X97+W97)>0,(X97+W97)*0.5*'User Parameters'!C$50,(X97+W97)*0.5*'User Parameters'!$C$51) -> 0 | AM97: =-'User Parameters'!$C$13*('User Parameters'!$C$14-1) -> 0 | AN97: -0.0007415081146
A98: 0.9169297158 | B98: 634.4228257 | C98: 581.7211413 | D98: 0.9169297158 | E98: ='User Parameters'!$C$11 -> 50 | F98: =B98*'User Parameters'!$C$15 -> 6.344228257 | G98: -3.642543802 | H98: -0.005741508115 | I98: 0.9261916321 | J98: =IF(UP_RSBasis="MLR",UP_RSTarget_MLR,IF(UP_RSBasis="Medical Baseline",UP_RSTarget_Medlcal,0)) -> 0 | K98: 0 | L98: 0 | M98: 0 | N98: 0 | O98: 0 | P98: 0 | Q98: 0 | S98: 0 | T98: =(S98+C98+'User Parameters'!$C$12)/(B98-F98) -> 0.9261916321 | U98: =IF(T98<'User Parameters'!$J$5,'User Parameters'!$J$5,IF(T98>'User Parameters'!$J$6,'User Parameters'!$J$6,T98)) -> 0.9261916321 | V98: 0 | W98: 0 | X98: =(B98-C98-F98-E98-S98-V98)/'Results Dashboard'!$D$43 -> -0.005741508115 | Y98: =IF((X98+W98)>0,(X98+W98)*0.5*((1+'User Parameters'!C$50)^((12+UP_COC_WithholdLag)/12)-1),(X98+W98)*0.5*((1+'User Parameters'!$C$51)^((12+UP_COC_WithholdLag)/12)-1)) -> 0 | Z98: =-'User Parameters'!$C$13*('User Parameters'!$C$14-1) -> 0 | AA98: -0.005741508115 | AB98: 0.07826898535 | AC98: 0.02286252767 | AD98: 0.02286252767 | AE98: 0.02286252767 | AF98: =IF($AA98<-'Results Dashboard'!$J$7,$AA98+'Results Dashboard'!$J$7,0) -> 0 | AG98: =IF($AA98<-'Results Dashboard'!$J$8,$AA98+'Results Dashboard'!$J$8,0) -> 0 | AH98: =IF($AA98<-'Results Dashboard'!$J$9,$AA98+'Results Dashboard'!$J$9,0) -> 0 | AI98: =IF($AA98<-'Results Dashboard'!$J$11,$AA98+'Results Dashboard'!$J$11,0) -> 0 | AJ98: =IF($AA98<-'Results Dashboard'!$J$10,$AA98+'Results Dashboard'!$J$10,0) -> 0 | AL98: =IF((X98+W98)>0,(X98+W98)*0.5*'User Parameters'!C$50,(X98+W98)*0.5*'User Parameters'!$C$51) -> 0 | AM98: =-'User Parameters'!$C$13*('User Parameters'!$C$14-1) -> 0 | AN98: -0.005741508115
A99: 0.9219297158 | B99: 634.4228257 | C99: 584.8932554 | D99: 0.9219297158 | E99: ='User Parameters'!$C$11 -> 50 | F99: =B99*'User Parameters'!$C$15 -> 6.344228257 | G99: -6.814657931 | H99: -0.01074150811 | I99: 0.9312421371 | J99: =IF(UP_RSBasis="MLR",UP_RSTarget_MLR,IF(UP_RSBasis="Medical Baseline",UP_RSTarget_Medlcal,0)) -> 0 | K99: 0 | L99: 0 | M99: 0 | N99: 0 | O99: 0 | P99: 0 | Q99: 0 | S99: 0 | T99: =(S99+C99+'User Parameters'!$C$12)/(B99-F99) -> 0.9312421371 | U99: =IF(T99<'User Parameters'!$J$5,'User Parameters'!$J$5,IF(T99>'User Parameters'!$J$6,'User Parameters'!$J$6,T99)) -> 0.9312421371 | V99: 0 | W99: 0 | X99: =(B99-C99-F99-E99-S99-V99)/'Results Dashboard'!$D$43 -> -0.01074150811 | Y99: =IF((X99+W99)>0,(X99+W99)*0.5*((1+'User Parameters'!C$50)^((12+UP_COC_WithholdLag)/12)-1),(X99+W99)*0.5*((1+'User Parameters'!$C$51)^((12+UP_COC_WithholdLag)/12)-1)) -> 0 | Z99: =-'User Parameters'!$C$13*('User Parameters'!$C$14-1) -> 0 | AA99: -0.01074150811 | AB99: 0.05955822071 | AC99: 0.01871076464 | AD99: 0.01871076464 | AE99: 0.01871076464 | AF99: =IF($AA99<-'Results Dashboard'!$J$7,$AA99+'Results Dashboard'!$J$7,0) -> 0 | AG99: =IF($AA99<-'Results Dashboard'!$J$8,$AA99+'Results Dashboard'!$J$8,0) -> 0 | AH99: =IF($AA99<-'Results Dashboard'!$J$9,$AA99+'Results Dashboard'!$J$9,0) -> 0 | AI99: =IF($AA99<-'Results Dashboard'!$J$11,$AA99+'Results Dashboard'!$J$11,0) -> 0 | AJ99: =IF($AA99<-'Results Dashboard'!$J$10,$AA99+'Results Dashboard'!$J$10,0) -> 0 | AL99: =IF((X99+W99)>0,(X99+W99)*0.5*'User Parameters'!C$50,(X99+W99)*0.5*'User Parameters'!$C$51) -> 0 | AM99: =-'User Parameters'!$C$13*('User Parameters'!$C$14-1) -> 0 | AN99: -0.01074150811
A100: 0.9269297158 | B100: 634.4228257 | C100: 588.0653695 | D100: 0.9269297158 | E100: ='User Parameters'!$C$11 -> 50 | F100: =B100*'User Parameters'!$C$15 -> 6.344228257 | G100: -9.986772059 | H100: -0.01574150811 | I100: 0.9362926422 | J100: =IF(UP_RSBasis="MLR",UP_RSTarget_MLR,IF(UP_RSBasis="Medical Baseline",UP_RSTarget_Medlcal,0)) -> 0 | K100: 0 | L100: 0 | M100: 0 | N100: 0 | O100: 0 | P100: 0 | Q100: 0 | S100: 0 | T100: =(S100+C100+'User Parameters'!$C$12)/(B100-F100) -> 0.9362926422 | U100: =IF(T100<'User Parameters'!$J$5,'User Parameters'!$J$5,IF(T100>'User Parameters'!$J$6,'User Parameters'!$J$6,T100)) -> 0.9362926422 | V100: 0 | W100: 0 | X100: =(B100-C100-F100-E100-S100-V100)/'Results Dashboard'!$D$43 -> -0.01574150811 | Y100: =IF((X100+W100)>0,(X100+W100)*0.5*((1+'User Parameters'!C$50)^((12+UP_COC_WithholdLag)/12)-1),(X100+W100)*0.5*((1+'User Parameters'!$C$51)^((12+UP_COC_WithholdLag)/12)-1)) -> 0 | Z100: =-'User Parameters'!$C$13*('User Parameters'!$C$14-1) -> 0 | AA100: -0.01574150811 | AB100: 0.04454909018 | AC100: 0.01500913052 | AD100: 0.01500913052 | AE100: 0.01500913052 | AF100: =IF($AA100<-'Results Dashboard'!$J$7,$AA100+'Results Dashboard'!$J$7,0) -> 0 | AG100: =IF($AA100<-'Results Dashboard'!$J$8,$AA100+'Results Dashboard'!$J$8,0) -> 0 | AH100: =IF($AA100<-'Results Dashboard'!$J$9,$AA100+'Results Dashboard'!$J$9,0) -> 0 | AI100: =IF($AA100<-'Results Dashboard'!$J$11,$AA100+'Results Dashboard'!$J$11,0) -> 0 | AJ100: =IF($AA100<-'Results Dashboard'!$J$10,$AA100+'Results Dashboard'!$J$10,0) -> 0 | AL100: =IF((X100+W100)>0,(X100+W100)*0.5*'User Parameters'!C$50,(X100+W100)*0.5*'User Parameters'!$C$51) -> 0 | AM100: =-'User Parameters'!$C$13*('User Parameters'!$C$14-1) -> 0 | AN100: -0.01574150811
A101: 0.9319297158 | B101: 634.4228257 | C101: 591.2374837 | D101: 0.9319297158 | E101: ='User Parameters'!$C$11 -> 50 | F101: =B101*'User Parameters'!$C$15 -> 6.344228257 | G101: -13.15888619 | H101: -0.02074150811 | I101: 0.9413431472 | J101: =IF(UP_RSBasis="MLR",UP_RSTarget_MLR,IF(UP_RSBasis="Medical Baseline",UP_RSTarget_Medlcal,0)) -> 0 | K101: 0 | L101: 0 | M101: 0 | N101: 0 | O101: 0 | P101: 0 | Q101: 0 | S101: 0 | T101: =(S101+C101+'User Parameters'!$C$12)/(B101-F101) -> 0.9413431472 | U101: =IF(T101<'User Parameters'!$J$5,'User Parameters'!$J$5,IF(T101>'User Parameters'!$J$6,'User Parameters'!$J$6,T101)) -> 0.9413431472 | V101: 0 | W101: 0 | X101: =(B101-C101-F101-E101-S101-V101)/'Results Dashboard'!$D$43 -> -0.02074150811 | Y101: =IF((X101+W101)>0,(X101+W101)*0.5*((1+'User Parameters'!C$50)^((12+UP_COC_WithholdLag)/12)-1),(X101+W101)*0.5*((1+'User Parameters'!$C$51)^((12+UP_COC_WithholdLag)/12)-1)) -> 0 | Z101: =-'User Parameters'!$C$13*('User Parameters'!$C$14-1) -> 0 | AA101: -0.02074150811 | AB101: 0.03274816022 | AC101: 0.01180092997 | AD101: 0.01180092997 | AE101: 0.01180092997 | AF101: =IF($AA101<-'Results Dashboard'!$J$7,$AA101+'Results Dashboard'!$J$7,0) -> 0 | AG101: =IF($AA101<-'Results Dashboard'!$J$8,$AA101+'Results Dashboard'!$J$8,0) -> 0 | AH101: =IF($AA101<-'Results Dashboard'!$J$9,$AA101+'Results Dashboard'!$J$9,0) -> 0 | AI101: =IF($AA101<-'Results Dashboard'!$J$11,$AA101+'Results Dashboard'!$J$11,0) -> 0 | AJ101: =IF($AA101<-'Results Dashboard'!$J$10,$AA101+'Results Dashboard'!$J$10,0) -> 0 | AL101: =IF((X101+W101)>0,(X101+W101)*0.5*'User Parameters'!C$50,(X101+W101)*0.5*'User Parameters'!$C$51) -> 0 | AM101: =-'User Parameters'!$C$13*('User Parameters'!$C$14-1) -> 0 | AN101: -0.02074150811
A102: 0.9369297158 | B102: 634.4228257 | C102: 594.4095978 | D102: 0.9369297158 | E102: ='User Parameters'!$C$11 -> 50 | F102: =B102*'User Parameters'!$C$15 -> 6.344228257 | G102: -16.33100032 | H102: -0.02574150811 | I102: 0.9463936523 | J102: =IF(UP_RSBasis="MLR",UP_RSTarget_MLR,IF(UP_RSBasis="Medical Baseline",UP_RSTarget_Medlcal,0)) -> 0 | K102: 0 | L102: 0 | M102: 0 | N102: 0 | O102: 0 | P102: 0 | Q102: 0 | S102: 0 | T102: =(S102+C102+'User Parameters'!$C$12)/(B102-F102) -> 0.9463936523 | U102: =IF(T102<'User Parameters'!$J$5,'User Parameters'!$J$5,IF(T102>'User Parameters'!$J$6,'User Parameters'!$J$6,T102)) -> 0.9463936523 | V102: 0 | W102: 0 | X102: =(B102-C102-F102-E102-S102-V102)/'Results Dashboard'!$D$43 -> -0.02574150811 | Y102: =IF((X102+W102)>0,(X102+W102)*0.5*((1+'User Parameters'!C$50)^((12+UP_COC_WithholdLag)/12)-1),(X102+W102)*0.5*((1+'User Parameters'!$C$51)^((12+UP_COC_WithholdLag)/12)-1)) -> 0 | Z102: =-'User Parameters'!$C$13*('User Parameters'!$C$14-1) -> 0 | AA102: -0.02574150811 | AB102: 0.02365376916 | AC102: 0.009094391059 | AD102: 0.009094391059 | AE102: 0.009094391059 | AF102: =IF($AA102<-'Results Dashboard'!$J$7,$AA102+'Results Dashboard'!$J$7,0) -> 0 | AG102: =IF($AA102<-'Results Dashboard'!$J$8,$AA102+'Results Dashboard'!$J$8,0) -> 0 | AH102: =IF($AA102<-'Results Dashboard'!$J$9,$AA102+'Results Dashboard'!$J$9,0) -> 0 | AI102: =IF($AA102<-'Results Dashboard'!$J$11,$AA102+'Results Dashboard'!$J$11,0) -> 0 | AJ102: =IF($AA102<-'Results Dashboard'!$J$10,$AA102+'Results Dashboard'!$J$10,0) -> 0 | AL102: =IF((X102+W102)>0,(X102+W102)*0.5*'User Parameters'!C$50,(X102+W102)*0.5*'User Parameters'!$C$51) -> 0 | AM102: =-'User Parameters'!$C$13*('User Parameters'!$C$14-1) -> 0 | AN102: -0.02574150811
A103: 0.9419297158 | B103: 634.4228257 | C103: 597.5817119 | D103: 0.9419297158 | E103: ='User Parameters'!$C$11 -> 50 | F103: =B103*'User Parameters'!$C$15 -> 6.344228257 | G103: -19.50311445 | H103: -0.03074150811 | I103: =($C103+UP_QIPMPM)/($B103-$F103) -> 0.9514441573 | J103: =IF(UP_RSBasis="MLR",UP_RSTarget_MLR,IF(UP_RSBasis="Medical Baseline",UP_RSTarget_Medlcal,0)) -> 0 | K103: 0 | L103: 0 | M103: 0 | N103: 0 | O103: 0 | P103: 0 | Q103: 0 | S103: 0 | T103: =(S103+C103+'User Parameters'!$C$12)/(B103-F103) -> 0.9514441573 | U103: =IF(T103<'User Parameters'!$J$5,'User Parameters'!$J$5,IF(T103>'User Parameters'!$J$6,'User Parameters'!$J$6,T103)) -> 0.9514441573 | V103: 0 | W103: 0 | X103: =(B103-C103-F103-E103-S103-V103)/'Results Dashboard'!$D$43 -> -0.03074150811 | Y103: =IF((X103+W103)>0,(X103+W103)*0.5*((1+'User Parameters'!C$50)^((12+UP_COC_WithholdLag)/12)-1),(X103+W103)*0.5*((1+'User Parameters'!$C$51)^((12+UP_COC_WithholdLag)/12)-1)) -> 0 | Z103: =-'User Parameters'!$C$13*('User Parameters'!$C$14-1) -> 0 | AA103: -0.03074150811 | AB103: 0.01678422843 | AC103: 0.006869540724 | AD103: 0.006869540724 | AE103: 0.006869540724 | AF103: =IF($AA103<-'Results Dashboard'!$J$7,$AA103+'Results Dashboard'!$J$7,0) -> 0 | AG103: =IF($AA103<-'Results Dashboard'!$J$8,$AA103+'Results Dashboard'!$J$8,0) -> 0 | AH103: =IF($AA103<-'Results Dashboard'!$J$9,$AA103+'Results Dashboard'!$J$9,0) -> 0 | AI103: =IF($AA103<-'Results Dashboard'!$J$11,$AA103+'Results Dashboard'!$J$11,0) -> 0 | AJ103: =IF($AA103<-'Results Dashboard'!$J$10,$AA103+'Results Dashboard'!$J$10,0) -> 0 | AL103: =IF((X103+W103)>0,(X103+W103)*0.5*'User Parameters'!C$50,(X103+W103)*0.5*'User Parameters'!$C$51) -> 0 | AM103: =-'User Parameters'!$C$13*('User Parameters'!$C$14-1) -> 0 | AN103: -0.03074150811
A104: 0.9469297158 | B104: 634.4228257 | C104: 600.7538261 | D104: 0.9469297158 | E104: ='User Parameters'!$C$11 -> 50 | F104: =B104*'User Parameters'!$C$15 -> 6.344228257 | G104: -22.67522857 | H104: -0.03574150811 | I104: 0.9564946624 | J104: =IF(UP_RSBasis="MLR",UP_RSTarget_MLR,IF(UP_RSBasis="Medical Baseline",UP_RSTarget_Medlcal,0)) -> 0 | K104: =IF(UP_RSBasis="MLR",J104-I104,IF(UP_RSBasis="Medical Baseline",J104-$C104,0)) -> 0 | L104: 0 | M104: 0 | N104: 0 | O104: 0 | P104: 0 | Q104: 0 | R104: =IF(UP_RSBasis="MLR",SUMPRODUCT(L$4:Q$4,L104:Q104),"") ->  | S104: =IF(UP_RSBasis="MLR",R104*(B104-F104),SUMPRODUCT($L$4:$Q$4,$L104:$Q104)) -> 0 | T104: =(S104+C104+'User Parameters'!$C$12)/(B104-F104) -> 0.9564946624 | U104: =IF(T104<'User Parameters'!$J$5,'User Parameters'!$J$5,IF(T104>'User Parameters'!$J$6,'User Parameters'!$J$6,T104)) -> 0.9564946624 | V104: =(U104-T104)*(B104-F104) -> 0 | W104: =V104/B104 -> 0 | X104: =(B104-C104-F104-E104-S104-V104)/'Results Dashboard'!$D$43 -> -0.03574150811 | Y104: =IF((X104+W104)>0,(X104+W104)*0.5*((1+'User Parameters'!C$50)^((12+UP_COC_WithholdLag)/12)-1),(X104+W104)*0.5*((1+'User Parameters'!$C$51)^((12+UP_COC_WithholdLag)/12)-1)) -> 0 | Z104: =-'User Parameters'!$C$13*('User Parameters'!$C$14-1) -> 0 | AA104: -0.03574150811 | AB104: =_xlfn.NORM.DIST(H104,$AD$2,$AD$3,TRUE) -> 0.01169820382 | AC104: 0.005086024612 | AD104: 0.005086024612 | AE104: 0.005086024612 | AF104: =IF($AA104<-'Results Dashboard'!$J$7,$AA104+'Results Dashboard'!$J$7,0) -> -0.003549936261 | AG104: =IF($AA104<-'Results Dashboard'!$J$8,$AA104+'Results Dashboard'!$J$8,0) -> 0 | AH104: =IF($AA104<-'Results Dashboard'!$J$9,$AA104+'Results Dashboard'!$J$9,0) -> 0 | AI104: =IF($AA104<-'Results Dashboard'!$J$11,$AA104+'Results Dashboard'!$J$11,0) -> 0 | AJ104: =IF($AA104<-'Results Dashboard'!$J$10,$AA104+'Results Dashboard'!$J$10,0) -> 0 | AL104: =IF((X104+W104)>0,(X104+W104)*0.5*'User Parameters'!C$50,(X104+W104)*0.5*'User Parameters'!$C$51) -> 0 | AM104: =-'User Parameters'!$C$13*('User Parameters'!$C$14-1) -> 0 | AN104: -0.03574150811
A105: 0.9519297158 | B105: 634.4228257 | C105: 603.9259402 | D105: 0.9519297158 | E105: ='User Parameters'!$C$11 -> 50 | F105: =B105*'User Parameters'!$C$15 -> 6.344228257 | G105: -25.8473427 | H105: -0.04074150811 | I105: 0.9615451674 | J105: =IF(UP_RSBasis="MLR",UP_RSTarget_MLR,IF(UP_RSBasis="Medical Baseline",UP_RSTarget_Medlcal,0)) -> 0 | K105: 0 | L105: 0 | M105: 0 | N105: 0 | O105: 0 | P105: 0 | Q105: 0 | S105: 0 | T105: =(S105+C105+'User Parameters'!$C$12)/(B105-F105) -> 0.9615451674 | U105: =IF(T105<'User Parameters'!$J$5,'User Parameters'!$J$5,IF(T105>'User Parameters'!$J$6,'User Parameters'!$J$6,T105)) -> 0.9615451674 | V105: 0 | W105: 0 | X105: =(B105-C105-F105-E105-S105-V105)/'Results Dashboard'!$D$43 -> -0.04074150811 | Y105: =IF((X105+W105)>0,(X105+W105)*0.5*((1+'User Parameters'!C$50)^((12+UP_COC_WithholdLag)/12)-1),(X105+W105)*0.5*((1+'User Parameters'!$C$51)^((12+UP_COC_WithholdLag)/12)-1)) -> 0 | Z105: =-'User Parameters'!$C$13*('User Parameters'!$C$14-1) -> 0 | AA105: -0.04074150811 | AB105: 0.008007358192 | AC105: 0.00369084563 | AD105: 0.00369084563 | AE105: 0.00369084563 | AF105: =IF($AA105<-'Results Dashboard'!$J$7,$AA105+'Results Dashboard'!$J$7,0) -> -0.008549936261 | AG105: =IF($AA105<-'Results Dashboard'!$J$8,$AA105+'Results Dashboard'!$J$8,0) -> 0 | AH105: =IF($AA105<-'Results Dashboard'!$J$9,$AA105+'Results Dashboard'!$J$9,0) -> 0 | AI105: =IF($AA105<-'Results Dashboard'!$J$11,$AA105+'Results Dashboard'!$J$11,0) -> 0 | AJ105: =IF($AA105<-'Results Dashboard'!$J$10,$AA105+'Results Dashboard'!$J$10,0) -> 0 | AL105: =IF((X105+W105)>0,(X105+W105)*0.5*'User Parameters'!C$50,(X105+W105)*0.5*'User Parameters'!$C$51) -> 0 | AM105: =-'User Parameters'!$C$13*('User Parameters'!$C$14-1) -> 0 | AN105: -0.04074150811
A106: 0.9569297158 | B106: 634.4228257 | C106: 607.0980543 | D106: 0.9569297158 | E106: ='User Parameters'!$C$11 -> 50 | F106: =B106*'User Parameters'!$C$15 -> 6.344228257 | G106: -29.01945683 | H106: -0.04574150811 | I106: 0.9665956725 | J106: =IF(UP_RSBasis="MLR",UP_RSTarget_MLR,IF(UP_RSBasis="Medical Baseline",UP_RSTarget_Medlcal,0)) -> 0 | K106: 0 | L106: 0 | M106: 0 | N106: 0 | O106: 0 | P106: 0 | Q106: 0 | S106: 0 | T106: =(S106+C106+'User Parameters'!$C$12)/(B106-F106) -> 0.9665956725 | U106: =IF(T106<'User Parameters'!$J$5,'User Parameters'!$J$5,IF(T106>'User Parameters'!$J$6,'User Parameters'!$J$6,T106)) -> 0.9665956725 | V106: 0 | W106: 0 | X106: =(B106-C106-F106-E106-S106-V106)/'Results Dashboard'!$D$43 -> -0.04574150811 | Y106: =IF((X106+W106)>0,(X106+W106)*0.5*((1+'User Parameters'!C$50)^((12+UP_COC_WithholdLag)/12)-1),(X106+W106)*0.5*((1+'User Parameters'!$C$51)^((12+UP_COC_WithholdLag)/12)-1)) -> 0 | Z106: =-'User Parameters'!$C$13*('User Parameters'!$C$14-1) -> 0 | AA106: -0.04574150811 | AB106: 0.005382112441 | AC106: 0.002625245752 | AD106: 0.002625245752 | AE106: 0.002625245752 | AF106: =IF($AA106<-'Results Dashboard'!$J$7,$AA106+'Results Dashboard'!$J$7,0) -> -0.01354993626 | AG106: =IF($AA106<-'Results Dashboard'!$J$8,$AA106+'Results Dashboard'!$J$8,0) -> 0 | AH106: =IF($AA106<-'Results Dashboard'!$J$9,$AA106+'Results Dashboard'!$J$9,0) -> 0 | AI106: =IF($AA106<-'Results Dashboard'!$J$11,$AA106+'Results Dashboard'!$J$11,0) -> 0 | AJ106: =IF($AA106<-'Results Dashboard'!$J$10,$AA106+'Results Dashboard'!$J$10,0) -> 0 | AL106: =IF((X106+W106)>0,(X106+W106)*0.5*'User Parameters'!C$50,(X106+W106)*0.5*'User Parameters'!$C$51) -> 0 | AM106: =-'User Parameters'!$C$13*('User Parameters'!$C$14-1) -> 0 | AN106: -0.04574150811
A107: 0.9619297158 | B107: 634.4228257 | C107: 610.2701684 | D107: 0.9619297158 | E107: ='User Parameters'!$C$11 -> 50 | F107: =B107*'User Parameters'!$C$15 -> 6.344228257 | G107: -32.19157096 | H107: -0.05074150811 | I107: 0.9716461775 | J107: =IF(UP_RSBasis="MLR",UP_RSTarget_MLR,IF(UP_RSBasis="Medical Baseline",UP_RSTarget_Medlcal,0)) -> 0 | K107: 0 | L107: 0 | M107: 0 | N107: 0 | O107: 0 | P107: 0 | Q107: 0 | S107: 0 | T107: =(S107+C107+'User Parameters'!$C$12)/(B107-F107) -> 0.9716461775 | U107: =IF(T107<'User Parameters'!$J$5,'User Parameters'!$J$5,IF(T107>'User Parameters'!$J$6,'User Parameters'!$J$6,T107)) -> 0.9716461775 | V107: 0 | W107: 0 | X107: =(B107-C107-F107-E107-S107-V107)/'Results Dashboard'!$D$43 -> -0.05074150811 | Y107: =IF((X107+W107)>0,(X107+W107)*0.5*((1+'User Parameters'!C$50)^((12+UP_COC_WithholdLag)/12)-1),(X107+W107)*0.5*((1+'User Parameters'!$C$51)^((12+UP_COC_WithholdLag)/12)-1)) -> 0 | Z107: =-'User Parameters'!$C$13*('User Parameters'!$C$14-1) -> 0 | AA107: -0.05074150811 | AB107: 0.003551861254 | AC107: 0.001830251186 | AD107: 0.001830251186 | AE107: 0.001830251186 | AF107: =IF($AA107<-'Results Dashboard'!$J$7,$AA107+'Results Dashboard'!$J$7,0) -> -0.01854993626 | AG107: =IF($AA107<-'Results Dashboard'!$J$8,$AA107+'Results Dashboard'!$J$8,0) -> 0 | AH107: =IF($AA107<-'Results Dashboard'!$J$9,$AA107+'Results Dashboard'!$J$9,0) -> 0 | AI107: =IF($AA107<-'Results Dashboard'!$J$11,$AA107+'Results Dashboard'!$J$11,0) -> 0 | AJ107: =IF($AA107<-'Results Dashboard'!$J$10,$AA107+'Results Dashboard'!$J$10,0) -> 0 | AL107: =IF((X107+W107)>0,(X107+W107)*0.5*'User Parameters'!C$50,(X107+W107)*0.5*'User Parameters'!$C$51) -> 0 | AM107: =-'User Parameters'!$C$13*('User Parameters'!$C$14-1) -> 0 | AN107: -0.05074150811
A108: 0.9669297158 | B108: 634.4228257 | C108: 613.4422826 | D108: 0.9669297158 | E108: ='User Parameters'!$C$11 -> 50 | F108: =B108*'User Parameters'!$C$15 -> 6.344228257 | G108: -35.36368509 | H108: -0.05574150811 | I108: 0.9766966826 | J108: =IF(UP_RSBasis="MLR",UP_RSTarget_MLR,IF(UP_RSBasis="Medical Baseline",UP_RSTarget_Medlcal,0)) -> 0 | K108: 0 | L108: 0 | M108: 0 | N108: 0 | O108: 0 | P108: 0 | Q108: 0 | S108: 0 | T108: =(S108+C108+'User Parameters'!$C$12)/(B108-F108) -> 0.9766966826 | U108: =IF(T108<'User Parameters'!$J$5,'User Parameters'!$J$5,IF(T108>'User Parameters'!$J$6,'User Parameters'!$J$6,T108)) -> 0.9766966826 | V108: 0 | W108: 0 | X108: =(B108-C108-F108-E108-S108-V108)/'Results Dashboard'!$D$43 -> -0.05574150811 | Y108: =IF((X108+W108)>0,(X108+W108)*0.5*((1+'User Parameters'!C$50)^((12+UP_COC_WithholdLag)/12)-1),(X108+W108)*0.5*((1+'User Parameters'!$C$51)^((12+UP_COC_WithholdLag)/12)-1)) -> 0 | Z108: =-'User Parameters'!$C$13*('User Parameters'!$C$14-1) -> 0 | AA108: -0.05574150811 | AB108: 0.002301175887 | AC108: 0.001250685368 | AD108: 0.001250685368 | AE108: 0.001250685368 | AF108: =IF($AA108<-'Results Dashboard'!$J$7,$AA108+'Results Dashboard'!$J$7,0) -> -0.02354993626 | AG108: =IF($AA108<-'Results Dashboard'!$J$8,$AA108+'Results Dashboard'!$J$8,0) -> 0 | AH108: =IF($AA108<-'Results Dashboard'!$J$9,$AA108+'Results Dashboard'!$J$9,0) -> 0 | AI108: =IF($AA108<-'Results Dashboard'!$J$11,$AA108+'Results Dashboard'!$J$11,0) -> 0 | AJ108: =IF($AA108<-'Results Dashboard'!$J$10,$AA108+'Results Dashboard'!$J$10,0) -> 0 | AL108: =IF((X108+W108)>0,(X108+W108)*0.5*'User Parameters'!C$50,(X108+W108)*0.5*'User Parameters'!$C$51) -> 0 | AM108: =-'User Parameters'!$C$13*('User Parameters'!$C$14-1) -> 0 | AN108: -0.05574150811
A109: 0.9719297158 | B109: 634.4228257 | C109: 616.6143967 | D109: 0.9719297158 | E109: ='User Parameters'!$C$11 -> 50 | F109: =B109*'User Parameters'!$C$15 -> 6.344228257 | G109: -38.53579922 | H109: -0.06074150811 | I109: 0.9817471876 | J109: =IF(UP_RSBasis="MLR",UP_RSTarget_MLR,IF(UP_RSBasis="Medical Baseline",UP_RSTarget_Medlcal,0)) -> 0 | K109: 0 | L109: 0 | M109: 0 | N109: 0 | O109: 0 | P109: 0 | Q109: 0 | S109: 0 | T109: =(S109+C109+'User Parameters'!$C$12)/(B109-F109) -> 0.9817471876 | U109: =IF(T109<'User Parameters'!$J$5,'User Parameters'!$J$5,IF(T109>'User Parameters'!$J$6,'User Parameters'!$J$6,T109)) -> 0.9817471876 | V109: 0 | W109: 0 | X109: =(B109-C109-F109-E109-S109-V109)/'Results Dashboard'!$D$43 -> -0.06074150811 | Y109: =IF((X109+W109)>0,(X109+W109)*0.5*((1+'User Parameters'!C$50)^((12+UP_COC_WithholdLag)/12)-1),(X109+W109)*0.5*((1+'User Parameters'!$C$51)^((12+UP_COC_WithholdLag)/12)-1)) -> 0 | Z109: =-'User Parameters'!$C$13*('User Parameters'!$C$14-1) -> 0 | AA109: -0.06074150811 | AB109: 0.001463488321 | AC109: 0.0008376875653 | AD109: 0.0008376875653 | AE109: 0.0008376875653 | AF109: =IF($AA109<-'Results Dashboard'!$J$7,$AA109+'Results Dashboard'!$J$7,0) -> -0.02854993626 | AG109: =IF($AA109<-'Results Dashboard'!$J$8,$AA109+'Results Dashboard'!$J$8,0) -> 0 | AH109: =IF($AA109<-'Results Dashboard'!$J$9,$AA109+'Results Dashboard'!$J$9,0) -> 0 | AI109: =IF($AA109<-'Results Dashboard'!$J$11,$AA109+'Results Dashboard'!$J$11,0) -> 0 | AJ109: =IF($AA109<-'Results Dashboard'!$J$10,$AA109+'Results Dashboard'!$J$10,0) -> 0 | AL109: =IF((X109+W109)>0,(X109+W109)*0.5*'User Parameters'!C$50,(X109+W109)*0.5*'User Parameters'!$C$51) -> 0 | AM109: =-'User Parameters'!$C$13*('User Parameters'!$C$14-1) -> 0 | AN109: -0.06074150811
A110: 0.9769297158 | B110: 634.4228257 | C110: 619.7865108 | D110: 0.9769297158 | E110: ='User Parameters'!$C$11 -> 50 | F110: =B110*'User Parameters'!$C$15 -> 6.344228257 | G110: -41.70791335 | H110: -0.06574150811 | I110: 0.9867976927 | J110: =IF(UP_RSBasis="MLR",UP_RSTarget_MLR,IF(UP_RSBasis="Medical Baseline",UP_RSTarget_Medlcal,0)) -> 0 | K110: 0 | L110: 0 | M110: 0 | N110: 0 | O110: 0 | P110: 0 | Q110: 0 | S110: 0 | T110: =(S110+C110+'User Parameters'!$C$12)/(B110-F110) -> 0.9867976927 | U110: =IF(T110<'User Parameters'!$J$5,'User Parameters'!$J$5,IF(T110>'User Parameters'!$J$6,'User Parameters'!$J$6,T110)) -> 0.9867976927 | V110: 0 | W110: 0 | X110: =(B110-C110-F110-E110-S110-V110)/'Results Dashboard'!$D$43 -> -0.06574150811 | Y110: =IF((X110+W110)>0,(X110+W110)*0.5*((1+'User Parameters'!C$50)^((12+UP_COC_WithholdLag)/12)-1),(X110+W110)*0.5*((1+'User Parameters'!$C$51)^((12+UP_COC_WithholdLag)/12)-1)) -> 0 | Z110: =-'User Parameters'!$C$13*('User Parameters'!$C$14-1) -> 0 | AA110: -0.06574150811 | AB110: 0.0009135516442 | AC110: 0.0005499366771 | AD110: 0.0005499366771 | AE110: 0.0005499366771 | AF110: =IF($AA110<-'Results Dashboard'!$J$7,$AA110+'Results Dashboard'!$J$7,0) -> -0.03354993626 | AG110: =IF($AA110<-'Results Dashboard'!$J$8,$AA110+'Results Dashboard'!$J$8,0) -> -0.001358364407 | AH110: =IF($AA110<-'Results Dashboard'!$J$9,$AA110+'Results Dashboard'!$J$9,0) -> 0 | AI110: =IF($AA110<-'Results Dashboard'!$J$11,$AA110+'Results Dashboard'!$J$11,0) -> 0 | AJ110: =IF($AA110<-'Results Dashboard'!$J$10,$AA110+'Results Dashboard'!$J$10,0) -> 0 | AL110: =IF((X110+W110)>0,(X110+W110)*0.5*'User Parameters'!C$50,(X110+W110)*0.5*'User Parameters'!$C$51) -> 0 | AM110: =-'User Parameters'!$C$13*('User Parameters'!$C$14-1) -> 0 | AN110: -0.06574150811
A111: 0.9819297158 | B111: 634.4228257 | C111: 622.958625 | D111: 0.9819297158 | E111: ='User Parameters'!$C$11 -> 50 | F111: =B111*'User Parameters'!$C$15 -> 6.344228257 | G111: -44.88002748 | H111: -0.07074150811 | I111: 0.9918481977 | J111: =IF(UP_RSBasis="MLR",UP_RSTarget_MLR,IF(UP_RSBasis="Medical Baseline",UP_RSTarget_Medlcal,0)) -> 0 | K111: 0 | L111: 0 | M111: 0 | N111: 0 | O111: 0 | P111: 0 | Q111: 0 | S111: 0 | T111: =(S111+C111+'User Parameters'!$C$12)/(B111-F111) -> 0.9918481977 | U111: =IF(T111<'User Parameters'!$J$5,'User Parameters'!$J$5,IF(T111>'User Parameters'!$J$6,'User Parameters'!$J$6,T111)) -> 0.9918481977 | V111: 0 | W111: 0 | X111: =(B111-C111-F111-E111-S111-V111)/'Results Dashboard'!$D$43 -> -0.07074150811 | Y111: =IF((X111+W111)>0,(X111+W111)*0.5*((1+'User Parameters'!C$50)^((12+UP_COC_WithholdLag)/12)-1),(X111+W111)*0.5*((1+'User Parameters'!$C$51)^((12+UP_COC_WithholdLag)/12)-1)) -> 0 | Z111: =-'User Parameters'!$C$13*('User Parameters'!$C$14-1) -> 0 | AA111: -0.07074150811 | AB111: 0.0005596847732 | AC111: 0.000353866871 | AD111: 0.000353866871 | AE111: 0.000353866871 | AF111: =IF($AA111<-'Results Dashboard'!$J$7,$AA111+'Results Dashboard'!$J$7,0) -> -0.03854993626 | AG111: =IF($AA111<-'Results Dashboard'!$J$8,$AA111+'Results Dashboard'!$J$8,0) -> -0.006358364407 | AH111: =IF($AA111<-'Results Dashboard'!$J$9,$AA111+'Results Dashboard'!$J$9,0) -> 0 | AI111: =IF($AA111<-'Results Dashboard'!$J$11,$AA111+'Results Dashboard'!$J$11,0) -> 0 | AJ111: =IF($AA111<-'Results Dashboard'!$J$10,$AA111+'Results Dashboard'!$J$10,0) -> 0 | AL111: =IF((X111+W111)>0,(X111+W111)*0.5*'User Parameters'!C$50,(X111+W111)*0.5*'User Parameters'!$C$51) -> 0 | AM111: =-'User Parameters'!$C$13*('User Parameters'!$C$14-1) -> 0 | AN111: -0.07074150811
A112: 0.9869297158 | B112: 634.4228257 | C112: 626.1307391 | D112: 0.9869297158 | E112: ='User Parameters'!$C$11 -> 50 | F112: =B112*'User Parameters'!$C$15 -> 6.344228257 | G112: -48.0521416 | H112: -0.07574150811 | I112: 0.9968987028 | J112: =IF(UP_RSBasis="MLR",UP_RSTarget_MLR,IF(UP_RSBasis="Medical Baseline",UP_RSTarget_Medlcal,0)) -> 0 | K112: 0 | L112: 0 | M112: 0 | N112: 0 | O112: 0 | P112: 0 | Q112: 0 | S112: 0 | T112: =(S112+C112+'User Parameters'!$C$12)/(B112-F112) -> 0.9968987028 | U112: =IF(T112<'User Parameters'!$J$5,'User Parameters'!$J$5,IF(T112>'User Parameters'!$J$6,'User Parameters'!$J$6,T112)) -> 0.9968987028 | V112: 0 | W112: 0 | X112: =(B112-C112-F112-E112-S112-V112)/'Results Dashboard'!$D$43 -> -0.07574150811 | Y112: =IF((X112+W112)>0,(X112+W112)*0.5*((1+'User Parameters'!C$50)^((12+UP_COC_WithholdLag)/12)-1),(X112+W112)*0.5*((1+'User Parameters'!$C$51)^((12+UP_COC_WithholdLag)/12)-1)) -> 0 | Z112: =-'User Parameters'!$C$13*('User Parameters'!$C$14-1) -> 0 | AA112: -0.07574150811 | AB112: 0.0003365004333 | AC112: 0.0002231843399 | AD112: 0.0002231843399 | AE112: 0.0002231843399 | AF112: =IF($AA112<-'Results Dashboard'!$J$7,$AA112+'Results Dashboard'!$J$7,0) -> -0.04354993626 | AG112: =IF($AA112<-'Results Dashboard'!$J$8,$AA112+'Results Dashboard'!$J$8,0) -> -0.01135836441 | AH112: =IF($AA112<-'Results Dashboard'!$J$9,$AA112+'Results Dashboard'!$J$9,0) -> 0 | AI112: =IF($AA112<-'Results Dashboard'!$J$11,$AA112+'Results Dashboard'!$J$11,0) -> 0 | AJ112: =IF($AA112<-'Results Dashboard'!$J$10,$AA112+'Results Dashboard'!$J$10,0) -> 0 | AL112: =IF((X112+W112)>0,(X112+W112)*0.5*'User Parameters'!C$50,(X112+W112)*0.5*'User Parameters'!$C$51) -> 0 | AM112: =-'User Parameters'!$C$13*('User Parameters'!$C$14-1) -> 0 | AN112: -0.07574150811
A113: 0.9919297158 | B113: 634.4228257 | C113: 629.3028532 | D113: 0.9919297158 | E113: ='User Parameters'!$C$11 -> 50 | F113: =B113*'User Parameters'!$C$15 -> 6.344228257 | G113: -51.22425573 | H113: -0.08074150811 | I113: 1.001949208 | J113: =IF(UP_RSBasis="MLR",UP_RSTarget_MLR,IF(UP_RSBasis="Medical Baseline",UP_RSTarget_Medlcal,0)) -> 0 | K113: 0 | L113: 0 | M113: 0 | N113: 0 | O113: 0 | P113: 0 | Q113: 0 | S113: 0 | T113: =(S113+C113+'User Parameters'!$C$12)/(B113-F113) -> 1.001949208 | U113: =IF(T113<'User Parameters'!$J$5,'User Parameters'!$J$5,IF(T113>'User Parameters'!$J$6,'User Parameters'!$J$6,T113)) -> 1.001949208 | V113: 0 | W113: 0 | X113: =(B113-C113-F113-E113-S113-V113)/'Results Dashboard'!$D$43 -> -0.08074150811 | Y113: =IF((X113+W113)>0,(X113+W113)*0.5*((1+'User Parameters'!C$50)^((12+UP_COC_WithholdLag)/12)-1),(X113+W113)*0.5*((1+'User Parameters'!$C$51)^((12+UP_COC_WithholdLag)/12)-1)) -> 0 | Z113: =-'User Parameters'!$C$13*('User Parameters'!$C$14-1) -> 0 | AA113: -0.08074150811 | AB113: 0.0001985306096 | AC113: 0.0001379698237 | AD113: 0.0001379698237 | AE113: 0.0001379698237 | AF113: =IF($AA113<-'Results Dashboard'!$J$7,$AA113+'Results Dashboard'!$J$7,0) -> -0.04854993626 | AG113: =IF($AA113<-'Results Dashboard'!$J$8,$AA113+'Results Dashboard'!$J$8,0) -> -0.01635836441 | AH113: =IF($AA113<-'Results Dashboard'!$J$9,$AA113+'Results Dashboard'!$J$9,0) -> -0.0002625784804 | AI113: =IF($AA113<-'Results Dashboard'!$J$11,$AA113+'Results Dashboard'!$J$11,0) -> 0 | AJ113: =IF($AA113<-'Results Dashboard'!$J$10,$AA113+'Results Dashboard'!$J$10,0) -> 0 | AL113: =IF((X113+W113)>0,(X113+W113)*0.5*'User Parameters'!C$50,(X113+W113)*0.5*'User Parameters'!$C$51) -> 0 | AM113: =-'User Parameters'!$C$13*('User Parameters'!$C$14-1) -> 0 | AN113: -0.08074150811
A114: 0.9969297158 | B114: 634.4228257 | C114: 632.4749673 | D114: 0.9969297158 | E114: ='User Parameters'!$C$11 -> 50 | F114: =B114*'User Parameters'!$C$15 -> 6.344228257 | G114: -54.39636986 | H114: -0.08574150811 | I114: 1.006999713 | J114: =IF(UP_RSBasis="MLR",UP_RSTarget_MLR,IF(UP_RSBasis="Medical Baseline",UP_RSTarget_Medlcal,0)) -> 0 | K114: 0 | L114: 0 | M114: 0 | N114: 0 | O114: 0 | P114: 0 | Q114: 0 | S114: 0 | T114: =(S114+C114+'User Parameters'!$C$12)/(B114-F114) -> 1.006999713 | U114: =IF(T114<'User Parameters'!$J$5,'User Parameters'!$J$5,IF(T114>'User Parameters'!$J$6,'User Parameters'!$J$6,T114)) -> 1.006999713 | V114: 0 | W114: 0 | X114: =(B114-C114-F114-E114-S114-V114)/'Results Dashboard'!$D$43 -> -0.08574150811 | Y114: =IF((X114+W114)>0,(X114+W114)*0.5*((1+'User Parameters'!C$50)^((12+UP_COC_WithholdLag)/12)-1),(X114+W114)*0.5*((1+'User Parameters'!$C$51)^((12+UP_COC_WithholdLag)/12)-1)) -> 0 | Z114: =-'User Parameters'!$C$13*('User Parameters'!$C$14-1) -> 0 | AA114: -0.08574150811 | AB114: 0.000114931613 | AC114: 8.359899656e-05 | AD114: 8.359899656e-05 | AE114: 8.359899656e-05 | AF114: =IF($AA114<-'Results Dashboard'!$J$7,$AA114+'Results Dashboard'!$J$7,0) -> -0.05354993626 | AG114: =IF($AA114<-'Results Dashboard'!$J$8,$AA114+'Results Dashboard'!$J$8,0) -> -0.02135836441 | AH114: =IF($AA114<-'Results Dashboard'!$J$9,$AA114+'Results Dashboard'!$J$9,0) -> -0.00526257848 | AI114: =IF($AA114<-'Results Dashboard'!$J$11,$AA114+'Results Dashboard'!$J$11,0) -> 0 | AJ114: =IF($AA114<-'Results Dashboard'!$J$10,$AA114+'Results Dashboard'!$J$10,0) -> 0 | AL114: =IF((X114+W114)>0,(X114+W114)*0.5*'User Parameters'!C$50,(X114+W114)*0.5*'User Parameters'!$C$51) -> 0 | AM114: =-'User Parameters'!$C$13*('User Parameters'!$C$14-1) -> 0 | AN114: -0.08574150811
A115: 1.001929716 | B115: 634.4228257 | C115: 635.6470815 | D115: 1.001929716 | E115: ='User Parameters'!$C$11 -> 50 | F115: =B115*'User Parameters'!$C$15 -> 6.344228257 | G115: -57.56848399 | H115: -0.09074150811 | I115: 1.012050218 | J115: =IF(UP_RSBasis="MLR",UP_RSTarget_MLR,IF(UP_RSBasis="Medical Baseline",UP_RSTarget_Medlcal,0)) -> 0 | K115: 0 | L115: 0 | M115: 0 | N115: 0 | O115: 0 | P115: 0 | Q115: 0 | S115: 0 | T115: =(S115+C115+'User Parameters'!$C$12)/(B115-F115) -> 1.012050218 | U115: =IF(T115<'User Parameters'!$J$5,'User Parameters'!$J$5,IF(T115>'User Parameters'!$J$6,'User Parameters'!$J$6,T115)) -> 1.012050218 | V115: 0 | W115: 0 | X115: =(B115-C115-F115-E115-S115-V115)/'Results Dashboard'!$D$43 -> -0.09074150811 | Y115: =IF((X115+W115)>0,(X115+W115)*0.5*((1+'User Parameters'!C$50)^((12+UP_COC_WithholdLag)/12)-1),(X115+W115)*0.5*((1+'User Parameters'!$C$51)^((12+UP_COC_WithholdLag)/12)-1)) -> 0 | Z115: =-'User Parameters'!$C$13*('User Parameters'!$C$14-1) -> 0 | AA115: -0.09074150811 | AB115: 6.528214837e-05 | AC115: 4.964946467e-05 | AD115: 4.964946467e-05 | AE115: 4.964946467e-05 | AF115: =IF($AA115<-'Results Dashboard'!$J$7,$AA115+'Results Dashboard'!$J$7,0) -> -0.05854993626 | AG115: =IF($AA115<-'Results Dashboard'!$J$8,$AA115+'Results Dashboard'!$J$8,0) -> -0.02635836441 | AH115: =IF($AA115<-'Results Dashboard'!$J$9,$AA115+'Results Dashboard'!$J$9,0) -> -0.01026257848 | AI115: =IF($AA115<-'Results Dashboard'!$J$11,$AA115+'Results Dashboard'!$J$11,0) -> 0 | AJ115: =IF($AA115<-'Results Dashboard'!$J$10,$AA115+'Results Dashboard'!$J$10,0) -> 0 | AL115: =IF((X115+W115)>0,(X115+W115)*0.5*'User Parameters'!C$50,(X115+W115)*0.5*'User Parameters'!$C$51) -> 0 | AM115: =-'User Parameters'!$C$13*('User Parameters'!$C$14-1) -> 0 | AN115: -0.09074150811
A116: 1.006929716 | B116: 634.4228257 | C116: 638.8191956 | D116: 1.006929716 | E116: ='User Parameters'!$C$11 -> 50 | F116: =B116*'User Parameters'!$C$15 -> 6.344228257 | G116: -60.74059812 | H116: -0.09574150811 | I116: 1.017100723 | J116: =IF(UP_RSBasis="MLR",UP_RSTarget_MLR,IF(UP_RSBasis="Medical Baseline",UP_RSTarget_Medlcal,0)) -> 0 | K116: 0 | L116: 0 | M116: 0 | N116: 0 | O116: 0 | P116: 0 | Q116: 0 | S116: 0 | T116: =(S116+C116+'User Parameters'!$C$12)/(B116-F116) -> 1.017100723 | U116: =IF(T116<'User Parameters'!$J$5,'User Parameters'!$J$5,IF(T116>'User Parameters'!$J$6,'User Parameters'!$J$6,T116)) -> 1.017100723 | V116: 0 | W116: 0 | X116: =(B116-C116-F116-E116-S116-V116)/'Results Dashboard'!$D$43 -> -0.09574150811 | Y116: =IF((X116+W116)>0,(X116+W116)*0.5*((1+'User Parameters'!C$50)^((12+UP_COC_WithholdLag)/12)-1),(X116+W116)*0.5*((1+'User Parameters'!$C$51)^((12+UP_COC_WithholdLag)/12)-1)) -> 0 | Z116: =-'User Parameters'!$C$13*('User Parameters'!$C$14-1) -> 0 | AA116: -0.09574150811 | AB116: 3.638036703e-05 | AC116: 2.890178135e-05 | AD116: 2.890178135e-05 | AE116: 2.890178135e-05 | AF116: =IF($AA116<-'Results Dashboard'!$J$7,$AA116+'Results Dashboard'!$J$7,0) -> -0.06354993626 | AG116: =IF($AA116<-'Results Dashboard'!$J$8,$AA116+'Results Dashboard'!$J$8,0) -> -0.03135836441 | AH116: =IF($AA116<-'Results Dashboard'!$J$9,$AA116+'Results Dashboard'!$J$9,0) -> -0.01526257848 | AI116: =IF($AA116<-'Results Dashboard'!$J$11,$AA116+'Results Dashboard'!$J$11,0) -> 0 | AJ116: =IF($AA116<-'Results Dashboard'!$J$10,$AA116+'Results Dashboard'!$J$10,0) -> 0 | AL116: =IF((X116+W116)>0,(X116+W116)*0.5*'User Parameters'!C$50,(X116+W116)*0.5*'User Parameters'!$C$51) -> 0 | AM116: =-'User Parameters'!$C$13*('User Parameters'!$C$14-1) -> 0 | AN116: -0.09574150811
A117: 1.011929716 | B117: 634.4228257 | C117: 641.9913097 | D117: 1.011929716 | E117: ='User Parameters'!$C$11 -> 50 | F117: =B117*'User Parameters'!$C$15 -> 6.344228257 | G117: -63.91271225 | H117: -0.1007415081 | I117: 1.022151228 | J117: =IF(UP_RSBasis="MLR",UP_RSTarget_MLR,IF(UP_RSBasis="Medical Baseline",UP_RSTarget_Medlcal,0)) -> 0 | K117: 0 | L117: 0 | M117: 0 | N117: 0 | O117: 0 | P117: 0 | Q117: 0 | S117: 0 | T117: =(S117+C117+'User Parameters'!$C$12)/(B117-F117) -> 1.022151228 | U117: =IF(T117<'User Parameters'!$J$5,'User Parameters'!$J$5,IF(T117>'User Parameters'!$J$6,'User Parameters'!$J$6,T117)) -> 1.022151228 | V117: 0 | W117: 0 | X117: =(B117-C117-F117-E117-S117-V117)/'Results Dashboard'!$D$43 -> -0.1007415081 | Y117: =IF((X117+W117)>0,(X117+W117)*0.5*((1+'User Parameters'!C$50)^((12+UP_COC_WithholdLag)/12)-1),(X117+W117)*0.5*((1+'User Parameters'!$C$51)^((12+UP_COC_WithholdLag)/12)-1)) -> 0 | Z117: =-'User Parameters'!$C$13*('User Parameters'!$C$14-1) -> 0 | AA117: -0.1007415081 | AB117: 1.988996773e-05 | AC117: 1.64903993e-05 | AD117: 1.64903993e-05 | AE117: 1.64903993e-05 | AF117: =IF($AA117<-'Results Dashboard'!$J$7,$AA117+'Results Dashboard'!$J$7,0) -> -0.06854993626 | AG117: =IF($AA117<-'Results Dashboard'!$J$8,$AA117+'Results Dashboard'!$J$8,0) -> -0.03635836441 | AH117: =IF($AA117<-'Results Dashboard'!$J$9,$AA117+'Results Dashboard'!$J$9,0) -> -0.02026257848 | AI117: =IF($AA117<-'Results Dashboard'!$J$11,$AA117+'Results Dashboard'!$J$11,0) -> 0 | AJ117: =IF($AA117<-'Results Dashboard'!$J$10,$AA117+'Results Dashboard'!$J$10,0) -> 0 | AL117: =IF((X117+W117)>0,(X117+W117)*0.5*'User Parameters'!C$50,(X117+W117)*0.5*'User Parameters'!$C$51) -> 0 | AM117: =-'User Parameters'!$C$13*('User Parameters'!$C$14-1) -> 0 | AN117: -0.1007415081
A118: 1.016929716 | B118: 634.4228257 | C118: 645.1634239 | D118: 1.016929716 | E118: ='User Parameters'!$C$11 -> 50 | F118: =B118*'User Parameters'!$C$15 -> 6.344228257 | G118: -67.08482638 | H118: -0.1057415081 | I118: 1.027201733 | J118: =IF(UP_RSBasis="MLR",UP_RSTarget_MLR,IF(UP_RSBasis="Medical Baseline",UP_RSTarget_Medlcal,0)) -> 0 | K118: 0 | L118: 0 | M118: 0 | N118: 0 | O118: 0 | P118: 0 | Q118: 0 | S118: 0 | T118: =(S118+C118+'User Parameters'!$C$12)/(B118-F118) -> 1.027201733 | U118: =IF(T118<'User Parameters'!$J$5,'User Parameters'!$J$5,IF(T118>'User Parameters'!$J$6,'User Parameters'!$J$6,T118)) -> 1.027201733 | V118: 0 | W118: 0 | X118: =(B118-C118-F118-E118-S118-V118)/'Results Dashboard'!$D$43 -> -0.1057415081 | Y118: =IF((X118+W118)>0,(X118+W118)*0.5*((1+'User Parameters'!C$50)^((12+UP_COC_WithholdLag)/12)-1),(X118+W118)*0.5*((1+'User Parameters'!$C$51)^((12+UP_COC_WithholdLag)/12)-1)) -> 0 | Z118: =-'User Parameters'!$C$13*('User Parameters'!$C$14-1) -> 0 | AA118: -0.1057415081 | AB118: 1.06677741e-05 | AC118: 9.222193626e-06 | AD118: 9.222193626e-06 | AE118: 9.222193626e-06 | AF118: =IF($AA118<-'Results Dashboard'!$J$7,$AA118+'Results Dashboard'!$J$7,0) -> -0.07354993626 | AG118: =IF($AA118<-'Results Dashboard'!$J$8,$AA118+'Results Dashboard'!$J$8,0) -> -0.04135836441 | AH118: =IF($AA118<-'Results Dashboard'!$J$9,$AA118+'Results Dashboard'!$J$9,0) -> -0.02526257848 | AI118: =IF($AA118<-'Results Dashboard'!$J$11,$AA118+'Results Dashboard'!$J$11,0) -> 0 | AJ118: =IF($AA118<-'Results Dashboard'!$J$10,$AA118+'Results Dashboard'!$J$10,0) -> 0 | AL118: =IF((X118+W118)>0,(X118+W118)*0.5*'User Parameters'!C$50,(X118+W118)*0.5*'User Parameters'!$C$51) -> 0 | AM118: =-'User Parameters'!$C$13*('User Parameters'!$C$14-1) -> 0 | AN118: -0.1057415081
A119: 1.021929716 | B119: 634.4228257 | C119: 648.335538 | D119: 1.021929716 | E119: ='User Parameters'!$C$11 -> 50 | F119: =B119*'User Parameters'!$C$15 -> 6.344228257 | G119: -70.25694051 | H119: -0.1107415081 | I119: 1.032252238 | J119: =IF(UP_RSBasis="MLR",UP_RSTarget_MLR,IF(UP_RSBasis="Medical Baseline",UP_RSTarget_Medlcal,0)) -> 0 | K119: 0 | L119: 0 | M119: 0 | N119: 0 | O119: 0 | P119: 0 | Q119: 0 | S119: 0 | T119: =(S119+C119+'User Parameters'!$C$12)/(B119-F119) -> 1.032252238 | U119: =IF(T119<'User Parameters'!$J$5,'User Parameters'!$J$5,IF(T119>'User Parameters'!$J$6,'User Parameters'!$J$6,T119)) -> 1.032252238 | V119: 0 | W119: 0 | X119: =(B119-C119-F119-E119-S119-V119)/'Results Dashboard'!$D$43 -> -0.1107415081 | Y119: =IF((X119+W119)>0,(X119+W119)*0.5*((1+'User Parameters'!C$50)^((12+UP_COC_WithholdLag)/12)-1),(X119+W119)*0.5*((1+'User Parameters'!$C$51)^((12+UP_COC_WithholdLag)/12)-1)) -> 0 | Z119: =-'User Parameters'!$C$13*('User Parameters'!$C$14-1) -> 0 | AA119: -0.1107415081 | AB119: 5.612627116e-06 | AC119: 5.055146987e-06 | AD119: 5.055146987e-06 | AE119: 5.055146987e-06 | AF119: =IF($AA119<-'Results Dashboard'!$J$7,$AA119+'Results Dashboard'!$J$7,0) -> -0.07854993626 | AG119: =IF($AA119<-'Results Dashboard'!$J$8,$AA119+'Results Dashboard'!$J$8,0) -> -0.04635836441 | AH119: =IF($AA119<-'Results Dashboard'!$J$9,$AA119+'Results Dashboard'!$J$9,0) -> -0.03026257848 | AI119: =IF($AA119<-'Results Dashboard'!$J$11,$AA119+'Results Dashboard'!$J$11,0) -> 0 | AJ119: =IF($AA119<-'Results Dashboard'!$J$10,$AA119+'Results Dashboard'!$J$10,0) -> 0 | AL119: =IF((X119+W119)>0,(X119+W119)*0.5*'User Parameters'!C$50,(X119+W119)*0.5*'User Parameters'!$C$51) -> 0 | AM119: =-'User Parameters'!$C$13*('User Parameters'!$C$14-1) -> 0 | AN119: -0.1107415081
A120: 1.026929716 | B120: 634.4228257 | C120: 651.5076521 | D120: 1.026929716 | E120: ='User Parameters'!$C$11 -> 50 | F120: =B120*'User Parameters'!$C$15 -> 6.344228257 | G120: -73.42905463 | H120: -0.1157415081 | I120: 1.037302743 | J120: =IF(UP_RSBasis="MLR",UP_RSTarget_MLR,IF(UP_RSBasis="Medical Baseline",UP_RSTarget_Medlcal,0)) -> 0 | K120: 0 | L120: 0 | M120: 0 | N120: 0 | O120: 0 | P120: 0 | Q120: 0 | S120: 0 | T120: =(S120+C120+'User Parameters'!$C$12)/(B120-F120) -> 1.037302743 | U120: =IF(T120<'User Parameters'!$J$5,'User Parameters'!$J$5,IF(T120>'User Parameters'!$J$6,'User Parameters'!$J$6,T120)) -> 1.037302743 | V120: 0 | W120: 0 | X120: =(B120-C120-F120-E120-S120-V120)/'Results Dashboard'!$D$43 -> -0.1157415081 | Y120: =IF((X120+W120)>0,(X120+W120)*0.5*((1+'User Parameters'!C$50)^((12+UP_COC_WithholdLag)/12)-1),(X120+W120)*0.5*((1+'User Parameters'!$C$51)^((12+UP_COC_WithholdLag)/12)-1)) -> 0 | Z120: =-'User Parameters'!$C$13*('User Parameters'!$C$14-1) -> 0 | AA120: -0.1157415081 | AB120: 2.89662684e-06 | AC120: 2.716000276e-06 | AD120: 2.716000276e-06 | AE120: 2.716000276e-06 | AF120: =IF($AA120<-'Results Dashboard'!$J$7,$AA120+'Results Dashboard'!$J$7,0) -> -0.08354993626 | AG120: =IF($AA120<-'Results Dashboard'!$J$8,$AA120+'Results Dashboard'!$J$8,0) -> -0.05135836441 | AH120: =IF($AA120<-'Results Dashboard'!$J$9,$AA120+'Results Dashboard'!$J$9,0) -> -0.03526257848 | AI120: =IF($AA120<-'Results Dashboard'!$J$11,$AA120+'Results Dashboard'!$J$11,0) -> 0 | AJ120: =IF($AA120<-'Results Dashboard'!$J$10,$AA120+'Results Dashboard'!$J$10,0) -> 0 | AL120: =IF((X120+W120)>0,(X120+W120)*0.5*'User Parameters'!C$50,(X120+W120)*0.5*'User Parameters'!$C$51) -> 0 | AM120: =-'User Parameters'!$C$13*('User Parameters'!$C$14-1) -> 0 | AN120: -0.1157415081
A121: 1.031929716 | B121: 634.4228257 | C121: 654.6797662 | D121: 1.031929716 | E121: ='User Parameters'!$C$11 -> 50 | F121: =B121*'User Parameters'!$C$15 -> 6.344228257 | G121: -76.60116876 | H121: -0.1207415081 | I121: 1.042353248 | J121: =IF(UP_RSBasis="MLR",UP_RSTarget_MLR,IF(UP_RSBasis="Medical Baseline",UP_RSTarget_Medlcal,0)) -> 0 | K121: 0 | L121: 0 | M121: 0 | N121: 0 | O121: 0 | P121: 0 | Q121: 0 | S121: 0 | T121: =(S121+C121+'User Parameters'!$C$12)/(B121-F121) -> 1.042353248 | U121: =IF(T121<'User Parameters'!$J$5,'User Parameters'!$J$5,IF(T121>'User Parameters'!$J$6,'User Parameters'!$J$6,T121)) -> 1.042353248 | V121: 0 | W121: 0 | X121: =(B121-C121-F121-E121-S121-V121)/'Results Dashboard'!$D$43 -> -0.1207415081 | Y121: =IF((X121+W121)>0,(X121+W121)*0.5*((1+'User Parameters'!C$50)^((12+UP_COC_WithholdLag)/12)-1),(X121+W121)*0.5*((1+'User Parameters'!$C$51)^((12+UP_COC_WithholdLag)/12)-1)) -> 0 | Z121: =-'User Parameters'!$C$13*('User Parameters'!$C$14-1) -> 0 | AA121: -0.1207415081 | AB121: 1.466342828e-06 | AC121: 1.430284012e-06 | AD121: 1.430284012e-06 | AE121: 1.430284012e-06 | AF121: =IF($AA121<-'Results Dashboard'!$J$7,$AA121+'Results Dashboard'!$J$7,0) -> -0.08854993626 | AG121: =IF($AA121<-'Results Dashboard'!$J$8,$AA121+'Results Dashboard'!$J$8,0) -> -0.05635836441 | AH121: =IF($AA121<-'Results Dashboard'!$J$9,$AA121+'Results Dashboard'!$J$9,0) -> -0.04026257848 | AI121: =IF($AA121<-'Results Dashboard'!$J$11,$AA121+'Results Dashboard'!$J$11,0) -> 0 | AJ121: =IF($AA121<-'Results Dashboard'!$J$10,$AA121+'Results Dashboard'!$J$10,0) -> 0 | AL121: =IF((X121+W121)>0,(X121+W121)*0.5*'User Parameters'!C$50,(X121+W121)*0.5*'User Parameters'!$C$51) -> 0 | AM121: =-'User Parameters'!$C$13*('User Parameters'!$C$14-1) -> 0 | AN121: -0.1207415081
A122: 1.036929716 | B122: 634.4228257 | C122: 657.8518804 | D122: 1.036929716 | E122: ='User Parameters'!$C$11 -> 50 | F122: =B122*'User Parameters'!$C$15 -> 6.344228257 | G122: -79.77328289 | H122: -0.1257415081 | I122: 1.047403753 | J122: =IF(UP_RSBasis="MLR",UP_RSTarget_MLR,IF(UP_RSBasis="Medical Baseline",UP_RSTarget_Medlcal,0)) -> 0 | K122: 0 | L122: 0 | M122: 0 | N122: 0 | O122: 0 | P122: 0 | Q122: 0 | S122: 0 | T122: =(S122+C122+'User Parameters'!$C$12)/(B122-F122) -> 1.047403753 | U122: =IF(T122<'User Parameters'!$J$5,'User Parameters'!$J$5,IF(T122>'User Parameters'!$J$6,'User Parameters'!$J$6,T122)) -> 1.047403753 | V122: 0 | W122: 0 | X122: =(B122-C122-F122-E122-S122-V122)/'Results Dashboard'!$D$43 -> -0.1257415081 | Y122: =IF((X122+W122)>0,(X122+W122)*0.5*((1+'User Parameters'!C$50)^((12+UP_COC_WithholdLag)/12)-1),(X122+W122)*0.5*((1+'User Parameters'!$C$51)^((12+UP_COC_WithholdLag)/12)-1)) -> 0 | Z122: =-'User Parameters'!$C$13*('User Parameters'!$C$14-1) -> 0 | AA122: -0.1257415081 | AB122: 7.280796753e-07 | AC122: 7.382631523e-07 | AD122: 7.382631523e-07 | AE122: 7.382631523e-07 | AF122: =IF($AA122<-'Results Dashboard'!$J$7,$AA122+'Results Dashboard'!$J$7,0) -> -0.09354993626 | AG122: =IF($AA122<-'Results Dashboard'!$J$8,$AA122+'Results Dashboard'!$J$8,0) -> -0.06135836441 | AH122: =IF($AA122<-'Results Dashboard'!$J$9,$AA122+'Results Dashboard'!$J$9,0) -> -0.04526257848 | AI122: =IF($AA122<-'Results Dashboard'!$J$11,$AA122+'Results Dashboard'!$J$11,0) -> 0 | AJ122: =IF($AA122<-'Results Dashboard'!$J$10,$AA122+'Results Dashboard'!$J$10,0) -> 0 | AL122: =IF((X122+W122)>0,(X122+W122)*0.5*'User Parameters'!C$50,(X122+W122)*0.5*'User Parameters'!$C$51) -> 0 | AM122: =-'User Parameters'!$C$13*('User Parameters'!$C$14-1) -> 0 | AN122: -0.1257415081
A123: 1.041929716 | B123: 634.4228257 | C123: 661.0239945 | D123: 1.041929716 | E123: ='User Parameters'!$C$11 -> 50 | F123: =B123*'User Parameters'!$C$15 -> 6.344228257 | G123: -82.94539702 | H123: -0.1307415081 | I123: 1.052454258 | J123: =IF(UP_RSBasis="MLR",UP_RSTarget_MLR,IF(UP_RSBasis="Medical Baseline",UP_RSTarget_Medlcal,0)) -> 0 | K123: 0 | L123: 0 | M123: 0 | N123: 0 | O123: 0 | P123: 0 | Q123: 0 | S123: 0 | T123: =(S123+C123+'User Parameters'!$C$12)/(B123-F123) -> 1.052454258 | U123: =IF(T123<'User Parameters'!$J$5,'User Parameters'!$J$5,IF(T123>'User Parameters'!$J$6,'User Parameters'!$J$6,T123)) -> 1.052454258 | V123: 0 | W123: 0 | X123: =(B123-C123-F123-E123-S123-V123)/'Results Dashboard'!$D$43 -> -0.1307415081 | Y123: =IF((X123+W123)>0,(X123+W123)*0.5*((1+'User Parameters'!C$50)^((12+UP_COC_WithholdLag)/12)-1),(X123+W123)*0.5*((1+'User Parameters'!$C$51)^((12+UP_COC_WithholdLag)/12)-1)) -> 0 | Z123: =-'User Parameters'!$C$13*('User Parameters'!$C$14-1) -> 0 | AA123: -0.1307415081 | AB123: 3.545745918e-07 | AC123: 3.735050835e-07 | AD123: 3.735050835e-07 | AE123: 3.735050835e-07 | AF123: =IF($AA123<-'Results Dashboard'!$J$7,$AA123+'Results Dashboard'!$J$7,0) -> -0.09854993626 | AG123: =IF($AA123<-'Results Dashboard'!$J$8,$AA123+'Results Dashboard'!$J$8,0) -> -0.06635836441 | AH123: =IF($AA123<-'Results Dashboard'!$J$9,$AA123+'Results Dashboard'!$J$9,0) -> -0.05026257848 | AI123: =IF($AA123<-'Results Dashboard'!$J$11,$AA123+'Results Dashboard'!$J$11,0) -> 0 | AJ123: =IF($AA123<-'Results Dashboard'!$J$10,$AA123+'Results Dashboard'!$J$10,0) -> 0 | AL123: =IF((X123+W123)>0,(X123+W123)*0.5*'User Parameters'!C$50,(X123+W123)*0.5*'User Parameters'!$C$51) -> 0 | AM123: =-'User Parameters'!$C$13*('User Parameters'!$C$14-1) -> 0 | AN123: -0.1307415081
A124: 1.046929716 | B124: 634.4228257 | C124: 664.1961086 | D124: 1.046929716 | E124: ='User Parameters'!$C$11 -> 50 | F124: =B124*'User Parameters'!$C$15 -> 6.344228257 | G124: -86.11751115 | H124: -0.1357415081 | I124: 1.057504763 | J124: =IF(UP_RSBasis="MLR",UP_RSTarget_MLR,IF(UP_RSBasis="Medical Baseline",UP_RSTarget_Medlcal,0)) -> 0 | K124: 0 | L124: 0 | M124: 0 | N124: 0 | O124: 0 | P124: 0 | Q124: 0 | S124: 0 | T124: =(S124+C124+'User Parameters'!$C$12)/(B124-F124) -> 1.057504763 | U124: =IF(T124<'User Parameters'!$J$5,'User Parameters'!$J$5,IF(T124>'User Parameters'!$J$6,'User Parameters'!$J$6,T124)) -> 1.057504763 | V124: 0 | W124: 0 | X124: =(B124-C124-F124-E124-S124-V124)/'Results Dashboard'!$D$43 -> -0.1357415081 | Y124: =IF((X124+W124)>0,(X124+W124)*0.5*((1+'User Parameters'!C$50)^((12+UP_COC_WithholdLag)/12)-1),(X124+W124)*0.5*((1+'User Parameters'!$C$51)^((12+UP_COC_WithholdLag)/12)-1)) -> 0 | Z124: =-'User Parameters'!$C$13*('User Parameters'!$C$14-1) -> 0 | AA124: -0.1357415081 | AB124: 1.69358704e-07 | AC124: 1.852158878e-07 | AD124: 1.852158878e-07 | AE124: 1.852158878e-07 | AF124: =IF($AA124<-'Results Dashboard'!$J$7,$AA124+'Results Dashboard'!$J$7,0) -> -0.1035499363 | AG124: =IF($AA124<-'Results Dashboard'!$J$8,$AA124+'Results Dashboard'!$J$8,0) -> -0.07135836441 | AH124: =IF($AA124<-'Results Dashboard'!$J$9,$AA124+'Results Dashboard'!$J$9,0) -> -0.05526257848 | AI124: =IF($AA124<-'Results Dashboard'!$J$11,$AA124+'Results Dashboard'!$J$11,0) -> 0 | AJ124: =IF($AA124<-'Results Dashboard'!$J$10,$AA124+'Results Dashboard'!$J$10,0) -> 0 | AL124: =IF((X124+W124)>0,(X124+W124)*0.5*'User Parameters'!C$50,(X124+W124)*0.5*'User Parameters'!$C$51) -> 0 | AM124: =-'User Parameters'!$C$13*('User Parameters'!$C$14-1) -> 0 | AN124: -0.1357415081
A125: 1.051929716 | B125: 634.4228257 | C125: 667.3682228 | D125: 1.051929716 | E125: ='User Parameters'!$C$11 -> 50 | F125: =B125*'User Parameters'!$C$15 -> 6.344228257 | G125: -89.28962528 | H125: -0.1407415081 | I125: 1.062555268 | J125: =IF(UP_RSBasis="MLR",UP_RSTarget_MLR,IF(UP_RSBasis="Medical Baseline",UP_RSTarget_Medlcal,0)) -> 0 | K125: 0 | L125: 0 | M125: 0 | N125: 0 | O125: 0 | P125: 0 | Q125: 0 | S125: 0 | T125: =(S125+C125+'User Parameters'!$C$12)/(B125-F125) -> 1.062555268 | U125: =IF(T125<'User Parameters'!$J$5,'User Parameters'!$J$5,IF(T125>'User Parameters'!$J$6,'User Parameters'!$J$6,T125)) -> 1.062555268 | V125: 0 | W125: 0 | X125: =(B125-C125-F125-E125-S125-V125)/'Results Dashboard'!$D$43 -> -0.1407415081 | Y125: =IF((X125+W125)>0,(X125+W125)*0.5*((1+'User Parameters'!C$50)^((12+UP_COC_WithholdLag)/12)-1),(X125+W125)*0.5*((1+'User Parameters'!$C$51)^((12+UP_COC_WithholdLag)/12)-1)) -> 0 | Z125: =-'User Parameters'!$C$13*('User Parameters'!$C$14-1) -> 0 | AA125: -0.1407415081 | AB125: 7.933511248e-08 | AC125: 9.002359148e-08 | AD125: 9.002359148e-08 | AE125: 9.002359148e-08 | AF125: =IF($AA125<-'Results Dashboard'!$J$7,$AA125+'Results Dashboard'!$J$7,0) -> -0.1085499363 | AG125: =IF($AA125<-'Results Dashboard'!$J$8,$AA125+'Results Dashboard'!$J$8,0) -> -0.07635836441 | AH125: =IF($AA125<-'Results Dashboard'!$J$9,$AA125+'Results Dashboard'!$J$9,0) -> -0.06026257848 | AI125: =IF($AA125<-'Results Dashboard'!$J$11,$AA125+'Results Dashboard'!$J$11,0) -> 0 | AJ125: =IF($AA125<-'Results Dashboard'!$J$10,$AA125+'Results Dashboard'!$J$10,0) -> 0 | AL125: =IF((X125+W125)>0,(X125+W125)*0.5*'User Parameters'!C$50,(X125+W125)*0.5*'User Parameters'!$C$51) -> 0 | AM125: =-'User Parameters'!$C$13*('User Parameters'!$C$14-1) -> 0 | AN125: -0.1407415081
A126: 1.056929716 | B126: 634.4228257 | C126: 670.5403369 | D126: 1.056929716 | E126: ='User Parameters'!$C$11 -> 50 | F126: =B126*'User Parameters'!$C$15 -> 6.344228257 | G126: -92.46173941 | H126: -0.1457415081 | I126: 1.067605774 | J126: =IF(UP_RSBasis="MLR",UP_RSTarget_MLR,IF(UP_RSBasis="Medical Baseline",UP_RSTarget_Medlcal,0)) -> 0 | K126: 0 | L126: 0 | M126: 0 | N126: 0 | O126: 0 | P126: 0 | Q126: 0 | S126: 0 | T126: =(S126+C126+'User Parameters'!$C$12)/(B126-F126) -> 1.067605774 | U126: =IF(T126<'User Parameters'!$J$5,'User Parameters'!$J$5,IF(T126>'User Parameters'!$J$6,'User Parameters'!$J$6,T126)) -> 1.067605774 | V126: 0 | W126: 0 | X126: =(B126-C126-F126-E126-S126-V126)/'Results Dashboard'!$D$43 -> -0.1457415081 | Y126: =IF((X126+W126)>0,(X126+W126)*0.5*((1+'User Parameters'!C$50)^((12+UP_COC_WithholdLag)/12)-1),(X126+W126)*0.5*((1+'User Parameters'!$C$51)^((12+UP_COC_WithholdLag)/12)-1)) -> 0 | Z126: =-'User Parameters'!$C$13*('User Parameters'!$C$14-1) -> 0 | AA126: -0.1457415081 | AB126: 3.644760678e-08 | AC126: 4.288750571e-08 | AD126: 4.288750571e-08 | AE126: 4.288750571e-08 | AF126: =IF($AA126<-'Results Dashboard'!$J$7,$AA126+'Results Dashboard'!$J$7,0) -> -0.1135499363 | AG126: =IF($AA126<-'Results Dashboard'!$J$8,$AA126+'Results Dashboard'!$J$8,0) -> -0.08135836441 | AH126: =IF($AA126<-'Results Dashboard'!$J$9,$AA126+'Results Dashboard'!$J$9,0) -> -0.06526257848 | AI126: =IF($AA126<-'Results Dashboard'!$J$11,$AA126+'Results Dashboard'!$J$11,0) -> -0.0008794347732 | AJ126: =IF($AA126<-'Results Dashboard'!$J$10,$AA126+'Results Dashboard'!$J$10,0) -> -0.0008794347732 | AL126: =IF((X126+W126)>0,(X126+W126)*0.5*'User Parameters'!C$50,(X126+W126)*0.5*'User Parameters'!$C$51) -> 0 | AM126: =-'User Parameters'!$C$13*('User Parameters'!$C$14-1) -> 0 | AN126: -0.1457415081
A127: 1.061929716 | B127: 634.4228257 | C127: 673.712451 | D127: 1.061929716 | E127: ='User Parameters'!$C$11 -> 50 | F127: =B127*'User Parameters'!$C$15 -> 6.344228257 | G127: -95.63385353 | H127: -0.1507415081 | I127: 1.072656279 | J127: =IF(UP_RSBasis="MLR",UP_RSTarget_MLR,IF(UP_RSBasis="Medical Baseline",UP_RSTarget_Medlcal,0)) -> 0 | K127: 0 | L127: 0 | M127: 0 | N127: 0 | O127: 0 | P127: 0 | Q127: 0 | S127: 0 | T127: =(S127+C127+'User Parameters'!$C$12)/(B127-F127) -> 1.072656279 | U127: =IF(T127<'User Parameters'!$J$5,'User Parameters'!$J$5,IF(T127>'User Parameters'!$J$6,'User Parameters'!$J$6,T127)) -> 1.072656279 | V127: 0 | W127: 0 | X127: =(B127-C127-F127-E127-S127-V127)/'Results Dashboard'!$D$43 -> -0.1507415081 | Y127: =IF((X127+W127)>0,(X127+W127)*0.5*((1+'User Parameters'!C$50)^((12+UP_COC_WithholdLag)/12)-1),(X127+W127)*0.5*((1+'User Parameters'!$C$51)^((12+UP_COC_WithholdLag)/12)-1)) -> 0 | Z127: =-'User Parameters'!$C$13*('User Parameters'!$C$14-1) -> 0 | AA127: -0.1507415081 | AB127: 1.64212671e-08 | AC127: 2.002633968e-08 | AD127: 2.002633968e-08 | AE127: 2.002633968e-08 | AF127: =IF($AA127<-'Results Dashboard'!$J$7,$AA127+'Results Dashboard'!$J$7,0) -> -0.1185499363 | AG127: =IF($AA127<-'Results Dashboard'!$J$8,$AA127+'Results Dashboard'!$J$8,0) -> -0.08635836441 | AH127: =IF($AA127<-'Results Dashboard'!$J$9,$AA127+'Results Dashboard'!$J$9,0) -> -0.07026257848 | AI127: =IF($AA127<-'Results Dashboard'!$J$11,$AA127+'Results Dashboard'!$J$11,0) -> -0.005879434773 | AJ127: =IF($AA127<-'Results Dashboard'!$J$10,$AA127+'Results Dashboard'!$J$10,0) -> -0.005879434773 | AL127: =IF((X127+W127)>0,(X127+W127)*0.5*'User Parameters'!C$50,(X127+W127)*0.5*'User Parameters'!$C$51) -> 0 | AM127: =-'User Parameters'!$C$13*('User Parameters'!$C$14-1) -> 0 | AN127: -0.1507415081
A128: 1.066929716 | B128: 634.4228257 | C128: 676.8845651 | D128: 1.066929716 | E128: ='User Parameters'!$C$11 -> 50 | F128: =B128*'User Parameters'!$C$15 -> 6.344228257 | G128: -98.80596766 | H128: -0.1557415081 | I128: 1.077706784 | J128: =IF(UP_RSBasis="MLR",UP_RSTarget_MLR,IF(UP_RSBasis="Medical Baseline",UP_RSTarget_Medlcal,0)) -> 0 | K128: 0 | L128: 0 | M128: 0 | N128: 0 | O128: 0 | P128: 0 | Q128: 0 | S128: 0 | T128: =(S128+C128+'User Parameters'!$C$12)/(B128-F128) -> 1.077706784 | U128: =IF(T128<'User Parameters'!$J$5,'User Parameters'!$J$5,IF(T128>'User Parameters'!$J$6,'User Parameters'!$J$6,T128)) -> 1.077706784 | V128: 0 | W128: 0 | X128: =(B128-C128-F128-E128-S128-V128)/'Results Dashboard'!$D$43 -> -0.1557415081 | Y128: =IF((X128+W128)>0,(X128+W128)*0.5*((1+'User Parameters'!C$50)^((12+UP_COC_WithholdLag)/12)-1),(X128+W128)*0.5*((1+'User Parameters'!$C$51)^((12+UP_COC_WithholdLag)/12)-1)) -> 0 | Z128: =-'User Parameters'!$C$13*('User Parameters'!$C$14-1) -> 0 | AA128: -0.1557415081 | AB128: 7.255502864e-09 | AC128: 9.165764235e-09 | AD128: 9.165764235e-09 | AE128: 9.165764235e-09 | AF128: =IF($AA128<-'Results Dashboard'!$J$7,$AA128+'Results Dashboard'!$J$7,0) -> -0.1235499363 | AG128: =IF($AA128<-'Results Dashboard'!$J$8,$AA128+'Results Dashboard'!$J$8,0) -> -0.09135836441 | AH128: =IF($AA128<-'Results Dashboard'!$J$9,$AA128+'Results Dashboard'!$J$9,0) -> -0.07526257848 | AI128: =IF($AA128<-'Results Dashboard'!$J$11,$AA128+'Results Dashboard'!$J$11,0) -> -0.01087943477 | AJ128: =IF($AA128<-'Results Dashboard'!$J$10,$AA128+'Results Dashboard'!$J$10,0) -> -0.01087943477 | AL128: =IF((X128+W128)>0,(X128+W128)*0.5*'User Parameters'!C$50,(X128+W128)*0.5*'User Parameters'!$C$51) -> 0 | AM128: =-'User Parameters'!$C$13*('User Parameters'!$C$14-1) -> 0 | AN128: -0.1557415081
A129: =A128+0.005 -> 1.071929716 | B129: 634.4228257 | C129: 680.0566793 | D129: 1.071929716 | E129: ='User Parameters'!$C$11 -> 50 | F129: =B129*'User Parameters'!$C$15 -> 6.344228257 | G129: -101.9780818 | H129: -0.1607415081 | I129: 1.082757289 | J129: =IF(UP_RSBasis="MLR",UP_RSTarget_MLR,IF(UP_RSBasis="Medical Baseline",UP_RSTarget_Medlcal,0)) -> 0 | K129: 0 | L129: 0 | M129: 0 | N129: 0 | O129: 0 | P129: 0 | Q129: 0 | S129: 0 | T129: =(S129+C129+'User Parameters'!$C$12)/(B129-F129) -> 1.082757289 | U129: =IF(T129<'User Parameters'!$J$5,'User Parameters'!$J$5,IF(T129>'User Parameters'!$J$6,'User Parameters'!$J$6,T129)) -> 1.082757289 | V129: 0 | W129: 0 | X129: =(B129-C129-F129-E129-S129-V129)/'Results Dashboard'!$D$43 -> -0.1607415081 | Y129: =IF((X129+W129)>0,(X129+W129)*0.5*((1+'User Parameters'!C$50)^((12+UP_COC_WithholdLag)/12)-1),(X129+W129)*0.5*((1+'User Parameters'!$C$51)^((12+UP_COC_WithholdLag)/12)-1)) -> 0 | Z129: =-'User Parameters'!$C$13*('User Parameters'!$C$14-1) -> 0 | AA129: -0.1607415081 | AB129: 3.143701955e-09 | AC129: 4.111800909e-09 | AD129: 4.111800909e-09 | AE129: 4.111800909e-09 | AF129: =IF($AA129<-'Results Dashboard'!$J$7,$AA129+'Results Dashboard'!$J$7,0) -> -0.1285499363 | AG129: =IF($AA129<-'Results Dashboard'!$J$8,$AA129+'Results Dashboard'!$J$8,0) -> -0.09635836441 | AH129: =IF($AA129<-'Results Dashboard'!$J$9,$AA129+'Results Dashboard'!$J$9,0) -> -0.08026257848 | AI129: =IF($AA129<-'Results Dashboard'!$J$11,$AA129+'Results Dashboard'!$J$11,0) -> -0.01587943477 | AJ129: =IF($AA129<-'Results Dashboard'!$J$10,$AA129+'Results Dashboard'!$J$10,0) -> -0.01587943477 | AL129: =IF((X129+W129)>0,(X129+W129)*0.5*'User Parameters'!C$50,(X129+W129)*0.5*'User Parameters'!$C$51) -> 0 | AM129: =-'User Parameters'!$C$13*('User Parameters'!$C$14-1) -> 0 | AN129: -0.1607415081
A130: 1.076929716 | B130: 634.4228257 | C130: 683.2287934 | D130: 1.076929716 | E130: ='User Parameters'!$C$11 -> 50 | F130: =B130*'User Parameters'!$C$15 -> 6.344228257 | G130: -105.1501959 | H130: -0.1657415081 | I130: 1.087807794 | J130: =IF(UP_RSBasis="MLR",UP_RSTarget_MLR,IF(UP_RSBasis="Medical Baseline",UP_RSTarget_Medlcal,0)) -> 0 | K130: 0 | L130: 0 | M130: 0 | N130: 0 | O130: 0 | P130: 0 | Q130: 0 | S130: 0 | T130: =(S130+C130+'User Parameters'!$C$12)/(B130-F130) -> 1.087807794 | U130: =IF(T130<'User Parameters'!$J$5,'User Parameters'!$J$5,IF(T130>'User Parameters'!$J$6,'User Parameters'!$J$6,T130)) -> 1.087807794 | V130: 0 | W130: 0 | X130: =(B130-C130-F130-E130-S130-V130)/'Results Dashboard'!$D$43 -> -0.1657415081 | Y130: =IF((X130+W130)>0,(X130+W130)*0.5*((1+'User Parameters'!C$50)^((12+UP_COC_WithholdLag)/12)-1),(X130+W130)*0.5*((1+'User Parameters'!$C$51)^((12+UP_COC_WithholdLag)/12)-1)) -> 0 | Z130: =-'User Parameters'!$C$13*('User Parameters'!$C$14-1) -> 0 | AA130: -0.1657415081 | AB130: 1.33572977e-09 | AC130: 1.807972185e-09 | AD130: 1.807972185e-09 | AE130: 1.807972185e-09 | AF130: =IF($AA130<-'Results Dashboard'!$J$7,$AA130+'Results Dashboard'!$J$7,0) -> -0.1335499363 | AG130: =IF($AA130<-'Results Dashboard'!$J$8,$AA130+'Results Dashboard'!$J$8,0) -> -0.1013583644 | AH130: =IF($AA130<-'Results Dashboard'!$J$9,$AA130+'Results Dashboard'!$J$9,0) -> -0.08526257848 | AI130: =IF($AA130<-'Results Dashboard'!$J$11,$AA130+'Results Dashboard'!$J$11,0) -> -0.02087943477 | AJ130: =IF($AA130<-'Results Dashboard'!$J$10,$AA130+'Results Dashboard'!$J$10,0) -> -0.02087943477 | AL130: =IF((X130+W130)>0,(X130+W130)*0.5*'User Parameters'!C$50,(X130+W130)*0.5*'User Parameters'!$C$51) -> 0 | AM130: =-'User Parameters'!$C$13*('User Parameters'!$C$14-1) -> 0 | AN130: -0.1657415081
A131: 1.081929716 | B131: 634.4228257 | C131: 686.4009075 | D131: 1.081929716 | E131: ='User Parameters'!$C$11 -> 50 | F131: =B131*'User Parameters'!$C$15 -> 6.344228257 | G131: -108.32231 | H131: -0.1707415081 | I131: 1.092858299 | J131: =IF(UP_RSBasis="MLR",UP_RSTarget_MLR,IF(UP_RSBasis="Medical Baseline",UP_RSTarget_Medlcal,0)) -> 0 | K131: 0 | L131: 0 | M131: 0 | N131: 0 | O131: 0 | P131: 0 | Q131: 0 | S131: 0 | T131: =(S131+C131+'User Parameters'!$C$12)/(B131-F131) -> 1.092858299 | U131: =IF(T131<'User Parameters'!$J$5,'User Parameters'!$J$5,IF(T131>'User Parameters'!$J$6,'User Parameters'!$J$6,T131)) -> 1.092858299 | V131: 0 | W131: 0 | X131: =(B131-C131-F131-E131-S131-V131)/'Results Dashboard'!$D$43 -> -0.1707415081 | Y131: =IF((X131+W131)>0,(X131+W131)*0.5*((1+'User Parameters'!C$50)^((12+UP_COC_WithholdLag)/12)-1),(X131+W131)*0.5*((1+'User Parameters'!$C$51)^((12+UP_COC_WithholdLag)/12)-1)) -> 0 | Z131: =-'User Parameters'!$C$13*('User Parameters'!$C$14-1) -> 0 | AA131: -0.1707415081 | AB131: 5.565320757e-10 | AC131: 7.791976941e-10 | AD131: 7.791976941e-10 | AE131: 7.791976941e-10 | AF131: =IF($AA131<-'Results Dashboard'!$J$7,$AA131+'Results Dashboard'!$J$7,0) -> -0.1385499363 | AG131: =IF($AA131<-'Results Dashboard'!$J$8,$AA131+'Results Dashboard'!$J$8,0) -> -0.1063583644 | AH131: =IF($AA131<-'Results Dashboard'!$J$9,$AA131+'Results Dashboard'!$J$9,0) -> -0.09026257848 | AI131: =IF($AA131<-'Results Dashboard'!$J$11,$AA131+'Results Dashboard'!$J$11,0) -> -0.02587943477 | AJ131: =IF($AA131<-'Results Dashboard'!$J$10,$AA131+'Results Dashboard'!$J$10,0) -> -0.02587943477 | AL131: =IF((X131+W131)>0,(X131+W131)*0.5*'User Parameters'!C$50,(X131+W131)*0.5*'User Parameters'!$C$51) -> 0 | AM131: =-'User Parameters'!$C$13*('User Parameters'!$C$14-1) -> 0 | AN131: -0.1707415081
A132: 1.086929716 | B132: 634.4228257 | C132: 689.5730217 | D132: 1.086929716 | E132: ='User Parameters'!$C$11 -> 50 | F132: =B132*'User Parameters'!$C$15 -> 6.344228257 | G132: -111.4944242 | H132: -0.1757415081 | I132: 1.097908804 | J132: =IF(UP_RSBasis="MLR",UP_RSTarget_MLR,IF(UP_RSBasis="Medical Baseline",UP_RSTarget_Medlcal,0)) -> 0 | K132: 0 | L132: 0 | M132: 0 | N132: 0 | O132: 0 | P132: 0 | Q132: 0 | S132: 0 | T132: =(S132+C132+'User Parameters'!$C$12)/(B132-F132) -> 1.097908804 | U132: =IF(T132<'User Parameters'!$J$5,'User Parameters'!$J$5,IF(T132>'User Parameters'!$J$6,'User Parameters'!$J$6,T132)) -> 1.097908804 | V132: 0 | W132: 0 | X132: =(B132-C132-F132-E132-S132-V132)/'Results Dashboard'!$D$43 -> -0.1757415081 | Y132: =IF((X132+W132)>0,(X132+W132)*0.5*((1+'User Parameters'!C$50)^((12+UP_COC_WithholdLag)/12)-1),(X132+W132)*0.5*((1+'User Parameters'!$C$51)^((12+UP_COC_WithholdLag)/12)-1)) -> 0 | Z132: =-'User Parameters'!$C$13*('User Parameters'!$C$14-1) -> 0 | AA132: -0.1757415081 | AB132: 2.273775758e-10 | AC132: 3.291544999e-10 | AD132: 3.291544999e-10 | AE132: 3.291544999e-10 | AF132: =IF($AA132<-'Results Dashboard'!$J$7,$AA132+'Results Dashboard'!$J$7,0) -> -0.1435499363 | AG132: =IF($AA132<-'Results Dashboard'!$J$8,$AA132+'Results Dashboard'!$J$8,0) -> -0.1113583644 | AH132: =IF($AA132<-'Results Dashboard'!$J$9,$AA132+'Results Dashboard'!$J$9,0) -> -0.09526257848 | AI132: =IF($AA132<-'Results Dashboard'!$J$11,$AA132+'Results Dashboard'!$J$11,0) -> -0.03087943477 | AJ132: =IF($AA132<-'Results Dashboard'!$J$10,$AA132+'Results Dashboard'!$J$10,0) -> -0.03087943477 | AL132: =IF((X132+W132)>0,(X132+W132)*0.5*'User Parameters'!C$50,(X132+W132)*0.5*'User Parameters'!$C$51) -> 0 | AM132: =-'User Parameters'!$C$13*('User Parameters'!$C$14-1) -> 0 | AN132: -0.1757415081
A133: 1.091929716 | B133: 634.4228257 | C133: 692.7451358 | D133: 1.091929716 | E133: ='User Parameters'!$C$11 -> 50 | F133: =B133*'User Parameters'!$C$15 -> 6.344228257 | G133: -114.6665383 | H133: -0.1807415081 | I133: 1.102959309 | J133: =IF(UP_RSBasis="MLR",UP_RSTarget_MLR,IF(UP_RSBasis="Medical Baseline",UP_RSTarget_Medlcal,0)) -> 0 | K133: 0 | L133: 0 | M133: 0 | N133: 0 | O133: 0 | P133: 0 | Q133: 0 | S133: 0 | T133: =(S133+C133+'User Parameters'!$C$12)/(B133-F133) -> 1.102959309 | U133: =IF(T133<'User Parameters'!$J$5,'User Parameters'!$J$5,IF(T133>'User Parameters'!$J$6,'User Parameters'!$J$6,T133)) -> 1.102959309 | V133: 0 | W133: 0 | X133: =(B133-C133-F133-E133-S133-V133)/'Results Dashboard'!$D$43 -> -0.1807415081 | Y133: =IF((X133+W133)>0,(X133+W133)*0.5*((1+'User Parameters'!C$50)^((12+UP_COC_WithholdLag)/12)-1),(X133+W133)*0.5*((1+'User Parameters'!$C$51)^((12+UP_COC_WithholdLag)/12)-1)) -> 0 | Z133: =-'User Parameters'!$C$13*('User Parameters'!$C$14-1) -> 0 | AA133: -0.1807415081 | AB133: 9.109255169e-11 | AC133: 1.362850241e-10 | AD133: 1.362850241e-10 | AE133: 1.362850241e-10 | AF133: =IF($AA133<-'Results Dashboard'!$J$7,$AA133+'Results Dashboard'!$J$7,0) -> -0.1485499363 | AG133: =IF($AA133<-'Results Dashboard'!$J$8,$AA133+'Results Dashboard'!$J$8,0) -> -0.1163583644 | AH133: =IF($AA133<-'Results Dashboard'!$J$9,$AA133+'Results Dashboard'!$J$9,0) -> -0.1002625785 | AI133: =IF($AA133<-'Results Dashboard'!$J$11,$AA133+'Results Dashboard'!$J$11,0) -> -0.03587943477 | AJ133: =IF($AA133<-'Results Dashboard'!$J$10,$AA133+'Results Dashboard'!$J$10,0) -> -0.03587943477 | AL133: =IF((X133+W133)>0,(X133+W133)*0.5*'User Parameters'!C$50,(X133+W133)*0.5*'User Parameters'!$C$51) -> 0 | AM133: =-'User Parameters'!$C$13*('User Parameters'!$C$14-1) -> 0 | AN133: -0.1807415081
